{"text_format":"1","workbook":"xlsx","n_sheets":17,"sheets":["Azala_Portada ","Datu orokorrakDatos generales","1. blokea_Bloque 1","2. blokea_Bloque 2","3. blokea_Bloque 3","Jarduera_Desempeño","Medidas prioritarias","Definizioak_Definiciones","Goitibeherakoak_Desplegables","Zenbaketa_Conteo","Medidas_INTRODUCCIÓN","Medidas_BLOQUE 1","Medidas_BLOQUE 2","Medidas_BLOQUE 3","1 BLOKEA_Neurriak","2 BLOKEA_Neurriak","3 BLOKEA_Neurriak"],"not_rendered":{"charts":2,"images":41,"macros":1,"external_links":0,"defined_names":2,"comments":0,"pivot_tables":0},"unopened":[],"bounds":{"document_bytes":16777216,"sheet_cells":100000,"rows_first":2000,"rows_last":500,"rows_between":2000,"halvings":0,"cell_chars":16384,"cell_head_chars":4096},"cells_cut":0,"cells_raw":0,"read":"whole","date_system":"1900"}

{"sheet":"Azala_Portada ","index":0,"n_rows":36,"n_cols":3,"rows_kept":36,"cut":false,"hidden":false,"merged":[[40,13,40,14],[12,1,15,14],[8,1,11,14],[31,2,31,14],[17,1,20,14],[35,1,38,14],[27,1,27,14],[22,1,24,14],[29,2,29,14],[30,2,30,14],[26,1,26,2],[34,1,34,2]]}
[]
[]
[]
[]
[]
[]
[]
[]
[null,"AUTODIAGNOSTIKORAKO TRESNA\nENPRESEN DESKARBONIZAZIOA GIPUZKOAN"]
[]
[]
[]
[null,"HERRAMIENTA DE AUTODIAGNÓSTICO \nDESCARBONIZACIÓN DE EMPRESAS EN GIPUZKOA"]
[]
[]
[]
[]
[null,"Autodiagnostikorako tresna laguntza-aplikazio bat da, Gipuzkoako enpresa-sarea osatzen duten erakundeek deskarbonizazioaren arloan egun duten egoera zenbatetsi ahal izateko eta epe labur, ertain eta luzerako jarduera hobetzeko aukera emango dieten ekintza orokorren proposamenean oinarrituta bideratu ahal izango dute.\n\nLa herramienta de autodiagnóstico constituye un instrumento de ayuda, diseñado para que las organizaciones que integran el tejido empresarial de Gipuzkoa puedan estimar su situación actual en materia de descarbonización y puedan orientar su descarbonización en base a una propuesta de acciones generales que le permitirán mejorar su desempeño a corto, medio y largo plazo. "]
[]
[]
[]
[]
[null,"Tresna honek ezin du erakundearen karbono-aztarna kalkulatu. Horretarako, jo Trantsizio Ekologikorako eta Erronka Demografikorako Ministerioaren web-orrira eta sartu antolakuntzako karbono-aztarnaren kalkulagailuaren azken bertsiora:\nhttps://www.miteco.gob.es/es/cambio-climatico/temas/mitigacion-politicas-y-medidas/calculadoras.html\n\nLa presente herramienta no posibilita el cálculo de huella de carbono de la organización. Para tal efecto dirigirse a la página web del Ministerio para la Transición Ecológica y el Reto Demográfico  y acceder a la última versión de la calculadora de huella de carbono de organización: \nhttps://www.miteco.gob.es/es/cambio-climatico/temas/mitigacion-politicas-y-medidas/calculadoras.html"]
[]
[]
[]
[null,"EGITURA/ ESTRUCTURA"]
[null,"Tresna 3 jarduera-bloke nagusitan egituratzen da, eta deskarbonizazioan erakundearen jarduna diagnostikatzera bideratutako galderak biltzen ditu:\nLa herramienta se estructura en 3 bloques de actuación principales que incluyen preguntas  orientadas a poder diagnosticar el desempeño de la organización en la descarbonización:"]
[]
[null,null,"1. multzoa-ESTRATEGIA: deskarbonizazioaren arloan erakundearen estrategia korporatiboa diagnostikatzea du helburu.\nBloque 1-ESTRATEGIA: tiene por objeto diagnosticar la estrategia corporativa de la organización en materia de descarbonización."]
[null,null,"2.multzoa-KUDEAKETA ENERGETIKOA ETA BEG EMISIOAK: erakundeak berotegi-efektuko gasen (BEG) kontsumoak eta emisioak neurtzeko, jakinarazteko eta egiaztatzeko zein neurritan lan egin duen diagnostikatzea du helburu, eta bere jarduera deskarbonizatzeko neurriak eta helburuak zehaztu ote dituen.\nBloque 2-GESTIÓN ENERGÉTICA Y EMISIONES GEI: tiene por objeto diagnosticar en que medida la organización ha trabajado en la medición, reporte y verificación de consumos y emisiones de gases de efecto invernadero (GEI), y si ha definido medidas y objetivos de reducción encaminados a descarbonizar su actividad."]
[null,null,"3. multzoa-KONPENTSAZIOA: erakundeak soberako BEG isuriak kudeatzeko konpentsazio-bidea aukeratu duen diagnostikatzea du helburu.\nBloque 3-COMPENSACIÓN: tiene por objeto diagnosticar si la organización ha optado por la via de compensación para gestionar sus emisiones GEI remanentes. "]
[]
[]
[null,"EMAITZAK/ RESULTADOS"]
[null,"Autodiagnostikoa amaitzean, puntuazio orokor bat lortuko da, deskarbonizazioaren arloan enpresaren egungo egoera zehazteko aukera emango duena, eta lehentasunezko neurriak eta ekintzak aurkeztuko dira, jarduera-blokeen arabera bereizita, erakundeak bere ibilbide-orria deskarbonizaziorantz bideratzeko aukera izan dezan. Izaera orokorreko neurri eta ekintza horiek 6 sektoreren (eraikuntza, papera, metal mekanikoa, zerbitzuak, makina-erreminta eta nekazaritzako elikagaiak) aurretiko azterketa batean oinarrituta definitu dira. Sektore horiek askotariko jarduerei erantzun diezaiekete, baina ez dira hartu behar erakunde bakoitzerako planteamendu espezifiko eta pertsonalizatutzat.\n\nAl finalizar el autodiagnóstico se obtendrá una puntuación global que permitará determinar el estado actual de la empresa en materia de descarbonización y se presentarán medidas y acciones prioritarias, diferenciadas por bloque de actuación, que permitirán a la organización orientar su hoja de ruta hacia la descarbonización. Estas medidas y acciones de caracter general, se han definido en base a un analisis previo de 6 sectores (construcción, papel, metal mecánico, servicios, máquina herramienta y agroalimentario) que pueden dar respuesta a una amplia variedad de actividades, pero no deben considerarse como un planteamiento especifico y personalizado para cada organización."]

{"sheet":"Datu orokorrakDatos generales","index":1,"n_rows":43,"n_cols":7,"rows_kept":43,"cut":false,"hidden":false,"merged":[[47,12,47,13],[10,6,10,8],[26,3,26,10],[18,3,18,5],[22,3,22,10],[28,1,29,4],[40,3,40,8],[44,3,44,8],[36,3,36,8]]}
[]
[]
[]
[]
[]
[]
[null,"Enpresaren identifikazioa / Identificación de la empresa"]
[]
[null,1,null,"Sozietatearen izena/ Razón Social",null,null,"IFZ/ NIF"]
[]
[]
[]
[null,2,null,"Sektorea/ Sector *"]
[]
[]
[]
[null,3,null,"Enpresaren tamaina/ Tamaño de la empresa"]
[]
[]
[]
[null,4,null,"Helbidea/ Domicilio"]
[]
[]
[]
[null,5,null,"Udalerria/ Municipio"]
[]
[]
[]
[null,"* Nahitaezko erantzuna/ Respuesta obligatoria"]
[]
[]
[]
[null,"Harremanetarako datuak / Datos de contacto"]
[]
[null,1,null,"Harremanetarako pertsona/ Persona de contacto"]
[]
[]
[]
[null,2,null,"Telefonoa/ Teléfono"]
[]
[]
[]
[null,3,null,"Email/ Email"]

{"sheet":"1. blokea_Bloque 1","index":2,"n_rows":41,"n_cols":7,"rows_kept":41,"cut":false,"hidden":false,"merged":[[76,9,76,10],[12,3,12,8],[40,3,40,9],[8,3,8,10],[16,3,16,10],[20,3,20,10],[32,3,33,10]]}
[]
[]
[]
[]
[]
[]
[null,"1. Multzoa: ESTRATEGIA / Bloque 1: ESTRATEGIA"]
[]
[null,1,null,"Erakundeak ba al du politika, ingurumen-kudeaketako sistema, adierazpen edo erakundearen beraren ingurumen-hobekuntzara bideratutako bestelako tresnarik?\n¿Dispone su organización de alguna política, sistema de gestión medioambiental, declaración u otro instrumento orientado a la mejora ambiental de la propia organización?  "]
[]
[]
[]
[null,2,null,"Erakundeak ba al du bere jardueraren deskarbonizaziora bideratutako epe labur eta ertainerako helbururik eta/edo ekintza-planik?\n¿Dispone la organización de objetivos y/o planes de acción a corto y medio plazo orientados a la descarbonización de su actividad?"]
[]
[]
[]
[null,3,null,"Merkatuak edo bere bezeroek ingurumen-betekizunen bat betetzeko errekerimenduak egin al dizkizute? (adibidez, karbono-aztarna kalkulatzeko informazio-eskaera).\n¿El mercado o sus clientes le han efectuado requerimientos respecto al cumplimiento de algún requisito ambiental? (por ejemplo, solicitud de información para el cálculo de huella de carbono)."]
[]
[]
[]
[null,4,null,"Adierazi zure erakundea prest dagoen eskakizun horiei erantzuteko. Zehaztu zein epetan.\nIndique si su organización se encuentra preparada para contestar dichos requerimientos. Especifique en qué plazos."]
[]
[]
[]
[null,5,null,"Zure erakundeak karbono produktu edo zerbitzu neutroak eskaintzen ditu?\n¿Su organización ofrece productos o servicios neutros en carbono? "]
[]
[]
[]
[null,6,null,"Ezagutzen al duzu EBko isurketa-eskubideen merkataritza-araubidea (EBko RCDE)?\n¿Conoce el Régimen de comercio de derechos de emisión de la UE (RCDE UE)? "]
[]
[]
[]
[null,7,null,"Urteko aurrekontuetan etengabe sartzen al dira erakundearen ingurumena eta jarduera hobetzeko inbertsioak? Adierazi ingurumen-proiektuetarako urteko aurrekontuaren %.\n¿Los presupuestos anuales incorporan de forma continua inversiones para la mejora ambiental de la organización y su actividad? Indique % del presupuesto anual destinado a proyectos ambientales."]
[]
[null,null,null,null,null,null,"%"]
[]
[null,8,null,"Erakundeak ingurumen-sentsibilizazioko programak garatzen ditu langileen artean?\n¿La organización desarrolla programas de sensibilización ambiental entre las personas empleadas? "]
[]
[]
[]
[null,9,null,"Ezarri al du erakundeak neurri aktiborik langileen mugikortasun aktiboa sustatzeko?\n¿Ha implantado la organización alguna medida activa para fomentar la movilidad activa itinere de sus empleados? "]

{"sheet":"2. blokea_Bloque 2","index":3,"n_rows":172,"n_cols":4,"rows_kept":172,"cut":false,"hidden":false,"merged":[[10,3,10,5],[14,3,14,4],[18,3,18,4],[22,3,22,4],[26,3,26,4],[30,3,30,6],[34,3,34,5],[38,3,38,4],[42,3,42,7],[46,3,46,8],[50,3,50,8],[66,3,66,7],[74,3,74,7],[78,3,78,7],[92,3,92,7],[82,2,82,3],[80,2,80,3],[81,2,81,3],[58,3,58,8],[62,3,62,8],[70,3,70,8],[88,3,88,8],[96,3,96,4],[100,3,101,5],[104,3,104,4],[113,3,113,5],[117,3,117,7],[121,3,121,7],[125,3,125,5],[129,3,129,4],[133,3,133,7],[137,3,137,4],[181,7,181,8],[169,3,169,7],[144,3,144,5],[148,3,148,5],[152,3,152,8],[157,3,157,5],[165,3,165,7]]}
[]
[]
[]
[]
[]
[]
[null,"2. Multzoa: ENERGIA KUDEAKETA ETA BEROTEGI-EFEKTUKO GASEN EMISIOAK / Bloque 2: GESTIÓN ENERGÉTICA Y EMISIONES GEI "]
[]
[null,"AURREZPEN ETA EFIZIENTZIA ENERGETIKOA / AHORRO Y EFICIENCIA ENERGÉTICA"]
[]
[null,1,null,"Erakundeak egiten al ditu energia-kontsumoen etengabeko jarraipena eta ebaluazioa?\n¿Realiza la organización un seguimiento y evaluación continua de sus consumos energéticos? "]
[]
[]
[]
[null,null,null,"Erantzuna baiezkoa bada, adierazi zein maiztasunekin.\nEn caso afirmativo, indique con qué frecuencia."]
[]
[]
[]
[null,null,null,"Erantzuna baiezkoa bada, adierazi erabilitako metodoa.\nEn caso afirmativo, indique método empleado. "]
[]
[]
[]
[null,2,null,"Egin al du erakundeak zure jardueraren auditoretza energetikorik?\n¿Ha realizado la organización alguna auditoria energética de su actividad?"]
[]
[]
[]
[null,null,null,"Erantzuna baiezkoa bada, adierazi zein mailatan ezarri dituzun horietan identifikatutako hobekuntzak.\nEn caso afirmativo, indique en qué grado ha implantado las mejoras identificadas en las mismas. "]
[]
[]
[]
[null,3,null,"Ba al du aurrezte- eta efizientzia-planik, erakundeak deskarbonizatzeko ezarri beharreko neurri zehatzak zehazten dituena?\n¿Dispone de un plan de ahorro y eficiencia en el cual se definan medidas concretas a implantar en la organización para su descarbonización? "]
[]
[]
[]
[null,4,null,"Energia-kontsumoaren murrizketan eragin nabarmena izan duen hobekuntzarik ezarri al du?\n¿Ha implantado mejoras que hayan repercutido significativamente en la reducción del consumo energético?"]
[]
[]
[]
[null,null,null,"Erantzuna baiezkoa bada, adierazi lortutako aurrezkiaren ehunekoa.\nEn caso afirmativo, indique % de ahorro alcanzado."]
[]
[]
[]
[null,5,null,"Urteko aurrekontuetan aurreikusten al du erakundeak instalazioetan eta/edo ekipoetan energia aurrezteko eta eraginkortasunez erabiltzeko inbertsiorik?\n¿Prevé la organización en los presupuestos anuales inversiones destinadas al ahorro y eficiencia energética en instalaciones y/o equipos?"]
[]
[]
[]
[null,6,null,"Ezagutzen al dituzu aurrezpen, eraginkortasun energetiko, sorkuntza berriztagarri eta mugikortasun iraunkorreko inbertsioetarako Gipuzkoan dauden dirulaguntza eta kenkari fiskalen aukerak?\n¿Conoce las líneas de subvenciones y deducción fiscales existentes para las inversiones en ahorro, eficiencia energética, generación renovable y movilidad sostenible existentes en THG?"]
[]
[]
[]
[null,7,null,"Azken hiru ekitaldietan jaso al dute erakundeko langileek energia-aurrezpenari eta -eraginkortasunari buruzko prestakuntzarik?\n¿Durante los tres últimos ejercicios ha recibido el personal de la organización formación relativa al ahorro y eficiencia energética?"]
[]
[]
[]
[]
[]
[null,"ENERGIA BERRIZTAGARRIA / ENERGÍA RENOVABLE"]
[]
[null,8,null,"Erakundeak kontratatutako energia elektrikoak ba al du jatorri berriztagarriko bermerik?\n¿La energía eléctrica contratada por la organización dispone de garantía de origen renovable?"]
[]
[]
[]
[null,9,null,"Erakundeak ba al du sorkuntza berriztagarriko instalaziorik (eguzki-panel fotovoltaikoak/termikoak) autokontsumorako/kontsumo partekaturako?\n¿Dispone la organización de alguna instalación de generación renovable (paneles solares fotovoltaicos/térmicos)  para  autoconsumo /consumo compartido? "]
[]
[]
[]
[null,null,null,"Erantzuna baiezkoa bada, adierazi zer proportzio duen autokudeatutako energiak erositakoarekin alderatuta. \nEn caso afirmativo, indicar la proporción de la energía autogenerada respecto de la comprada. "]
[]
[]
[]
[null,10,null,"Egin al duzu jarduerarik erregai fosilak energia-iturri gisa erabat edo partzialki ordezkatzeko? (Adibidez, gas naturalaren ordez biomasa erabiltzea, geotermia.)\n¿Ha llevado a cabo alguna actuación para la sustitución, total o parcial, de los combustibles fósiles como fuente de energía? (Por ejemplo, la sustitución de gas natural por biomasa, geotermia….)"]
[]
[]
[]
[null,11,null,"Zure erakundeak ba al du energia berriztagarriaren kontsumoarekin lotutako helbururik? \n¿Dispone su organización de objetivos relacionados con el consumo de energía renovable? "]
[]
[]
[]
[null,12,null,"Aurreko galderaren erantzuna baiezkoa bada, adierazi epea, mekanismoa eta lortu beharreko energia berriztagarriaren ehunekoa (%):\nEn caso afirmativo de la pregunta anterior, indique plazo, mecanismo y porcentaje (%) de energía renovable a alcanzar:"]
[]
[null,null,"Epea/ Plazo"]
[null,null,"Neurria/ Mecanismo"]
[null,null,"Lortzeko aurreikusitako % / % previsto de alcanzar"]
[]
[]
[]
[null,"MUGIKORTASUN JASANGARRIA / MOVILIDAD SOSTENIBLE"]
[]
[null,13,null,"Enpresak ba al du flota iraunkor propiorik edo alokairuan bere jarduerak garatzeko?\n¿La empresa cuenta con flota sostenible propia o de alquiler para el desarrollo de sus actividades? "]
[]
[]
[]
[null,null,null,"Erantzuna baiezkoa bada, adierazi zure flotaren zein % den jasangarria (adibidez, zure flota operatiboak ibilgailu elektriko entxufagarriak izatea).\nEn caso afirmativo , indicar el % de su flota que es sostenible (por ejemplo, que su flota operativa incluya vehículos eléctricos enchufables). "]
[]
[]
[]
[null,14,null,"Enpresak bere flotarentzako estrategia jasangarririk barneratu al du?\n¿La empresa ha incluido estrategias sostenibles para su flota? "]
[]
[]
[]
[null,15,null,"Zure erakundeak ba al du egungo flota berritzean jasangarriagoa den bat izatera bideratutako helbururik?\n¿Dispone su organización de objetivos relacionados con la renovación de flota actual por otra más sostenible? "]
[]
[]
[]
[null,null,null,"Baiezkoa bada, adierazi zer % lortzea aurreikusten den.\nEn caso afirmativo, indicar % que se prevé alcanzar."]
[]
[]
[]
[]
[]
[null,"EKONOMIA ZIRKULARRA / ECONOMÍA CIRCULAR"]
[]
[]
[null,16,null,"Egin al duzu zure produktu edo zerbitzuen bizi-zikloaren (BZA) analisirik? (adibidez, ISO 14044 arauaren pean)\n¿Ha realizado un Análisis del Ciclo de Vida (ACV) de alguno de sus productos o servicios? (por ejemplo bajo la norma ISO 14044)"]
[]
[]
[]
[null,17,null,"Lehengaien kontsumoa eta/edo ekoizpen-prozesuetan hondakinak murrizteko inbertsiorik egin al duzu?\n¿Ha realizado inversiones destinadas a reducir el consumo de materias primas y/o generación de residuos de los procesos productivos?"]
[]
[]
[]
[null,18,null,"Zure prozesuetan egokitzapenik egin al duzu bigarren mailako gaiak lehengaien ordezko gisa sartzeko?\n¿Ha realizado alguna adaptación en sus procesos para incorporar en ellos materias secundarias como sustitutivos de materias primas?"]
[]
[]
[]
[null,19,null,"Zure erakundeak ba al du materialen kontsumoa murriztera bideratutako ekintza-planik?\n¿Su organización cuenta con un plan de acción orientado a la reducción del consumo de materiales?"]
[]
[]
[]
[null,null,null,"Erantzuna baiezkoa bada, adierazi espero den murrizketaren ehunekoa.\nEn caso afirmativo , indicar el % de reducción esperada."]
[]
[]
[]
[null,20,null,"Zure erakundeak ba al du hondakinak murriztera bideratutako ekintza-planik? Erantzuna baiezkoa bada, adierazi espero den murrizketaren ehunekoa.\n¿Su organización cuenta con un plan de acción orientado a la reducción de residuos? En caso afirmativo , indicar el % de reducción esperada."]
[]
[]
[]
[null,null,null,"Erantzuna baiezkoa bada, adierazi espero den murrizketaren ehunekoa.\nEn caso afirmativo , indicar el % de reducción esperado."]
[]
[]
[]
[]
[null,"BEG ISURIEN KALKULUA (KARBONO-AZTARNA) / CÁLCULO DE EMISIONES GEI (HUELLA DE CARBONO)"]
[]
[null,21,null,"Erakundeak kalkulatzen al ditu bere emisioak? (Kalkulatutako azken aldian oinarrituta erantzun)\n¿La organización calcula sus emisiones corporativas? (Responder en base a último período calculado)"]
[]
[null,null,null,"Irismena / Alcances"]
[]
[null,22,null,"Adierazi zenbat urtetan kalkulatu den karbono-aztarna.\nIndique los años que lleva calculando su huella de carbono."]
[]
[]
[]
[null,23,null,"Karbono-aztarnak bilakaera positiboa urtez urte behera egin du) edo negatiboa (urtez urte gora egin du) izan du?\n¿Su huella de carbono ha tenido una evolución positiva (ha disminuido año tras año) o negativa (se ha incrementado año tras año)?"]
[]
[]
[]
[]
[null,24,null,"Zure aztarna Trantsizio Ekologikorako eta Erronka Demografikorako Ministerioaren Aztarna Erregistroan inskribatu duzu?\n¿Ha inscrito su huella en el Registro Huella del Ministerio para la Transición Ecológica y el Reto Demográfico?"]
[]
[]
[]
[]
[]
[null,"ISURI IHESKORRAK / EMISIONES FUGITIVAS"]
[]
[null,25,null,"Erakundeak ezarri al du hozgarri-ihesak kontrolatzeko prebentzio-neurririk klimatizazio- eta hozte-ekipoetan?\n¿La organización ha implementado medidas preventivas de control de fugas de refrigerantes en equipos de climatización/refrigeración?"]
[]
[]
[]
[null,26,null,"Erakundeak ordezkatu al ditu berotze globaleko potentzial handia (PCA) duten gas hozgarriak erabiltzen dituzten ekipoak?\n¿La organización ha sustituido equipos que emplean gases refrigerantes con alto Potencial de calentamiento global (PCA)?"]
[]
[null,null,null,"Si"]

{"sheet":"3. blokea_Bloque 3","index":4,"n_rows":17,"n_cols":4,"rows_kept":17,"cut":false,"hidden":false,"merged":[[16,3,16,7]]}
[]
[]
[]
[]
[]
[]
[null,"3. Multzoa: KONPENTSAZIOA / Bloque 3: COMPENSACIÓN"]
[]
[null,1,null,"Zure enpresak konpentsatzen al ditu bere isuriak?\n¿Su empresa compensa parte de sus emisiones? "]
[]
[]
[]
[null,null,null,"Erantzuna baiezkoa bada, adierazi konpentsatutako ehunekoa.\nEn caso afirmativo, indicar el % compensado."]
[]
[]
[]
[null,2,null,"Konpentsatutako isurketen guztizko ehunekoa handitu egin da (urtetik urtera karbono-aztarnaren % handiagoa konpentsatzen da) edo murriztu egin da (murrizketa-neurriak hartzearen ondorioz, konpentsatutako % murriztuz doa)?\n¿El porcentaje total de emisiones compensadas se ha incrementado (cada año se compensa un % mayor de la huella de carbono corporativa ) o ha disminuido (producto de la adopción de medidas de reducción el % compensado va decreciendo en cada período calculado)?"]

{"sheet":"Jarduera_Desempeño","index":5,"n_rows":52,"n_cols":10,"rows_kept":52,"cut":false,"hidden":false,"merged":[[51,2,54,22],[28,9,28,21],[12,2,14,2],[15,2,17,2],[18,2,20,2],[21,2,23,2],[24,2,26,2],[21,3,23,5],[12,9,14,22],[16,9,20,22],[22,9,26,22],[18,3,20,5],[15,3,17,5],[12,3,14,5],[24,3,26,5],[8,2,8,21],[10,2,11,5],[10,9,11,22]]}
[]
[]
[]
[]
[]
[]
[null,null,"DESKARBONIZAZIOAREN ARLOKO JARDUERA / DESEMPEÑO EN MATERIA DE DESCARBONIZACIÓN"]
[]
[null,null,"Lortutako puntuaziotik abiatuta, erakundeak lortu duen jarduna zehaztu da:\nA partir de la puntación alcanzada se ha determinado el desempeño que ha alcanzado la organización: "]
[]
[null,null,"Egungo jarduera-maila \nNivel de desempeño actual",null,null,null,null,null,null,"Deskarbonizazioaren arloan gaur egun lortutako jarduera\nDesempeño alcanzado a la fecha en materia de descarbonización"]
[]
[null,null,null,{"$f":"IF(J13=100%,\"Jarduera oso altua/ Desempeño muy alto\",\"\")","v":""},null,null,null,null,null,{"$f":"Zenbaketa_Conteo!$E$69","v":0}]
[]
[]
[null,null,null,{"$f":"IF(AND(J13<100%,J13>=70%),\"Goi-mailako jarduera/ Desempeño alto\",\"\")","v":""}]
[null,null,null,null,null,null,null,null,null,{"$f":"IFERROR(VLOOKUP(Zenbaketa_Conteo!$B$95,Zenbaketa_Conteo!B96:K100,3,0),\"-\")","v":"Galdetegi honetako erantzunen % 30 baino gutxiago erantzun duzu. Ez duzu deskarbonizaziorako bidea hasi, baina hobetzeko tarte handia duzu. Tresnan zehazten diren lehentasunezko neurriei jarraitzea gomendatzen da, eta, konpromiso handiagoa lortzeko, bere sektorerako zehaztutako Ekintza Planean zehazten diren ekintzak inplementatzea."}]
[]
[null,null,null,{"$f":"IF(AND(J13<70%,J13>=50%),\"Batez besteko jarduna/ Desempeño medio\",\"\")","v":""}]
[]
[]
[null,null,null,{"$f":"IF(AND(J13<50%,J13>=30%),\"Jarduera txikia/ Desempeño bajo\",\"\")","v":""}]
[null,null,null,null,null,null,null,null,null,{"$f":"IFERROR(VLOOKUP(Zenbaketa_Conteo!$B$95,Zenbaketa_Conteo!B96:K100,7,0),\"-\")","v":"Has contestado satisfactoriamente menos del 30% de las respuestas de este cuestionario. No has comenzado el camino hacia la descarbonización, pero tienes un amplio margen de mejora. Se recomienda seguir las medidas prioritarias que se especifican en la herramienta y, para conseguir un mayor compromiso, implementar las acciones que se especifican en el Plan de Acción definido para su sector."}]
[]
[null,null,null,{"$f":"IF(J13<30%,\"Oso jarduera txikia/ Desempeño muy bajo\",\"\")","v":"Oso jarduera txikia/ Desempeño muy bajo"}]
[]
[]
[]
[]
[]
[]
[]
[]
[]
[]
[]
[]
[]
[]
[]
[]
[]
[]
[]
[]
[]
[]
[]
[]
[]
[]
[null,null,"Lehentasunezko neurrien erlaitzean sektorea deskarbonizatzera bideratutako ekintzak proposatzen dira:\nEn la pestaña medidas prioritarias se proponen acciones orientadas a la descarbonización sector:"]

{"sheet":"Medidas prioritarias","index":6,"n_rows":54,"n_cols":3,"rows_kept":54,"cut":false,"hidden":false,"merged":[[53,1,53,3],[51,1,51,3],[41,1,41,3],[36,1,37,3],[26,1,26,3],[40,1,40,3],[44,1,44,3],[48,1,48,3],[52,1,52,3],[34,1,35,3],[47,1,47,3],[49,1,49,3],[39,1,39,3],[43,1,43,3],[45,1,45,3],[33,1,33,3],[14,1,14,3],[10,1,10,3],[31,1,31,3],[12,1,12,3],[9,1,9,3],[15,1,15,3],[30,1,30,3],[20,1,21,3],[22,1,23,3],[16,1,16,3],[18,1,18,3],[19,1,19,3],[25,1,25,3],[27,1,27,3],[29,1,29,3]]}
[]
[]
[]
[]
[null,"LEHENTASUNEZKO NEURRIEN PROPOSAMENA / PROPUESTA DE MEDIDAS PRIORITARIAS"]
[]
[null,"Sozietarearen izena/ Razón social:",{"$f":"'Datu orokorrakDatos generales'!D11","v":0}]
[null,"Sektorea/ Sector:",{"$f":"'Datu orokorrakDatos generales'!D15","v":0}]
[]
[null,{"$f":"IF(C8=\"Eraikuntza/ Construcción\",Medidas_INTRODUCCIÓN!C2,IF(C8=\"Papera eta kartoia/ Papel y cartón\",Medidas_INTRODUCCIÓN!C3,IF(C8=\"Metalmekanikoa/ Metalmecánico\",Medidas_INTRODUCCIÓN!C4,IF(C8=\"Makina-erreminta/ Máquina-herramienta\",Medidas_INTRODUCCIÓN!C5,IF(C8=\"Nekazaritza eta elikagai sektorea/ Agroalimentario\",Medidas_INTRODUCCIÓN!C6,IF(C8=\"Zerbitzuak/ Servicios\",Medidas_INTRODUCCIÓN!C7,IF(C8=\"Beste batzuk/ Otros\",Medidas_INTRODUCCIÓN!C8,\" \")))))))","v":" "}]
[null,{"$f":"IF(C8=\"Eraikuntza/ Construcción\",Medidas_INTRODUCCIÓN!B2,IF(C8=\"Papera eta kartoia/ Papel y cartón\",Medidas_INTRODUCCIÓN!B3,IF(C8=\"Metalmekanikoa/ Metalmecánico\",Medidas_INTRODUCCIÓN!B4,IF(C8=\"Makina-erreminta/ Máquina-herramienta\",Medidas_INTRODUCCIÓN!B5,IF(C8=\"Nekazaritza eta elikagai sektorea/ Agroalimentario\",Medidas_INTRODUCCIÓN!B6,IF(C8=\"Zerbitzuak/ Servicios\",Medidas_INTRODUCCIÓN!B7,IF(C8=\"Beste batzuk/ Otros\",Medidas_INTRODUCCIÓN!B8,\" \")))))))","v":" "}]
[]
[null,"Jarraian, hautatutako sektorerako proposatutako deskarbonizazio-neurriak biltzen dira./\nA continuación, se agrupan las medidas de descarbonización propuestas para el sector seleccionado.                                                                                                                                                                               "]
[]
[null,"1. Multzoa: Estrategia / Bloque 1: Estrategia"]
[null,{"$f":"IFERROR(VLOOKUP($C$8,'1 BLOKEA_Neurriak'!A2:D84,IF(Zenbaketa_Conteo!$K$11<0.25,2,IF(Zenbaketa_Conteo!K11<0.75,3,4)),FALSE),\" \")","v":" "}]
[null,{"$f":"IFERROR(VLOOKUP($C$8,'Medidas_BLOQUE 1'!$A$2:$D$8,IF(Zenbaketa_Conteo!$K$11<0.25,2,IF(Zenbaketa_Conteo!K11<0.75,3,4)),FALSE),\" \")","v":" "}]
[]
[null,"2. Multzoa: Energia-kudeaketa eta berotegi-efektuko gasen emisioak / Bloque 2: Gestión energética y emisiones GEI "]
[null,"Aurrezpen eta efizientzia energetikoa / Ahorro y eficiencia energética"]
[null,{"$f":"IFERROR(VLOOKUP($C$8,'2 BLOKEA_Neurriak'!$B$2:$E$8,IF(Zenbaketa_Conteo!$C$84<0.3,2,IF(Zenbaketa_Conteo!C84<0.65,3,4)),FALSE),\" \")","v":" "}]
[]
[null,{"$f":"IFERROR(VLOOKUP($C$8,'Medidas_BLOQUE 2'!$B$2:$E$8,IF(Zenbaketa_Conteo!$C$84<0.3,2,IF(Zenbaketa_Conteo!C84<0.65,3,4)),FALSE),\" \")","v":" "}]
[]
[]
[null,"Energia berriztagarria / Energía renovable"]
[null,{"$f":"IFERROR(VLOOKUP($C$8,'2 BLOKEA_Neurriak'!$B$10:$E$16,IF(Zenbaketa_Conteo!$C$85<0.3,2,IF(Zenbaketa_Conteo!$C$85<0.7,3,4)),FALSE),\" \")","v":" "}]
[null,{"$f":"IFERROR(VLOOKUP($C$8,'Medidas_BLOQUE 2'!$B$10:$E$16,IF(Zenbaketa_Conteo!$C$85<0.3,2,IF(Zenbaketa_Conteo!$C$85<0.7,3,4)),FALSE),\" \")","v":" "}]
[]
[null,"Mugikotasun jasangarria / Logística y movilidad sostenible"]
[null,{"$f":"IFERROR(VLOOKUP($C$8,'2 BLOKEA_Neurriak'!$B$18:$E$24,IF(Zenbaketa_Conteo!$C$86<0.35,2,IF(Zenbaketa_Conteo!$C$86<0.7,3,4)),FALSE),\" \")","v":" "}]
[null,{"$f":"IFERROR(VLOOKUP($C$8,'Medidas_BLOQUE 2'!$B$18:$E$24,IF(Zenbaketa_Conteo!$C$86<0.35,2,IF(Zenbaketa_Conteo!$C$86<0.7,3,4)),FALSE),\" \")","v":" "}]
[]
[null,"Ekonomia zirkularra / Economía circular"]
[null,{"$f":"IFERROR(VLOOKUP($C$8,'2 BLOKEA_Neurriak'!$B$26:$E$32,IF(Zenbaketa_Conteo!$C$87<0.3,2,IF(Zenbaketa_Conteo!$C$87<0.7,3,4)),FALSE),\" \")","v":" "}]
[]
[null,{"$f":"IFERROR(VLOOKUP($C$8,'Medidas_BLOQUE 2'!$B$26:$E$32,IF(Zenbaketa_Conteo!$C$87<0.3,2,IF(Zenbaketa_Conteo!$C$87<0.7,3,4)),FALSE),\" \")","v":" "}]
[]
[]
[null,"BEG isurien kalkulua (Karbono-aztarna) / Cálculo de emisiones"]
[null,{"$f":"IFERROR(VLOOKUP($C$8,'2 BLOKEA_Neurriak'!$B$34:$E$40,IF(Zenbaketa_Conteo!$C$88=0,2,IF(Zenbaketa_Conteo!$C$88<0.7,3,4)),FALSE),\" \")","v":" "}]
[null,{"$f":"IFERROR(VLOOKUP($C$8,'Medidas_BLOQUE 2'!$B$34:$E$40,IF(Zenbaketa_Conteo!$C$88=0,2,IF(Zenbaketa_Conteo!$C$88<0.7,3,4)),FALSE),\" \")","v":" "}]
[]
[null,"Isuri iheskorrak / Emisiones fungitivas"]
[null,{"$f":"IFERROR(VLOOKUP($C$8,'2 BLOKEA_Neurriak'!$B$42:$E$48,IF(Zenbaketa_Conteo!$C$89=0,2,IF(Zenbaketa_Conteo!$C$89<0.7,3,4)),FALSE),\" \")","v":" "}]
[null,{"$f":"IFERROR(VLOOKUP($C$8,'Medidas_BLOQUE 2'!$B$42:$E$48,IF(Zenbaketa_Conteo!$C$89=0,2,IF(Zenbaketa_Conteo!$C$89<0.7,3,4)),FALSE),\" \")","v":" "}]
[]
[null,"Finantzaketa / Financiación"]
[null,{"$f":"IF($C$8=\"Eraikuntza/ Construcción\",'2 BLOKEA_Neurriak'!$C$50,IF($C$8=\"Papera eta kartoia/ Papel y cartón\",'2 BLOKEA_Neurriak'!$C$51,IF($C$8=\"Metalmekanikoa/ Metalmecánico\",'2 BLOKEA_Neurriak'!$C$52,IF($C$8=\"Makina-erreminta/ Máquina-herramienta\",'2 BLOKEA_Neurriak'!$C$53,IF($C$8=\"Nekazaritza eta elikagai sektorea/ Agroalimentario\",'2 BLOKEA_Neurriak'!$C$54,IF($C$8=\"Zerbitzuak/ Servicios\",'2 BLOKEA_Neurriak'!$C$55,IF($C$8=\"Beste batzuk/ Otros\",'2 BLOKEA_Neurriak'!$C$56,\" \")))))))","v":" "}]
[null,{"$f":"IF($C$8=\"Eraikuntza/ Construcción\",'Medidas_BLOQUE 2'!C50,IF($C$8=\"Papera eta kartoia/ Papel y cartón\",'Medidas_BLOQUE 2'!C51,IF($C$8=\"Metalmekanikoa/ Metalmecánico\",'Medidas_BLOQUE 2'!$C$52,IF($C$8=\"Makina-erreminta/ Máquina-herramienta\",'Medidas_BLOQUE 2'!C53,IF($C$8=\"Nekazaritza eta elikagai sektorea/ Agroalimentario\",'Medidas_BLOQUE 2'!$C$54,IF($C$8=\"Zerbitzuak/ Servicios\",'Medidas_BLOQUE 2'!C55,IF($C$8=\"Beste batzuk/ Otros\",'Medidas_BLOQUE 2'!C56,\" \")))))))","v":" "}]
[]
[null,"3. Multzoa: Konpentsazioa / Bloque 3: Compensación"]
[null,{"$f":"IFERROR(VLOOKUP($C$8,'3 BLOKEA_Neurriak'!$A$2:$D$8,IF(Zenbaketa_Conteo!K58=0,2,IF(Zenbaketa_Conteo!K58<0.7,3,4)),FALSE),\" \")","v":" "}]
[null,{"$f":"IFERROR(VLOOKUP($C$8,'Medidas_BLOQUE 3'!$A$2:$D$8,IF(Zenbaketa_Conteo!K58=0,2,IF(Zenbaketa_Conteo!K58<0.7,3,4)),FALSE),\" \")","v":" "}]

{"sheet":"Definizioak_Definiciones","index":7,"n_rows":25,"n_cols":7,"rows_kept":25,"cut":false,"hidden":false,"merged":[[20,6,22,7],[23,6,27,7],[12,6,14,7],[15,6,17,7],[18,6,19,7]]}
[]
[]
[]
[]
[]
[]
[null,"DEFINICIONES"]
[]
[null,1,"Iraunkortasuna/ Sostenibilidad","Egungo beharrak asetzeko baliabideak ziurtatzea eta kudeatzea, etorkizuneko beharrak arriskuan jarri gabe, garapen sozial eta ekonomikoari eta ingurumena zaintzeari uko egin gabe.\nAsegurar y gestionar los recursos para satisfacer las necesidades actuales sin poner en riesgos las necesidades del futuro, sin renunciar al desarrollo social, económico y el cuidado del medio ambiente."]
[null,2,"Klima-aldaketa arintzea/ Mitigación del cambio climático","Berotegi-efektuko gasen (BEG) isuriak saihesteko eta murrizteko ekintzen multzoa, planeta muturreko moduan berotu ez dadin.\nConjunto de acciones destinadas a evitar y reducir las emisiones de gases de efecto invernadero (GEI) para evitar que el planeta se caliente de manera extrema."]
[null,3,"Klima-arriskuak/ Riesgos climáticos","Pertsonen, ingurumenaren eta sektore ekonomikoen gaineko inpaktu kaltegarrien potentziala, klima-baldintza kaltegarrien ondorioz.\nPotencial de impactos desfavorables sobre las personas, medio ambiente y sectores económicos como consecuencia de condiciones climáticas adversas."]
[null,4,"Karbono-produktu/-zerbitzu neutroa \nProducto/servicio neutro en carbono","Neutraltasun klimatikoa isuritako CO2aren eta atmosferako karbono-xurgapenaren arteko oreka lortzean datza. Horretarako, lehenik eta behin ahalik eta gehien murriztu behar dira ekoizpenean edo jardueran sortutako isurketak. Isurketen zati bat ezin bada ezabatu, neutraltasuna lortzeko konpentsatu ahal izango dira.\nLa neutralidad climática consiste en conseguir el equilibrio entre el CO2 emitido y la absorción de carbono de la atmósfera. Para ello, primero se deben reducir las emisiones generadas lo máximo posible durante la producción o  actividad. En el caso de que parte de las emisiones no se puedan eliminar, se podrán compensar para alcanzar la neutralidad."]
[null,5,"Hornitzaileak hautatzeko ingurumen-iraunkortasuneko irizpideak/ Criterios de sostenibilidad ambiental en selección de proveedores","Hornitzaileak hautatzeko orduan bereizketa gisa balio duten hainbat eremutan iraunkortasuna sustatzeko erabakiak hartu eta ebaluatzeko erabiltzen diren ingurumen-parametro edo -estandarren multzoa.\nConjunto de parámetros o estándares ambientales que se utilizan para evaluar y tomar decisiones que promuevan la sostenibilidad en diferentes ámbitos que sirvan como diferenciación a la hora de seleccionar proveedores.",null,null,{"$f":"IF(C17=100%,\"Compromiso máximo\",\"\")","v":""}]
[null,6,"Mugikortasun jasangarria/\n Movilidad sostenible","Pertsonak eta gauzak lekuz aldatzea edo garraiatzea, gizarte-, ingurumen- eta energia-kostu txikiko garraiobideen bidez.\nDesplazamiento o transporte de personas y cosas a través de medios de locomoción de bajo coste social, ambiental y energético."]
[null,7,"Flota jasangarria/ Flota sostenible","Enpresa batek dituen garraiobideen multzoa, pertsonak eta salgaiak egungoak baino gizarte- eta ingurumen-kostu txikiagoetan garraiatzea ahalbidetzen duena, ibilgailu pribatuak garraiobide gisa duen pisua murriztuz, eta petrolioak energia-iturri gisa duena.\nConjunto de medios de transporte que dispone una empresa que permite el transporte de personas y mercancías a unos costes sociales y ambientales menores a los actuales, reduciendo el peso del vehículo privado como medio de transporte y del petróleo como fuente de energía."]
[null,8,"Ingurumen-sentsibilizazioa/ \nSensibilización ambiental","Pertsonak ingurumenaren arloan kontzientziatzeko prozesua, planetarekiko errespetuan, haren babesean, kontserbazioan eta eskura dauden baliabide naturalen erabilera jasangarrian oinarritutako sistema bat ezartzeko helburuarekin.\nProceso de crear conciencia a los personas en materia medioambiental con el objetivo de establecer un sistema basado en el respeto al planeta, su protección, conservación y en un uso sostenible de los recursos naturales disponibles.",null,null,{"$f":"IF(AND(C17<100%,C17>=70%),\"Compromiso alto\",\"\")","v":""}]
[null,9,"Objetivos Basados en la Ciencia (SBTs)/\nZientzian Oinarritutako Helburuak (SBT)","Zientzian oinarritutako helburuak mundu mailan lerrokatutako jomugak dira, ebaluazio zientifiko objektibo batean oinarrituak, karbono isuriak murrizteko eta planetaren tenperatura mugatzeko, Parisko Akordioaren ildotik. Esparru hori Zientzian Oinarritutako Helburuak (SBTi) ekimenak gidatzen du mundu osoan. Erakundeen elkarte bat da, enpresei laguntzen diena hainbat metodologia erabiliz helburuak ezar ditzaten, eta banakako enpresek ezarritako helburuak baliozkotzen ditu.\nLos objetivos basados en la ciencia son metas alineadas a nivel mundial, basadas en una evaluación científica objetiva, para reducir las emisiones de carbono y limitar la temperatura del planeta en línea con el Acuerdo de París. Este ámbito está liderado a nivel mundial por la iniciativa objetivos Basados en la Ciencia (SBTi), una asociación de organizaciones que apoya a las empresas para que establezcan objetivos utilizando una serie de metodologías diferentes y valida los objetivos establecidos por las empresas individuales."]
[null,10,"Gas hoztaileak/ Gases refrigerantes","Gas hozgarriak izozkailuetan edo aire egokituetan giroa hozteko agente gisa jarduten duten elementuak dira. Lurruntze- eta kondentsazio-propietateen arabera, eta presioa eta tenperatura aldatzeko mekanismoen bidez, leku batean dagoen beroa xurgatu eta beste batera transmititzeko gaitasuna dute, egoera likidotik gaseosorako aldaketen bidez, eta alderantziz.\nLos gases refrigerantes son elementos que actúan como agentes de enfriamiento del ambiente, en congeladores o aires acondicionados. En función de sus propiedades de evaporación y condensación, y con mecanismos de cambios de presión y temperatura, tienen la capacidad de absorber el calor existente en un lugar y transmitirlo a otro a través de modificaciones de estado líquido a gaseoso y viceversa."]
[null,11,"Atmosfera berotzeko potentziala (PCA)/\nPotencial de Calentamiento Atmosférico (PCA)","PCA balio bat da, atmosferara isuri daitekeen edozein substantziaren atmosfera berotzeko potentziala neurtzen duena, betiere kilogramo bat karbono dioxidok (CO2) 100 urtean sortzen duen efektuarekin alderatuta. Instalazioak berotze globalean zer neurritan lagunduko duen jakin nahi da. PCA oso handia bada, hozgarriaren ingurumen-inpaktua handiagoa izango da.\nEl PCA es un valor que mide el potencial de calentamiento atmosférico de cualquier sustancia que se pueda emitir a la atmosfera, siempre en comparación con el efecto que produce un kilogramo de dióxido de carbono (CO2) en 100 años. Lo que se pretende es saber en qué medida va a contribuir la instalación al calentamiento global. Si el  PCA es muy elevado, mayor va a ser el impacto ambiental del refrigerante.",null,null,{"$f":"IF(AND(C17<70%,C17>=50%),\"Compromiso medio\",\"\")","v":""}]
[null,12,"Bizi-zikloaren analisia (BZA)/\nAnálisis de Ciclo de Vida (ACV)","Produktu, zerbitzu edo prozesu bati lotutako ingurumen-alderdiak eta inpaktu potentzialak zehazteko erabiltzen den teknika: sistemaren (materia eta energia) sarrera eta irteera garrantzitsuen inbentarioa bilduta, sarrera eta irteera horiekin lotutako ingurumen-inpaktu potentzialak ebaluatuta, eta inbentario- eta inpaktu-faseen emaitzak interpretatuta, azterlanaren helburuekin lotuta.\nTécnica que se utiliza para determinar los aspectos ambientales e impactos potenciales asociados a un producto, servicio o proceso: compilando un inventario de las entradas y salidas relevantes del sistema (materia y energía), evaluando los impactos ambientales potenciales asociados a esas entradas y salidas, e interpretando los resultados de las fases de inventario e impacto en relación con los objetivos del estudio."]
[null,13,"Energia-eraginkortasuna/ \nEficiencia energética","Kontsumitutako energia-kantitatearen eta hura erabiliz lortzen diren produktu eta zerbitzuen arteko erlazioa hobetzeko ekintzen multzoa, produktuaren edo zerbitzuaren kalitateari eragin gabe.\nConjunto de acciones que permiten mejorar la relación entre la cantidad de energía consumida y los productos y servicios que se obtienen a partir de su uso, sin afectar la calidad del producto o servicio.",null,null,{"$f":"IF(AND(C17<50%,C17>=30%),\"Compromiso bajo\",\"\")","v":""}]
[null,14,"Auditoretza energetikoa/ Auditoría energética","Enpresa baten energia-kontsumoen eta -kostuen banaketa ezagutzea ahalbidetzen duten ikuskapenak, aurrezteko aukerak identifikatuz eta kuantifikatuz, efizientzia energetikoa eta energia berriztagarrietako neurrien bidez.\nInspección que permiten conocer la distribución de consumos y costes energéticos de una empresa, identificando y cuantificando las posibilidades de ahorro con medidas de eficiencia energética y energías renovables."]
[null,15,"Garapen Jasangarriaren Helburuak (GIH)/\nObjetivos Desarrollo Sostenible (ODS)","Nazio Batuek 2015ean onartu zituzten Garapen Jasangarriko Helburuak, Helburu Globalak izenez ere ezagutzen direnak, pobreziari amaiera emateko, planeta babesteko eta 2030erako pertsona guztiek bakea eta oparotasuna izango dutela bermatzeko deialdi unibertsal gisa. 17 GJHak integratuta daude: onartzen dute arlo bateko ekintzak eragina izango duela beste arlo batzuetako emaitzetan, eta garapenak orekatu egin behar duela gizarte-, ekonomia- eta ingurumen-jasangarritasuna. Atzeratuen aurrerabideari lehentasuna emateko konpromisoa hartu dute herrialdeek.\nLos Objetivos de Desarrollo Sostenible, también conocidos como Objetivos Globales, fueron adoptados por las Naciones Unidas en 2015 como un llamamiento universal para poner fin a la pobreza, proteger el planeta y garantizar que para el 2030 todas las personas disfruten de paz y prosperidad. Los 17 ODS están integrados: reconocen que la acción en un área afectará los resultados en otras áreas y que el desarrollo debe equilibrar la sostenibilidad social, económica y ambiental. Los países se han comprometido a priorizar el progreso de los más rezagados."]
[null,16,"Parisko Akordioa/ Acuerdo de Paris","Parisko Akordioa juridikoki loteslea den klima-aldaketari buruzko nazioarteko ituna da. Parisko COP21eko 196 partek onartu zuten, 2015eko abenduaren 12an, eta 2016ko azaroaren 4an sartu zen indarrean. Helburua da munduko beroketa mugatzea 2 gradutik oso behera, ahal dela 1,5 gradu zentigradutara, industriaurreko mailekin alderatuta. Epe luzerako tenperatura-helburu hori lortzeko, herrialdeek berotegi-efektuko gasen emisioen maximoa ahalik eta azkarren lortu nahi dute, mendearen erdialderako klima neutroa duen planeta bat lortzeko.\nEl Acuerdo de París es un tratado internacional sobre el cambio climático jurídicamente vinculante. Fue adoptado por 196 Partes en la COP21 en París, el 12 de diciembre de 2015 y entró en vigor el 4 de noviembre de 2016. Su objetivo es limitar el calentamiento mundial a muy por debajo de 2, preferiblemente a 1,5 grados centígrados, en comparación con los niveles preindustriales. Para alcanzar este objetivo de temperatura a largo plazo, los países se proponen alcanzar el máximo de las emisiones de gases de efecto invernadero lo antes posible para lograr un planeta con clima neutro para mediados de siglo."]
[null,17,"Merkatuen eta Eskumenen Batzorde Nazionala (MLBN)/\nComisión Nacional de Mercados y Competencias (CNMC)","Merkatuen eta Lehiaren Batzorde Nazionala merkatu guztien funtzionamendu egokia sustatzen eta zaintzen duen erakundea da, kontsumitzaileen eta enpresen intereserako. Berezko nortasun juridikoa duen erakunde publikoa da. Gobernuarekiko independentea da eta parlamentuaren kontrolpean dago. 2013ko urriaren 7an jarri zen martxan. MLBNren helburu nagusia merkatu eta produkzio-sektore guztietan funtzionamendu egokia, gardentasuna eta lehia eraginkorra bermatzea, zaintzea eta sustatzea da, kontsumitzaile eta erabiltzaileen mesedetan.\nLa Comisión Nacional de los Mercados y la Competencia es el organismo que promueve y preserva el buen funcionamiento de todos los mercados en interés de los consumidores y de las empresas. Es un organismo público con personalidad jurídica propia. Es independiente del Gobierno y está sometido al control parlamentario. Entró en funcionamiento el 7 de octubre de 2013. El objetivo principal de la CNMC es garantizar, preservar y promover el correcto funcionamiento, la transparencia y la existencia de una competencia efectiva en todos los mercados y sectores productivos, en beneficio de los consumidores y usuarios."]

{"sheet":"Goitibeherakoak_Desplegables","index":8,"n_rows":192,"n_cols":3,"rows_kept":192,"cut":false,"hidden":true,"merged":[]}
["Haztapenak/ Ponderaciones"]
["Orokorra/ General","Dropdown","Puntuazioa/ Puntación"]
[2,"Nekazaritza eta elikagai sektorea/ Agroalimentario"]
[null,"Eraikuntza/ Construcción"]
[null,"Makina-erreminta/ Máquina-herramienta"]
[null,"Metalmekanikoa/ Metalmecánico"]
[null,"Papera eta kartoia/ Papel y cartón"]
[null,"Zerbitzuak/ Servicios"]
[null,"Beste batzuk/ Otros"]
[3,"Mikro enpresa/ Micro empresa"]
[null,"ETE (enpresa txiki eta ertaina) / PYME (pequeña y mediana empresa)"]
[null,"Enpresa handia/ Gran empresa"]
["Haztapenak/ Ponderaciones"]
["Estrategia","Dropdown","Puntuazioa/ Puntación"]
[1,"Bai, klima-aldaketari buruzko berariazko politika du/ Si, cuenta con una política especifica de cambio climático",5]
[null,"Bai, EMAS (Europako Erkidegoko Ekogestio eta Ekoikuskaritza Erregelamendua)/ \nSi, EMAS (Reglamento Comunitario de Ecogestión y Ecoauditoria) ",3]
[null,"Bai, ISO 14001-Ingurumena kudeatzeko sistemaren ertifikazioa/\nSi, ISO 14001-Certificación de sistema de gestión ambiental",3]
[null,"Bai, ISO 50001-Energia kudeatzeko sistemaren ertifikazioa/\nSi, ISO 50001-Certificación del sistema de gestión energética",4]
[null,"Bai, aurrekoetako bat ere ez/\nSi, ninguno de los anteriores",3]
[null,"Ez / No",0]
[2,"Bai / Si",5]
[null,"Ez / No",0]
[3,"Bai / Si"]
[null,"Ez / No"]
[4,"Bai, hilabete batean/ Si, en 1 mes",5]
[null,"Bai, 1-3 hilabete bitartean/ Si, entre 1-3 meses",4]
[null,"Bai, 3 hilabetetik gorako epean/ Si, en un plazo superior a 3 meses",3]
[null,"Ez / No",0]
[5,"Bai, gure produktu/zerbitzu batzuk neutralak dira karbonoan/ Sí, algunos de nuestros productos/servicios son neutrales en carbono ",3]
[null,"Bai, gure produktu guztiak neutralak dira karbonoan/ Sí, todos nuestros productos son neutrales en carbono",5]
[null,"Ez, ez dugu karbono produktu/zerbitzu neutralik/ No, no tenemos ningún producto/servicio neutral en carbono",0]
[6,"Bai / Si",5]
[null,"Ez / No",0]
[7,"Bai / Si",5]
[null,"Ez / No",0]
["7 BIS",0,0]
[null,"% 5 baino gutxiago/ menos del 5%",2]
[null,"% 5-10 artean/ entre 5-10%",3]
[null,"% 10-15 artean/ entre 10-15%",4]
[null,"% 15 baino gehiago/ más del 15 %",5]
[8,"Bai / Si",5]
[null,"Ez / No",0]
[9,"Bai / Si",5]
[null,"Ez / No",0]
[]
[]
[]
[]
[]
[]
[]
[]
[]
[]
["BEG kontsumoak eta isuriak/ Consumos y Emisiones GEI","Dropdown","Puntuazioa/ Puntación"]
["Energia-eraginkortasuna/ Eficiencia energética"]
[1,"Bai / Si",5]
[null,"Ez / No",0]
["1 BIS","Hilean behin/ Mensual",5]
[null,"Hiru hilean behin/ Trimestral",4]
[null,"Sei hilean behin/ Semestral ",3]
[null,"Urtekoa/ Anual",2]
[null,"Aurrez zehaztutako maiztasunik gabe/ Sin frecuencia predefinida",1]
["1 BIS 2","Kontsumoaren fakturak/ Facturas de consumo",2]
[null,"Energia monitorizatzeko eta kontrolatzeko sistemak/ Sistemas de monitorización y control energético",5]
[null,"Bestelakoak/ Otros",1]
[2,"Bai / Si",5]
[null,"Ez / No",0]
["2 BIS","Ekoizpen-prozesuak/ Procesos productivos",5]
[null,"Argiztapena eta klimatizazioa/ Iluminación y/o climatización",3]
[3,"Bai / Si",5]
[null,"Ez / No",0]
[4,"Bai / Si",5]
[null,"Ez / No",0]
["4 BIS","% 5-10 artean/ entre 5-10%",2]
[null,"% 10-15 artean/ entre 10-15%",3]
[null,"% 15-20 artean/ entre 15-20%",4]
[null,"% 20 baino gehiago/más del 20%",5]
[5,"Bai / Si",5]
[null,"Ez / No",0]
[6,"Bai, ezagutzen ditugu eta erabili egin ditugu/ Si, las conocemos y las hemos empleado",5]
[null,"Bai, ezagutzen ditugu, baina ez ditugu erabili/ Si, las conocemos pero no las hemos empleado",3]
[null,"Ez ditugu ezagutzen/ No las conocemos",0]
[7,"Bai / Si",5]
[null,"Ez / No",0]
["Energia berriztagarria/ Energía renovable"]
[8,"Bai / Si",4]
[null,"Ez / No",0]
[null,"Ez, autokontsumoaren bidez hornitzen da/ No, se abastece a través del autoconsumo",5]
[9,"Bai / Si",5]
[null,"Ez / No",0]
["9BIS",0,0]
[null,"1-20%",1]
[null,"21-50%",2]
[null,"51-80%",3]
[null,"81-95%",4]
[null,"96-100%",5]
[10,"Bai / Si",5]
[null,"Ez / No",0]
[11,"Bai / Si",5]
[null,"Ez / No",0]
[12,"Epe laburrerako helburuak ezarri dira (2030. urtea baino lehen)/ Se han fijado objetivos a corto plazo (antes del año 2030)",4]
[null,"Epe ertainerako helburuak ezarri dira (2030eko horizontea)/ Se han fijado objetivos a mediano plazo (horizonte 2030)",3]
[null,"Epe luzerako helburuak finkatu dira (2050 horizontea)/ Se han fijado objetivos a largo plazo (horizonte 2050)",2]
[null,"Epe laburrerako, ertainerako eta luzerako helburuak finkatu ditu/ Se han fijado objetivos a corto, mediano y largo plazo",5]
["12 BIS","Ziurtatutako energia erostea (GDOak)/ Compra energía certificada (GDOs)",2]
[null,"Autokudeaketa/ Autogeneración",5]
[null,"Erosi energia ziurtatua (GDOak) eta autogenerazioa/ Compra energía certificada (GDOs) y autogeneración",3]
["12 BIS 2","Kontsumo berriztagarriaren % 20ra arte/ Hasta el 20% de consumo renovable",1]
[null,"Kontsumo berriztagarriaren % 21etik % 50era/ Del 21 al 50% de consumo renovable",2]
[null,"Kontsumo berriztagarriaren % 51tik % 80ra/ Del 51 al 80% de consumo renovable",3]
[null,"Kontsumo berriztagarriaren % 81etik % 99ra/ Del 81 al 99%  de consumo renovable",4]
[null,"Kontsumo berriztagarriaren % 100/ 100% de consumo renovable",5]
["Mugikortasun jasangarria/ Movilidad sostenible"]
[13,"Bai / Si",5]
[null,"Ez / No",0]
["13 BIS",0,0]
[null,"1-20%",1]
[null,"21-50%",2]
[null,"51-80%",3]
[null,"81-95%",4]
[null,"96-100%",5]
[14,"Gidatze segurua eta eraginkorra sustatzea/ Fomento de conducción segura y eficiente",3]
[null,"Ibilbide eraginkorragoak identifikatzea eta erabiltzea/ Identificación y empleo de rutas más eficientes",3]
[null,"Beharrezkoa ez den erregai-kontsumoa mugatuz/ Limitando consumo de combustible innecesario",3]
[null,"Ibilgailu elektrikoak kargatzeko guneak/ Puntos de recarga de vehiculos eléctricos",3]
[null,"Aparkalekuak/ Aparcabicis",3]
[null,"Aurreko aukeretako bi edo gehiago/ Dos o más  de las opciones anteriores",4]
[null,"Aurreko guztiak/ Todas las anteriores",5]
[null,"Ez / No",0]
[null,"Ez du flotarik/ No dispone de flota",0]
[15,"Bai / Si",5]
[null,"Ez / No",0]
["15 BIS",0,0]
[null,"1-20%",1]
[null,"21-50%",2]
[null,"51-80%",3]
[null,"81-95%",4]
[null,"96-100%",5]
["Ekonomia zirkularra/ Economía circular"]
[16,"Bai / Si",5]
[null,"Ez / No",0]
[17,"Bai / Si",5]
[null,"Ez / No",0]
[18,"Bai / Si",5]
[null,"Ez / No",0]
[19,"Bai / Si",5]
[null,"Ez / No",0]
["19 BIS",0,0]
[null,"1-4%",1]
[null,"5-8%",2]
[null,"9-12%",3]
[null,"13-16%",4]
[null,"17-20%",5]
[20,"Bai / Si",5]
[null,"Ez / No",0]
["20 BIS",0,0]
[null,"1-20%",1]
[null,"21-50%",2]
[null,"51-80%",3]
[null,"81-95%",4]
[null,"96-100%",5]
["Karbono-aztarna/ Huella de carbono"]
[21,"1. eta 2. irismena/ Alcance 1 y 2",3]
[null,"1., 2. eta 3. irismena/ Alcance 1, 2 y 3",5]
[null,"Ez dira kalkulatu/ No se han calculado",0]
[22,0,0]
[null,"1-3 urte/ 1 a 3 años",3]
[null,"3 urte baino gehiago/ más de 3 años",4]
[null,"5 urte baino gehiago/ más de 5 años",5]
[23,"Bilakaera positiboa/ Evolución positiva",5]
[null,"Bilakaera negatiboa/ Evolución negativa",1]
[24,"Bai / Si",5]
[null,"Ez / No",0]
["Isurketa iheskorrak/ Emisiones fugitivas"]
[25,"Bai / Si",5]
[null,"Ez / No",0]
[26,"Bai / Si",5]
[null,"Ez / No",0]
["Konpentsazioa/ Compensación","Dropdown","Puntuazioa/ Puntación"]
[1,"Bai / Si",5]
[null,"Ez / No",0]
["1 Bis",0,0]
[null,"1-20%",1]
[null,"21-50%",2]
[null,"51-80%",3]
[null,"81-95%",4]
[null,"96-100%",5]
[2,"Handitu egin da/ Se ha incrementado",1]
[null,"Gutxitu egin da/ Ha disminuido",4]
[null,"Ez da konpentsatzen, neutraltasuna lortu baitzen BEG kontsumoak eta isurketak murrizteko neurrien bidez/\nNo se compensa ya que se alcanzó la neutralidad a través de medidas de reducción de consumos y emisiones GEI",5]
[null,"Hondakin-isuriak ez dira konpentsatzen/ No se compensan las emisiones residuales",0]

{"sheet":"Zenbaketa_Conteo","index":9,"n_rows":100,"n_cols":15,"rows_kept":100,"cut":false,"hidden":true,"merged":[[86,8,88,9],[89,8,91,9],[22,14,23,15],[16,14,17,15],[66,4,67,5],[68,4,71,5],[76,8,78,9],[16,13,17,13],[64,8,66,9],[67,8,69,9],[70,8,72,9],[73,8,75,9],[62,7,63,9],[10,10,19,10],[57,1,59,1],[8,1,9,1],[8,4,8,9],[8,10,9,10],[8,3,9,3],[8,2,9,2],[57,10,59,10],[10,1,19,1],[20,1,56,1],[20,10,56,10],[8,11,9,11],[10,11,20,11],[22,13,23,13],[81,7,82,9],[83,8,85,9],[98,3,98,6],[98,7,98,10],[99,3,99,6],[99,7,99,10],[95,3,95,6],[95,7,95,10],[96,3,96,6],[96,7,96,10],[97,3,97,6],[97,7,97,10]]}
[]
[]
[]
[]
[]
[]
[null,"EMAITZAK/ RESULTADOS"]
[]
[null,"Jarduera-blokea/ Bloque de actuación","Galdera/ Pregunta","Lortutako puntuazioa/ Puntuación alcanzada","Jarduera/ Desempeño",null,null,null,null,null,"Emaitzak blokeka/ \nResultados por bloque"]
[null,null,null,null,0,1,2,3,4,5]
[null,"1. blokea/ Bloque 1",1,{"$f":"IFERROR(VLOOKUP('1. blokea_Bloque 1'!D11,Goitibeherakoak_Desplegables!B15:C20,2,0),0)","v":0},{"$f":"IF($D11=E$10,1,0)","v":1},{"$f":"IF($D11=F$10,1,0)","v":0},0,0,0,{"$f":"IF($D11=J$10,1,0)","v":0},{"$f":"SUM(D11:D20)/(9*5)","v":0}]
[null,null,2,{"$f":"IFERROR(VLOOKUP('1. blokea_Bloque 1'!D15,Goitibeherakoak_Desplegables!B21:C22,2,0),0)","v":0},{"$f":"IF($D12=E$10,1,0)","v":1},0,0,0,0,0]
[null,null,3]
[null,null,4,{"$f":"IFERROR(VLOOKUP('1. blokea_Bloque 1'!D23,Goitibeherakoak_Desplegables!B25:C28,2,0),0)","v":0},1,0,0,0,0,0]
[null,null,5,{"$f":"IFERROR(VLOOKUP('1. blokea_Bloque 1'!D27,Goitibeherakoak_Desplegables!B29:C31,2,0),0)","v":0},1,0,0,0,0,0]
[null,null,6,{"$f":"IFERROR(VLOOKUP('1. blokea_Bloque 1'!D31,Goitibeherakoak_Desplegables!B32:C33,2,0),0)","v":0},1,0,0,0,0,0]
[null,null,7,{"$f":"IFERROR(VLOOKUP('1. blokea_Bloque 1'!D35,Goitibeherakoak_Desplegables!B34:C35,2,0),0)","v":0},1,0,0,0,0,0,null,null,null,"Bloque de actuación","Resultados parciales"]
[null,null,"7bis",{"$f":"IFERROR(VLOOKUP('1. blokea_Bloque 1'!F35,Goitibeherakoak_Desplegables!B36:C40,2,0),0)","v":0},1,0,0,0,0,0]
[null,null,8,{"$f":"IFERROR(VLOOKUP('1. blokea_Bloque 1'!D39,Goitibeherakoak_Desplegables!B41:C42,2,0),0)","v":0},1,0,0,0,0,0,null,null,null,"1. blokea/ Bloque 1 Estrategia",{"$f":"K11","v":0}]
[null,null,9,{"$f":"IFERROR(VLOOKUP('1. blokea_Bloque 1'!D43,Goitibeherakoak_Desplegables!B43:C44,2,0),0)","v":0},1,0,0,0,0,0,null,null,null,"2. blokea/ Bloque 2 Energia kudeaketa eta berotegi efektuko gasen emisioak/ Gestión energética y emisiones GEI",{"$f":"K21","v":0}]
[null,"2. blokea/ Bloque 2",1,{"$f":"IFERROR(VLOOKUP('2. blokea_Bloque 2'!D13,Goitibeherakoak_Desplegables!B57:C58,2,0),0)","v":0},1,0,0,0,0,0,{"$f":"SUM(D21:D57)/(37*5)","v":0},null,null,"3. blokea/ Bloque 3 Konpentsazioa/ Compensación",{"$f":"K58","v":0}]
[null,null,"1bis",{"$f":"IFERROR(VLOOKUP('2. blokea_Bloque 2'!D17,Goitibeherakoak_Desplegables!B59:C63,2,0),0)","v":0},1,0,0,0,0,0]
[null,null,"1bis1",{"$f":"IFERROR(VLOOKUP('2. blokea_Bloque 2'!D21,Goitibeherakoak_Desplegables!B64:C66,2,0),0)","v":0},1,0,0,0,0,0,null,null,null,"Bloque de actuación","Peso ponderado por bloque para valorar desempeño global"]
[null,null,2,{"$f":"IFERROR(VLOOKUP('2. blokea_Bloque 2'!D25,Goitibeherakoak_Desplegables!B67:C68,2,0),0)","v":0},1,0,0,0,0,0]
[null,null,"2bis",{"$f":"IFERROR(VLOOKUP('2. blokea_Bloque 2'!D29,Goitibeherakoak_Desplegables!B69:C70,2,0),0)","v":0},1,0,0,0,0,0,null,null,null,"1. blokea/ Bloque 1",{"$f":"O19*20/100","v":0}]
[null,null,3,{"$f":"IFERROR(VLOOKUP('2. blokea_Bloque 2'!D33,Goitibeherakoak_Desplegables!B71:C72,2,0),0)","v":0},1,0,0,0,0,0,null,null,null,"2. blokea/ Bloque 2",{"$f":"O20*60/100","v":0}]
[null,null,4,{"$f":"IFERROR(VLOOKUP('2. blokea_Bloque 2'!D37,Goitibeherakoak_Desplegables!B73:C74,2,0),0)","v":0},1,0,0,0,0,0,null,null,null,"3. blokea/ Bloque 3",{"$f":"O21*20/100","v":0}]
[null,null,"4bis",{"$f":"IFERROR(VLOOKUP('2. blokea_Bloque 2'!D41,Goitibeherakoak_Desplegables!B75:C78,2,0),0)","v":0},1,0,0,0,0,0]
[null,null,5,{"$f":"IFERROR(VLOOKUP('2. blokea_Bloque 2'!D45,Goitibeherakoak_Desplegables!B79:C80,2,0),0)","v":0},1,0,0,0,0,0]
[null,null,6,{"$f":"IFERROR(VLOOKUP('2. blokea_Bloque 2'!D49,Goitibeherakoak_Desplegables!B81:C83,2,0),0)","v":0},1,0,0,0,0,0]
[null,null,7,{"$f":"IFERROR(VLOOKUP('2. blokea_Bloque 2'!D53,Goitibeherakoak_Desplegables!B84:C85,2,0),0)","v":0},1,0,0,0,0,0]
[null,null,8,{"$f":"IFERROR(VLOOKUP('2. blokea_Bloque 2'!D61,Goitibeherakoak_Desplegables!B87:C89,2,0),0)","v":0},1,0,0,0,0,0]
[null,null,9,{"$f":"IFERROR(VLOOKUP('2. blokea_Bloque 2'!D65,Goitibeherakoak_Desplegables!B90:C91,2,0),0)","v":0},1,0,0,0,0,0]
[null,null,"9bis",{"$f":"IFERROR(VLOOKUP('2. blokea_Bloque 2'!D69,Goitibeherakoak_Desplegables!B92:C97,2,0),0)","v":0},1,0,0,0,0,0]
[null,null,10,{"$f":"IFERROR(VLOOKUP('2. blokea_Bloque 2'!D73,Goitibeherakoak_Desplegables!B98:C99,2,0),0)","v":0},1,0,0,0,0,0]
[null,null,11,{"$f":"IFERROR(VLOOKUP('2. blokea_Bloque 2'!D77,Goitibeherakoak_Desplegables!B100:C101,2,0),0)","v":0},1,0,0,0,0,0]
[null,null,12,{"$f":"IFERROR(VLOOKUP('2. blokea_Bloque 2'!E81,Goitibeherakoak_Desplegables!B102:C105,2,0),0)","v":0},1,0,0,0,0,0]
[null,null,"12bis",{"$f":"IFERROR(VLOOKUP('2. blokea_Bloque 2'!E82,Goitibeherakoak_Desplegables!B106:C108,2,0),0)","v":0},1,0,0,0,0,0]
[null,null,"12bis1",{"$f":"IFERROR(VLOOKUP('2. blokea_Bloque 2'!E83,Goitibeherakoak_Desplegables!B109:C113,2,0),0)","v":0},1,0,0,0,0,0]
[null,null,13,{"$f":"IFERROR(VLOOKUP('2. blokea_Bloque 2'!D91,Goitibeherakoak_Desplegables!B115:C116,2,0),0)","v":0},1,0,0,0,0,0]
[null,null,"13bis",{"$f":"IFERROR(VLOOKUP('2. blokea_Bloque 2'!D95,Goitibeherakoak_Desplegables!B117:C122,2,0),0)","v":0},1,0,0,0,0,0]
[null,null,14,{"$f":"IFERROR(VLOOKUP('2. blokea_Bloque 2'!D99,Goitibeherakoak_Desplegables!B123:C131,2,0),0)","v":0},1,0,0,0,0,0]
[null,null,15,{"$f":"IFERROR(VLOOKUP('2. blokea_Bloque 2'!D103,Goitibeherakoak_Desplegables!B132:C133,2,0),0)","v":0},{"$f":"IF($D43=E$10,1,0)","v":1},0,0,0,0,0]
[null,null,"15bis",{"$f":"IFERROR(VLOOKUP('2. blokea_Bloque 2'!D107,Goitibeherakoak_Desplegables!B134:C139,2,0),0)","v":0},1,0,0,0,0,0]
[null,null,16,{"$f":"IFERROR(VLOOKUP('2. blokea_Bloque 2'!D116,Goitibeherakoak_Desplegables!B141:C142,2,0),0)","v":0},1,0,0,0,0,0]
[null,null,17,{"$f":"IFERROR(VLOOKUP('2. blokea_Bloque 2'!D120,Goitibeherakoak_Desplegables!B143:C144,2,0),0)","v":0},1,0,0,0,0,0]
[null,null,18,{"$f":"IFERROR(VLOOKUP('2. blokea_Bloque 2'!D124,Goitibeherakoak_Desplegables!B145:C146,2,0),0)","v":0},1,0,0,0,0,0]
[null,null,19,{"$f":"IFERROR(VLOOKUP('2. blokea_Bloque 2'!D128,Goitibeherakoak_Desplegables!B147:C148,2,0),0)","v":0},1,0,0,0,0,0]
[null,null,"19bis",{"$f":"IFERROR(VLOOKUP('2. blokea_Bloque 2'!D132,Goitibeherakoak_Desplegables!B149:C154,2,0),0)","v":0},1,0,0,0,0,0]
[null,null,20,{"$f":"IFERROR(VLOOKUP('2. blokea_Bloque 2'!D136,Goitibeherakoak_Desplegables!B155:C156,2,0),0)","v":0},1,0,0,0,0,0]
[null,null,"20bis",{"$f":"IFERROR(VLOOKUP('2. blokea_Bloque 2'!D140,Goitibeherakoak_Desplegables!B157:C162,2,0),0)","v":0},1,0,0,0,0,0]
[null,null,21,{"$f":"IFERROR(VLOOKUP('2. blokea_Bloque 2'!E147,Goitibeherakoak_Desplegables!B164:C166,2,0),0)","v":0},{"$f":"IF($D52=E$10,1,0)","v":1},0,0,0,0,0]
[null,null,22,{"$f":"IFERROR(VLOOKUP('2. blokea_Bloque 2'!D151,Goitibeherakoak_Desplegables!B167:C170,2,0),0)","v":0},1,0,0,0,0,0]
[null,null,23,{"$f":"IFERROR(VLOOKUP('2. blokea_Bloque 2'!D155,Goitibeherakoak_Desplegables!B171:C172,2,0),0)","v":0},1,0,0,0,0,0]
[null,null,24,{"$f":"IFERROR(VLOOKUP('2. blokea_Bloque 2'!D160,Goitibeherakoak_Desplegables!B173:C174,2,0),0)","v":0},1,0,0,0,0,0]
[null,null,25,{"$f":"IFERROR(VLOOKUP('2. blokea_Bloque 2'!D168,Goitibeherakoak_Desplegables!B176:C177,2,0),0)","v":0},1,0,0,0,0,0]
[null,null,26,{"$f":"IFERROR(VLOOKUP('2. blokea_Bloque 2'!D179,Goitibeherakoak_Desplegables!B178:C179,2,0),0)","v":0},1,0,0,0,0,0]
[null,"3. blokea/ Bloque 3",1,{"$f":"IFERROR(VLOOKUP('3. blokea_Bloque 3'!D11,Goitibeherakoak_Desplegables!B181:C182,2,0),0)","v":0},1,0,0,0,0,0,{"$f":"SUM(D58:D60)/(3*5)","v":0}]
[null,null,"1bis",{"$f":"VLOOKUP('3. blokea_Bloque 3'!D15,Goitibeherakoak_Desplegables!B183:C188,2,0)","v":0},{"$f":"IF($D59=E$10,1,0)","v":1},{"$f":"IF($D59=F$10,1,0)","v":0},0,0,0,0]
[null,null,2,{"$f":"IFERROR(VLOOKUP('3. blokea_Bloque 3'!D19,Goitibeherakoak_Desplegables!B189:C192,2,0),0)","v":0},1,0,0,0,0,0]
[]
[]
[null,null,null,null,null,null,null,"Egungo jarduera-maila/ \nNivel de desempeño actual"]
[]
[null,null,null,null,null,null,null,null,{"$f":"IF(E69=100%,\"Jarduera oso altua/ Desempeño muy alto\",\"\")","v":""}]
[]
[null,null,null,null,"Deskarbonizazioaren arloko jarduera/ Desempeño en materia de descarbonización"]
[null,null,null,null,null,null,null,null,{"$f":"IF(AND(E69<100%,E69>=70%),\"Goi-mailako jarduera/ Desempeño alto\",\"\")","v":""}]
[null,null,null,null,{"$f":"SUM(O25:O27)","v":0}]
[]
[null,null,null,null,null,null,null,null,{"$f":"IF(AND(E69<70%,E69>=50%),\"Batez besteko jarduna/ Desempeño medio\",\"\")","v":""}]
[]
[]
[null,null,null,null,null,null,null,null,{"$f":"IF(AND(E69<50%,E69>=30%),\"Jarduera txikia/ Desempeño bajo\",\"\")","v":""}]
[]
[]
[null,null,null,null,null,null,null,null,{"$f":"IF(E69<30%,\"Oso jarduera txikia/ Desempeño muy bajo\",\"\")","v":"Oso jarduera txikia/ Desempeño muy bajo"}]
[]
[]
[]
[]
[null,null,null,null,null,null,null,"Lehentasunezko deskarbonizazio-neurriak/ \nMedidas de descarbonización prioritarias"]
[null,"Kudeaketa energetikoa eta BEG emisioak/ Gestión energética y emisiones GEI","2. blokearen barruan lortutako %/ % alcanzado dentro del Bloque 2"]
[null,"Aurrezpena eta eraginkortasun energetikoa/ Ahorro y eficiencia enérgetica",{"$f":"SUM(D21:D31)/(11*5)","v":0},null,null,null,null,null,{"$f":"IF(OR(AND($O$19<=$O$20,$O$19<=O21),(O20+O21+O19=0)),\"1. blokea: Estrategia/ Bloque 1: Estrategia\",\"\")","v":"1. blokea: Estrategia/ Bloque 1: Estrategia"}]
[null,"Energia berriztagarria/ Energía renovable",{"$f":"SUM(D32:D39)/(8*5)","v":0}]
[null,"Mugikortasun jasangarria/ Movildad sostenible",{"$f":"SUM(D40:D44)/(5*5)","v":0}]
[null,"Ekonomia zirkularra/ Economía circular",{"$f":"SUM(D45:D51)/(7*5)","v":0},null,null,null,null,null,{"$f":"IF(OR(AND($O$20<=$O$19,$O$20<=O21),(O20+O21+O19=0)),\"2. Multzoa: Kudeaketa energetikoa eta berotegi-efektuko gasen emisioak/ Bloque 2: Gestión energética y emisiones GEI \",\"\")","v":"2. Multzoa: Kudeaketa energetikoa eta berotegi-efektuko gasen emisioak/ Bloque 2: Gestión energética y emisiones GEI "}]
[null,"BEG isurien kalkulua/ Cálculo de emisiones GEI",{"$f":"SUM(D52:D55)/(4*5)","v":0}]
[null,"Isuri iheskorrak/ Emisiones fugitivas",{"$f":"SUM(D56:D57)/(2*5)","v":0}]
[null,null,null,null,null,null,null,null,{"$f":"IF(OR(AND(O21<=$O$19,O21<=$O$20),(O20+O21+O19=0)),\"3. Multzoa: Konpentsazioa / Bloque 3: Compensación\",\"\")","v":"3. Multzoa: Konpentsazioa / Bloque 3: Compensación"}]
[]
[]
[]
[]
[null,{"$f":"IF(E69=100%,\"Jarduera oso altua/ Desempeño muy alto\",IF(AND(E69<100%,E69>=70%),\"Goi-mailako jarduera/ Desempeño alto\",IF(AND(E69<70%,E69>=50%),\"Batez besteko jarduna/ Desempeño medio\",IF(AND(E69<50%,E69>=30%),\"Jarduera txikia/ Desempeño bajo\",IF(E69<30%,\"Oso jarduera txikia/ Desempeño muy bajo\",\"\")))))","v":"Oso jarduera txikia/ Desempeño muy bajo"},"Puntuazioa/ Puntuación"]
[null,"Jarduera oso altua/ Desempeño muy alto",">100","Zorionak! Galdetegi honetako galderen % 100i erantzun diezu. Dena den, deskarbonizaziorako bidea ez dago osorik eta hobetzen jarraitu behar du. Horretarako, tresnan zehazten diren lehentasunezko neurriei jarraitzea gomendatzen da, eta, konpromiso handiagoa lortzeko, sektoreari dagokion Ekintza Planean zehatzago definitzen diren ekintzak ezartzea.",null,null,null,"¡Enhorabuena! Has contestado satisfactoriamente al 100% de las preguntas de este cuestionario. De todas formas, el camino hacia la descarbonización no está completo y debe seguir mejorando. Para ello se recomienda seguir las medidas prioritarias que se detallan en la herramienta y, para conseguir un mayor compromiso, implementar las acciones que se definen con más detalle en el Plan de Acción correspondiente a su sector."]
[null,"Goi-mailako jarduera/ Desempeño alto","70 - 99,99","Lan ona! Galdetegi honetako erantzunen % 70 baino gehiago erantzun duzu, baina ez da % 100era iritsi. Oraindik lana duzu egiteko, eta horregatik gomendatzen dizugu tresnan zehazten diren lehentasunezko neurriei jarraitzea eta, konpromiso handiagoa lortzeko, zure sektoreko Ekintza Planean definitzen diren ekintzak inplementatzea.",null,null,null,"¡Buen trabajo! Has contestado satisfactoriamente más del 70% de las respuestas de este cuestionario, pero no ha alcanzado el 100%. Aún te queda trabajo por hacer por lo que te recomendamos seguir las medidas prioritarias que se detallan en la herramienta y, para conseguir un mayor compromiso, implementar las acciones que se definen en el Plan de Acción de su sector."]
[null,"Batez besteko jarduna/ Desempeño medio","50 - 69,99","Ongi! Galdera-sorta honetako erantzunen % 50 baino gehiago erantzun duzu. Deskarbonizaziorako bidea hasi du, baina oraindik lana du aurretik. Horretarako, tresnan zehazten diren lehentasunezko neurriei jarraitzea gomendatzen da, eta, konpromiso handiagoa lortzeko, bere sektoreko Ekintza Planean definitzen diren ekintzak inplementatzea.",null,null,null,"¡Bien! Has contestado satisfactoriamente más del 50% de las respuestas de este cuestionario. Ha comenzado el camino hacia la descarbonización, sin embargo, aún le queda trabajo por delante. Para ello se recomienda seguir las medidas prioritarias que se detallan en la herramienta y, para conseguir un mayor compromiso, implementar las acciones que se definen en el Plan de Acción de su sector."]
[null,"Jarduera txikia/ Desempeño bajo","30 - 49,99","Hara... Galdetegi honetako erantzunen % 50 baino gutxiago erantzun duzu. Deskarbonizaziorako bidea hartu badu ere, oraindik ez dago osatuta eta hobetzen jarraitu behar du. Horretarako, tresnan zehazten diren lehentasunezko neurriei jarraitzea gomendatzen da, eta, konpromiso handiagoa lortzeko, bere sektoreko Ekintza Planean zehazten diren ekintzak inplementatzea.",null,null,null,"Vaya... Has contestado satisfactoriamente menos del 50% de las respuestas de este cuestionario. Aunque ha tomado rumbo hacia la descarbonización aún no está completo y debe seguir mejorando. Para ello se recomienda seguir las medidas prioritarias que se especifican en la herramienta y, para conseguir un mayor compromiso, implementar las acciones que se especifican en el Plan de Acción de su sector."]
[null,"Oso jarduera txikia/ Desempeño muy bajo","<29,99","Galdetegi honetako erantzunen % 30 baino gutxiago erantzun duzu. Ez duzu deskarbonizaziorako bidea hasi, baina hobetzeko tarte handia duzu. Tresnan zehazten diren lehentasunezko neurriei jarraitzea gomendatzen da, eta, konpromiso handiagoa lortzeko, bere sektorerako zehaztutako Ekintza Planean zehazten diren ekintzak inplementatzea.",null,null,null,"Has contestado satisfactoriamente menos del 30% de las respuestas de este cuestionario. No has comenzado el camino hacia la descarbonización, pero tienes un amplio margen de mejora. Se recomienda seguir las medidas prioritarias que se especifican en la herramienta y, para conseguir un mayor compromiso, implementar las acciones que se especifican en el Plan de Acción definido para su sector."]

{"sheet":"Medidas_INTRODUCCIÓN","index":10,"n_rows":8,"n_cols":3,"rows_kept":8,"cut":false,"hidden":true,"merged":[]}
["BLOQUE 1: Estrategia","CASTELLANO","EUSKERA"]
["Eraikuntza/ Construcción","Las medidas que aquí se presentan, son unas medidas generales que sirven para orientar a las organizaciones del sector de la construcción hacia la descarbonización de su actividad. En el Plan de descarbonización del sector de la construcción encontrarás información más detallada sobre los pasos y medidas para llevar a cabo la descarbonización de su organización. ","Hemen aurkezten diren neurriak neurri orokorrak dira, eraikuntza-sektoreko erakundeak jarduera deskarbonizatzera bideratzeko balio dutenak. Eraikuntzaren sektorea deskarbonizatzeko planean zure erakundearen deskarbonizazioa gauzatzeko pausoei eta neurriei buruzko informazio zehatzagoa aurkituko duzu. "]
["Papera eta kartoia/ Papel y cartón","Las medidas que aquí se presentan, son unas medidas generales que sirven para orientar a las organizaciones del sector papel-cartón hacia la descarbonización de su actividad. En el Plan de descarbonización del sector papel-cartón encontrarás información más detallada sobre los pasos y medidas para llevar a cabo la descarbonización de su organización. ","Hemen aurkezten diren neurriak neurri orokorrak dira, eta paper-kartoiarensektoreko erakundeak beren jarduera deskarbonizatzera bideratzeko balio dute. Paper-kartoiaren sektorea deskarbonizatzeko planean zure erakundearen deskarbonizazioa gauzatzeko pausoei eta neurriei buruzko informazio zehatzagoa aurkituko duzu. "]
["Metalmekanikoa/ Metalmecánico","Las medidas que aquí se presentan, son unas medidas generales que sirven para orientar a las organizaciones del sector metalmecánico hacia la descarbonización de su actividad. En el Plan de descarbonización del sector metalmecánico  encontrarás información más detallada sobre los pasos y medidas para llevar a cabo la descarbonización de su organización. ","- Hemen aurkezten diren neurriak neurri orokorrak dira, eta sektore metalmekanikoko erakundeak beren jarduera deskarbonizatzera bideratzeko balio dute. Sektore metalmekanikoa deskarbonizatzeko planean zure erakundearen deskarbonizazioa gauzatzeko pausoei eta neurriei buruzko informazio zehatzagoa aurkituko duzu. "]
["Makina-erreminta/ Máquina-herramienta","Las medidas que aquí se presentan, son unas medidas generales que sirven para orientar a las organizaciones del sector máquina-herramienta hacia la descarbonización de su actividad. En el Plan de descarbonización del sector máquina-herramienta encontrarás información más detallada sobre los pasos y medidas para llevar a cabo la descarbonización de su organización. ","- Hemen aurkezten diren neurriak neurri orokorrak dira, makina-erremintaren sektoreko erakundeak jarduera deskarbonizatzera bideratzeko balio dutenak. Makina-erremintaren sektorea deskarbonizatzeko planean zure erakundearen deskarbonizazioa gauzatzeko pausoei eta neurriei buruzko informazio zehatzagoa aurkituko duzu. "]
["Nekazaritza eta elikagai sektorea/ Agroalimentario","Las medidas que aquí se presentan, son unas medidas generales que sirven para orientar a las organizaciones del sector agroalimentario hacia la descarbonización de su actividad. En el Plan de descarbonización del sector agroalimentario encontrarás información más detallada sobre los pasos y medidas para llevar a cabo la descarbonización de su organización. ","Hemen aurkezten diren neurriak neurri orokorrak dira, nekazaritzako elikagaien sektoreko erakundeak beren jarduera deskarbonizatzera bideratzeko balio dutenak. Nekazaritzako elikagaien sektorea deskarbonizatzeko planean zure erakundearen deskarbonizazioa gauzatzeko pausoei eta neurriei buruzko informazio zehatzagoa aurkituko duzu. "]
["Zerbitzuak/ Servicios","Las medidas que aquí se presentan, son unas medidas generales que sirven para orientar a las organizaciones del sector servicios hacia la descarbonización de su actividad. En el Plan de descarbonización del sector servicios encontrarás información más detallada sobre los pasos y medidas para llevar a cabo la descarbonización de su organización. ","Hemen aurkezten diren neurriak neurri orokorrak dira, zerbitzu-sektoreko erakundeak jarduera deskarbonizatzera bideratzeko balio dutenak. Zerbitzuen sektorea deskarbonizatzeko planean zure erakundearen deskarbonizazioa gauzatzeko pausoei eta neurriei buruzko informazio zehatzagoa aurkituko duzu. "]
["Beste batzuk/ Otros","A continuación se muestran  una serie de medidas generales destinadas a orientar a una organización, de cualquier sector, hacia su descarbonización. Se han realizado seis planes específicos para los sectores del papel-cartón, metalmecánico, servicios, construcción, agroalimentario y máquina-herramienta. En los mismos se muestran medidas e información más detallada sobre algunos pasos y medidas que pueden servirte en la descarbonización de tu organización. ","Jarraian, hainbat neurri orokor azaltzen dira, edozein sektoretako erakunde bat deskarbonizatzeko bidean orientazioa emateko. Sei plan espezifiko egin dira paper-kartoiaren, metalmekanikoaren, zerbitzuen, eraikuntzaren, nekazaritzako elikagaien eta makina-erremintaren sektoreetarako. Horietan, zure erakundea deskarbonizatzeko erabil ditzakezun urrats eta neurri batzuei buruzko neurri eta informazio zehatzagoa agertzen da. "]

{"sheet":"Medidas_BLOQUE 1","index":11,"n_rows":8,"n_cols":4,"rows_kept":8,"cut":false,"hidden":true,"merged":[]}
["BLOQUE 1: Estrategia","< 25 %","> 25 y < 75 %","> 75 %"]
["Eraikuntza/ Construcción","- Valora las oportunidades que puede aportar definir una estrategia de descarbonización de la organización como instrumento que contemple su política ambiental, planes de acción con medidas específicas a implantar y objetivos a alcanzar a corto, medio y largo plazo. El asesoramiento externo puede ayudarte en esta materia.\n\n- Cada vez son más las exigencias del mercado respecto al posicionamiento medioambiental de las organizaciones y sus productos y servicios. Trata de identificar las demandas del mercado y de posicionarte para responder a las exigencias medioambientales aplicables a tu sector o actividad.\n\n- Destina parte del presupuesto anual a implantar medidas que reduzcan el impacto ambiental de la organización. Esto permitirá establecer una mejora continua de su desempeño medioambiental y adaptarte paulatinamente a las exigencias del mercado.\n\n- Desarrolla medidas o programas orientados a sensibilizar y hacer partícipe, al personal y dirección, del compromiso adquirido por la organización para su descarbonización, involucrándolos en su definición y en la implantación de las medidas definidas. \n","- Actualiza tu planificación ambiental vigente considerando el contexto actual del sector, las nuevas exigencias del mercado y las nuevas tecnologías disponibles. Trata de incorporar en el plan de acción medidas específicas a implantar y revisa los objetivos a alcanzar a corto, medio y largo plazo. El asesoramiento externo y el benchmarking puede ayudarte en esta materia.\n\n- Trata de identificar las demandas del mercado y de posicionarte para responder a las exigencias medioambientales aplicables a tu sector, actividad, producto o servicio prestado. Consultar a tus principales clientes al respecto, puede orientarte sobre futuros requerimientos e ir posicionándote al respecto.\n\n- Asigna parte del presupuesto a continuar con la mejora del desempeño ambiental de la organización y su descarbonización. Esto permitirá mantener la senda de la mejora continua establecida y adelantarte a las exigencias del mercado.\n\n- Mantén involucrado al personal y dirección de los compromisos de la organización con su descarbonización, incorporando las aportaciones en la definición e implantación de las medidas definidas. \n","- Mantén actualizada la planificación ambiental considerando el contexto actual del sector, las nuevas exigencias del mercado y las nuevas tecnologías disponibles. Trata de incorporar en el plan de acción medidas específicas a implantar y revisa los objetivos a alcanzar a corto, medio y largo plazo. El asesoramiento externo y el benchmarking puede ayudarte en esta materia.\n\n- Trata de adelantarte a las posibles demandas del mercado y de posicionarte para responder a las exigencias medioambientales aplicables a tu sector, actividad, producto o servicio prestado. Consultar a tus principales clientes al respecto, puede orientarte sobre futuros requerimientos e ir posicionándote al respecto.\n\n- Asigna parte del presupuesto a continuar con la mejora del desempeño en descarbonización y ambiental de la organización. Esto permitirá mantener la senda de la mejora continua establecida y adelantarte a las exigencias del mercado.\n\n- Mantén involucrado al personal y dirección de los compromisos de la organización con su descarbonización, incorporando las aportaciones en la definición e implantación de las medidas definidas. \n"]
["Papera eta kartoia/ Papel y cartón","- Valora las oportunidades que puede aportar definir una estrategia de descarbonización de la organización como instrumento que contemple su política ambiental, planes de acción con medidas específicas a implantar y objetivos a alcanzar a corto, medio y largo plazo. El asesoramiento externo puede ayudarte en esta materia.\n\n- Cada vez son más las exigencias del mercado respecto al posicionamiento medioambiental de las organizaciones y sus productos y servicios. Trata de identificar las demandas del mercado y de posicionarte para responder a las exigencias medioambientales aplicables a tu sector o actividad.\n\n- Destina parte del presupuesto anual a implantar medidas que reduzcan el impacto ambiental de la organización. Esto permitirá establecer una mejora continua de su desempeño medioambiental y adaptarte paulatinamente a las exigencias del mercado.\n\n- Desarrolla medidas o programas orientados a sensibilizar y hacer partícipe, al personal y dirección, del compromiso adquirido por la organización para su descarbonización, involucrándolos en su definición y en la implantación de las medidas definidas. ","- Actualiza tu planificación ambiental vigente considerando el contexto actual del sector, las nuevas exigencias del mercado y las nuevas tecnologías disponibles. Trata de incorporar en el plan de acción medidas específicas a implantar y revisa los objetivos a alcanzar a corto, medio y largo plazo. El asesoramiento externo y el benchmarking puede ayudarte en esta materia.\n\n- Trata de identificar las demandas del mercado y de posicionarte para responder a las exigencias medioambientales aplicables a tu sector, actividad, producto o servicio prestado. Consultar a tus principales clientes al respecto, puede orientarte sobre futuros requerimientos e ir posicionándote al respecto.\n\n- Asigna parte del presupuesto a continuar con la mejora del desempeño ambiental de la organización y su descarbonización. Esto permitirá mantener la senda de la mejora continua establecida y adelantarte a las exigencias del mercado.\n\n- Mantén involucrado al personal y dirección de los compromisos de la organización con su descarbonización, incorporando las aportaciones en la definición e implantación de las medidas definidas. ","- Mantén actualizada la planificación ambiental considerando el contexto actual del sector, las nuevas exigencias del mercado y las nuevas tecnologías disponibles. Trata de incorporar en el plan de acción medidas específicas a implantar y revisa los objetivos a alcanzar a corto, medio y largo plazo. El asesoramiento externo y el benchmarking puede ayudarte en esta materia.\n\n- Trata de adelantarte a las posibles demandas del mercado y de posicionarte para responder a las exigencias medioambientales aplicables a tu sector, actividad, producto o servicio prestado. Consultar a tus principales clientes al respecto, puede orientarte sobre futuros requerimientos e ir posicionándote al respecto.\n\n- Asigna parte del presupuesto a continuar con la mejora del desempeño en descarbonización y ambiental de la organización. Esto permitirá mantener la senda de la mejora continua establecida y adelantarte a las exigencias del mercado.\n\n- Mantén involucrado al personal y dirección de los compromisos de la organización con su descarbonización, incorporando las aportaciones en la definición e implantación de las medidas definidas. "]
["Metalmekanikoa/ Metalmecánico","- Valora las oportunidades que puede aportar definir una estrategia de descarbonización de la organización como instrumento que contemple su política ambiental, planes de acción con medidas específicas a implantar y objetivos a alcanzar a corto, medio y largo plazo. El asesoramiento externo puede ayudarte en esta materia.\n\n- Cada vez son más las exigencias del mercado respecto al posicionamiento medioambiental de las organizaciones y sus productos y servicios. Trata de identificar las demandas del mercado y de posicionarte para responder a las exigencias medioambientales aplicables a tu sector o actividad.\n\n- Destina parte del presupuesto anual a implantar medidas que reduzcan el impacto ambiental de la organización. Esto permitirá establecer una mejora continua de su desempeño medioambiental y adaptarte paulatinamente a las exigencias del mercado.\n\n- Desarrolla medidas o programas orientados a sensibilizar y hacer partícipe, al personal y dirección, del compromiso adquirido por la organización para su descarbonización, involucrándolos en su definición y en la implantación de las medidas definidas. \n","- Actualiza tu planificación ambiental vigente considerando el contexto actual del sector, las nuevas exigencias del mercado y las nuevas tecnologías disponibles. Trata de incorporar en el plan de acción medidas específicas a implantar y revisa los objetivos a alcanzar a corto, medio y largo plazo. El asesoramiento externo y el benchmarking puede ayudarte en esta materia.\n\n- Trata de identificar las demandas del mercado y de posicionarte para responder a las exigencias medioambientales aplicables a tu sector, actividad, producto o servicio prestado. Consultar a tus principales clientes al respecto, puede orientarte sobre futuros requerimientos e ir posicionándote al respecto.\n\n- Asigna parte del presupuesto a continuar con la mejora del desempeño ambiental de la organización y su descarbonización. Esto permitirá mantener la senda de la mejora continua establecida y adelantarte a las exigencias del mercado.\n\n- Mantén involucrado al personal y dirección de los compromisos de la organización con su descarbonización, incorporando las aportaciones en la definición e implantación de las medidas definidas. \n","- Mantén actualizada la planificación ambiental considerando el contexto actual del sector, las nuevas exigencias del mercado y las nuevas tecnologías disponibles. Trata de incorporar en el plan de acción medidas específicas a implantar y revisa los objetivos a alcanzar a corto, medio y largo plazo. El asesoramiento externo y el benchmarking puede ayudarte en esta materia.\n\n- Trata de adelantarte a las posibles demandas del mercado y de posicionarte para responder a las exigencias medioambientales aplicables a tu sector, actividad, producto o servicio prestado. Consultar a tus principales clientes al respecto, puede orientarte sobre futuros requerimientos e ir posicionándote al respecto.\n\n- Asigna parte del presupuesto a continuar con la mejora del desempeño en descarbonización y ambiental de la organización. Esto permitirá mantener la senda de la mejora continua establecida y adelantarte a las exigencias del mercado.\n\n- Mantén involucrado al personal y dirección de los compromisos de la organización con su descarbonización, incorporando las aportaciones en la definición e implantación de las medidas definidas. \n"]
["Makina-erreminta/ Máquina-herramienta","- Valora las oportunidades que puede aportar definir una estrategia de descarbonización de la organización como instrumento que contemple su política ambiental, planes de acción con medidas específicas a implantar y objetivos a alcanzar a corto, medio y largo plazo. El asesoramiento externo puede ayudarte en esta materia.\n\n- Cada vez son más las exigencias del mercado respecto al posicionamiento medioambiental de las organizaciones y sus productos y servicios. Trata de identificar las demandas del mercado y de posicionarte para responder a las exigencias medioambientales aplicables a tu sector o actividad.\n\n- Destina parte del presupuesto anual a implantar medidas que reduzcan el impacto ambiental de la organización. Esto permitirá establecer una mejora continua de su desempeño medioambiental y adaptarte paulatinamente a las exigencias del mercado.\n\n- Desarrolla medidas o programas orientados a sensibilizar y hacer partícipe, al personal y dirección, del compromiso adquirido por la organización para su descarbonización, involucrándolos en su definición y en la implantación de las medidas definidas. \n","- Actualiza tu planificación ambiental vigente considerando el contexto actual del sector, las nuevas exigencias del mercado y las nuevas tecnologías disponibles. Trata de incorporar en el plan de acción medidas específicas a implantar y revisa los objetivos a alcanzar a corto, medio y largo plazo. El asesoramiento externo y el benchmarking puede ayudarte en esta materia.\n\n- Trata de identificar las demandas del mercado y de posicionarte para responder a las exigencias medioambientales aplicables a tu sector, actividad, producto o servicio prestado. Consultar a tus principales clientes al respecto, puede orientarte sobre futuros requerimientos e ir posicionándote al respecto.\n\n- Asigna parte del presupuesto a continuar con la mejora del desempeño ambiental de la organización y su descarbonización. Esto permitirá mantener la senda de la mejora continua establecida y adelantarte a las exigencias del mercado.\n\n- Mantén involucrado al personal y dirección de los compromisos de la organización con su descarbonización, incorporando las aportaciones en la definición e implantación de las medidas definidas. \n","- Mantén actualizada la planificación ambiental considerando el contexto actual del sector, las nuevas exigencias del mercado y las nuevas tecnologías disponibles. Trata de incorporar en el plan de acción medidas específicas a implantar y revisa los objetivos a alcanzar a corto, medio y largo plazo. El asesoramiento externo y el benchmarking puede ayudarte en esta materia.\n\n- Trata de adelantarte a las posibles demandas del mercado y de posicionarte para responder a las exigencias medioambientales aplicables a tu sector, actividad, producto o servicio prestado. Consultar a tus principales clientes al respecto, puede orientarte sobre futuros requerimientos e ir posicionándote al respecto.\n\n- Asigna parte del presupuesto a continuar con la mejora del desempeño en descarbonización y ambiental de la organización. Esto permitirá mantener la senda de la mejora continua establecida y adelantarte a las exigencias del mercado.\n\n- Mantén involucrado al personal y dirección de los compromisos de la organización con su descarbonización, incorporando las aportaciones en la definición e implantación de las medidas definidas. \n"]
["Nekazaritza eta elikagai sektorea/ Agroalimentario","- Valora las oportunidades que puede aportar definir una estrategia de descarbonización de la organización como instrumento que contemple su política ambiental, planes de acción con medidas específicas a implantar y objetivos a alcanzar a corto, medio y largo plazo. El asesoramiento externo puede ayudarte en esta materia.\n\n- Cada vez son más las exigencias del mercado respecto al posicionamiento medioambiental de las organizaciones y sus productos y servicios. Trata de identificar las demandas del mercado y de posicionarte para responder a las exigencias medioambientales aplicables a tu sector o actividad.\n\n- Destina parte del presupuesto anual a implantar medidas que reduzcan el impacto ambiental de la organización. Esto permitirá establecer una mejora continua de su desempeño medioambiental y adaptarte paulatinamente a las exigencias del mercado.\n\n- Desarrolla medidas o programas orientados a sensibilizar y hacer partícipe, al personal y dirección, del compromiso adquirido por la organización para su descarbonización, involucrándolos en su definición y en la implantación de las medidas definidas. \n","- Actualiza tu planificación ambiental vigente considerando el contexto actual del sector, las nuevas exigencias del mercado y las nuevas tecnologías disponibles. Trata de incorporar en el plan de acción medidas específicas a implantar y revisa los objetivos a alcanzar a corto, medio y largo plazo. El asesoramiento externo y el benchmarking puede ayudarte en esta materia.\n\n- Trata de identificar las demandas del mercado y de posicionarte para responder a las exigencias medioambientales aplicables a tu sector, actividad, producto o servicio prestado. Consultar a tus principales clientes al respecto, puede orientarte sobre futuros requerimientos e ir posicionándote al respecto.\n\n- Asigna parte del presupuesto a continuar con la mejora del desempeño ambiental de la organización y su descarbonización. Esto permitirá mantener la senda de la mejora continua establecida y adelantarte a las exigencias del mercado.\n\n- Mantén involucrado al personal y dirección de los compromisos de la organización con su descarbonización, incorporando las aportaciones en la definición e implantación de las medidas definidas. \n","- Mantén actualizada la planificación ambiental considerando el contexto actual del sector, las nuevas exigencias del mercado y las nuevas tecnologías disponibles. Trata de incorporar en el plan de acción medidas específicas a implantar y revisa los objetivos a alcanzar a corto, medio y largo plazo. El asesoramiento externo y el benchmarking puede ayudarte en esta materia.\n\n- Trata de adelantarte a las posibles demandas del mercado y de posicionarte para responder a las exigencias medioambientales aplicables a tu sector, actividad, producto o servicio prestado. Consultar a tus principales clientes al respecto, puede orientarte sobre futuros requerimientos e ir posicionándote al respecto.\n\n- Asigna parte del presupuesto a continuar con la mejora del desempeño en descarbonización y ambiental de la organización. Esto permitirá mantener la senda de la mejora continua establecida y adelantarte a las exigencias del mercado.\n\n- Mantén involucrado al personal y dirección de los compromisos de la organización con su descarbonización, incorporando las aportaciones en la definición e implantación de las medidas definidas. \n"]
["Zerbitzuak/ Servicios","- Valora las oportunidades que puede aportar definir una estrategia de descarbonización de la organización como instrumento que contemple su política ambiental, planes de acción con medidas específicas a implantar y objetivos a alcanzar a corto, medio y largo plazo. El asesoramiento externo puede ayudarte en esta materia.\n\n- Cada vez son más las exigencias del mercado respecto al posicionamiento medioambiental de las organizaciones y sus productos y servicios. Trata de identificar las demandas del mercado y de posicionarte para responder a las exigencias medioambientales aplicables a tu sector o actividad.\n\n- Destina parte del presupuesto anual a implantar medidas que reduzcan el impacto ambiental de la organización. Esto permitirá establecer una mejora continua de su desempeño medioambiental y adaptarte paulatinamente a las exigencias del mercado.\n\n- Desarrolla medidas o programas orientados a sensibilizar y hacer partícipe, al personal y dirección, del compromiso adquirido por la organización para su descarbonización, involucrándolos en su definición y en la implantación de las medidas definidas. \n","- Actualiza tu planificación ambiental vigente considerando el contexto actual del sector, las nuevas exigencias del mercado y las nuevas tecnologías disponibles. Trata de incorporar en el plan de acción medidas específicas a implantar y revisa los objetivos a alcanzar a corto, medio y largo plazo. El asesoramiento externo y el benchmarking puede ayudarte en esta materia.\n\n- Trata de identificar las demandas del mercado y de posicionarte para responder a las exigencias medioambientales aplicables a tu sector, actividad, producto o servicio prestado. Consultar a tus principales clientes al respecto, puede orientarte sobre futuros requerimientos e ir posicionándote al respecto.\n\n- Asigna parte del presupuesto a continuar con la mejora del desempeño ambiental de la organización y su descarbonización. Esto permitirá mantener la senda de la mejora continua establecida y adelantarte a las exigencias del mercado.\n\n- Mantén involucrado al personal y dirección de los compromisos de la organización con su descarbonización, incorporando las aportaciones en la definición e implantación de las medidas definidas. \n","- Mantén actualizada la planificación ambiental considerando el contexto actual del sector, las nuevas exigencias del mercado y las nuevas tecnologías disponibles. Trata de incorporar en el plan de acción medidas específicas a implantar y revisa los objetivos a alcanzar a corto, medio y largo plazo. El asesoramiento externo y el benchmarking puede ayudarte en esta materia.\n\n- Trata de adelantarte a las posibles demandas del mercado y de posicionarte para responder a las exigencias medioambientales aplicables a tu sector, actividad, producto o servicio prestado. Consultar a tus principales clientes al respecto, puede orientarte sobre futuros requerimientos e ir posicionándote al respecto.\n\n- Asigna parte del presupuesto a continuar con la mejora del desempeño en descarbonización y ambiental de la organización. Esto permitirá mantener la senda de la mejora continua establecida y adelantarte a las exigencias del mercado.\n\n- Mantén involucrado al personal y dirección de los compromisos de la organización con su descarbonización, incorporando las aportaciones en la definición e implantación de las medidas definidas. \n"]
["Beste batzuk/ Otros","- Valora las oportunidades que puede aportar definir una estrategia de descarbonización de la organización como instrumento que contemple su política ambiental, planes de acción con medidas específicas a implantar y objetivos a alcanzar a corto, medio y largo plazo. El asesoramiento externo puede ayudarte en esta materia.\n\n- Cada vez son más las exigencias del mercado respecto al posicionamiento medioambiental de las organizaciones y sus productos y servicios. Trata de identificar las demandas del mercado y de posicionarte para responder a las exigencias medioambientales aplicables a tu sector o actividad.\n\n- Destina parte del presupuesto anual a implantar medidas que reduzcan el impacto ambiental de la organización. Esto permitirá establecer una mejora continua de su desempeño medioambiental y adaptarte paulatinamente a las exigencias del mercado.\n\n- Desarrolla medidas o programas orientados a sensibilizar y hacer partícipe, al personal y dirección, del compromiso adquirido por la organización para su descarbonización, involucrándolos en su definición y en la implantación de las medidas definidas. \n","- Actualiza tu planificación ambiental vigente considerando el contexto actual del sector, las nuevas exigencias del mercado y las nuevas tecnologías disponibles. Trata de incorporar en el plan de acción medidas específicas a implantar y revisa los objetivos a alcanzar a corto, medio y largo plazo. El asesoramiento externo y el benchmarking puede ayudarte en esta materia.\n\n- Trata de identificar las demandas del mercado y de posicionarte para responder a las exigencias medioambientales aplicables a tu sector, actividad, producto o servicio prestado. Consultar a tus principales clientes al respecto, puede orientarte sobre futuros requerimientos e ir posicionándote al respecto.\n\n- Asigna parte del presupuesto a continuar con la mejora del desempeño ambiental de la organización y su descarbonización. Esto permitirá mantener la senda de la mejora continua establecida y adelantarte a las exigencias del mercado.\n\n- Mantén involucrado al personal y dirección de los compromisos de la organización con su descarbonización, incorporando las aportaciones en la definición e implantación de las medidas definidas. \n","- Mantén actualizada la planificación ambiental considerando el contexto actual del sector, las nuevas exigencias del mercado y las nuevas tecnologías disponibles. Trata de incorporar en el plan de acción medidas específicas a implantar y revisa los objetivos a alcanzar a corto, medio y largo plazo. El asesoramiento externo y el benchmarking puede ayudarte en esta materia.\n\n- Trata de adelantarte a las posibles demandas del mercado y de posicionarte para responder a las exigencias medioambientales aplicables a tu sector, actividad, producto o servicio prestado. Consultar a tus principales clientes al respecto, puede orientarte sobre futuros requerimientos e ir posicionándote al respecto.\n\n- Asigna parte del presupuesto a continuar con la mejora del desempeño en descarbonización y ambiental de la organización. Esto permitirá mantener la senda de la mejora continua establecida y adelantarte a las exigencias del mercado.\n\n- Mantén involucrado al personal y dirección de los compromisos de la organización con su descarbonización, incorporando las aportaciones en la definición e implantación de las medidas definidas. \n"]

{"sheet":"Medidas_BLOQUE 2","index":12,"n_rows":56,"n_cols":5,"rows_kept":56,"cut":false,"hidden":true,"merged":[[49,0,55,0],[41,0,47,0],[1,0,7,0],[9,0,15,0],[0,0,0,1],[17,0,23,0],[25,0,31,0],[33,0,39,0]]}
["BLOQUE 2: Gestión energética y emisiones GEI",null,"< 30 %","> 30 y < 65 %","> 65 %"]
["Ahorro y eficiencia energética","Eraikuntza/ Construcción","- Conoce los consumos energéticos de tu organización. \nEl primer paso para reducir el consumo energético en cualquier empresa es conocer en detalle los consumos energéticos de los distintos equipos, maquinaria e instalaciones. Esto permite identificar cuáles son las principales áreas de mejora facilitando la toma de decisiones informada para reducir el consumo e incrementar el ahorro energético con el consiguiente ahorro de costes y reducción de emisiones de gases de efecto invernadero.\n\n- Realiza una auditoría energética. \nLas auditorías energéticas, mediante la monitorización y análisis de los flujos de energía de una organización, permiten profundizar y analizar en detalle el consumo de energía, siendo una herramienta clave para optimizar su gestión y eficiencia, identificando las oportunidades de mejora y las tecnologías más eficientes para cada proceso.\n\n-  Una vez identificadas las principales áreas de mejora y definidas las medidas de ahorro y eficiencia energética con mejor relación coste beneficio, es el momento de definir un Plan de Ahorro y Eficiencia Energética como una estrategia de mejora continua. El plan debe contener unos objetivos realistas de reducción del consumo energético e implantación de renovables, acciones concretas a implantar para alcanzar los objetivos definidos y un plan de inversiones para su despliegue. \n\n- Ve implementando aquellas medidas derivadas del Plan de Ahorro y Eficiencia Energética. Entre estas medidas se pueden destacar la designación de un gestor energético, la minimización de los consumos energéticos de la maquinaria y equipos utilizados, especialmente en obra (evitando sobredimensionamientos, optimizando los parámetros de funcionamiento de los equipos, realizando un conrrecto mantenimiento,...), optimizar la coordinación dentro de la obra, etcétera,  junto con medidas para mejorar el ahorro y la eficiencia energética del propio centro de trabajo (sustitución de luminarias, mejora del aislamiento térmico, ...) y conseguir un  cerfificado de eficiencia energética del propio edificio.\n\n- No olvides la importancia de la formación y capacitación de todos los trabajadores en materia de ahorro y eficiencia energética, eso favorecerá su alineamiento con la política de la empresa y contribuirá a la consecución de los objetivos de descarbonización. \n\nTambién es importante optimizar las necesidades energéticas de las nuevas construcciones, rehabilitaciones o reformas llevadas a cabo. Para ello se pude valorar con el cliente la posibilidad de implantar el autoconsumo desde la fase de diseño del proyecto, o en su defecto, la inclusión en el diseño de la posibilidad de su implementación en un futuro; fomentar la sustitución de combustibles fósiles en las obras de rehabilitación; valorar con el cliente la instalación de sistemas eficientes para el agua caliente sanitaira (ACS); obtener certificados de eficiencia energética y de certificados de construcción sostenible en los proyectos desarrollados por la organización, etc.","- Conocer en detalle los consumos energéticos de los distintos equipos, maquinaria e instalaciones te permite identificar cuáles son las principales áreas de mejora facilitando la toma de decisiones informada para reducir el consumo e incrementar el ahorro energético con el consiguiente ahorro de costes y reducción de emisiones de gases de efecto invernadero.\n\n- Realiza una auditoría energética. En caso de haber realizado ya auditorías energéticas evalúa la posibilidad de actualizar la misma. Las auditorías energéticas, mediante la monitorización y análisis de los flujos de energía de una organización, permiten profundizar y analizar en detalle el consumo de energía, siendo una herramienta clave para optimizar su gestión y eficiencia, identificando las oportunidades de mejora y las tecnologías más eficientes para cada proceso. Valora las posibles auditorias energéticas realizadas en el pasado y apuesta por extenderlas a otros equipos y/o instalaciones.\n\n- Identifica las principales áreas de mejora y define un Plan de Ahorro y Eficiencia energética con aquellas medidas con mejor relación coste-beneficio.  El plan debe contener unos objetivos realistas de reducción del consumo energético e implantación de renovables, acciones concretas a implantar para alcanzar los objetivos definidos y un plan de inversiones para su despliegue. En caso de disponer ya un un Plan valora su actualización, especialmente si se han realizado o se van a realizar auditorías energéticas tras su implantación\n\n- Implementa las medidas derivadas del Plan de Ahorro y Eficiencia Energética y, en caso de haber actualizado el Plan, realiza un calendario y un plan de inversiones para la incorporación de las posibles nuevas medidas de ahorro y eficiencia energética identificadas. Entre estas medidas se pueden destacar la designación de un gestor energético, la minimización de los consumos energéticos de la maquinaria y equipos utilizados, especialmente en obra (evitando sobredimensionamientos, optimizando los parámetros de funcionamiento de los equipos, realizando un conrrecto mantenimiento,...), optimizar la coordinación dentro de la obra, etcétera,  junto con medidas para mejorar el ahorro y la eficiencia energética del propio centro de trabajo (sustitución de luminarias, mejora del aislamiento térmico, ...) y conseguir un  cerfificado de eficiencia energética del propio edificio..\n\n- No olvides la importancia de la formación y capacitación de todos los trabajadores en materia de ahorro y eficiencia energética, eso favorecerá su alineamiento con la política de la empresa y contribuirá a la consecución de los objetivos de descarbonización.\n\nTambién es importante optimizar las necesidades energéticas de las nuevas construcciones, rehabilitaciones o reformas llevadas a cabo. Para ello se pude valorar con el cliente la posibilidad de implantar el autoconsumo desde la fase de diseño del proyecto, o en su defecto, la inclusión en el diseño de la posibilidad de su implementación en un futuro; fomentar la sustitución de combustibles fósiles en las obras de rehabilitación; valorar con el cliente la instalación de sistemas eficientes para el agua caliente sanitaira (ACS); obtener certificados de eficiencia energética y de certificados de construcción sostenible en los proyectos desarrollados por la organización, etc.","- Continúa realizando un control continuo de los consumos energéticos. Valora la posibilidad de incluir nuevos equipos a dicho control.\n\n- Valora la posibilidad de actualizar la auditoría energética para optimizar la gestión y eficiencia energética de la organización e identificar nuevas oportunidades de mejora y las tecnologías más eficientes para cada proceso. Analiza las auditorias energéticas realizadas en el pasado y apuesta por extenderlas a otros equipos y/o instalaciones.\n\n-  Incluye las nuevas oportunidades de mejora, con mejor relación coste beneficio, en el Plan de Ahorro y Eficiencia Energética, actualiza los objetivos del plan y las acciones concretas a implantar para alcanzar los nuevos objetivos definidos y un plan de inversiones para su despliegue. \n\n- Continúa implementando las medidas derivadas del Plan de Ahorro y Eficiencia Energética priorizando aquellas con mejor relación coste beneficio.\n\n- No olvides la importancia de la formación y capacitación de todos los trabajadores en materia de ahorro y eficiencia energética, eso favorecerá su alineamiento con la política de la empresa y contribuirá a la consecución de los objetivos de descarbonización.\n\nTambién es importante optimizar las necesidades energéticas de las nuevas construcciones, rehabilitaciones o reformas llevadas a cabo. Para ello se pude valorar con el cliente la posibilidad de implantar el autoconsumo desde la fase de diseño del proyecto, o en su defecto, la inclusión en el diseño de la posibilidad de su implementación en un futuro; fomentar la sustitución de combustibles fósiles en las obras de rehabilitación; valorar con el cliente la instalación de sistemas eficientes para el agua caliente sanitaira (ACS); obtener certificados de eficiencia energética y de certificados de construcción sostenible en los proyectos desarrollados por la organización, etc."]
[null,"Papera eta kartoia/ Papel y cartón","- Conoce los consumos energéticos de tu organización. \nEl primer paso para reducir el consumo energético en cualquier empresa es conocer en detalle los consumos energéticos de los distintos equipos, maquinaria e instalaciones. Esto permite identificar cuáles son las principales áreas de mejora facilitando la toma de decisiones informada para reducir el consumo e incrementar el ahorro energético con el consiguiente ahorro de costes y reducción de emisiones de gases de efecto invernadero.\n\n- Realiza una auditoría energética. \nLas auditorías energéticas, mediante la monitorización y análisis de los flujos de energía de una organización, permiten profundizar y analizar en detalle el consumo de energía, siendo una herramienta clave para optimizar su gestión y eficiencia, identificando las oportunidades de mejora y las tecnologías más eficientes para cada proceso.\n\n-  Una vez identificadas las principales áreas de mejora y definidas las medidas de ahorro y eficiencia energética con mejor relación coste beneficio, es el momento de definir un Plan de Ahorro y Eficiencia Energética como una estrategia de mejora continua. El plan debe contener unos objetivos realistas de reducción del consumo energético e implantación de renovables, acciones concretas a implantar para alcanzar los objetivos definidos y un plan de inversiones para su despliegue. \n\n- Ve implementando aquellas medidas derivadas del Plan de Ahorro y Eficiencia Energética. Entre estas medidas suelen destacar la adecuación de los equipos y la maquinaria a las necesidades de la actividad productiva de la empresa, la designación de un gestor energético, la sustitución de equipos ineficientes y de alto consumo, la implementación de sistemas de recuperación que permitan capturar y reutilizar la energía térmica residual y otras medidas para mejorar el ahorro y la eficiencia energética del propio centro de trabajo (sustitución de luminarias, mejora del aislamiento térmico, ...)\n\n- No olvides la importancia de la formación y capacitación de todos los trabajadores en materia de ahorro y eficiencia energética, eso favorecerá su alineamiento con la política de la empresa y contribuirá a la consecución de los objetivos de descarbonización.","- Conocer en detalle los consumos energéticos de los distintos equipos, maquinaria e instalaciones te permite identificar cuáles son las principales áreas de mejora facilitando la toma de decisiones informada para reducir el consumo e incrementar el ahorro energético con el consiguiente ahorro de costes y reducción de emisiones de gases de efecto invernadero.\n\n- Realiza una auditoría energética. En caso de haber realizado ya auditorías energéticas evalúa la posibilidad de actualizar la misma. Las auditorías energéticas, mediante la monitorización y análisis de los flujos de energía de una organización, permiten profundizar y analizar en detalle el consumo de energía, siendo una herramienta clave para optimizar su gestión y eficiencia, identificando las oportunidades de mejora y las tecnologías más eficientes para cada proceso. Valora las posibles auditorias energéticas realizadas en el pasado y apuesta por extenderlas a otros equipos y/o instalaciones.\n\n- Identifica las principales áreas de mejora y define un Plan de Ahorro y Eficiencia energética con aquellas medidas con mejor relación coste-beneficio.  El plan debe contener unos objetivos realistas de reducción del consumo energético e implantación de renovables, acciones concretas a implantar para alcanzar los objetivos definidos y un plan de inversiones para su despliegue. En caso de disponer ya un un Plan valora su actualización, especialmente si se han realizado o se van a realizar auditorías energéticas tras su implantación\n\n- Implementa las medidas derivadas del Plan de Ahorro y Eficiencia Energética y, en caso de haber actualizado el Plan, realiza un calendario y un plan de inversiones para la incorporación de las posibles nuevas medidas de ahorro y eficiencia energética identificadas. Entre estas medidas suelen destacar la adecuación de los equipos y la maquinaria a las necesidades de la actividad productiva de la empresa, la designación de un gestor energético, la sustitución de equipos ineficientes y de alto consumo, la implementación de sistemas de recuperación que permitan capturar y reutilizar la energía térmica residual y otras medidas para mejorar el ahorro y la eficiencia energética del propio centro de trabajo (sustitución de luminarias, mejora del aislamiento térmico, ...)\n\n- No olvides la importancia de la formación y capacitación de todos los trabajadores en materia de ahorro y eficiencia energética, eso favorecerá su alineamiento con la política de la empresa y contribuirá a la consecución de los objetivos de descarbonización.","- Continúa realizando un control continuo de los consumos energéticos. Valora la posibilidad de incluir nuevos equipos a dicho control.\n\n- Valora la posibilidad de actualizar la auditoría energética para optimizar la gestión y eficiencia energética de la organización e identificar nuevas oportunidades de mejora y las tecnologías más eficientes para cada proceso. Analiza las auditorias energéticas realizadas en el pasado y apuesta por extenderlas a otros equipos y/o instalaciones.\n\n-  Incluye las nuevas oportunidades de mejora, con mejor relación coste beneficio, en el Plan de Ahorro y Eficiencia Energética, actualiza los objetivos del plan y las acciones concretas a implantar para alcanzar los nuevos objetivos definidos y un plan de inversiones para su despliegue. \n\n- Continúa implementando las medidas derivadas del Plan de Ahorro y Eficiencia Energética priorizando aquellas con mejor relación coste beneficio.\n\n- No olvides la importancia de la formación y capacitación de todos los trabajadores en materia de ahorro y eficiencia energética, eso favorecerá su alineamiento con la política de la empresa y contribuirá a la consecución de los objetivos de descarbonización."]
[null,"Metalmekanikoa/ Metalmecánico","- Conoce los consumos energéticos de tu organización. \nEl primer paso para reducir el consumo energético en cualquier empresa es conocer en detalle los consumos energéticos de los distintos equipos, maquinaria e instalaciones. Esto permite identificar cuáles son las principales áreas de mejora facilitando la toma de decisiones informada para reducir el consumo e incrementar el ahorro energético con el consiguiente ahorro de costes y reducción de emisiones de gases de efecto invernadero.\n\n- Realiza una auditoría energética. \nLas auditorías energéticas, mediante la monitorización y análisis de los flujos de energía de una organización, permiten profundizar y analizar en detalle el consumo de energía, siendo una herramienta clave para optimizar su gestión y eficiencia, identificando las oportunidades de mejora y las tecnologías más eficientes para cada proceso.\n\n-  Una vez identificadas las principales áreas de mejora y definidas las medidas de ahorro y eficiencia energética con mejor relación coste beneficio, es el momento de definir un Plan de Ahorro y Eficiencia Energética como una estrategia de mejora continua. El plan debe contener unos objetivos realistas de reducción del consumo energético e implantación de renovables, acciones concretas a implantar para alcanzar los objetivos definidos y un plan de inversiones para su despliegue. \n\n- Ve implementando aquellas medidas derivadas del Plan de Ahorro y Eficiencia Energética. Entre estas medidas suelen destacar la adecuación de los equipos y la maquinaria a las necesidades de la actividad productiva de la empresa, la designación de un gestor energético, la sustitución de equipos ineficientes y de alto consumo, la implementación de sistemas de recuperación que permitan capturar y reutilizar la energía térmica residual, la posible implementación del concepto de industria 4.0, reducir el consumo de energía reactiva, valorar la contratación en alta tensión, otras medidas para mejorar el ahorro y la eficiencia energética del propio centro de trabajo (sustitución de luminarias, mejora del aislamiento térmico, ...).\n\n- No olvides la importancia de la formación y capacitación de todos los trabajadores en materia de ahorro y eficiencia energética, eso favorecerá su alineamiento con la política de la empresa y contribuirá a la consecución de los objetivos de descarbonización.","- Conocer en detalle los consumos energéticos de los distintos equipos, maquinaria e instalaciones te permite identificar cuáles son las principales áreas de mejora facilitando la toma de decisiones informada para reducir el consumo e incrementar el ahorro energético con el consiguiente ahorro de costes y reducción de emisiones de gases de efecto invernadero.\n\n- Realiza una auditoría energética. En caso de haber realizado ya auditorías energéticas evalúa la posibilidad de actualizar la misma. Las auditorías energéticas, mediante la monitorización y análisis de los flujos de energía de una organización, permiten profundizar y analizar en detalle el consumo de energía, siendo una herramienta clave para optimizar su gestión y eficiencia, identificando las oportunidades de mejora y las tecnologías más eficientes para cada proceso. Valora las posibles auditorias energéticas realizadas en el pasado y apuesta por extenderlas a otros equipos y/o instalaciones.\n\n- Identifica las principales áreas de mejora y define un Plan de Ahorro y Eficiencia energética con aquellas medidas con mejor relación coste-beneficio.  El plan debe contener unos objetivos realistas de reducción del consumo energético e implantación de renovables, acciones concretas a implantar para alcanzar los objetivos definidos y un plan de inversiones para su despliegue. En caso de disponer ya un un Plan valora su actualización, especialmente si se han realizado o se van a realizar auditorías energéticas tras su implantación\n\n- Implementa las medidas derivadas del Plan de Ahorro y Eficiencia Energética y, en caso de haber actualizado el Plan, realiza un calendario y un plan de inversiones para la incorporación de las posibles nuevas medidas de ahorro y eficiencia energética identificadas. Entre estas medidas suelen destacar la adecuación de los equipos y la maquinaria a las necesidades de la actividad productiva de la empresa, la designación de un gestor energético, la sustitución de equipos ineficientes y de alto consumo, la implementación de sistemas de recuperación que permitan capturar y reutilizar la energía térmica residual, la posible implementación del concepto de industria 4.0, reducir el consumo de energía reactiva, valorar la contratación en alta tensión, otras medidas para mejorar el ahorro y la eficiencia energética del propio centro de trabajo (sustitución de luminarias, mejora del aislamiento térmico, ...).\n\n- No olvides la importancia de la formación y capacitación de todos los trabajadores en materia de ahorro y eficiencia energética, eso favorecerá su alineamiento con la política de la empresa y contribuirá a la consecución de los objetivos de descarbonización.","- Continúa realizando un control continuo de los consumos energéticos. Valora la posibilidad de incluir nuevos equipos a dicho control.\n\n- Valora la posibilidad de actualizar la auditoría energética para optimizar la gestión y eficiencia energética de la organización e identificar nuevas oportunidades de mejora y las tecnologías más eficientes para cada proceso. Analiza las auditorias energéticas realizadas en el pasado y apuesta por extenderlas a otros equipos y/o instalaciones.\n\n-  Incluye las nuevas oportunidades de mejora, con mejor relación coste beneficio, en el Plan de Ahorro y Eficiencia Energética, actualiza los objetivos del plan y las acciones concretas a implantar para alcanzar los nuevos objetivos definidos y un plan de inversiones para su despliegue. \n\n- Continúa implementando las medidas derivadas del Plan de Ahorro y Eficiencia Energética priorizando aquellas con mejor relación coste beneficio.\n\n- No olvides la importancia de la formación y capacitación de todos los trabajadores en materia de ahorro y eficiencia energética, eso favorecerá su alineamiento con la política de la empresa y contribuirá a la consecución de los objetivos de descarbonización."]
[null,"Makina-erreminta/ Máquina-herramienta","- Conoce los consumos energéticos de tu organización. \nEl primer paso para reducir el consumo energético en cualquier empresa es conocer en detalle los consumos energéticos de los distintos equipos, maquinaria e instalaciones. Esto permite identificar cuáles son las principales áreas de mejora facilitando la toma de decisiones informada para reducir el consumo e incrementar el ahorro energético con el consiguiente ahorro de costes y reducción de emisiones de gases de efecto invernadero.\n\n- Realiza una auditoría energética. \nLas auditorías energéticas, mediante la monitorización y análisis de los flujos de energía de una organización, permiten profundizar y analizar en detalle el consumo de energía, siendo una herramienta clave para optimizar su gestión y eficiencia, identificando las oportunidades de mejora y las tecnologías más eficientes para cada proceso.\n\n-  Una vez identificadas las principales áreas de mejora y definidas las medidas de ahorro y eficiencia energética con mejor relación coste beneficio, es el momento de definir un Plan de Ahorro y Eficiencia Energética como una estrategia de mejora continua. El plan debe contener unos objetivos realistas de reducción del consumo energético e implantación de renovables, acciones concretas a implantar para alcanzar los objetivos definidos y un plan de inversiones para su despliegue. \n\n- Ve implementando aquellas medidas derivadas del Plan de Ahorro y Eficiencia Energética. Entre estas medidas se pueden destacar la adecuación de los equipos y la maquinaria a las necesidades de la actividad productiva de la organización para minimizar su consumo, la designación de un gestor energético, la sustitución de equipos ineficientes y de alto consumo, la implementación de sistemas de recuperación que permitan capturar y reutilizar la energía térmica residual, la implementación de la industria 4.0, reducir el consumo de energía reactiva, valorar la contratación de la energía eléctrica en alta tensión, así como otras medidas para mejorar el ahorro y la eficiencia energética del propio centro de trabajo (sustitución de luminarias, mejora del aislamiento térmico, ...)\n\n- No olvides la importancia de la formación y capacitación de todos los trabajadores en materia de ahorro y eficiencia energética, eso favorecerá su alineamiento con la política de la empresa y contribuirá a la consecución de los objetivos de descarbonización.","- Conocer en detalle los consumos energéticos de los distintos equipos, maquinaria e instalaciones te permite identificar cuáles son las principales áreas de mejora facilitando la toma de decisiones informada para reducir el consumo e incrementar el ahorro energético con el consiguiente ahorro de costes y reducción de emisiones de gases de efecto invernadero.\n\n- Realiza una auditoría energética. En caso de haber realizado ya auditorías energéticas evalúa la posibilidad de actualizar la misma. Las auditorías energéticas, mediante la monitorización y análisis de los flujos de energía de una organización, permiten profundizar y analizar en detalle el consumo de energía, siendo una herramienta clave para optimizar su gestión y eficiencia, identificando las oportunidades de mejora y las tecnologías más eficientes para cada proceso. Valora las posibles auditorias energéticas realizadas en el pasado y apuesta por extenderlas a otros equipos y/o instalaciones.\n\n- Identifica las principales áreas de mejora y define un Plan de Ahorro y Eficiencia energética con aquellas medidas con mejor relación coste-beneficio.  El plan debe contener unos objetivos realistas de reducción del consumo energético e implantación de renovables, acciones concretas a implantar para alcanzar los objetivos definidos y un plan de inversiones para su despliegue. En caso de disponer ya un un Plan valora su actualización, especialmente si se han realizado o se van a realizar auditorías energéticas tras su implantación\n\n- Implementa las medidas derivadas del Plan de Ahorro y Eficiencia Energética y, en caso de haber actualizado el Plan, realiza un calendario y un plan de inversiones para la incorporación de las posibles nuevas medidas de ahorro y eficiencia energética identificadas. Entre estas medidas se pueden destacar la adecuación de los equipos y la maquinaria a las necesidades de la actividad productiva de la organización para minimizar su consumo, la designación de un gestor energético, la sustitución de equipos ineficientes y de alto consumo, la implementación de sistemas de recuperación que permitan capturar y reutilizar la energía térmica residual, la implementación de la industria 4.0, reducir el consumo de energía reactiva, valorar la contratación de la energía eléctrica en alta tensión, así como otras medidas para mejorar el ahorro y la eficiencia energética del propio centro de trabajo (sustitución de luminarias, mejora del aislamiento térmico, ...)\n\n- No olvides la importancia de la formación y capacitación de todos los trabajadores en materia de ahorro y eficiencia energética, eso favorecerá su alineamiento con la política de la empresa y contribuirá a la consecución de los objetivos de descarbonización.","- Continúa realizando un control continuo de los consumos energéticos. Valora la posibilidad de incluir nuevos equipos a dicho control.\n\n- Valora la posibilidad de actualizar la auditoría energética para optimizar la gestión y eficiencia energética de la organización e identificar nuevas oportunidades de mejora y las tecnologías más eficientes para cada proceso. Analiza las auditorias energéticas realizadas en el pasado y apuesta por extenderlas a otros equipos y/o instalaciones.\n\n-  Incluye las nuevas oportunidades de mejora, con mejor relación coste beneficio, en el Plan de Ahorro y Eficiencia Energética, actualiza los objetivos del plan y las acciones concretas a implantar para alcanzar los nuevos objetivos definidos y un plan de inversiones para su despliegue. \n\n- Continúa implementando las medidas derivadas del Plan de Ahorro y Eficiencia Energética priorizando aquellas con mejor relación coste beneficio.\n\n- No olvides la importancia de la formación y capacitación de todos los trabajadores en materia de ahorro y eficiencia energética, eso favorecerá su alineamiento con la política de la empresa y contribuirá a la consecución de los objetivos de descarbonización."]
[null,"Nekazaritza eta elikagai sektorea/ Agroalimentario","- Conoce los consumos energéticos de tu organización. \nEl primer paso para reducir el consumo energético en cualquier empresa es conocer en detalle los consumos energéticos de los distintos equipos, maquinaria e instalaciones. Esto permite identificar cuáles son las principales áreas de mejora facilitando la toma de decisiones informada para reducir el consumo e incrementar el ahorro energético con el consiguiente ahorro de costes y reducción de emisiones de gases de efecto invernadero.\n\n- Realiza una auditoría energética. \nLas auditorías energéticas, mediante la monitorización y análisis de los flujos de energía de una organización, permiten profundizar y analizar en detalle el consumo de energía, siendo una herramienta clave para optimizar su gestión y eficiencia, identificando las oportunidades de mejora y las tecnologías más eficientes para cada proceso.\n\n-  Una vez identificadas las principales áreas de mejora y definidas las medidas de ahorro y eficiencia energética con mejor relación coste beneficio, es el momento de definir un Plan de Ahorro y Eficiencia Energética como una estrategia de mejora continua. El plan debe contener unos objetivos realistas de reducción del consumo energético e implantación de renovables, acciones concretas a implantar para alcanzar los objetivos definidos y un plan de inversiones para su despliegue. \n\n- Ve implementando aquellas medidas derivadas del Plan de Ahorro y Eficiencia Energética. Entre estas medidas se pueden destacar la designación de un gestor energético; la minimización de los consumos energéticos de la maquinaria y equipos utilizados, especialmente la optimización de los equipos de frío y calor; la recuperación de calor residual; la posible implementación del concepto de industria 4.0 y la mejora la eficiencia energética de la propia edificación (con especial interés en la mejora del aislamiento térmico de la envolvente, la climatización y la iluminación).\n\n- No olvides la importancia de la formación y capacitación de todos los trabajadores en materia de ahorro y eficiencia energética, eso favorecerá su alineamiento con la política de la empresa y contribuirá a la consecución de los objetivos de descarbonización.","- Conocer en detalle los consumos energéticos de los distintos equipos, maquinaria e instalaciones te permite identificar cuáles son las principales áreas de mejora facilitando la toma de decisiones informada para reducir el consumo e incrementar el ahorro energético con el consiguiente ahorro de costes y reducción de emisiones de gases de efecto invernadero.\n\n- Realiza una auditoría energética. En caso de haber realizado ya auditorías energéticas evalúa la posibilidad de actualizar la misma. Las auditorías energéticas, mediante la monitorización y análisis de los flujos de energía de una organización, permiten profundizar y analizar en detalle el consumo de energía, siendo una herramienta clave para optimizar su gestión y eficiencia, identificando las oportunidades de mejora y las tecnologías más eficientes para cada proceso. Valora las posibles auditorias energéticas realizadas en el pasado y apuesta por extenderlas a otros equipos y/o instalaciones.\n\n- Identifica las principales áreas de mejora y define un Plan de Ahorro y Eficiencia energética con aquellas medidas con mejor relación coste-beneficio.  El plan debe contener unos objetivos realistas de reducción del consumo energético e implantación de renovables, acciones concretas a implantar para alcanzar los objetivos definidos y un plan de inversiones para su despliegue. En caso de disponer ya un un Plan valora su actualización, especialmente si se han realizado o se van a realizar auditorías energéticas tras su implantación\n\n- Implementa las medidas derivadas del Plan de Ahorro y Eficiencia Energética y, en caso de haber actualizado el Plan, realiza un calendario y un plan de inversiones para la incorporación de las posibles nuevas medidas de ahorro y eficiencia energética identificadas. Entre estas medidas se pueden destacar la designación de un gestor energético; la minimización de los consumos energéticos de la maquinaria y equipos utilizados, especialmente la optimización de los equipos de frío y calor; la recuperación de calor residual; la posible implementación del concepto de industria 4.0 y la mejora la eficiencia energética de la propia edificación (con especial interés en la mejora del aislamiento térmico de la envolvente, la climatización y la iluminación).\n\n- No olvides la importancia de la formación y capacitación de todos los trabajadores en materia de ahorro y eficiencia energética, eso favorecerá su alineamiento con la política de la empresa y contribuirá a la consecución de los objetivos de descarbonización.","- Continúa realizando un control continuo de los consumos energéticos. Valora la posibilidad de incluir nuevos equipos a dicho control.\n\n- Valora la posibilidad de actualizar la auditoría energética para optimizar la gestión y eficiencia energética de la organización e identificar nuevas oportunidades de mejora y las tecnologías más eficientes para cada proceso. Analiza las auditorias energéticas realizadas en el pasado y apuesta por extenderlas a otros equipos y/o instalaciones.\n\n-  Incluye las nuevas oportunidades de mejora, con mejor relación coste beneficio, en el Plan de Ahorro y Eficiencia Energética, actualiza los objetivos del plan y las acciones concretas a implantar para alcanzar los nuevos objetivos definidos y un plan de inversiones para su despliegue. \n\n- Continúa implementando las medidas derivadas del Plan de Ahorro y Eficiencia Energética priorizando aquellas con mejor relación coste beneficio.\n\n- No olvides la importancia de la formación y capacitación de todos los trabajadores en materia de ahorro y eficiencia energética, eso favorecerá su alineamiento con la política de la empresa y contribuirá a la consecución de los objetivos de descarbonización."]
[null,"Zerbitzuak/ Servicios","- Conoce los consumos energéticos de tu organización. \nEl primer paso para reducir el consumo energético en cualquier empresa es conocer en detalle los consumos energéticos de los distintos equipos, maquinaria e instalaciones. Esto permite identificar cuáles son las principales áreas de mejora facilitando la toma de decisiones informada para reducir el consumo e incrementar el ahorro energético con el consiguiente ahorro de costes y reducción de emisiones de gases de efecto invernadero.\n\n- Realiza una auditoría energética. \nLas auditorías energéticas, mediante la monitorización y análisis de los flujos de energía de una organización, permiten profundizar y analizar en detalle el consumo de energía, siendo una herramienta clave para optimizar su gestión y eficiencia, identificando las oportunidades de mejora y las tecnologías más eficientes para cada proceso.\n\n-  Una vez identificadas las principales áreas de mejora y definidas las medidas de ahorro y eficiencia energética con mejor relación coste beneficio, es el momento de definir un Plan de Ahorro y Eficiencia Energética como una estrategia de mejora continua. El plan debe contener unos objetivos realistas de reducción del consumo energético e implantación de renovables, acciones concretas a implantar para alcanzar los objetivos definidos y un plan de inversiones para su despliegue. \n\n- Ve implementando aquellas medidas derivadas del Plan de Ahorro y Eficiencia Energética. Entre estas medidas se puede destacar la mejora de la eficiencia energética de los establecimientos/edificaciones (con especial interés en la mejora del aislamiento térmico de la envolvente, la climatización, el agua caliente sanitaria y la iluminación); la mejora de la eficiencia de los equipos de frío, evitar las fugas de refrigerante, la designación de un gestor energético o la implementación de sistemas de recuperación que permitan capturar y reutilizar la energía térmica residual entre otras medidas.  \n\n- No olvides la importancia de la formación y capacitación de todos los trabajadores en materia de ahorro y eficiencia energética, eso favorecerá su alineamiento con la política de la empresa y contribuirá a la consecución de los objetivos de descarbonización.","- Conocer en detalle los consumos energéticos de los distintos equipos, maquinaria e instalaciones te permite identificar cuáles son las principales áreas de mejora facilitando la toma de decisiones informada para reducir el consumo e incrementar el ahorro energético con el consiguiente ahorro de costes y reducción de emisiones de gases de efecto invernadero.\n\n- Realiza una auditoría energética. En caso de haber realizado ya auditorías energéticas evalúa la posibilidad de actualizar la misma. Las auditorías energéticas, mediante la monitorización y análisis de los flujos de energía de una organización, permiten profundizar y analizar en detalle el consumo de energía, siendo una herramienta clave para optimizar su gestión y eficiencia, identificando las oportunidades de mejora y las tecnologías más eficientes para cada proceso. Valora las posibles auditorias energéticas realizadas en el pasado y apuesta por extenderlas a otros equipos y/o instalaciones.\n\n- Identifica las principales áreas de mejora y define un Plan de Ahorro y Eficiencia energética con aquellas medidas con mejor relación coste-beneficio.  El plan debe contener unos objetivos realistas de reducción del consumo energético e implantación de renovables, acciones concretas a implantar para alcanzar los objetivos definidos y un plan de inversiones para su despliegue. En caso de disponer ya un un Plan valora su actualización, especialmente si se han realizado o se van a realizar auditorías energéticas tras su implantación\n\n- Implementa las medidas derivadas del Plan de Ahorro y Eficiencia Energética y, en caso de haber actualizado el Plan, realiza un calendario y un plan de inversiones para la incorporación de las posibles nuevas medidas de ahorro y eficiencia energética identificadas. Entre estas medidas se puede destacar la mejora de la eficiencia energética de los establecimientos/edificaciones (con especial interés en la mejora del aislamiento térmico de la envolvente, la climatización, el agua caliente sanitaria y la iluminación); la mejora de la eficiencia de los equipos de frío, evitar las fugas de refrigerante, la designación de un gestor energético o la implementación de sistemas de recuperación que permitan capturar y reutilizar la energía térmica residual entre otras medidas.  \n\n- No olvides la importancia de la formación y capacitación de todos los trabajadores en materia de ahorro y eficiencia energética, eso favorecerá su alineamiento con la política de la empresa y contribuirá a la consecución de los objetivos de descarbonización.","- Continúa realizando un control continuo de los consumos energéticos. Valora la posibilidad de incluir nuevos equipos a dicho control.\n\n- Valora la posibilidad de actualizar la auditoría energética para optimizar la gestión y eficiencia energética de la organización e identificar nuevas oportunidades de mejora y las tecnologías más eficientes para cada proceso. Analiza las auditorias energéticas realizadas en el pasado y apuesta por extenderlas a otros equipos y/o instalaciones.\n\n-  Incluye las nuevas oportunidades de mejora, con mejor relación coste beneficio, en el Plan de Ahorro y Eficiencia Energética, actualiza los objetivos del plan y las acciones concretas a implantar para alcanzar los nuevos objetivos definidos y un plan de inversiones para su despliegue. \n\n- Continúa implementando las medidas derivadas del Plan de Ahorro y Eficiencia Energética priorizando aquellas con mejor relación coste beneficio.\n\n- No olvides la importancia de la formación y capacitación de todos los trabajadores en materia de ahorro y eficiencia energética, eso favorecerá su alineamiento con la política de la empresa y contribuirá a la consecución de los objetivos de descarbonización."]
[null,"Beste batzuk/ Otros","- Conoce los consumos energéticos de tu organización. \nEl primer paso para reducir el consumo energético en cualquier empresa es conocer en detalle los consumos energéticos de los distintos equipos, maquinaria e instalaciones. Esto permite identificar cuáles son las principales áreas de mejora facilitando la toma de decisiones informada para reducir el consumo e incrementar el ahorro energético con el consiguiente ahorro de costes y reducción de emisiones de gases de efecto invernadero.\n\n- Realiza una auditoría energética. \nLas auditorías energéticas, mediante la monitorización y análisis de los flujos de energía de una organización, permiten profundizar y analizar en detalle el consumo de energía, siendo una herramienta clave para optimizar su gestión y eficiencia, identificando las oportunidades de mejora y las tecnologías más eficientes para cada proceso.\n\n-  Una vez identificadas las principales áreas de mejora y definidas las medidas de ahorro y eficiencia energética con mejor relación coste beneficio, es el momento de definir un Plan de Ahorro y Eficiencia Energética como una estrategia de mejora continua. El plan debe contener unos objetivos realistas de reducción del consumo energético e implantación de renovables, acciones concretas a implantar para alcanzar los objetivos definidos y un plan de inversiones para su despliegue. \n\n- Ve implementando aquellas medidas derivadas del Plan de Ahorro y Eficiencia Energética. Entre estas medidas suelen destacar la monitorización de equipos, instalaciones y maquinaria; la adecuación de los equipos y la maquinaria a las necesidades de la actividad productiva de la empresa; la sustitución de equipos ineficientes y de alto consumo; la designación de un gestor energético; medidas para mejorar el ahorro y la eficiencia energética del propio centro de trabajo (sustitución de luminarias, mejora del aislamiento térmico, ...); la implementación de sistemas de recuperación que permitan capturar y reutilizar la energía térmica residual, entre otras.\n\n- No olvides la importancia de la formación y capacitación de todos los trabajadores en materia de ahorro y eficiencia energética, eso favorecerá su alineamiento con la política de la empresa y contribuirá a la consecución de los objetivos de descarbonización.","- Conocer en detalle los consumos energéticos de los distintos equipos, maquinaria e instalaciones te permite identificar cuáles son las principales áreas de mejora facilitando la toma de decisiones informada para reducir el consumo e incrementar el ahorro energético con el consiguiente ahorro de costes y reducción de emisiones de gases de efecto invernadero.\n\n- Realiza una auditoría energética. En caso de haber realizado ya auditorías energéticas evalúa la posibilidad de actualizar la misma. Las auditorías energéticas, mediante la monitorización y análisis de los flujos de energía de una organización, permiten profundizar y analizar en detalle el consumo de energía, siendo una herramienta clave para optimizar su gestión y eficiencia, identificando las oportunidades de mejora y las tecnologías más eficientes para cada proceso. Valora las posibles auditorias energéticas realizadas en el pasado y apuesta por extenderlas a otros equipos y/o instalaciones.\n\n- Identifica las principales áreas de mejora y define un Plan de Ahorro y Eficiencia energética con aquellas medidas con mejor relación coste-beneficio.  El plan debe contener unos objetivos realistas de reducción del consumo energético e implantación de renovables, acciones concretas a implantar para alcanzar los objetivos definidos y un plan de inversiones para su despliegue. En caso de disponer ya un un Plan valora su actualización, especialmente si se han realizado o se van a realizar auditorías energéticas tras su implantación\n\n- Sigue implementando aquellas medidas derivadas del Plan de Ahorro y Eficiencia Energética. Entre estas medidas suelen destacar la monitorización de equipos, instalaciones y maquinaria; la adecuación de los equipos y la maquinaria a las necesidades de la actividad productiva de la empresa; la sustitución de equipos ineficientes y de alto consumo; la designación de un gestor energético; medidas para mejorar el ahorro y la eficiencia energética del propio centro de trabajo (sustitución de luminarias, mejora del aislamiento térmico, ...); la implementación de sistemas de recuperación que permitan capturar y reutilizar la energía térmica residual, entre otras.\n\n- No olvides la importancia de la formación y capacitación de todos los trabajadores en materia de ahorro y eficiencia energética, eso favorecerá su alineamiento con la política de la empresa y contribuirá a la consecución de los objetivos de descarbonización.","- Continúa realizando un control continuo de los consumos energéticos. Valora la posibilidad de incluir nuevos equipos a dicho control.\n\n- Valora la posibilidad de actualizar la auditoría energética para optimizar la gestión y eficiencia energética de la organización e identificar nuevas oportunidades de mejora y las tecnologías más eficientes para cada proceso. Analiza las auditorias energéticas realizadas en el pasado y apuesta por extenderlas a otros equipos y/o instalaciones.\n\n-  Incluye las nuevas oportunidades de mejora, con mejor relación coste beneficio, en el Plan de Ahorro y Eficiencia Energética, actualiza los objetivos del plan y las acciones concretas a implantar para alcanzar los nuevos objetivos definidos y un plan de inversiones para su despliegue. \n\n- Continúa implementando las medidas derivadas del Plan de Ahorro y Eficiencia Energética priorizando aquellas con mejor relación coste beneficio.\n\n- No olvides la importancia de la formación y capacitación de todos los trabajadores en materia de ahorro y eficiencia energética, eso favorecerá su alineamiento con la política de la empresa y contribuirá a la consecución de los objetivos de descarbonización."]
[null,null,"< 30 %","> 30 y < 70 %","> 70 %"]
["Energía renovable","Eraikuntza/ Construcción","- La implantación de renovables y la sustitución de los combustibles fósiles son elementos clave para la transición energética. \nEstudia la viabilidad de implantar el autoconsumo energético en tu empresa, lo que te permitirá reducir tu dependencia, así como reducir tu huella de carbono. Si la implantación del autoconsumo no es viable o no es suficiente para cubrir toda la demanda de energía eléctrica de tu organización, otra medida para la reducción indirecta de tú huella de carbono puede ser la contratación de energía eléctrica con garantía de origen renovable.\n\n- Valora la posibilidad de sustituir los combustibles fósiles por combustibles alternativos, por ejemplo, la sustitución de calderas de gas por otro combustible alternativo como la biomasa o por sistemas como la aerotermia.","- Estudia la viabilidad de implantar el autoconsumo energético en tu empresa o, en caso de disponer ya del mismo, extenderlo con nuevas instalaciones. Para aquella energía eléctrica que no pueda ser generada por autoconsumo valora la contratación de energía eléctrica con garantía de origen renovable .\n\n- Valora la posibilidad de sustituir los combustibles fósiles por combustibles alternativos, por ejemplo, la sustitución de calderas de gas por otro combustible alternativo como la biomasa o por sistemas como la aerotermia.","- Valora Incrementar el porcentaje de energía generada mediante el autoconsumo. Para aquella energía eléctrica que no pueda ser generada por autoconsumo valora la contratación de energía eléctrica con garantía de origen renovable .\n\n- Continúa con la sustitución de los combustibles fósiles utilizados por combustibles alternativos o, por ejemplo, la sustitución de calderas de gas por otro combustible alternativo como la biomasa o por sistemas como la aerotermia.\n"]
[null,"Papera eta kartoia/ Papel y cartón","- La implantación de renovables y la sustitución de los combustibles fósiles son elementos clave para la transición energética. \nEstudia la viabilidad de implantar el autoconsumo energético en tu empresa, lo que te permitirá reducir tu dependencia, así como reducir tu huella de carbono. Si la implantación del autoconsumo no es viable o no es suficiente para cubrir toda la demanda de energía eléctrica de tu organización, otra medida para la reducción indirecta de tú huella de carbono puede ser la contratación de energía eléctrica con garantía de origen renovable.\n\n- Valora la posibilidad de sustituir los combustibles fósiles por combustibles alternativos, por ejemplo, la sustitución de calderas de gas por otros combustibles alternativos como la biomasa o apostar por sistemas como la aerotermia. Finalmente, evalúa la viabilidad técnica y financiera de la integración de procesos de microcogeneración.","- Estudia la viabilidad de implantar el autoconsumo energético en tu empresa o, en caso de disponer ya del mismo, extenderlo con nuevas instalaciones. Para aquella energía eléctrica que no pueda ser generada por autoconsumo valora la contratación de energía eléctrica con garantía de origen renovable .\n\n- Valora, igualmente, la posibilidad de sustituir los combustibles fósiles por combustibles alternativos, por ejemplo, la sustitución de calderas de gas por otros combustibles alternativos como la biomasa o apostar por sistemas como la aerotermia. Finalmente, evalúa la viabilidad técnica y financiera de la integración de procesos de microcogeneración.","- Valora Incrementar el porcentaje de energía generada mediante el autoconsumo. Para aquella energía eléctrica que no pueda ser generada por autoconsumo valora la contratación de energía eléctrica con garantía de origen renovable .\n\n- Continúa con la sustitución de los combustibles fósiles utilizados por combustibles alternativos, por ejemplo, la sustitución de calderas de gas por otros combustibles alternativos como la biomasa o apostar por sistemas como la aerotermia. Finalmente, evalúa la viabilidad técnica y financiera de la integración de procesos de microcogeneración."]
[null,"Metalmekanikoa/ Metalmecánico","- La implantación de renovables y la sustitución de los combustibles fósiles son elementos clave para la transición energética. \nEstudia la viabilidad de implantar el autoconsumo energético en tu empresa, lo que te permitirá reducir tu dependencia, así como reducir tu huella de carbono. Si la implantación del autoconsumo no es viable o no es suficiente para cubrir toda la demanda de energía eléctrica de tu organización, otra medida para la reducción indirecta de tú huella de carbono puede ser la contratación de energía eléctrica con garantía de origen renovable.\n\n- Valora la posibilidad de sustituir los combustibles fósiles por combustibles alternativos, por ejemplo, la sustitución de calderas de gas por otros combustibles alternativos como la biomasa o apostar por sistemas como la aerotermia. ","- Estudia la viabilidad de implantar el autoconsumo energético en tu empresa o, en caso de disponer ya del mismo, extenderlo con nuevas instalaciones. Para aquella energía eléctrica que no pueda ser generada por autoconsumo valora la contratación de energía eléctrica con garantía de origen renovable .\n\n- Valora la posibilidad de sustituir los combustibles fósiles por combustibles alternativos, por ejemplo, la sustitución de calderas de gas por otros combustibles alternativos como la biomasa o apostar por sistemas como la aerotermia.","- Valora Incrementar el porcentaje de energía generada mediante el autoconsumo. Para aquella energía eléctrica que no pueda ser generada por autoconsumo valora la contratación de energía eléctrica con garantía de origen renovable .\n\n- Continúa con la sustitución de los combustibles fósiles utilizados por combustibles alternativos, por ejemplo, la sustitución de calderas de gas por otros combustibles alternativos como la biomasa o apostar por sistemas como la aerotermia."]
[null,"Makina-erreminta/ Máquina-herramienta","- La implantación de renovables y la sustitución de los combustibles fósiles son elementos clave para la transición energética. \nEstudia la viabilidad de implantar el autoconsumo energético en tu empresa, lo que te permitirá reducir tu dependencia, así como reducir tu huella de carbono. Si la implantación del autoconsumo no es viable o no es suficiente para cubrir toda la demanda de energía eléctrica de tu organización, otra medida para la reducción indirecta de tú huella de carbono puede ser la contratación de energía eléctrica con garantía de origen renovable.\n\n- Continúa con la sustitución de los combustibles fósiles utilizados por combustibles alternativos o, por ejemplo, la sustitución de calderas de gas por otro combustible alternativo como la biomasa o por sistemas como la aerotermia.","- Estudia la viabilidad de implantar el autoconsumo energético en tu empresa o, en caso de disponer ya del mismo, extenderlo con nuevas instalaciones. Para aquella energía eléctrica que no pueda ser generada por autoconsumo valora la contratación de energía eléctrica con garantía de origen renovable .\n\n- Continúa con la sustitución de los combustibles fósiles utilizados por combustibles alternativos o, por ejemplo, la sustitución de calderas de gas por otro combustible alternativo como la biomasa o por sistemas como la aerotermia.","- Valora Incrementar el porcentaje de energía generada mediante el autoconsumo. Para aquella energía eléctrica que no pueda ser generada por autoconsumo valora la contratación de energía eléctrica con garantía de origen renovable .\n\n- Continúa con la sustitución de los combustibles fósiles utilizados por combustibles alternativos, por ejemplo, valora, la sustitución de calderas de gas por otro combustible alternativo como la biomasa o por sistemas como la aerotermia.."]
[null,"Nekazaritza eta elikagai sektorea/ Agroalimentario","- La implantación de renovables y la sustitución de los combustibles fósiles son elementos clave para la transición energética. \nEstudia la viabilidad de implantar el autoconsumo energético en tu empresa, lo que te permitirá reducir tu dependencia, así como reducir tu huella de carbono. Si la implantación del autoconsumo no es viable o no es suficiente para cubrir toda la demanda de energía eléctrica de tu organización, otra medida para la reducción indirecta de tú huella de carbono puede ser la contratación de energía eléctrica con garantía de origen renovable.\n\n- Valora la posibilidad de sustituir los combustibles fósiles por combustibles alternativos, por ejemplo, la sustitución de calderas de gas por otros combustibles alternativos como la biomasa o apostar por sistemas como la aerotermia. \n\n- Finalmente, evalúa la viabilidad técnica y financiera de la integración de procesos de microcogeneración.","- Estudia la viabilidad de implantar el autoconsumo energético en tu empresa o, en caso de disponer ya del mismo, extenderlo con nuevas instalaciones. Para aquella energía eléctrica que no pueda ser generada por autoconsumo valora la contratación de energía eléctrica con garantía de origen renovable .\n\n- Valora, igualmente, la posibilidad de sustituir los combustibles fósiles por combustibles alternativos, por ejemplo, la sustitución de calderas de gas por otros combustibles alternativos como la biomasa o apostar por sistemas como la aerotermia. \n\n- Finalmente, evalúa la viabilidad técnica y financiera de la integración de procesos de microcogeneración.","- Valora Incrementar el porcentaje de energía generada mediante el autoconsumo. Para aquella energía eléctrica que no pueda ser generada por autoconsumo valora la contratación de energía eléctrica con garantía de origen renovable .\n\n- Continúa con la sustitución de los combustibles fósiles utilizados por combustibles alternativos, por ejemplo, la sustitución de calderas de gas por otros combustibles alternativos como la biomasa o apostar por sistemas como la aerotermia. \n\n- Finalmente, evalúa la viabilidad técnica y financiera de la integración de procesos de microcogeneración."]
[null,"Zerbitzuak/ Servicios","- La implantación de renovables y la sustitución de los combustibles fósiles son elementos clave para la transición energética. \nEstudia la viabilidad de implantar el autoconsumo energético en tu empresa, lo que te permitirá reducir tu dependencia, así como reducir tu huella de carbono. Si la implantación del autoconsumo no es viable o no es suficiente para cubrir toda la demanda de energía eléctrica de tu organización, otra medida para la reducción indirecta de tú huella de carbono puede ser la contratación de energía eléctrica con garantía de origen renovable.\n\n- Valora la posibilidad de sustituir los combustibles fósiles por combustibles alternativos, por ejemplo, la sustitución de calderas de gas por otro combustible alternativo como la biomasa o por sistemas como la aerotermia.","- Estudia la viabilidad de implantar el autoconsumo energético en tu empresa o, en caso de disponer ya del mismo, extenderlo con nuevas instalaciones. Para aquella energía eléctrica que no pueda ser generada por autoconsumo valora la contratación de energía eléctrica con garantía de origen renovable .\n\n- Valora la posibilidad de sustituir los combustibles fósiles por combustibles alternativos, por ejemplo, la sustitución de calderas de gas por otro combustible alternativo como la biomasa o por sistemas como la aerotermia.","- Valora Incrementar el porcentaje de energía generada mediante el autoconsumo. Para aquella energía eléctrica que no pueda ser generada por autoconsumo valora la contratación de energía eléctrica con garantía de origen renovable .\n\n- Continúa con la sustitución de los combustibles fósiles utilizados por combustibles alternativos o, por ejemplo, la sustitución de calderas de gas por otro combustible alternativo como la biomasa o por sistemas como la aerotermia."]
[null,"Beste batzuk/ Otros","- La implantación de renovables y la sustitución de los combustibles fósiles son elementos clave para la transición energética. \nEstudia la viabilidad de implantar el autoconsumo energético en tu empresa, lo que te permitirá reducir tu dependencia, así como reducir tu huella de carbono. Si la implantación del autoconsumo no es viable o no es suficiente para cubrir toda la demanda de energía eléctrica de tu organización, otra medida para la reducción indirecta de tú huella de carbono puede ser la contratación de energía eléctrica con garantía de origen renovable.\n\n- Valora la posibilidad de sustituir los combustibles fósiles por combustibles alternativos, por ejemplo, la sustitución de calderas de gas por otros combustibles alternativos como la biomasa o apostar por sistemas como la aerotermia. ","- Estudia la viabilidad de implantar el autoconsumo energético en tu empresa o, en caso de disponer ya del mismo, extenderlo con nuevas instalaciones. Para aquella energía eléctrica que no pueda ser generada por autoconsumo valora la contratación de energía eléctrica con garantía de origen renovable .\n\n- Valora la posibilidad de sustituir los combustibles fósiles por combustibles alternativos, por ejemplo, la sustitución de calderas de gas por otros combustibles alternativos como la biomasa o apostar por sistemas como la aerotermia.","- Valora Incrementar el porcentaje de energía generada mediante el autoconsumo. Para aquella energía eléctrica que no pueda ser generada por autoconsumo valora la contratación de energía eléctrica con garantía de origen renovable .\n\n- Continúa con la sustitución de los combustibles fósiles utilizados por combustibles alternativos, por ejemplo, la sustitución de calderas de gas por otros combustibles alternativos como la biomasa o apostar por sistemas como la aerotermia."]
[null,null,"< 35 %","> 35 y < 70 %","> 70 %"]
["Logística y movilidad sostenible","Eraikuntza/ Construcción","- Las emisiones del transporte debidas al consumo de combustibles fósiles son una fuente muy importante de emisiones de gases de efecto invernadero. Por ello, puedes actuar directamente sobre la flota actual de vehículos de la organización, analizando la viabilidad de sustituir los combustibles fósiles por combustibles alternativos y, cuando corresponda renovar la flota, incluyendo criterios que favorezcan los vehículos que consuman combustibles alternativos, como, por ejemplo, priorizando los eléctricos, híbridos, …. Así mismo, puedes actuar sobre el transporte de mercancías contratado, valorando aquellos que ofrezcan servicios de movilidad sostenible o uso de combustibles alternativos.\n\n- Implanta medidas que ayuden a descarbonizar los desplazamientos del personal al centro de trabajo. Analiza junto al personal las medidas que pueden impulsar una movilidad sostenible, como, por ejemplo, uso de la bicicleta, el transporte público, el transporte compartido, teletrabajo…","- Avanza en la descarbonización actuando directamente sobre la flota actual de vehículos de la organización, analizando la viabilidad de sustituir los combustibles fósiles por combustibles alternativos y, cuando corresponda renovar la flota,  incluyendo criterios que favorezcan los vehículos que consuman combustibles alternativos, como, por ejemplo, priorizando los eléctricos, híbridos, … Así mismo, puedes actuar sobre el transporte de mercancías contratado, valorando aquellos que ofrezcan servicios de movilidad sostenible o uso de combustibles alternativos.\n\n- Implanta o incrementa medidas que ayuden a descarbonizar los desplazamientos del personal al centro de trabajo. Analiza junto al personal las medidas que pueden impulsar una movilidad sostenible, como, por ejemplo, uso de la bicicleta, el transporte público, el transporte compartido, teletrabajo… ","- Avanza en la descarbonización incrementando el porcentaje de vehículos sostenibles dentro de la flota de la organización, ya sea propia o subcontratada. Analiza la viabilidad de sustituir, los combustibles fósiles por combustibles alternativos en aquellos vehículos de la flota que todavía hagan uso de los mismos.\n\n- Implanta o incrementa en la descarbonización de los desplazamientos del personal al centro de trabajo. Analiza junto al personal nuevas medidas que pueden impulsar una movilidad sostenible, como, por ejemplo, uso de la bicicleta, el transporte público, el transporte compartido, teletrabajo… "]
[null,"Papera eta kartoia/ Papel y cartón","- Las emisiones del transporte debidas al consumo de combustibles fósiles son una fuente muy importante de emisiones de gases de efecto invernadero. Por ello, puedes actuar directamente sobre la flota actual de vehículos de la organización, analizando la viabilidad de sustituir los combustibles fósiles por combustibles alternativos y, cuando corresponda renovar la flota, incluyendo criterios que favorezcan los vehículos que consuman combustibles alternativos, como, por ejemplo, priorizando los eléctricos, híbridos, …. Así mismo, puedes actuar sobre el transporte de mercancías contratado, valorando aquellos que ofrezcan servicios de movilidad sostenible o uso de combustibles alternativos.\n\n- Implanta medidas que ayuden a descarbonizar los desplazamientos del personal al centro de trabajo. Analiza junto al personal las medidas que pueden impulsar una movilidad sostenible, como, por ejemplo, uso de la bicicleta, el transporte público, el transporte compartido, teletrabajo…","- Avanza en la descarbonización actuando directamente sobre la flota actual de vehículos de la organización, analizando la viabilidad de sustituir los combustibles fósiles por combustibles alternativos y, cuando corresponda renovar la flota,  incluyendo criterios que favorezcan los vehículos que consuman combustibles alternativos, como, por ejemplo, priorizando los eléctricos, híbridos, … Así mismo, puedes actuar sobre el transporte de mercancías contratado, valorando aquellos que ofrezcan servicios de movilidad sostenible o uso de combustibles alternativos.\n\n- Implanta o incrementa medidas que ayuden a descarbonizar los desplazamientos del personal al centro de trabajo. Analiza junto al personal las medidas que pueden impulsar una movilidad sostenible, como, por ejemplo, uso de la bicicleta, el transporte público, el transporte compartido, teletrabajo…","- Avanza en la descarbonización incrementando el porcentaje de vehículos sostenibles dentro de la flota de la organización, ya sea propia o subcontratada. Analiza la viabilidad de sustituir, los combustibles fósiles por combustibles alternativos en aquellos vehículos de la flota que todavía hagan uso de los mismos.\n\n- Implanta o incrementa en la descarbonización de los desplazamientos del personal al centro de trabajo. Analiza junto al personal nuevas medidas que pueden impulsar una movilidad sostenible, como, por ejemplo, uso de la bicicleta, el transporte público, el transporte compartido, teletrabajo… "]
[null,"Metalmekanikoa/ Metalmecánico","- Las emisiones del transporte debidas al consumo de combustibles fósiles son una fuente muy importante de emisiones de gases de efecto invernadero. Por ello, puedes actuar directamente sobre la flota actual de vehículos de la organización, analizando la viabilidad de sustituir los combustibles fósiles por combustibles alternativos y, cuando corresponda renovar la flota, incluyendo criterios que favorezcan los vehículos que consuman combustibles alternativos, como, por ejemplo, priorizando los eléctricos, híbridos, …. Así mismo, puedes actuar sobre el transporte de mercancías contratado, valorando aquellos que ofrezcan servicios de movilidad sostenible o uso de combustibles alternativos.\n\n- Implanta medidas que ayuden a descarbonizar los desplazamientos del personal al centro de trabajo. Analiza junto al personal las medidas que pueden impulsar una movilidad sostenible, como, por ejemplo, uso de la bicicleta, el transporte público, el transporte compartido, teletrabajo…","- Avanza en la descarbonización actuando directamente sobre la flota actual de vehículos de la organización, analizando la viabilidad de sustituir los combustibles fósiles por combustibles alternativos y, cuando corresponda renovar la flota,  incluyendo criterios que favorezcan los vehículos que consuman combustibles alternativos, como, por ejemplo, priorizando los eléctricos, híbridos, … Así mismo, puedes actuar sobre el transporte de mercancías contratado, valorando aquellos que ofrezcan servicios de movilidad sostenible o uso de combustibles alternativos.\n\n- Implanta o incrementa medidas que ayuden a descarbonizar los desplazamientos del personal al centro de trabajo. Analiza junto al personal las medidas que pueden impulsar una movilidad sostenible, como, por ejemplo, uso de la bicicleta, el transporte público, el transporte compartido, teletrabajo… \n\n- Redefinir el embalaje de los productos a través del ecodiseño también puede ser una fuente para reducir el peso, facilitar el transporte y reducir las emisiones asociadas al mismo y facilitar la gestión y reciclaje de los residuos que genera. ","- Avanza en la descarbonización incrementando el porcentaje de vehículos sostenibles dentro de la flota de la organización, ya sea propia o subcontratada. Analiza la viabilidad de sustituir, los combustibles fósiles por combustibles alternativos en aquellos vehículos de la flota que todavía hagan uso de los mismos.\n\n- Implanta o incrementa en la descarbonización de los desplazamientos del personal al centro de trabajo. Analiza junto al personal nuevas medidas que pueden impulsar una movilidad sostenible, como, por ejemplo, uso de la bicicleta, el transporte público, el transporte compartido, teletrabajo… \n\n- Redefinir el embalaje de los productos a través del ecodiseño también puede ser una fuente de reducir lo peso, las emisiones del transporte asociado a ello y facilitar la gestión y reciclaje de los residuos que genera. "]
[null,"Makina-erreminta/ Máquina-herramienta","- Las emisiones del transporte debidas al consumo de combustibles fósiles son una fuente muy importante de emisiones de gases de efecto invernadero. Por ello, puedes actuar directamente sobre la flota actual de vehículos de la organización, analizando la viabilidad de sustituir los combustibles fósiles por combustibles alternativos y, cuando corresponda renovar la flota, incluyendo criterios que favorezcan los vehículos que consuman combustibles alternativos, como, por ejemplo, priorizando los eléctricos, híbridos, …. Así mismo, puedes actuar sobre el transporte de mercancías contratado, valorando aquellos que ofrezcan servicios de movilidad sostenible o uso de combustibles alternativos.\n\n- Implanta medidas que ayuden a descarbonizar los desplazamientos del personal al centro de trabajo. Analiza junto al personal las medidas que pueden impulsar una movilidad sostenible, como, por ejemplo, uso de la bicicleta, el transporte público, el transporte compartido, teletrabajo…","- Avanza en la descarbonización actuando directamente sobre la flota actual de vehículos de la organización, analizando la viabilidad de sustituir los combustibles fósiles por combustibles alternativos y, cuando corresponda renovar la flota,  incluyendo criterios que favorezcan los vehículos que consuman combustibles alternativos, como, por ejemplo, priorizando los eléctricos, híbridos, … Así mismo, puedes actuar sobre el transporte de mercancías contratado, valorando aquellos que ofrezcan servicios de movilidad sostenible o uso de combustibles alternativos.\n\n- Implanta o incrementa medidas que ayuden a descarbonizar los desplazamientos del personal al centro de trabajo. Analiza junto al personal las medidas que pueden impulsar una movilidad sostenible, como, por ejemplo, uso de la bicicleta, el transporte público, el transporte compartido, teletrabajo… \n\n- Redefinir el embalaje de los productos a través del ecodiseño también puede ser una fuente para reducir el peso, facilitar el transporte y reducir las emisiones asociadas al mismo y facilitar la gestión y reciclaje de los residuos que genera. ","- Avanza en la descarbonización incrementando el porcentaje de vehículos sostenibles dentro de la flota de la organización, ya sea propia o subcontratada. Analiza la viabilidad de sustituir, los combustibles fósiles por combustibles alternativos en aquellos vehículos de la flota que todavía hagan uso de los mismos.\n\n- Implanta o incrementa en la descarbonización de los desplazamientos del personal al centro de trabajo. Analiza junto al personal nuevas medidas que pueden impulsar una movilidad sostenible, como, por ejemplo, uso de la bicicleta, el transporte público, el transporte compartido, teletrabajo… \n\n- Redefinir el embalaje de los productos a través del ecodiseño también puede ser una fuente de reducir lo peso, las emisiones del transporte asociado a ello y facilitar la gestión y reciclaje de los residuos que genera. "]
[null,"Nekazaritza eta elikagai sektorea/ Agroalimentario","- Las emisiones del transporte debidas al consumo de combustibles fósiles son una fuente muy importante de emisiones de gases de efecto invernadero. Por ello, puedes actuar directamente sobre la flota actual de vehículos de la organización, analizando la viabilidad de sustituir los combustibles fósiles por combustibles alternativos y, cuando corresponda renovar la flota, incluyendo criterios que favorezcan los vehículos que consuman combustibles alternativos, como, por ejemplo, priorizando los eléctricos, híbridos, …. Así mismo, puedes actuar sobre el transporte de mercancías contratado, valorando aquellos que ofrezcan servicios de movilidad sostenible o uso de combustibles alternativos.\n\n- Implanta medidas que ayuden a descarbonizar los desplazamientos del personal al centro de trabajo. Analiza junto al personal las medidas que pueden impulsar una movilidad sostenible, como, por ejemplo, uso de la bicicleta, el transporte público, el transporte compartido, teletrabajo…","- Avanza en la descarbonización actuando directamente sobre la flota actual de vehículos de la organización, analizando la viabilidad de sustituir los combustibles fósiles por combustibles alternativos y, cuando corresponda renovar la flota,  incluyendo criterios que favorezcan los vehículos que consuman combustibles alternativos, como, por ejemplo, priorizando los eléctricos, híbridos, … Así mismo, puedes actuar sobre el transporte de mercancías contratado, valorando aquellos que ofrezcan servicios de movilidad sostenible o uso de combustibles alternativos.\n\n- Implanta o incrementa medidas que ayuden a descarbonizar los desplazamientos del personal al centro de trabajo. Analiza junto al personal las medidas que pueden impulsar una movilidad sostenible, como, por ejemplo, uso de la bicicleta, el transporte público, el transporte compartido, teletrabajo… \n\n- Redefinir el embalaje de los productos a través del ecodiseño también puede ser una fuente para reducir el peso, facilitar el transporte y reducir las emisiones asociadas al mismo y facilitar la gestión y reciclaje de los residuos que genera. ","- Avanza en la descarbonización incrementando el porcentaje de vehículos sostenibles dentro de la flota de la organización, ya sea propia o subcontratada. Analiza la viabilidad de sustituir, los combustibles fósiles por combustibles alternativos en aquellos vehículos de la flota que todavía hagan uso de los mismos.\n\n- Implanta o incrementa en la descarbonización de los desplazamientos del personal al centro de trabajo. Analiza junto al personal nuevas medidas que pueden impulsar una movilidad sostenible, como, por ejemplo, uso de la bicicleta, el transporte público, el transporte compartido, teletrabajo… \n\n- Redefinir el embalaje de los productos a través del ecodiseño también puede ser una fuente de reducir lo peso, las emisiones del transporte asociado a ello y facilitar la gestión y reciclaje de los residuos que genera. "]
[null,"Zerbitzuak/ Servicios","- Las emisiones del transporte debidas al consumo de combustibles fósiles son una fuente muy importante de emisiones de gases de efecto invernadero. En caso de disponer de algún vehículo para realizar abastecimiento de suministros o para el reparto, estudiar, en caso de renovación, incluir criterios de descarbonización y reducción de emisiones en la selección de vehículos (priorizar vehículos eléctricos, híbridos, GLP, de combustibles descarbonizados, …) y optimizar la carga del mismo.. Así mismo, puedes actuar sobre el transporte de mercancías contratado, valorando aquellos que ofrezcan servicios de movilidad sostenible o uso de combustibles alternativos.\n\n- Implanta medidas que ayuden a descarbonizar los desplazamientos del personal al centro de trabajo. Analiza junto al personal las medidas que pueden impulsar una movilidad sostenible, como, por ejemplo, uso de la bicicleta, el transporte público, el transporte compartido, teletrabajo…\n\n","- Avanza en la descarbonización incrementando el porcentaje de vehículos sostenibles dentro de la flota de la organización, ya sea propia o subcontratada. Analiza la viabilidad de sustituir, los combustibles fósiles por combustibles alternativos en aquellos vehículos de la flota que todavía hagan uso de los mismos.\n\n- Implanta o incrementa medidas que ayuden a descarbonizar los desplazamientos del personal al centro de trabajo. Analiza junto al personal las medidas que pueden impulsar una movilidad sostenible, como, por ejemplo, uso de la bicicleta, el transporte público, el transporte compartido, teletrabajo… \n\n","- Avanza en la descarbonización incrementando el porcentaje de vehículos sostenibles dentro de la flota de la organización, ya sea propia o subcontratada. Analiza la viabilidad de sustituir, los combustibles fósiles por combustibles alternativos en aquellos vehículos de la flota que todavía hagan uso de los mismos.\n\n- Implanta o incrementa en la descarbonización de los desplazamientos del personal al centro de trabajo. Analiza junto al personal nuevas medidas que pueden impulsar una movilidad sostenible, como, por ejemplo, uso de la bicicleta, el transporte público, el transporte compartido, teletrabajo… "]
[null,"Beste batzuk/ Otros","- Las emisiones del transporte debidas al consumo de combustibles fósiles son una fuente muy importante de emisiones de gases de efecto invernadero. Por ello, puedes actuar directamente sobre la flota actual de vehículos de la organización, analizando la viabilidad de sustituir los combustibles fósiles por combustibles alternativos y, cuando corresponda renovar la flota, incluyendo criterios que favorezcan los vehículos que consuman combustibles alternativos, como, por ejemplo, priorizando los eléctricos, híbridos, …. Así mismo, puedes actuar sobre el transporte de mercancías contratado, valorando aquellos que ofrezcan servicios de movilidad sostenible o uso de combustibles alternativos.\n\n- Implanta medidas que ayuden a descarbonizar los desplazamientos del personal al centro de trabajo. Analiza junto al personal las medidas que pueden impulsar una movilidad sostenible, como, por ejemplo, uso de la bicicleta, el transporte público, el transporte compartido, teletrabajo…","- Avanza en la descarbonización actuando directamente sobre la flota actual de vehículos de la organización, analizando la viabilidad de sustituir los combustibles fósiles por combustibles alternativos y, cuando corresponda renovar la flota,  incluyendo criterios que favorezcan los vehículos que consuman combustibles alternativos, como, por ejemplo, priorizando los eléctricos, híbridos, … Así mismo, puedes actuar sobre el transporte de mercancías contratado, valorando aquellos que ofrezcan servicios de movilidad sostenible o uso de combustibles alternativos.\n\n- Implanta o incrementa medidas que ayuden a descarbonizar los desplazamientos del personal al centro de trabajo. Analiza junto al personal las medidas que pueden impulsar una movilidad sostenible, como, por ejemplo, uso de la bicicleta, el transporte público, el transporte compartido, teletrabajo… \n\n- Redefinir el embalaje de los productos a través del ecodiseño también puede ser una fuente para reducir el peso, facilitar el transporte y reducir las emisiones asociadas al mismo y facilitar la gestión y reciclaje de los residuos que genera. ","- Avanza en la descarbonización incrementando el porcentaje de vehículos sostenibles dentro de la flota de la organización, ya sea propia o subcontratada. Analiza la viabilidad de sustituir, los combustibles fósiles por combustibles alternativos en aquellos vehículos de la flota que todavía hagan uso de los mismos.\n\n- Implanta o incrementa en la descarbonización de los desplazamientos del personal al centro de trabajo. Analiza junto al personal nuevas medidas que pueden impulsar una movilidad sostenible, como, por ejemplo, uso de la bicicleta, el transporte público, el transporte compartido, teletrabajo… \n\n- Redefinir el embalaje de los productos a través del ecodiseño también puede ser una fuente de reducir lo peso, las emisiones del transporte asociado a ello y facilitar la gestión y reciclaje de los residuos que genera. "]
[null,null,"< 30 %","> 30 y < 70 %","> 70 %"]
["Economía circular","Eraikuntza/ Construcción","- Reduce el consumo de recursos y la generación de residuos mediante la implantación de la economía circular. La economía circular es, junto con la transición energética, uno de los pilares para la descarbonización de una organización. Establecer un plan de circularidad favorecerá la reducción del consumo de recursos (materiales y energéticos) y la minimización de generación de residuos, lo que se traduce en una reducción de la emisión de gases de efecto invernadero, de los impactos ambientales y de los costos de producción, mientras que se incrementa la capacidad adaptativa y competitiva de la organización. \n\n- Incluye criterios de sostenibilidad ambiental en la selección de proveedores, bienes y servicios considerando toda la cadena de suministro y favoreciendo aquellos ambientalmente sostenibles. Optimiza los inventarios para evitar o reducir los excedentes.\n\n- Realiza una gestión responsable de los residuos de construcción y demolición.\n\n- Reduce el consumo de agua en obra y en el centro de trabajo.\n\nEn el caso del sector de la construcción también es muy importante descarbonizar el uso del producto, es decir, la propia construcción:\n\n- En caso de poder influir en el diseño del proyecto, implementar el ecodiseño y el concepto de arquitectuta bioclimática, te ayudará a optimizar, desde la fase de diseño, el consumo de recursos materiales y energéticos y reducir la cantidad de residuos generados durante la fase de obra, la fase de uso y la fase de desmantelamiento o demolición de la construcción o rehabilitación. El ecodiseño puede definirse como el proceso de integración de consideraciones ambientales en el diseño y desarrollo de los productos con el objetivo de reducir los impactos ambientales de estos a lo largo de todo su ciclo de vida, equilibrando los requisitos ecológicos y económicos. Es una base de la economía circular, pues es el origen de la cadena de reciclaje y permite minimizar el consumo de recursos, así como de emisiones, residuos y vertidos.\n\n- Incrementa el uso de materiales sostenibles en la construcción, haciendo uso de materiales reciclados de otras obras, cementos y hormigones bajos en carbono, sustituir materiales con elevado impacto ambiental, ...y minimiza el consumo de agua sanitaria y el consumo energético para ACS en los proyectos.\n\n- Finalmente, realizar un Análisis de Ciclo de Vida te permitirá conocer todos los impactos ambientales de las nuevas construcción, rehabilitaciones o reformas llevadas a cabo a lo largo de todo su ciclo de vida. Esto facilita la implementación de medidas que minimicen esos impactos.\n","- Continúa reduciendo el consumo de recursos y la generación de residuos mediante la economía circular. La economía circular es, junto con la transición energética, uno de los pilares para la descarbonización de una organización. Establecer un Plan de Circularidad ayudará a reducir el consumo de recursos (materiales y energéticos) y a minimizar de generación de residuos, lo que se traduce en una reducción de la emisión de gases de efecto invernadero, de los impactos ambientales y de los costos de producción, mientras que se incrementa la capacidad adaptativa y competitiva de la organización. Si la organización ya tiene un Plan de Circularidad valora su actualización considerando el contexto actual del sector, las nuevas tecnologías disponibles y las nuevas exigencias del mercado.\n\n- Incluye o incrementa criterios de sostenibilidad ambiental en la selección de proveedores, bienes y servicios considerando toda la cadena de suministro y favoreciendo aquellos ambientalmente sostenibles. Optimiza los inventarios para evitar o reducir los excedentes.\n\n- Realiza una gestión responsable de los residuos de construcción y demolición y reduce el consumo de agua en obra y en el centro de trabajo.\n\nEn el caso del sector de la construcción también es muy importante descarbonizar el uso del producto, es decir, la propia construcción:\n\n- En caso de poder influir en el diseño del proyecto, implementar el ecodiseño y el concepto de arquitectuta bioclimática, te ayudará a optimizar, desde la fase de diseño, el consumo de recursos materiales y energéticos y reducir la cantidad de residuos generados durante la fase de obra, la fase de uso y la fase de desmantelamiento o demolición de la construcción o rehabilitación. El ecodiseño puede definirse como el proceso de integración de consideraciones ambientales en el diseño y desarrollo de los productos con el objetivo de reducir los impactos ambientales de estos a lo largo de todo su ciclo de vida, equilibrando los requisitos ecológicos y económicos. Es una base de la economía circular, pues es el origen de la cadena de reciclaje y permite minimizar el consumo de recursos, así como de emisiones, residuos y vertidos. En caso de tener implantado ya el ecodiseño realiza benchmarking y valora el asesoramiento externo para seguir optimizando el producto y su proceso de producción.\n\n- Incrementa el uso de materiales sostenibles en la construcción, haciendo uso de materiales reciclados de otras obras, cementos y hormigones bajos en carbono, sustituir materiales con elevado impacto ambiental, ...y minimiza el consumo de agua sanitaria y el consumo energético para ACS en los proyectos.\n\n- Finalmente, realizar un Análisis de Ciclo de Vida te permitirá conocer todos los impactos ambientales de las nuevas construcción, rehabilitaciones o reformas llevadas a cabo a lo largo de todo su ciclo de vida, lo que facilita la implementación de medidas que minimicen esos impactos.","- Mantén tu compromiso con la economía circular y continúa reduciendo el consumo de recursos y la generación de residuos. Valora la actualización del Plan de Circularidad considerando el contexto actual del sector, las nuevas tecnologías disponibles y las nuevas exigencias del mercado.\n\n- Incluye o incrementa criterios de sostenibilidad ambiental en la selección de proveedores, bienes y servicios considerando toda la cadena de suministro y favoreciendo aquellos ambientalmente sostenibles. Optimiza los inventarios para evitar o reducir los excedentes.\n\n- Realiza una gestión responsable de los residuos de construcción y demolición y reduce el consumo de agua en obra y en el centro de trabajo.\n\nEn el caso del sector de la construcción también es muy importante descarbonizar el uso del producto, es decir, la propia construcción:\n\n- En caso de poder influir en el diseño del proyecto, implementar el ecodiseño y el concepto de arquitectuta bioclimática, te ayudará a optimizar el consumo de recursos materiales y energéticos y reducir la cantidad de residuos generados durante la fase de obra, la fase de uso y la fase de desmantelamiento o demolición de la construcción o rehabilitación. En caso de tener implantado ya el ecodiseño realiza benchmarking y valora el asesoramiento externo para seguir optimizando la construcción.\n\n- Incrementa el uso de materiales sostenibles en la construcción, haciendo uso de materiales reciclados de otras obras, cementos y hormigones bajos en carbono, sustituir materiales con elevado impacto ambiental, ...y minimiza el consumo de agua sanitaria y el consumo energético para ACS en los proyectos.\n\n- Finalmente, realizar un Análisis de Ciclo de Vida te permitirá conocer todos los impactos ambientales de las nuevas construcción, rehabilitaciones o reformas llevadas a cabo a lo largo de todo su ciclo de vida, lo que facilita la implementación de medidas que minimicen esos impactos."]
[null,"Papera eta kartoia/ Papel y cartón","- Reduce el consumo de recursos y la generación de residuos mediante la implantación de la economía circular. La economía circular es, junto con la transición energética, uno de los pilares para la descarbonización de una organización. Establecer un plan de circularidad favorecerá la reducción del consumo de recursos (materiales y energéticos) y la minimización de generación de residuos, lo que se traduce en una reducción de la emisión de gases de efecto invernadero, de los impactos ambientales y de los costos de producción, mientras que se incrementa la capacidad adaptativa y competitiva de la organización. \n\n- En caso de poder influir en el diseño de los productos fabricados, implementar el ecodiseño te ayudará a optimizar, desde la fase de diseño, el producto y su proceso de producción minimizando el consumo de recursos y la generación de residuos. El ecodiseño puede definirse como el proceso de integración de consideraciones ambientales en el diseño y desarrollo de los productos con el objetivo de reducir los impactos ambientales de estos a lo largo de todo su ciclo de vida, equilibrando los requisitos ecológicos y económicos. Es una base de la economía circular, pues es el origen de la cadena de reciclaje y permite minimizar el consumo de recursos, así como de emisiones, residuos y vertidos. Según el Nuevo Plan de acción para la economía circular por una Europa más limpia y más competitiva, \"hasta el 80 % de los impactos ambientales de los productos se determina en la fase de diseño\". Redefinir el embalaje de los productos a través del ecodiseño también puede ser una fuente para facilitar el transporte de mercancías y reducir las emisiones asociadas al mismo, así como facilitar la gestión y reciclaje de los residuos que genera. \n\n- Incluye criterios de sostenibilidad ambiental en la selección de proveedores, bienes y servicios considerando toda la cadena de suministro y favoreciendo aquellos ambientalmente sostenibles. Utiliza materiales sostenibles como materia prima priorizando los reciclados, bosques con certificados de gestión forestal sostenible o de fuentes alternativas de fibra como fibras vegetales no maderables.\n\n- Otras medidas importantes dentro de la estrategia de economía circular son la minimización de sustancias peligrosas (evitar tintas incluidas en el listado de la EuPIA) o la gestión responsable de los residuos.\n\n- Finalmente, realizar un Análisis de Ciclo de Vida te permitirá conocer todos los impactos ambientales de un producto o servicio a lo largo de todo su ciclo de vida. Esto facilita la implementación de medidas que minimicen esos impactos.\n","- Continúa reduciendo el consumo de recursos y la generación de residuos mediante la economía circular. La economía circular es, junto con la transición energética, uno de los pilares para la descarbonización de una organización. Establecer un Plan de Circularidad ayudará a reducir el consumo de recursos (materiales y energéticos) y a minimizar de generación de residuos, lo que se traduce en una reducción de la emisión de gases de efecto invernadero, de los impactos ambientales y de los costos de producción, mientras que se incrementa la capacidad adaptativa y competitiva de la organización. Si la organización ya tiene un Plan de Circularidad valora su actualización considerando el contexto actual del sector, las nuevas tecnologías disponibles y las nuevas exigencias del mercado.\n\n- En caso de poder influir en el diseño de los productos fabricados, implementar el ecodiseño te ayudará a optimizar, desde la fase de diseño, el producto y su proceso de producción minimizando el consumo de recursos y la generación de residuos. El ecodiseño puede definirse como el proceso de integración de consideraciones ambientales en el diseño y desarrollo de los productos con el objetivo de reducir los impactos ambientales de estos a lo largo de todo su ciclo de vida, equilibrando los requisitos ecológicos y económicos. Es una base de la economía circular, pues es el origen de la cadena de reciclaje y permite minimizar el consumo de recursos, así como de emisiones, residuos y vertidos. Según el Nuevo Plan de acción para la economía circular por una Europa más limpia y más competitiva, \"hasta el 80 % de los impactos ambientales de los productos se determina en la fase de diseño\". En caso de tener implantado ya el ecodiseño realiza benchmarking y valora el asesoramiento externo para seguir optimizando el producto y su proceso de producción.\n\n- Incluye o añade criterios de sostenibilidad ambiental en la selección de proveedores, bienes y servicios considerando toda la cadena de suministro y favoreciendo aquellos ambientalmente sostenibles. Incrementa el uso de materiales sostenibles como materia prima priorizando los reciclados, bosques con certificados de gestión forestal sostenible o de fuentes alternativas de fibra como fibras vegetales no maderables.\n\n- Otras medidas importantes dentro de la estrategia de economía circular son la minimización de sustancias peligrosas (evitar tintas incluidas en el listado de la EuPIA) o la gestión responsable de los residuos.\n\n- Realizar un Análisis de Ciclo de Vida te permitirá conocer todos los impactos ambientales de un producto o servicio a lo largo de todo su ciclo de vida. Esto facilita la implementación de medidas que minimicen esos impactos.","- Mantén tu compromiso con la economía circular y continúa reduciendo el consumo de recursos y la generación de residuos. Valora la actualización del Plan de Circularidad considerando el contexto actual del sector, las nuevas tecnologías disponibles y las nuevas exigencias del mercado.\n\n- En caso de poder influir en el diseño de los productos fabricados, avanza en el ecodiseño mediante el benchmarking y el asesoramiento externo para seguir optimizando el producto y su proceso de producción.\n\n- Continúa priorizando y, en la medida de lo posible, incrementa el uso de materiales sostenibles como materia prima como los reciclados, bosques con certificados de gestión forestal sostenible o de fuentes alternativas de fibra como fibras vegetales no maderables.\n\n- Otras medidas importantes dentro de la estrategia de economía circular son la incorporación de criterios de sostenibilidad en la selección de proveedores, la minimización de sustancias peligrosas (evitar tintas incluidas en el listado de la EuPIA) o la gestión responsable de los residuos.\n\n- Como ya sabes, realizar un Análisis de Ciclo de Vida te permite conocer todos los impactos ambientales de un producto o servicio a lo largo de todo su ciclo de vida. Esto facilita la implementación de medidas que minimicen esos impactos."]
[null,"Metalmekanikoa/ Metalmecánico","- Reduce el consumo de recursos y la generación de residuos mediante la implantación de la economía circular. La economía circular es, junto con la transición energética, uno de los pilares para la descarbonización de una organización. Establecer un plan de circularidad favorecerá la reducción del consumo de recursos (materiales y energéticos) y la minimización de generación de residuos, lo que se traduce en una reducción de la emisión de gases de efecto invernadero, de los impactos ambientales y de los costos de producción, mientras que se incrementa la capacidad adaptativa y competitiva de la organización. \n\n- En caso de poder influir en el diseño de los productos fabricados, implementar el ecodiseño te ayudará a optimizar, desde la fase de diseño, el producto y su proceso de producción minimizando el consumo de recursos y la generación de residuos. El ecodiseño puede definirse como el proceso de integración de consideraciones ambientales en el diseño y desarrollo de los productos con el objetivo de reducir los impactos ambientales de estos a lo largo de todo su ciclo de vida, equilibrando los requisitos ecológicos y económicos. Es una base de la economía circular, pues es el origen de la cadena de reciclaje y permite minimizar el consumo de recursos, así como de emisiones, residuos y vertidos. Según el Nuevo Plan de acción para la economía circular por una Europa más limpia y más competitiva, \"hasta el 80 % de los impactos ambientales de los productos se determina en la fase de diseño\". \n\n- Incluye criterios de sostenibilidad ambiental en la selección de proveedores, bienes y servicios considerando toda la cadena de suministro y favoreciendo aquellos ambientalmente sostenibles. Cuando las especificaciones lo permitan, utiliza materiales reciclados.\n\n- Otras medidas importantes dentro de la estrategia de economía circular son la minimización de sustancias peligrosas o la gestión responsable de los residuos generados como chatarras, fluidos de corte, aceites o desengrasantes.\n\n- Finalmente, realizar un Análisis de Ciclo de Vida te permitirá conocer todos los impactos ambientales de un producto o servicio a lo largo de todo su ciclo de vida. Esto facilita la implementación de medidas que minimicen esos impactos.\n","- Continúa reduciendo el consumo de recursos y la generación de residuos mediante la economía circular. La economía circular es, junto con la transición energética, uno de los pilares para la descarbonización de una organización. Establecer un Plan de Circularidad ayudará a reducir el consumo de recursos (materiales y energéticos) y a minimizar de generación de residuos, lo que se traduce en una reducción de la emisión de gases de efecto invernadero, de los impactos ambientales y de los costos de producción, mientras que se incrementa la capacidad adaptativa y competitiva de la organización. Si la organización ya tiene un Plan de Circularidad valora su actualización considerando el contexto actual del sector, las nuevas tecnologías disponibles y las nuevas exigencias del mercado.\n\n- En caso de poder influir en el diseño de los productos fabricados, implementar el ecodiseño te ayudará a optimizar, desde la fase de diseño, el producto y su proceso de producción minimizando el consumo de recursos y la generación de residuos. El ecodiseño puede definirse como el proceso de integración de consideraciones ambientales en el diseño y desarrollo de los productos con el objetivo de reducir los impactos ambientales de estos a lo largo de todo su ciclo de vida, equilibrando los requisitos ecológicos y económicos. Es una base de la economía circular, pues es el origen de la cadena de reciclaje y permite minimizar el consumo de recursos, así como de emisiones, residuos y vertidos. Según el Nuevo Plan de acción para la economía circular por una Europa más limpia y más competitiva, \"hasta el 80 % de los impactos ambientales de los productos se determina en la fase de diseño\". En caso de tener implantado ya el ecodiseño realiza benchmarking y valora el asesoramiento externo para seguir optimizando el producto y su proceso de producción.\n\n- Incluye o añade criterios de sostenibilidad ambiental en la selección de proveedores, bienes y servicios considerando toda la cadena de suministro y favoreciendo aquellos ambientalmente sostenibles. Incrementa el uso de materiales sostenibles como materia prima priorizando el material reciclado cuando las especificaciones lo permitan.\n\n- Otras medidas importantes dentro de la estrategia de economía circular son la minimización de sustancias peligrosas o la gestión responsable de los residuos generados como chatarras, fluidos de corte, aceites o desengrasantes.\n\n- Realizar un Análisis de Ciclo de Vida te permitirá conocer todos los impactos ambientales de un producto o servicio a lo largo de todo su ciclo de vida. Esto facilita la implementación de medidas que minimicen esos impactos.","- Mantén tu compromiso con la economía circular y continúa reduciendo el consumo de recursos y la generación de residuos. Valora la actualización del Plan de Circularidad considerando el contexto actual del sector, las nuevas tecnologías disponibles y las nuevas exigencias del mercado.\n\n- En caso de poder influir en el diseño de los productos fabricados, avanza en el ecodiseño mediante el benchmarking y el asesoramiento externo para seguir optimizando el producto y su proceso de producción.\n\n- Incrementa o incluye criterios de sostenibilidad ambiental en la selección de proveedores, bienes y servicios, considerando toda la cadena de suministro. Prioriza el uso de materiales sostenibles como materia prima como las materias primas recicladas cuando las especificaciones del producto lo permitan.\n\n- Otras medidas importantes dentro de la estrategia de economía circular son la minimización de sustancias peligrosas o la gestión responsable de los residuos generados como chatarras, fluidos de corte, aceites o desengrasantes.\n\n- Como ya sabes, realizar un Análisis de Ciclo de Vida te permite conocer todos los impactos ambientales de un producto o servicio a lo largo de todo su ciclo de vida. Esto facilita la implementación de medidas que minimicen esos impactos."]
[null,"Makina-erreminta/ Máquina-herramienta","- Reduce el consumo de recursos y la generación de residuos mediante la implantación de la economía circular. La economía circular es, junto con la transición energética, uno de los pilares para la descarbonización de una organización. Establecer un plan de circularidad favorecerá la reducción del consumo de recursos (materiales y energéticos) y la minimización de generación de residuos, lo que se traduce en una reducción de la emisión de gases de efecto invernadero, de los impactos ambientales y de los costos de producción, mientras que se incrementa la capacidad adaptativa y competitiva de la organización. \n\n- En caso de poder influir en el diseño de los productos fabricados, implementar el ecodiseño te ayudará a optimizar, desde la fase de diseño, el producto y su proceso de producción minimizando el consumo de recursos y la generación de residuos. El ecodiseño puede definirse como el proceso de integración de consideraciones ambientales en el diseño y desarrollo de los productos con el objetivo de reducir los impactos ambientales de estos a lo largo de todo su ciclo de vida, equilibrando los requisitos ecológicos y económicos. Es una base de la economía circular, pues es el origen de la cadena de reciclaje y permite minimizar el consumo de recursos, así como de emisiones, residuos y vertidos. Según el Nuevo Plan de acción para la economía circular por una Europa más limpia y más competitiva, \"hasta el 80 % de los impactos ambientales de los productos se determina en la fase de diseño\". \n\n- Incluye o añade criterios de sostenibilidad ambiental en la selección de proveedores, bienes y servicios considerando toda la cadena de suministro y favoreciendo aquellos ambientalmente sostenibles. Cuando las especificaciones lo permitan, utiliza materiales reciclados.\n\n- Realiza una gestión responsable de los residuos generados como chatarras, fluidos de corte, aceites o desengrasantes. Minimiza el uso de sustancias peligrosas, valora su sustitución por otros más sostenibles.\n\n- Realizar un Análisis de Ciclo de Vida te permitirá conocer todos los impactos ambientales de un producto o servicio a lo largo de todo su ciclo de vida. Esto facilita la implementación de medidas que minimicen esos impactos.\n","- Continúa reduciendo el consumo de recursos y la generación de residuos mediante la economía circular. La economía circular es, junto con la transición energética, uno de los pilares para la descarbonización de una organización. Establecer un Plan de Circularidad ayudará a reducir el consumo de recursos (materiales y energéticos) y a minimizar de generación de residuos, lo que se traduce en una reducción de la emisión de gases de efecto invernadero, de los impactos ambientales y de los costos de producción, mientras que se incrementa la capacidad adaptativa y competitiva de la organización. Si la organización ya tiene un Plan de Circularidad valora su actualización considerando el contexto actual del sector, las nuevas tecnologías disponibles y las nuevas exigencias del mercado.\n\n- En caso de poder influir en el diseño de los productos fabricados, implementar el ecodiseño te ayudará a optimizar, desde la fase de diseño, el producto y su proceso de producción minimizando el consumo de recursos y la generación de residuos. El ecodiseño puede definirse como el proceso de integración de consideraciones ambientales en el diseño y desarrollo de los productos con el objetivo de reducir los impactos ambientales de estos a lo largo de todo su ciclo de vida, equilibrando los requisitos ecológicos y económicos. Es una base de la economía circular, pues es el origen de la cadena de reciclaje y permite minimizar el consumo de recursos, así como de emisiones, residuos y vertidos. Según el Nuevo Plan de acción para la economía circular por una Europa más limpia y más competitiva, \"hasta el 80 % de los impactos ambientales de los productos se determina en la fase de diseño\". En caso de tener implantado ya el ecodiseño realiza benchmarking y valora el asesoramiento externo para seguir optimizando el producto y su proceso de producción.\n\n- Incluye o añade criterios de sostenibilidad ambiental en la selección de proveedores, bienes y servicios considerando toda la cadena de suministro y favoreciendo aquellos ambientalmente sostenibles. Cuando las especificaciones lo permitan, utiliza materiales reciclados.\n\n- Realiza una gestión responsable de los residuosgenerados como chatarras, fluidos de corte, aceites o desengrasantes. Minimiza el uso de sustancias peligrosas, valora su sustitución por otros más sostenibles.\n\n- Realizar un Análisis de Ciclo de Vida te permitirá conocer todos los impactos ambientales de un producto o servicio a lo largo de todo su ciclo de vida. Esto facilita la implementación de medidas que minimicen esos impactos.","- Mantén tu compromiso con la economía circular y continúa reduciendo el consumo de recursos y la generación de residuos. Valora la actualización del Plan de Circularidad considerando el contexto actual del sector, las nuevas tecnologías disponibles y las nuevas exigencias del mercado.\n\n- En caso de poder influir en el diseño de los productos fabricados, avanza en el ecodiseño mediante el benchmarking y el asesoramiento externo para seguir optimizando el producto y su proceso de producción.\n\n- Continúa priorizando la sostenibilidad ambiental en la selección de proveedores, bienes y servicios considerando toda la cadena de suministro.\n\n- Continúa con la gestión adecuada de los residuos generados y la sustitución y minimización del uso de sustancias tóxicas. \n\n- Como ya sabes, realizar un Análisis de Ciclo de Vida te permite conocer todos los impactos ambientales de un producto o servicio a lo largo de todo su ciclo de vida. Esto facilita la implementación de medidas que minimicen esos impactos."]
[null,"Nekazaritza eta elikagai sektorea/ Agroalimentario","- Reduce el consumo de recursos y la generación de residuos mediante la implantación de la economía circular. La economía circular es, junto con la transición energética, uno de los pilares para la descarbonización de una organización. Establecer un plan de circularidad favorecerá la reducción del consumo de recursos (materiales y energéticos) y la minimización de generación de residuos, lo que se traduce en una reducción de la emisión de gases de efecto invernadero, de los impactos ambientales y de los costos de producción, mientras que se incrementa la capacidad adaptativa y competitiva de la organización. \n\n- Incluye criterios de sostenibilidad ambiental en la selección de proveedores, bienes y servicios considerando toda la cadena de suministro y favoreciendo aquellos ambientalmente sostenibles. Utiliza materias primas alimentarias producidas favoreciendo la conservación de recursos naturales, el medioambiente y el mantenimiento de la biodiversidad.\n\n- Gestiona de manera adecuada los residuos generados. Los residuos orgánicos pueden ser valorizados como subproductos en otras industrias. Implanta medidas para reducir el desperdicio alimentario , como la colaboración con organizaciones sociales para donar el excedente de alimentos o aquellos que, siendo totalmente aptos para el consumo, no salen a mercado, por ejemplo, por desperfectos en el envase.\n\n- Otras medidas importantes dentro de la estrategia de economía circular son optimizar los inventarios para evitar caducidades y reducir los excedentes, almacenar adecuadamente los alimentos, minimizar los impactos ambientales generados durante la limpieza de equipos e instalaciones, mejorar de la gestión hídrica de la organización o implantar el ecodiseño en el packaging reduciendo la cantidad de recursos consumidos y residuos generados.\n\n- Finalmente, realizar un Análisis de Ciclo de Vida te permitirá conocer todos los impactos ambientales de un producto o servicio a lo largo de todo su ciclo de vida. Esto facilita la implementación de medidas que minimicen esos impactos.","- Continúa reduciendo el consumo de recursos y la generación de residuos mediante la economía circular. La economía circular es, junto con la transición energética, uno de los pilares para la descarbonización de una organización. Establecer un Plan de Circularidad ayudará a reducir el consumo de recursos (materiales y energéticos) y a minimizar de generación de residuos, lo que se traduce en una reducción de la emisión de gases de efecto invernadero, de los impactos ambientales y de los costos de producción, mientras que se incrementa la capacidad adaptativa y competitiva de la organización. Si la organización ya tiene un Plan de Circularidad valora su actualización considerando el contexto actual del sector, las nuevas tecnologías disponibles y las nuevas exigencias del mercado.\n\n- Incluye o incrementa criterios de sostenibilidad ambiental en la selección de proveedores, bienes y servicios considerando toda la cadena de suministro y favoreciendo aquellos ambientalmente sostenibles. Utiliza materias primas alimentarias producidas favoreciendo la conservación de recursos naturales, el medioambiente y el mantenimiento de la biodiversidad.\n\n- Gestiona de manera adecuada los residuos generados. Los residuos orgánicos pueden ser valorizados como subproductos en otras industrias. Implanta medidas para reducir el desperdicio alimentario , como la colaboración con organizaciones sociales para donar el excedente de alimentos o aquellos que, siendo totalmente aptos para el consumo, no salen a mercado, por ejemplo, por desperfectos en el envase.\n\n- Otras medidas importantes dentro de la estrategia de economía circular son optimizar los inventarios para evitar caducidades y reducir los excedentes, almacenar adecuadamente los alimentos, minimizar los impactos ambientales generados durante la limpieza de equipos e instalaciones, mejorar de la gestión hídrica de la organización o implantar el ecodiseño en el packaging reduciendo la cantidad de recursos consumidos y residuos generados.\n\n- Realizar un Análisis de Ciclo de Vida te permitirá conocer todos los impactos ambientales de un producto o servicio a lo largo de todo su ciclo de vida. Esto facilita la implementación de medidas que minimicen esos impactos.","- Mantén tu compromiso con la economía circular y continúa reduciendo el consumo de recursos y la generación de residuos. Valora la actualización del Plan de Circularidad considerando el contexto actual del sector, las nuevas tecnologías disponibles y las nuevas exigencias del mercado.\n\n- Continúa incluyendo criterios de sostenibilidad ambiental en la selección de proveedores, bienes y servicios y favoreciendo aquellos ambientalmente sostenibles. Utiliza materias primas alimentarias producidas favoreciendo la conservación de recursos naturales, el medioambiente y el mantenimiento de la biodiversidad.\n\n- Continúa gestionando de manera adecuada los residuos generados. Los residuos orgánicos pueden ser valorizados como subproductos en otras industrias. Implanta medidas para reducir el desperdicio alimentario , como la colaboración con organizaciones sociales para donar el excedente de alimentos o aquellos que, siendo totalmente aptos para el consumo, no salen a mercado, por ejemplo, por desperfectos en el envase.\n\n- Otras medidas importantes dentro de la estrategia de economía circular son optimizar los inventarios para evitar caducidades y reducir los excedentes, almacenar adecuadamente los alimentos, minimizar los impactos ambientales generados durante la limpieza de equipos e instalaciones, mejorar de la gestión hídrica de la organización o implantar el ecodiseño en el packaging reduciendo la cantidad de recursos consumidos y residuos generados.\n\n- Como ya sabes, realizar un Análisis de Ciclo de Vida te permite conocer todos los impactos ambientales de un producto o servicio a lo largo de todo su ciclo de vida. Esto facilita la implementación de medidas que minimicen esos impactos."]
[null,"Zerbitzuak/ Servicios","- Reduce el consumo de recursos y la generación de residuos mediante la implantación de la economía circular. La economía circular es, junto con la transición energética, uno de los pilares para la descarbonización de una organización. Establecer un plan de circularidad favorecerá la reducción del consumo de recursos (materiales y energéticos) y la minimización de generación de residuos, lo que se traduce en una reducción de la emisión de gases de efecto invernadero, de los impactos ambientales y de los costos de producción, mientras que se incrementa la capacidad adaptativa y competitiva de la organización. \n\n- Incluye criterios de sostenibilidad ambiental en la selección de proveedores, bienes y servicios considerando toda la cadena de suministro y favoreciendo aquellos ambientalmente sostenibles. Da prioridad a la compra-venta de productos de temporada y productos ecológicos de kilómetro cero y a la compra-venta de productos a granel. Establece medidas y prácticas para reducir el desperdicio alimentario, como la colaboración organizaciones sociales para donar excedentes, y minimiza la generación de residuos.\n\n- Optimiza los inventarios para evitar caducidades o reducir los excedentes. Almacena adecuadamente los alimentos.\n\n- Realiza una gestión adecuada de los residuos generados. \n\n- Implementa medidas para reducir el consumo de agua sanitaria de la organización y el consumo energético para el agua caliente sanitaria.","- Continúa reduciendo el consumo de recursos y la generación de residuos mediante la economía circular. La economía circular es, junto con la transición energética, uno de los pilares para la descarbonización de una organización. Establecer un Plan de Circularidad ayudará a reducir el consumo de recursos (materiales y energéticos) y a minimizar de generación de residuos, lo que se traduce en una reducción de la emisión de gases de efecto invernadero, de los impactos ambientales y de los costos de producción, mientras que se incrementa la capacidad adaptativa y competitiva de la organización. Si la organización ya tiene un Plan de Circularidad valora su actualización considerando el contexto actual del sector, las nuevas tecnologías disponibles y las nuevas exigencias del mercado.\n\n- Incrementa o incluye criterios de sostenibilidad ambiental en la selección de proveedores, bienes y servicios considerando toda la cadena de suministro y favoreciendo aquellos ambientalmente sostenibles. Da prioridad a la compra-venta de productos de temporada y productos ecológicos de kilómetro cero y a la compra-venta de productos a granel. Establece medidas y prácticas para reducir el desperdicio alimentario, como la colaboración organizaciones sociales para donar excedentes, y minimiza la generación de residuos.\n\n- Optimiza los inventarios para evitar caducidades o reducir los excedentes. Almacena adecuadamente los alimentos.\n\n- Realiza una gestión adecuada de los residuos generados. \n\n- Implementa medidas para reducir el consumo de agua sanitaria de la organización y el consumo energético para el agua caliente sanitaria.","- Mantén tu compromiso con la economía circular y continúa reduciendo el consumo de recursos y la generación de residuos. Valora la actualización del Plan de Circularidad considerando el contexto actual del sector, las nuevas tecnologías disponibles y las nuevas exigencias del mercado.\n\n- Continúa priorizando y, en la medida de lo posible, incrementa el uso y venta de productos de temporada y productos ecológicos de kilómetro cero, sí como la compra-venta de productos a granel. Establece medidas y prácticas para reducir el desperdicio alimentario, como la colaboración organizaciones sociales para donar excedentes, y minimiza la generación de residuos.\n\n- Continúa con la gestión adecuada de los residuos generados. \n\n- Implementa medidas para reducir el consumo de agua sanitaria de la organización y el consumo energético para el agua caliente sanitaria."]
[null,"Beste batzuk/ Otros","- Reduce el consumo de recursos y la generación de residuos mediante la implantación de la economía circular. La economía circular es, junto con la transición energética, uno de los pilares para la descarbonización de una organización. Establecer un plan de circularidad favorecerá la reducción del consumo de recursos (materiales y energéticos) y la minimización de generación de residuos, lo que se traduce en una reducción de la emisión de gases de efecto invernadero, de los impactos ambientales y de los costos de producción, mientras que se incrementa la capacidad adaptativa y competitiva de la organización. \n\n- En caso de poder influir en el diseño de los productos fabricados, implementar el ecodiseño te ayudará a optimizar, desde la fase de diseño, el producto y su proceso de producción minimizando el consumo de recursos y la generación de residuos. El ecodiseño puede definirse como el proceso de integración de consideraciones ambientales en el diseño y desarrollo de los productos con el objetivo de reducir los impactos ambientales de estos a lo largo de todo su ciclo de vida, equilibrando los requisitos ecológicos y económicos. Es una base de la economía circular, pues es el origen de la cadena de reciclaje y permite minimizar el consumo de recursos, así como de emisiones, residuos y vertidos. Según el Nuevo Plan de acción para la economía circular por una Europa más limpia y más competitiva, \"hasta el 80 % de los impactos ambientales de los productos se determina en la fase de diseño\". \n\n- Incluye criterios de sostenibilidad ambiental en la selección de proveedores, bienes y servicios considerando toda la cadena de suministro y favoreciendo aquellos ambientalmente sostenibles. Por ejemplo, prioriza el consumo de materiales reciclados o los proveedores cercanos minimizando con ello el transporte.\n\n- Realiza un tratamiento adecuado de los residuos realizando la separación en origen, valorizando la mayor cantidad de residuos posible y utilizando gestores de residuos autorizados para la eliminación del resto de residuos.\n\n- Finalmente, realizar un Análisis de Ciclo de Vida te permitirá conocer todos los impactos ambientales de un producto o servicio a lo largo de todo su ciclo de vida. Esto facilita la implementación de medidas que minimicen esos impactos.\n","- Continúa reduciendo el consumo de recursos y la generación de residuos mediante la economía circular. La economía circular es, junto con la transición energética, uno de los pilares para la descarbonización de una organización. Establecer un Plan de Circularidad ayudará a reducir el consumo de recursos (materiales y energéticos) y a minimizar de generación de residuos, lo que se traduce en una reducción de la emisión de gases de efecto invernadero, de los impactos ambientales y de los costos de producción, mientras que se incrementa la capacidad adaptativa y competitiva de la organización. Si la organización ya tiene un Plan de Circularidad valora su actualización considerando el contexto actual del sector, las nuevas tecnologías disponibles y las nuevas exigencias del mercado.\n\n- En caso de poder influir en el diseño de los productos fabricados, implementar el ecodiseño te ayudará a optimizar, desde la fase de diseño, el producto y su proceso de producción minimizando el consumo de recursos y la generación de residuos. El ecodiseño puede definirse como el proceso de integración de consideraciones ambientales en el diseño y desarrollo de los productos con el objetivo de reducir los impactos ambientales de estos a lo largo de todo su ciclo de vida, equilibrando los requisitos ecológicos y económicos. Es una base de la economía circular, pues es el origen de la cadena de reciclaje y permite minimizar el consumo de recursos, así como de emisiones, residuos y vertidos. Según el Nuevo Plan de acción para la economía circular por una Europa más limpia y más competitiva, \"hasta el 80 % de los impactos ambientales de los productos se determina en la fase de diseño\". En caso de tener implantado ya el ecodiseño realiza benchmarking y valora el asesoramiento externo para seguir optimizando el producto y su proceso de producción.\n\n- Incluye o añade criterios de sostenibilidad ambiental en la selección de proveedores, bienes y servicios considerando toda la cadena de suministro y favoreciendo aquellos ambientalmente sostenibles. Por ejemplo, prioriza el consumo de materiales reciclados o los proveedores cercanos minimizando con ello el transporte.\n\n- Realiza un tratamiento adecuado de los residuos realizando la separación en origen, valorizando la mayor cantidad de residuos posible y utilizando gestores de residuos autorizados para la eliminación del resto de residuos.\n\n- Realizar un Análisis de Ciclo de Vida te permitirá conocer todos los impactos ambientales de un producto o servicio a lo largo de todo su ciclo de vida. Esto facilita la implementación de medidas que minimicen esos impactos.","- Mantén tu compromiso con la economía circular y continúa reduciendo el consumo de recursos y la generación de residuos. Valora la actualización del Plan de Circularidad considerando el contexto actual del sector, las nuevas tecnologías disponibles y las nuevas exigencias del mercado.\n\n- En caso de poder influir en el diseño de los productos fabricados, avanza en el ecodiseño mediante el benchmarking y el asesoramiento externo para seguir optimizando el producto y su proceso de producción.\n\n- Continúa incluyendo criterios de sostenibilidad ambiental en la selección de proveedores, bienes y servicios, considerando toda la cadena de sostenibles, e incementa los mismo en la media de lo posible.\n\n- Continúa realizando un tratamiento adecuado de los residuos intentando incrementar la cantidad de residuos valorizados.\n\n- Como ya sabes, realizar un Análisis de Ciclo de Vida te permite conocer todos los impactos ambientales de un producto o servicio a lo largo de todo su ciclo de vida. Esto facilita la implementación de medidas que minimicen esos impactos."]
[null,null,0,"> 0 y < 70 %","> 70  %"]
["Calculo de emisiones","Eraikuntza/ Construcción","- Calcula la huella de carbono de tu empresa. La huella de carbono mide la cantidad total de emisiones de gases de efecto invernadero (GEI) de una organización, lo que permite identificar las principales fuentes de emisión de GEI, favoreciendo la toma de decisiones informada y el establecimiento de objetivos cuantificables de reducción. Además, el cálculo periódico de la huella de carbono permite monitorear el progreso en la reducción de emisiones de GEI y evaluar el impacto de las medidas adoptadas.\n\nLa validación y verificación de la huella de carbono por un tercero independiente ofrecen una mayor objetividad, credibilidad, transparencia y confiabilidad en los resultados obtenidos. Una vez obtenida la huella de carbono, esta puede registrarse en un registro público para ayudar a demostrar el compromiso con la descarbonización y la sostenibilidad, la responsabilidad ambiental y la transparencia de la empresa.","- Calcula la huella de carbono de tu empresa. Es posible que hayas comenzado con el cálculo del alcance 1 y 2, si es así, trata de avanzar y comenzar con el cálculo de alcance 3, empezando a trabajar con unas categorías y tratando de extender el alcance paulatinamente.\n\nLa validación y verificación de la huella de carbono por un tercero independiente ofrecen una mayor objetividad, credibilidad, transparencia y confiabilidad en los resultados obtenidos. Una vez obtenida la huella de carbono, esta puede registrarse en un registro público para ayudar a demostrar el compromiso con la descarbonización y la sostenibilidad, la responsabilidad ambiental y la transparencia de la empresa.","- Continúa realizando el cálculo de la huella de carbono de tu empresa. Trata de avanzar con el cálculo de la huella de alcance 3 incorporando nuevas categorías y, en la medida de lo posible, involucra a tus proveedores de bienes y servicios.\n\nLa validación y verificación de la huella de carbono por un tercero independiente ofrecen una mayor objetividad, credibilidad, transparencia y confiabilidad en los resultados obtenidos. Una vez obtenida la huella de carbono, esta puede registrarse en un registro público para ayudar a demostrar el compromiso con la descarbonización y la sostenibilidad, la responsabilidad ambiental y la transparencia de la empresa."]
[null,"Papera eta kartoia/ Papel y cartón","- Calcula la huella de carbono de tu empresa. La huella de carbono mide la cantidad total de emisiones de gases de efecto invernadero (GEI) de una organización, lo que permite identificar las principales fuentes de emisión de GEI, favoreciendo la toma de decisiones informada y el establecimiento de objetivos cuantificables de reducción. Además, el cálculo periódico de la huella de carbono permite monitorear el progreso en la reducción de emisiones de GEI y evaluar el impacto de las medidas adoptadas.\n\nLa validación y verificación de la huella de carbono por un tercero independiente ofrecen una mayor objetividad, credibilidad, transparencia y confiabilidad en los resultados obtenidos. Una vez obtenida la huella de carbono, esta puede registrarse en un registro público para ayudar a demostrar el compromiso con la descarbonización y la sostenibilidad, la responsabilidad ambiental y la transparencia de la empresa.","- Calcula la huella de carbono de tu empresa. Es posible que hayas comenzado con el cálculo del alcance 1 y 2, si es así, trata de avanzar y comenzar con el cálculo de alcance 3, empezando a trabajar con unas categorías y tratando de extender el alcance paulatinamente.\n\nLa validación y verificación de la huella de carbono por un tercero independiente ofrecen una mayor objetividad, credibilidad, transparencia y confiabilidad en los resultados obtenidos. Una vez obtenida la huella de carbono, esta puede registrarse en un registro público para ayudar a demostrar el compromiso con la descarbonización y la sostenibilidad, la responsabilidad ambiental y la transparencia de la empresa.","- Continúa realizando el cálculo de la huella de carbono de tu empresa. Trata de avanzar con el cálculo de la huella de alcance 3 incorporando nuevas categorías y, en la medida de lo posible, involucra a tus proveedores de bienes y servicios.\n\nLa validación y verificación de la huella de carbono por un tercero independiente ofrecen una mayor objetividad, credibilidad, transparencia y confiabilidad en los resultados obtenidos. Una vez obtenida la huella de carbono, esta puede registrarse en un registro público para ayudar a demostrar el compromiso con la descarbonización y la sostenibilidad, la responsabilidad ambiental y la transparencia de la empresa."]
[null,"Metalmekanikoa/ Metalmecánico","- Calcula la huella de carbono de tu empresa. La huella de carbono mide la cantidad total de emisiones de gases de efecto invernadero (GEI) de una organización, lo que permite identificar las principales fuentes de emisión de GEI, favoreciendo la toma de decisiones informada y el establecimiento de objetivos cuantificables de reducción. Además, el cálculo periódico de la huella de carbono permite monitorear el progreso en la reducción de emisiones de GEI y evaluar el impacto de las medidas adoptadas.\n\nLa validación y verificación de la huella de carbono por un tercero independiente ofrecen una mayor objetividad, credibilidad, transparencia y confiabilidad en los resultados obtenidos. Una vez obtenida la huella de carbono, esta puede registrarse en un registro público para ayudar a demostrar el compromiso con la descarbonización y la sostenibilidad, la responsabilidad ambiental y la transparencia de la empresa.","- Calcula la huella de carbono de tu empresa. Es posible que hayas comenzado con el cálculo del alcance 1 y 2, si es así, trata de avanzar y comenzar con el cálculo de alcance 3, empezando a trabajar con unas categorías y tratando de extender el alcance paulatinamente.\n\nLa validación y verificación de la huella de carbono por un tercero independiente ofrecen una mayor objetividad, credibilidad, transparencia y confiabilidad en los resultados obtenidos. Una vez obtenida la huella de carbono, esta puede registrarse en un registro público para ayudar a demostrar el compromiso con la descarbonización y la sostenibilidad, la responsabilidad ambiental y la transparencia de la empresa.","- Continúa realizando el cálculo de la huella de carbono de tu empresa. Trata de avanzar con el cálculo de la huella de alcance 3 incorporando nuevas categorías y, en la medida de lo posible, involucra a tus proveedores de bienes y servicios.\n\nLa validación y verificación de la huella de carbono por un tercero independiente ofrecen una mayor objetividad, credibilidad, transparencia y confiabilidad en los resultados obtenidos. Una vez obtenida la huella de carbono, esta puede registrarse en un registro público para ayudar a demostrar el compromiso con la descarbonización y la sostenibilidad, la responsabilidad ambiental y la transparencia de la empresa."]
[null,"Makina-erreminta/ Máquina-herramienta","- Calcula la huella de carbono de tu empresa. La huella de carbono mide la cantidad total de emisiones de gases de efecto invernadero (GEI) de una organización, lo que permite identificar las principales fuentes de emisión de GEI, favoreciendo la toma de decisiones informada y el establecimiento de objetivos cuantificables de reducción. Además, el cálculo periódico de la huella de carbono permite monitorear el progreso en la reducción de emisiones de GEI y evaluar el impacto de las medidas adoptadas.\n\nLa validación y verificación de la huella de carbono por un tercero independiente ofrecen una mayor objetividad, credibilidad, transparencia y confiabilidad en los resultados obtenidos. Una vez obtenida la huella de carbono, esta puede registrarse en un registro público para ayudar a demostrar el compromiso con la descarbonización y la sostenibilidad, la responsabilidad ambiental y la transparencia de la empresa.","- Calcula la huella de carbono de tu empresa. Es posible que hayas comenzado con el cálculo del alcance 1 y 2, si es así, trata de avanzar y comenzar con el cálculo de alcance 3, empezando a trabajar con unas categorías y tratando de extender el alcance paulatinamente.\n\nLa validación y verificación de la huella de carbono por un tercero independiente ofrecen una mayor objetividad, credibilidad, transparencia y confiabilidad en los resultados obtenidos. Una vez obtenida la huella de carbono, esta puede registrarse en un registro público para ayudar a demostrar el compromiso con la descarbonización y la sostenibilidad, la responsabilidad ambiental y la transparencia de la empresa.","- Continúa realizando el cálculo de la huella de carbono de tu empresa. Trata de avanzar con el cálculo de la huella de alcance 3 incorporando nuevas categorías y, en la medida de lo posible, involucra a tus proveedores de bienes y servicios.\n\nLa validación y verificación de la huella de carbono por un tercero independiente ofrecen una mayor objetividad, credibilidad, transparencia y confiabilidad en los resultados obtenidos. Una vez obtenida la huella de carbono, esta puede registrarse en un registro público para ayudar a demostrar el compromiso con la descarbonización y la sostenibilidad, la responsabilidad ambiental y la transparencia de la empresa."]
[null,"Nekazaritza eta elikagai sektorea/ Agroalimentario","- Calcula la huella de carbono de tu empresa. La huella de carbono mide la cantidad total de emisiones de gases de efecto invernadero (GEI) de una organización, lo que permite identificar las principales fuentes de emisión de GEI, favoreciendo la toma de decisiones informada y el establecimiento de objetivos cuantificables de reducción. Además, el cálculo periódico de la huella de carbono permite monitorear el progreso en la reducción de emisiones de GEI y evaluar el impacto de las medidas adoptadas.\n\nLa validación y verificación de la huella de carbono por un tercero independiente ofrecen una mayor objetividad, credibilidad, transparencia y confiabilidad en los resultados obtenidos. Una vez obtenida la huella de carbono, esta puede registrarse en un registro público para ayudar a demostrar el compromiso con la descarbonización y la sostenibilidad, la responsabilidad ambiental y la transparencia de la empresa.","- Calcula la huella de carbono de tu empresa. Es posible que hayas comenzado con el cálculo del alcance 1 y 2, si es así, trata de avanzar y comenzar con el cálculo de alcance 3, empezando a trabajar con unas categorías y tratando de extender el alcance paulatinamente.\n\nLa validación y verificación de la huella de carbono por un tercero independiente ofrecen una mayor objetividad, credibilidad, transparencia y confiabilidad en los resultados obtenidos. Una vez obtenida la huella de carbono, esta puede registrarse en un registro público para ayudar a demostrar el compromiso con la descarbonización y la sostenibilidad, la responsabilidad ambiental y la transparencia de la empresa.","- Continúa realizando el cálculo de la huella de carbono de tu empresa. Trata de avanzar con el cálculo de la huella de alcance 3 incorporando nuevas categorías y, en la medida de lo posible, involucra a tus proveedores de bienes y servicios.\n\nLa validación y verificación de la huella de carbono por un tercero independiente ofrecen una mayor objetividad, credibilidad, transparencia y confiabilidad en los resultados obtenidos. Una vez obtenida la huella de carbono, esta puede registrarse en un registro público para ayudar a demostrar el compromiso con la descarbonización y la sostenibilidad, la responsabilidad ambiental y la transparencia de la empresa."]
[null,"Zerbitzuak/ Servicios","- Calcula la huella de carbono de tu empresa. La huella de carbono mide la cantidad total de emisiones de gases de efecto invernadero (GEI) de una organización, lo que permite identificar las principales fuentes de emisión de GEI, favoreciendo la toma de decisiones informada y el establecimiento de objetivos cuantificables de reducción. Además, el cálculo periódico de la huella de carbono permite monitorear el progreso en la reducción de emisiones de GEI y evaluar el impacto de las medidas adoptadas.\n\nLa validación y verificación de la huella de carbono por un tercero independiente ofrecen una mayor objetividad, credibilidad, transparencia y confiabilidad en los resultados obtenidos. Una vez obtenida la huella de carbono, esta puede registrarse en un registro público para ayudar a demostrar el compromiso con la descarbonización y la sostenibilidad, la responsabilidad ambiental y la transparencia de la empresa.","- Calcula la huella de carbono de tu empresa. Es posible que hayas comenzado con el cálculo del alcance 1 y 2, si es así, trata de avanzar y comenzar con el cálculo de alcance 3, empezando a trabajar con unas categorías y tratando de extender el alcance paulatinamente.\n\nLa validación y verificación de la huella de carbono por un tercero independiente ofrecen una mayor objetividad, credibilidad, transparencia y confiabilidad en los resultados obtenidos. Una vez obtenida la huella de carbono, esta puede registrarse en un registro público para ayudar a demostrar el compromiso con la descarbonización y la sostenibilidad, la responsabilidad ambiental y la transparencia de la empresa.","- Continúa realizando el cálculo de la huella de carbono de tu empresa. Trata de avanzar con el cálculo de la huella de alcance 3 incorporando nuevas categorías y, en la medida de lo posible, involucra a tus proveedores de bienes y servicios.\n\nLa validación y verificación de la huella de carbono por un tercero independiente ofrecen una mayor objetividad, credibilidad, transparencia y confiabilidad en los resultados obtenidos. Una vez obtenida la huella de carbono, esta puede registrarse en un registro público para ayudar a demostrar el compromiso con la descarbonización y la sostenibilidad, la responsabilidad ambiental y la transparencia de la empresa."]
[null,"Beste batzuk/ Otros","- Calcula la huella de carbono de tu empresa. La huella de carbono mide la cantidad total de emisiones de gases de efecto invernadero (GEI) de una organización, lo que permite identificar las principales fuentes de emisión de GEI, favoreciendo la toma de decisiones informada y el establecimiento de objetivos cuantificables de reducción. Además, el cálculo periódico de la huella de carbono permite monitorear el progreso en la reducción de emisiones de GEI y evaluar el impacto de las medidas adoptadas.\n\nLa validación y verificación de la huella de carbono por un tercero independiente ofrecen una mayor objetividad, credibilidad, transparencia y confiabilidad en los resultados obtenidos. Una vez obtenida la huella de carbono, esta puede registrarse en un registro público para ayudar a demostrar el compromiso con la descarbonización y la sostenibilidad, la responsabilidad ambiental y la transparencia de la empresa.","- Calcula la huella de carbono de tu empresa. Es posible que hayas comenzado con el cálculo del alcance 1 y 2, si es así, trata de avanzar y comenzar con el cálculo de alcance 3, empezando a trabajar con unas categorías y tratando de extender el alcance paulatinamente.\n\nLa validación y verificación de la huella de carbono por un tercero independiente ofrecen una mayor objetividad, credibilidad, transparencia y confiabilidad en los resultados obtenidos. Una vez obtenida la huella de carbono, esta puede registrarse en un registro público para ayudar a demostrar el compromiso con la descarbonización y la sostenibilidad, la responsabilidad ambiental y la transparencia de la empresa.","- Continúa realizando el cálculo de la huella de carbono de tu empresa. Trata de avanzar con el cálculo de la huella de alcance 3 incorporando nuevas categorías y, en la medida de lo posible, involucra a tus proveedores de bienes y servicios.\n\nLa validación y verificación de la huella de carbono por un tercero independiente ofrecen una mayor objetividad, credibilidad, transparencia y confiabilidad en los resultados obtenidos. Una vez obtenida la huella de carbono, esta puede registrarse en un registro público para ayudar a demostrar el compromiso con la descarbonización y la sostenibilidad, la responsabilidad ambiental y la transparencia de la empresa."]
[null,null,0,"> 0 y < 70 %","> 70  %"]
["Emisiones fungitivas","Eraikuntza/ Construcción","No aplica.","No aplica.","No aplica."]
[null,"Papera eta kartoia/ Papel y cartón","No aplica.","No aplica.","No aplica."]
[null,"Metalmekanikoa/ Metalmecánico","No aplica.","No aplica.","No aplica."]
[null,"Makina-erreminta/ Máquina-herramienta","No aplica.","No aplica.","No aplica."]
[null,"Nekazaritza eta elikagai sektorea/ Agroalimentario","Adopta refrigerantes con bajo potencial de calentamiento global o atmosférico (PCA) y evita la fuga de refrigerantes mediante la implementación de mantenimientos preventivos o predictivos.","Es importante tanto adoptar refrigerantes con bajo potencial de calentamiento global o atmosférico (PCA), como evitar la fuga de refrigerantes mediante la implementación de mantenimientos preventivos o predictivos.","Continúa usando refrigerantes con bajo potencial de calentamiento global o atmosférico (PCA) y evitando la fuga de refrigerantes."]
[null,"Zerbitzuak/ Servicios","Adopta refrigerantes con bajo potencial de calentamiento global o atmosférico (PCA) y evita la fuga de refrigerantes mediante la implementación de mantenimientos preventivos o predictivos.","Es importante tanto adoptar refrigerantes con bajo potencial de calentamiento global o atmosférico (PCA), como evitar la fuga de refrigerantes mediante la implementación de mantenimientos preventivos o predictivos.","Continúa usando refrigerantes con bajo potencial de calentamiento global o atmosférico (PCA) y evitando la fuga de refrigerantes."]
[null,"Beste batzuk/ Otros","No aplica.","No aplica."]
[]
["Financiación","Eraikuntza/ Construcción","- Si bien las actuaciones enfocadas al ahorro y la eficiencia energética tienen asociados retornos económicos, hoy en día también cuentan con el apoyo económico de las administraciones, como pueden ser la Diputación Foral de Gipuzkoa, el Gobierno Vasco o el Ente Vasco de la Energía. Asimismo, las inversiones en ahorro y eficiencia energética pueden acceder a desgravaciones fiscales previstas en el artículo 68 de la Norma Foral 2/2014, de 17 de enero, sobre el Impuesto de Sociedades. \n\nEntre esta ayudas podemos encontrar:\n- Diputación Foral de Gipuzkoa: https://egoitza.gipuzkoa.eus/es/subvenciones\n- Gobierno Vasco: https://www.euskadi.eus/gobierno-vasco/tramites-servicios/?r01kQry=tT:ayuda_subvencion;cO:r01epd0122e4ed314423e0db04c97a47b5baa317f,r01epd0122e4edf39923e0db0b11fff216b637726;mA:documentLanguage.EQ.es,procedureCollection.EQ.0,procedureStatus.EQ.16;pp:r01PageSize.20;p:Inter,Inter_portal&r01SearchEngine=meta\n- Ente Vasco de la Energía: https://www.eve.eus/Programa-de-ayudas?lang=es-es"]
[null,"Papera eta kartoia/ Papel y cartón","- Si bien las actuaciones enfocadas al ahorro y la eficiencia energética tienen asociados retornos económicos, hoy en día también cuentan con el apoyo económico de las administraciones, como pueden ser la Diputación Foral de Gipuzkoa, el Gobierno Vasco o el Ente Vasco de la Energía. Asimismo, las inversiones en ahorro y eficiencia energética pueden acceder a desgravaciones fiscales previstas en el artículo 68 de la Norma Foral 2/2014, de 17 de enero, sobre el Impuesto de Sociedades. \n\nEntre esta ayudas podemos encontrar:\n- Diputación Foral de Gipuzkoa: https://egoitza.gipuzkoa.eus/es/subvenciones\n- Gobierno Vasco: https://www.euskadi.eus/gobierno-vasco/tramites-servicios/?r01kQry=tT:ayuda_subvencion;cO:r01epd0122e4ed314423e0db04c97a47b5baa317f,r01epd0122e4edf39923e0db0b11fff216b637726;mA:documentLanguage.EQ.es,procedureCollection.EQ.0,procedureStatus.EQ.16;pp:r01PageSize.20;p:Inter,Inter_portal&r01SearchEngine=meta\n- Ente Vasco de la Energía: https://www.eve.eus/Programa-de-ayudas?lang=es-es"]
[null,"Metalmekanikoa/ Metalmecánico","- Si bien las actuaciones enfocadas al ahorro y la eficiencia energética tienen asociados retornos económicos, hoy en día también cuentan con el apoyo económico de las administraciones, como pueden ser la Diputación Foral de Gipuzkoa, el Gobierno Vasco o el Ente Vasco de la Energía. Asimismo, las inversiones en ahorro y eficiencia energética pueden acceder a desgravaciones fiscales previstas en el artículo 68 de la Norma Foral 2/2014, de 17 de enero, sobre el Impuesto de Sociedades. \n\nEntre esta ayudas podemos encontrar:\n- Diputación Foral de Gipuzkoa: https://egoitza.gipuzkoa.eus/es/subvenciones\n- Gobierno Vasco: https://www.euskadi.eus/gobierno-vasco/tramites-servicios/?r01kQry=tT:ayuda_subvencion;cO:r01epd0122e4ed314423e0db04c97a47b5baa317f,r01epd0122e4edf39923e0db0b11fff216b637726;mA:documentLanguage.EQ.es,procedureCollection.EQ.0,procedureStatus.EQ.16;pp:r01PageSize.20;p:Inter,Inter_portal&r01SearchEngine=meta\n- Ente Vasco de la Energía: https://www.eve.eus/Programa-de-ayudas?lang=es-es"]
[null,"Makina-erreminta/ Máquina-herramienta","- Si bien las actuaciones enfocadas al ahorro y la eficiencia energética tienen asociados retornos económicos, hoy en día también cuentan con el apoyo económico de las administraciones, como pueden ser la Diputación Foral de Gipuzkoa, el Gobierno Vasco o el Ente Vasco de la Energía. Asimismo, las inversiones en ahorro y eficiencia energética pueden acceder a desgravaciones fiscales previstas en el artículo 68 de la Norma Foral 2/2014, de 17 de enero, sobre el Impuesto de Sociedades. \n\nEntre esta ayudas podemos encontrar:\n- Diputación Foral de Gipuzkoa: https://egoitza.gipuzkoa.eus/es/subvenciones\n- Gobierno Vasco: https://www.euskadi.eus/gobierno-vasco/tramites-servicios/?r01kQry=tT:ayuda_subvencion;cO:r01epd0122e4ed314423e0db04c97a47b5baa317f,r01epd0122e4edf39923e0db0b11fff216b637726;mA:documentLanguage.EQ.es,procedureCollection.EQ.0,procedureStatus.EQ.16;pp:r01PageSize.20;p:Inter,Inter_portal&r01SearchEngine=meta\n- Ente Vasco de la Energía: https://www.eve.eus/Programa-de-ayudas?lang=es-es"]
[null,"Nekazaritza eta elikagai sektorea/ Agroalimentario","- Si bien las actuaciones enfocadas al ahorro y la eficiencia energética tienen asociados retornos económicos, hoy en día también cuentan con el apoyo económico de las administraciones, como pueden ser la Diputación Foral de Gipuzkoa, el Gobierno Vasco o el Ente Vasco de la Energía. Asimismo, las inversiones en ahorro y eficiencia energética pueden acceder a desgravaciones fiscales previstas en el artículo 68 de la Norma Foral 2/2014, de 17 de enero, sobre el Impuesto de Sociedades. \n\nEntre esta ayudas podemos encontrar:\n- Diputación Foral de Gipuzkoa: https://egoitza.gipuzkoa.eus/es/subvenciones\n- Gobierno Vasco: https://www.euskadi.eus/gobierno-vasco/tramites-servicios/?r01kQry=tT:ayuda_subvencion;cO:r01epd0122e4ed314423e0db04c97a47b5baa317f,r01epd0122e4edf39923e0db0b11fff216b637726;mA:documentLanguage.EQ.es,procedureCollection.EQ.0,procedureStatus.EQ.16;pp:r01PageSize.20;p:Inter,Inter_portal&r01SearchEngine=meta\n- Ente Vasco de la Energía: https://www.eve.eus/Programa-de-ayudas?lang=es-es"]
[null,"Zerbitzuak/ Servicios","- Si bien las actuaciones enfocadas al ahorro y la eficiencia energética tienen asociados retornos económicos, hoy en día también cuentan con el apoyo económico de las administraciones, como pueden ser la Diputación Foral de Gipuzkoa, el Gobierno Vasco o el Ente Vasco de la Energía. Asimismo, las inversiones en ahorro y eficiencia energética pueden acceder a desgravaciones fiscales previstas en el artículo 68 de la Norma Foral 2/2014, de 17 de enero, sobre el Impuesto de Sociedades. \n\nEntre esta ayudas podemos encontrar:\n- Diputación Foral de Gipuzkoa: https://egoitza.gipuzkoa.eus/es/subvenciones\n- Gobierno Vasco: https://www.euskadi.eus/gobierno-vasco/tramites-servicios/?r01kQry=tT:ayuda_subvencion;cO:r01epd0122e4ed314423e0db04c97a47b5baa317f,r01epd0122e4edf39923e0db0b11fff216b637726;mA:documentLanguage.EQ.es,procedureCollection.EQ.0,procedureStatus.EQ.16;pp:r01PageSize.20;p:Inter,Inter_portal&r01SearchEngine=meta\n- Ente Vasco de la Energía: https://www.eve.eus/Programa-de-ayudas?lang=es-es"]
[null,"Beste batzuk/ Otros","- Si bien las actuaciones enfocadas al ahorro y la eficiencia energética tienen asociados retornos económicos, hoy en día también cuentan con el apoyo económico de las administraciones, como pueden ser la Diputación Foral de Gipuzkoa, el Gobierno Vasco o el Ente Vasco de la Energía. Asimismo, las inversiones en ahorro y eficiencia energética pueden acceder a desgravaciones fiscales previstas en el artículo 68 de la Norma Foral 2/2014, de 17 de enero, sobre el Impuesto de Sociedades. \n\nEntre esta ayudas podemos encontrar:\n- Diputación Foral de Gipuzkoa: https://egoitza.gipuzkoa.eus/es/subvenciones\n- Gobierno Vasco: https://www.euskadi.eus/gobierno-vasco/tramites-servicios/?r01kQry=tT:ayuda_subvencion;cO:r01epd0122e4ed314423e0db04c97a47b5baa317f,r01epd0122e4edf39923e0db0b11fff216b637726;mA:documentLanguage.EQ.es,procedureCollection.EQ.0,procedureStatus.EQ.16;pp:r01PageSize.20;p:Inter,Inter_portal&r01SearchEngine=meta\n- Ente Vasco de la Energía: https://www.eve.eus/Programa-de-ayudas?lang=es-es"]

{"sheet":"Medidas_BLOQUE 3","index":13,"n_rows":8,"n_cols":4,"rows_kept":8,"cut":false,"hidden":true,"merged":[]}
["BLOQUE 3: Compensación",0,"> 0 y < 70 %","> 70  %"]
["Eraikuntza/ Construcción","- Considera compensar aquellas emisiones de gases de efecto invernadero que no han sido posible eliminar. La compensación de emisiones consiste en neutralizar las emisiones mediante acciones que contribuyan a combatir el cambio climático, como, por ejemplo, la plantación de un número de árboles que absorban las emisiones equivalentes que han sido emitidas por la organización.\n\nGipuzkoa cuenta con un Fondo de Carbono Voluntario para la compensación de las emisiones a través de proyectos ejecutables en el propio territorio. La compensación se realizada en forma de donación, pudiéndose acogerse a los incentivos fiscales previstos en la Norma Foral 3/2004, de 7 de abril, de régimen fiscal de las entidades sin fines lucrativos y de los incentivos fiscales de mecenazgo, en virtud de la cual, las donaciones y aportaciones efectuadas al fondo de carbono tendrán la consideración de partida deducible a efectos de la determinación de la base imponible del impuesto sobre sociedades.\n\nPara más información accede al Fondo de Carbono Voluntario de Gipuzkoa.","- Es posible que ya compenses parte de las emisiones, considera incrementar el porcentaje de compensación de las emisiones que no han sido posible eliminar hasta conseguir la neutralidad climática de la organización.  \n\nGipuzkoa cuenta con un Fondo de Carbono Voluntario para la compensación de las emisiones a través de proyectos ejecutables en el propio territorio. La compensación se realizada en forma de donación, pudiéndose acogerse a los incentivos fiscales previstos en la Norma Foral 3/2004, de 7 de abril, de régimen fiscal de las entidades sin fines lucrativos y de los incentivos fiscales de mecenazgo, en virtud de la cual, las donaciones y aportaciones efectuadas al fondo de carbono tendrán la consideración de partida deducible a efectos de la determinación de la base imponible del impuesto sobre sociedades.\n\nPara más información accede al Fondo de Carbono Voluntario de Gipuzkoa.","- Continúa compensando las emisiones que no han podido ser eliminadas y mantén la neutralidad climática de tu organización. \n\nGipuzkoa cuenta con un Fondo de Carbono Voluntario para la compensación de las emisiones a través de proyectos ejecutables en el propio territorio. La compensación se realizada en forma de donación, pudiéndose acogerse a los incentivos fiscales previstos en la Norma Foral 3/2004, de 7 de abril, de régimen fiscal de las entidades sin fines lucrativos y de los incentivos fiscales de mecenazgo, en virtud de la cual, las donaciones y aportaciones efectuadas al fondo de carbono tendrán la consideración de partida deducible a efectos de la determinación de la base imponible del impuesto sobre sociedades.\n\nPara más información accede al Fondo de Carbono Voluntario de Gipuzkoa."]
["Papera eta kartoia/ Papel y cartón","- Considera compensar aquellas emisiones de gases de efecto invernadero que no han sido posible eliminar. La compensación de emisiones consiste en neutralizar las emisiones mediante acciones que contribuyan a combatir el cambio climático, como, por ejemplo, la plantación de un número de árboles que absorban las emisiones equivalentes que han sido emitidas por la organización.\n\nGipuzkoa cuenta con un Fondo de Carbono Voluntario para la compensación de las emisiones a través de proyectos ejecutables en el propio territorio. La compensación se realizada en forma de donación, pudiéndose acogerse a los incentivos fiscales previstos en la Norma Foral 3/2004, de 7 de abril, de régimen fiscal de las entidades sin fines lucrativos y de los incentivos fiscales de mecenazgo, en virtud de la cual, las donaciones y aportaciones efectuadas al fondo de carbono tendrán la consideración de partida deducible a efectos de la determinación de la base imponible del impuesto sobre sociedades.\n\nPara más información accede al Fondo de Carbono Voluntario de Gipuzkoa.","- Es posible que ya compenses parte de las emisiones, considera incrementar el porcentaje de compensación de las emisiones que no han sido posible eliminar hasta conseguir la neutralidad climática de la organización.  \n\nGipuzkoa cuenta con un Fondo de Carbono Voluntario para la compensación de las emisiones a través de proyectos ejecutables en el propio territorio. La compensación se realizada en forma de donación, pudiéndose acogerse a los incentivos fiscales previstos en la Norma Foral 3/2004, de 7 de abril, de régimen fiscal de las entidades sin fines lucrativos y de los incentivos fiscales de mecenazgo, en virtud de la cual, las donaciones y aportaciones efectuadas al fondo de carbono tendrán la consideración de partida deducible a efectos de la determinación de la base imponible del impuesto sobre sociedades.\n\nPara más información accede al Fondo de Carbono Voluntario de Gipuzkoa.","- Continúa compensando las emisiones que no han podido ser eliminadas y mantén la neutralidad climática de tu organización. \n\nGipuzkoa cuenta con un Fondo de Carbono Voluntario para la compensación de las emisiones a través de proyectos ejecutables en el propio territorio. La compensación se realizada en forma de donación, pudiéndose acogerse a los incentivos fiscales previstos en la Norma Foral 3/2004, de 7 de abril, de régimen fiscal de las entidades sin fines lucrativos y de los incentivos fiscales de mecenazgo, en virtud de la cual, las donaciones y aportaciones efectuadas al fondo de carbono tendrán la consideración de partida deducible a efectos de la determinación de la base imponible del impuesto sobre sociedades.\n\nPara más información accede al Fondo de Carbono Voluntario de Gipuzkoa."]
["Metalmekanikoa/ Metalmecánico","- Considera compensar aquellas emisiones de gases de efecto invernadero que no han sido posible eliminar. La compensación de emisiones consiste en neutralizar las emisiones mediante acciones que contribuyan a combatir el cambio climático, como, por ejemplo, la plantación de un número de árboles que absorban las emisiones equivalentes que han sido emitidas por la organización.\n\nGipuzkoa cuenta con un Fondo de Carbono Voluntario para la compensación de las emisiones a través de proyectos ejecutables en el propio territorio. La compensación se realizada en forma de donación, pudiéndose acogerse a los incentivos fiscales previstos en la Norma Foral 3/2004, de 7 de abril, de régimen fiscal de las entidades sin fines lucrativos y de los incentivos fiscales de mecenazgo, en virtud de la cual, las donaciones y aportaciones efectuadas al fondo de carbono tendrán la consideración de partida deducible a efectos de la determinación de la base imponible del impuesto sobre sociedades.\n\nPara más información accede al Fondo de Carbono Voluntario de Gipuzkoa.","- Es posible que ya compenses parte de las emisiones, considera incrementar el porcentaje de compensación de las emisiones que no han sido posible eliminar hasta conseguir la neutralidad climática de la organización.  \n\nGipuzkoa cuenta con un Fondo de Carbono Voluntario para la compensación de las emisiones a través de proyectos ejecutables en el propio territorio. La compensación se realizada en forma de donación, pudiéndose acogerse a los incentivos fiscales previstos en la Norma Foral 3/2004, de 7 de abril, de régimen fiscal de las entidades sin fines lucrativos y de los incentivos fiscales de mecenazgo, en virtud de la cual, las donaciones y aportaciones efectuadas al fondo de carbono tendrán la consideración de partida deducible a efectos de la determinación de la base imponible del impuesto sobre sociedades.\n\nPara más información accede al Fondo de Carbono Voluntario de Gipuzkoa.","- Continúa compensando las emisiones que no han podido ser eliminadas y mantén la neutralidad climática de tu organización. \n\nGipuzkoa cuenta con un Fondo de Carbono Voluntario para la compensación de las emisiones a través de proyectos ejecutables en el propio territorio. La compensación se realizada en forma de donación, pudiéndose acogerse a los incentivos fiscales previstos en la Norma Foral 3/2004, de 7 de abril, de régimen fiscal de las entidades sin fines lucrativos y de los incentivos fiscales de mecenazgo, en virtud de la cual, las donaciones y aportaciones efectuadas al fondo de carbono tendrán la consideración de partida deducible a efectos de la determinación de la base imponible del impuesto sobre sociedades.\n\nPara más información accede al Fondo de Carbono Voluntario de Gipuzkoa."]
["Makina-erreminta/ Máquina-herramienta","- Considera compensar aquellas emisiones de gases de efecto invernadero que no han sido posible eliminar. La compensación de emisiones consiste en neutralizar las emisiones mediante acciones que contribuyan a combatir el cambio climático, como, por ejemplo, la plantación de un número de árboles que absorban las emisiones equivalentes que han sido emitidas por la organización.\n\nGipuzkoa cuenta con un Fondo de Carbono Voluntario para la compensación de las emisiones a través de proyectos ejecutables en el propio territorio. La compensación se realizada en forma de donación, pudiéndose acogerse a los incentivos fiscales previstos en la Norma Foral 3/2004, de 7 de abril, de régimen fiscal de las entidades sin fines lucrativos y de los incentivos fiscales de mecenazgo, en virtud de la cual, las donaciones y aportaciones efectuadas al fondo de carbono tendrán la consideración de partida deducible a efectos de la determinación de la base imponible del impuesto sobre sociedades.\n\nPara más información accede al Fondo de Carbono Voluntario de Gipuzkoa.","- Es posible que ya compenses parte de las emisiones, considera incrementar el porcentaje de compensación de las emisiones que no han sido posible eliminar hasta conseguir la neutralidad climática de la organización.  \n\nGipuzkoa cuenta con un Fondo de Carbono Voluntario para la compensación de las emisiones a través de proyectos ejecutables en el propio territorio. La compensación se realizada en forma de donación, pudiéndose acogerse a los incentivos fiscales previstos en la Norma Foral 3/2004, de 7 de abril, de régimen fiscal de las entidades sin fines lucrativos y de los incentivos fiscales de mecenazgo, en virtud de la cual, las donaciones y aportaciones efectuadas al fondo de carbono tendrán la consideración de partida deducible a efectos de la determinación de la base imponible del impuesto sobre sociedades.\n\nPara más información accede al Fondo de Carbono Voluntario de Gipuzkoa.","- Continúa compensando las emisiones que no han podido ser eliminadas y mantén la neutralidad climática de tu organización. \n\nGipuzkoa cuenta con un Fondo de Carbono Voluntario para la compensación de las emisiones a través de proyectos ejecutables en el propio territorio. La compensación se realizada en forma de donación, pudiéndose acogerse a los incentivos fiscales previstos en la Norma Foral 3/2004, de 7 de abril, de régimen fiscal de las entidades sin fines lucrativos y de los incentivos fiscales de mecenazgo, en virtud de la cual, las donaciones y aportaciones efectuadas al fondo de carbono tendrán la consideración de partida deducible a efectos de la determinación de la base imponible del impuesto sobre sociedades.\n\nPara más información accede al Fondo de Carbono Voluntario de Gipuzkoa."]
["Nekazaritza eta elikagai sektorea/ Agroalimentario","- Considera compensar aquellas emisiones de gases de efecto invernadero que no han sido posible eliminar. La compensación de emisiones consiste en neutralizar las emisiones mediante acciones que contribuyan a combatir el cambio climático, como, por ejemplo, la plantación de un número de árboles que absorban las emisiones equivalentes que han sido emitidas por la organización.\n\nGipuzkoa cuenta con un Fondo de Carbono Voluntario para la compensación de las emisiones a través de proyectos ejecutables en el propio territorio. La compensación se realizada en forma de donación, pudiéndose acogerse a los incentivos fiscales previstos en la Norma Foral 3/2004, de 7 de abril, de régimen fiscal de las entidades sin fines lucrativos y de los incentivos fiscales de mecenazgo, en virtud de la cual, las donaciones y aportaciones efectuadas al fondo de carbono tendrán la consideración de partida deducible a efectos de la determinación de la base imponible del impuesto sobre sociedades.\n\nPara más información accede al Fondo de Carbono Voluntario de Gipuzkoa.","- Es posible que ya compenses parte de las emisiones, considera incrementar el porcentaje de compensación de las emisiones que no han sido posible eliminar hasta conseguir la neutralidad climática de la organización.  \n\nGipuzkoa cuenta con un Fondo de Carbono Voluntario para la compensación de las emisiones a través de proyectos ejecutables en el propio territorio. La compensación se realizada en forma de donación, pudiéndose acogerse a los incentivos fiscales previstos en la Norma Foral 3/2004, de 7 de abril, de régimen fiscal de las entidades sin fines lucrativos y de los incentivos fiscales de mecenazgo, en virtud de la cual, las donaciones y aportaciones efectuadas al fondo de carbono tendrán la consideración de partida deducible a efectos de la determinación de la base imponible del impuesto sobre sociedades.\n\nPara más información accede al Fondo de Carbono Voluntario de Gipuzkoa.","- Continúa compensando las emisiones que no han podido ser eliminadas y mantén la neutralidad climática de tu organización. \n\nGipuzkoa cuenta con un Fondo de Carbono Voluntario para la compensación de las emisiones a través de proyectos ejecutables en el propio territorio. La compensación se realizada en forma de donación, pudiéndose acogerse a los incentivos fiscales previstos en la Norma Foral 3/2004, de 7 de abril, de régimen fiscal de las entidades sin fines lucrativos y de los incentivos fiscales de mecenazgo, en virtud de la cual, las donaciones y aportaciones efectuadas al fondo de carbono tendrán la consideración de partida deducible a efectos de la determinación de la base imponible del impuesto sobre sociedades.\n\nPara más información accede al Fondo de Carbono Voluntario de Gipuzkoa."]
["Zerbitzuak/ Servicios","- Considera compensar aquellas emisiones de gases de efecto invernadero que no han sido posible eliminar. La compensación de emisiones consiste en neutralizar las emisiones mediante acciones que contribuyan a combatir el cambio climático, como, por ejemplo, la plantación de un número de árboles que absorban las emisiones equivalentes que han sido emitidas por la organización.\n\nGipuzkoa cuenta con un Fondo de Carbono Voluntario para la compensación de las emisiones a través de proyectos ejecutables en el propio territorio. La compensación se realizada en forma de donación, pudiéndose acogerse a los incentivos fiscales previstos en la Norma Foral 3/2004, de 7 de abril, de régimen fiscal de las entidades sin fines lucrativos y de los incentivos fiscales de mecenazgo, en virtud de la cual, las donaciones y aportaciones efectuadas al fondo de carbono tendrán la consideración de partida deducible a efectos de la determinación de la base imponible del impuesto sobre sociedades.\n\nPara más información accede al Fondo de Carbono Voluntario de Gipuzkoa.","- Es posible que ya compenses parte de las emisiones, considera incrementar el porcentaje de compensación de las emisiones que no han sido posible eliminar hasta conseguir la neutralidad climática de la organización.  \n\nGipuzkoa cuenta con un Fondo de Carbono Voluntario para la compensación de las emisiones a través de proyectos ejecutables en el propio territorio. La compensación se realizada en forma de donación, pudiéndose acogerse a los incentivos fiscales previstos en la Norma Foral 3/2004, de 7 de abril, de régimen fiscal de las entidades sin fines lucrativos y de los incentivos fiscales de mecenazgo, en virtud de la cual, las donaciones y aportaciones efectuadas al fondo de carbono tendrán la consideración de partida deducible a efectos de la determinación de la base imponible del impuesto sobre sociedades.\n\nPara más información accede al Fondo de Carbono Voluntario de Gipuzkoa.","- Continúa compensando las emisiones que no han podido ser eliminadas y mantén la neutralidad climática de tu organización. \n\nGipuzkoa cuenta con un Fondo de Carbono Voluntario para la compensación de las emisiones a través de proyectos ejecutables en el propio territorio. La compensación se realizada en forma de donación, pudiéndose acogerse a los incentivos fiscales previstos en la Norma Foral 3/2004, de 7 de abril, de régimen fiscal de las entidades sin fines lucrativos y de los incentivos fiscales de mecenazgo, en virtud de la cual, las donaciones y aportaciones efectuadas al fondo de carbono tendrán la consideración de partida deducible a efectos de la determinación de la base imponible del impuesto sobre sociedades.\n\nPara más información accede al Fondo de Carbono Voluntario de Gipuzkoa."]
["Beste batzuk/ Otros","- Considera compensar aquellas emisiones de gases de efecto invernadero que no han sido posible eliminar. La compensación de emisiones consiste en neutralizar las emisiones mediante acciones que contribuyan a combatir el cambio climático, como, por ejemplo, la plantación de un número de árboles que absorban las emisiones equivalentes que han sido emitidas por la organización.\n\nGipuzkoa cuenta con un Fondo de Carbono Voluntario para la compensación de las emisiones a través de proyectos ejecutables en el propio territorio. La compensación se realizada en forma de donación, pudiéndose acogerse a los incentivos fiscales previstos en la Norma Foral 3/2004, de 7 de abril, de régimen fiscal de las entidades sin fines lucrativos y de los incentivos fiscales de mecenazgo, en virtud de la cual, las donaciones y aportaciones efectuadas al fondo de carbono tendrán la consideración de partida deducible a efectos de la determinación de la base imponible del impuesto sobre sociedades.\n\nPara más información accede al Fondo de Carbono Voluntario de Gipuzkoa.","- Es posible que ya compenses parte de las emisiones, considera incrementar el porcentaje de compensación de las emisiones que no han sido posible eliminar hasta conseguir la neutralidad climática de la organización.  \n\nGipuzkoa cuenta con un Fondo de Carbono Voluntario para la compensación de las emisiones a través de proyectos ejecutables en el propio territorio. La compensación se realizada en forma de donación, pudiéndose acogerse a los incentivos fiscales previstos en la Norma Foral 3/2004, de 7 de abril, de régimen fiscal de las entidades sin fines lucrativos y de los incentivos fiscales de mecenazgo, en virtud de la cual, las donaciones y aportaciones efectuadas al fondo de carbono tendrán la consideración de partida deducible a efectos de la determinación de la base imponible del impuesto sobre sociedades.\n\nPara más información accede al Fondo de Carbono Voluntario de Gipuzkoa.","- Continúa compensando las emisiones que no han podido ser eliminadas y mantén la neutralidad climática de tu organización. \n\nGipuzkoa cuenta con un Fondo de Carbono Voluntario para la compensación de las emisiones a través de proyectos ejecutables en el propio territorio. La compensación se realizada en forma de donación, pudiéndose acogerse a los incentivos fiscales previstos en la Norma Foral 3/2004, de 7 de abril, de régimen fiscal de las entidades sin fines lucrativos y de los incentivos fiscales de mecenazgo, en virtud de la cual, las donaciones y aportaciones efectuadas al fondo de carbono tendrán la consideración de partida deducible a efectos de la determinación de la base imponible del impuesto sobre sociedades.\n\nPara más información accede al Fondo de Carbono Voluntario de Gipuzkoa."]

{"sheet":"1 BLOKEA_Neurriak","index":14,"n_rows":8,"n_cols":4,"rows_kept":8,"cut":false,"hidden":true,"merged":[]}
["BLOQUE 1: Estrategia","< 25 %","> 25 y < 75 %","> 75 %"]
["Eraikuntza/ Construcción","- Baloratu zer aukera eman ditzakeen erakundea deskarbonizatzeko estrategia bat zehazteak, ingurumen-politika, ezarri beharreko berariazko neurriak dituzten ekintza-planak eta epe labur, ertain eta luzera lortu beharreko helburuak jasotzen dituen tresna gisa. Kanpoko aholkularitzak gai honetan lagun zaitzake.\n\n- Gero eta gehiago dira merkatuak erakundeen eta haien produktu eta zerbitzuen ingurumen-posizionamenduarekiko dituen eskakizunak. Saiatu merkatuaren eskaerak identifikatzen eta zure sektoreari edo jarduerari aplika dakizkiokeen ingurumen-eskakizunei erantzuteko posizionatzen.\n\n- Bideratu urteko aurrekontuaren zati bat erakundearen ingurumen-inpaktua murrizteko neurriak ezartzera. Hala, ingurumen-jarduna etengabe hobetuko da, eta merkatuaren eskakizunetara egokituko da pixkanaka.\n\n- Garatu neurriak edo programak, erakundeak karbonoa kentzeko hartutako konpromisoaren inguruan langileak eta zuzendaritza sentsibilizatzeko eta  partaide bihurtzeko, neurri horiek zehazten eta  ezartzen inplika daitezen. ","- Eguneratu ezazu zure indarreko ingurumen-plangintza, sektorearen egungo testuingurua, merkatuaren eskakizun berriak eta eskura dauden teknologia berriak kontuan hartuta. Saiatu ekintza-planean ezarri beharreko neurri espezifikoak txertatzen, eta berrikusi epe labur, ertain eta luzera lortu beharreko helburuak Kanpo-aholkularitzak eta benchmarking-ak arlo honetan lagun zaitzakete.\n\n- Saiatu merkatuaren eskaerak identifikatzen eta posizionatzen, zure sektorean, jardueran, produktuan edo emandako zerbitzuan aplikagarriak diren ingurumen-eskakizunei erantzuteko. Zure bezero nagusiei horren inguruan galdetzeak etorkizuneko eskakizunei buruzko orientabideak eman diezazkizuke, eta horri buruzko jarrera bat harrarazi.\n\n- Eslei ezazu aurrekontuaren zati bat erakundearen ingurumen-jarduna hobetzen eta deskarbonizatzen jarraitzera . Horrek aukera emango dizu ezarritako etengabeko hobekuntzaren bideari eusteko  eta merkatuaren eskakizunei aurrea hartzeko.\n\n- Manten itzazu langileak eta zuzendaritza inplikatuta erakundeak deskarbonizazioarekin dituen konpromisoetan, zehaztutako neurrien zehaztapenean eta ezarpenean haien ekarpenak txertatuz. ","-Eguneratuta eduki ezazu ingurumen-plangintza, sektorearen egungo testuingurua, merkatuaren eskakizun berriak eta eskura dauden teknologia berriak kontuan hartuta. Saiatu ekintza-planean ezarri beharreko neurri espezifikoak txertatzen, eta berrikusi epe labur, ertain eta luzera lortu beharreko helburuak Kanpo-aholkularitzak eta benchmarking-ak arlo honetan lagun zaitzakete.\n\n- Saia zaitez merkatuaren balizko eskaerei aurrea hartzen eta zure sektoreari, jarduerari, produktuari edo emandako zerbitzuari aplika dakizkiekeen ingurumen-eskakizunei erantzuteko posizionatzen. Zure bezero nagusiei horren inguruan galdetzeak etorkizuneko eskakizunei buruzko orientabideak eman diezazkizuke, eta horri buruzko jarrera bat harrarazi.\n\n- Bidera ezazu aurrekontuaren zati bat erakundearen deskarbonizazio eta ingurumen-jarduna hobetzera. Horrek aukera emango dizu ezarritako etengabeko hobekuntzaren bideari eusteko  eta merkatuaren eskakizunei aurrea hartzeko.\n\n- Manten itzazu langileak eta zuzendaritza inplikatuta erakundeak deskarbonizazioarekin dituen konpromisoetan, zehaztutako neurrien zehaztapenean eta ezarpenean haien ekarpenak txertatuz. "]
["Papera eta kartoia/ Papel y cartón","- Baloratu zer aukera eman ditzakeen erakundea deskarbonizatzeko estrategia bat zehazteak, ingurumen-politika, ezarri beharreko berariazko neurriak dituzten ekintza-planak eta epe labur, ertain eta luzera lortu beharreko helburuak jasotzen dituen tresna gisa. Kanpoko aholkularitzak gai honetan lagun zaitzake.\n\n- Gero eta gehiago dira merkatuak erakundeen eta haien produktu eta zerbitzuen ingurumen-posizionamenduarekiko dituen eskakizunak. Saiatu merkatuaren eskaerak identifikatzen eta zure sektoreari edo jarduerari aplika dakizkiokeen ingurumen-eskakizunei erantzuteko posizionatzen.\n\n- Bideratu urteko aurrekontuaren zati bat erakundearen ingurumen-inpaktua murrizteko neurriak ezartzera. Hala, ingurumen-jarduna etengabe hobetuko da, eta merkatuaren eskakizunetara egokituko da pixkanaka.\n\n- Garatu neurriak edo programak, erakundeak karbonoa kentzeko hartutako konpromisoaren inguruan langileak eta zuzendaritza sentsibilizatzeko eta  partaide bihurtzeko, neurri horiek zehazten eta  ezartzen inplika daitezen. \n","- Eguneratu ezazu zure indarreko ingurumen-plangintza, sektorearen egungo testuingurua, merkatuaren eskakizun berriak eta eskura dauden teknologia berriak kontuan hartuta. Saiatu ekintza-planean ezarri beharreko neurri espezifikoak txertatzen, eta berrikusi epe labur, ertain eta luzera lortu beharreko helburuak Kanpo-aholkularitzak eta benchmarking-ak arlo honetan lagun zaitzakete.\n\n- Saiatu merkatuaren eskaerak identifikatzen eta posizionatzen, zure sektorean, jardueran, produktuan edo emandako zerbitzuan aplikagarriak diren ingurumen-eskakizunei erantzuteko. Zure bezero nagusiei horren inguruan galdetzeak etorkizuneko eskakizunei buruzko orientabideak eman diezazkizuke, eta horri buruzko jarrera bat harrarazi.\n\n- Eslei ezazu aurrekontuaren zati bat erakundearen ingurumen-jarduna hobetzen eta deskarbonizatzen jarraitzera . Horrek aukera emango dizu ezarritako etengabeko hobekuntzaren bideari eusteko  eta merkatuaren eskakizunei aurrea hartzeko.\n\n- Manten itzazu langileak eta zuzendaritza inplikatuta erakundeak deskarbonizazioarekin dituen konpromisoetan, zehaztutako neurrien zehaztapenean eta ezarpenean haien ekarpenak txertatuz. \n","-Eguneratuta eduki ezazu ingurumen-plangintza, sektorearen egungo testuingurua, merkatuaren eskakizun berriak eta eskura dauden teknologia berriak kontuan hartuta. Saiatu ekintza-planean ezarri beharreko neurri espezifikoak txertatzen, eta berrikusi epe labur, ertain eta luzera lortu beharreko helburuak Kanpo-aholkularitzak eta benchmarking-ak arlo honetan lagun zaitzakete.\n\n- Saia zaitez merkatuaren balizko eskaerei aurrea hartzen eta zure sektoreari, jarduerari, produktuari edo emandako zerbitzuari aplika dakizkiekeen ingurumen-eskakizunei erantzuteko posizionatzen. Zure bezero nagusiei horren inguruan galdetzeak etorkizuneko eskakizunei buruzko orientabideak eman diezazkizuke, eta horri buruzko jarrera bat harrarazi.\n\n- Bidera ezazu aurrekontuaren zati bat erakundearen deskarbonizazio eta ingurumen-jarduna hobetzera. Horrek aukera emango dizu ezarritako etengabeko hobekuntzaren bideari eusteko  eta merkatuaren eskakizunei aurrea hartzeko.\n\n- Manten itzazu langileak eta zuzendaritza inplikatuta erakundeak deskarbonizazioarekin dituen konpromisoetan, zehaztutako neurrien zehaztapenean eta ezarpenean haien ekarpenak txertatuz. \n"]
["Metalmekanikoa/ Metalmecánico","- Baloratu zer aukera eman ditzakeen erakundea deskarbonizatzeko estrategia bat zehazteak, ingurumen-politika, ezarri beharreko berariazko neurriak dituzten ekintza-planak eta epe labur, ertain eta luzera lortu beharreko helburuak jasotzen dituen tresna gisa. Kanpoko aholkularitzak gai honetan lagun zaitzake.\n\n- Gero eta gehiago dira merkatuak erakundeen eta haien produktu eta zerbitzuen ingurumen-posizionamenduarekiko dituen eskakizunak. Saiatu merkatuaren eskaerak identifikatzen eta zure sektoreari edo jarduerari aplika dakizkiokeen ingurumen-eskakizunei erantzuteko posizionatzen.\n\n- Bideratu urteko aurrekontuaren zati bat erakundearen ingurumen-inpaktua murrizteko neurriak ezartzera. Hala, ingurumen-jarduna etengabe hobetuko da, eta merkatuaren eskakizunetara egokituko da pixkanaka.\n\n- Garatu neurriak edo programak, erakundeak karbonoa kentzeko hartutako konpromisoaren inguruan langileak eta zuzendaritza sentsibilizatzeko eta  partaide bihurtzeko, neurri horiek zehazten eta  ezartzen inplika daitezen. \n","- Eguneratu ezazu zure indarreko ingurumen-plangintza, sektorearen egungo testuingurua, merkatuaren eskakizun berriak eta eskura dauden teknologia berriak kontuan hartuta. Saiatu ekintza-planean ezarri beharreko neurri espezifikoak txertatzen, eta berrikusi epe labur, ertain eta luzera lortu beharreko helburuak Kanpo-aholkularitzak eta benchmarking-ak arlo honetan lagun zaitzakete.\n\n- Saiatu merkatuaren eskaerak identifikatzen eta posizionatzen, zure sektorean, jardueran, produktuan edo emandako zerbitzuan aplikagarriak diren ingurumen-eskakizunei erantzuteko. Zure bezero nagusiei horren inguruan galdetzeak etorkizuneko eskakizunei buruzko orientabideak eman diezazkizuke, eta horri buruzko jarrera bat harrarazi.\n\n- Eslei ezazu aurrekontuaren zati bat erakundearen ingurumen-jarduna hobetzen eta deskarbonizatzen jarraitzera . Horrek aukera emango dizu ezarritako etengabeko hobekuntzaren bideari eusteko  eta merkatuaren eskakizunei aurrea hartzeko.\n\n- Manten itzazu langileak eta zuzendaritza inplikatuta erakundeak deskarbonizazioarekin dituen konpromisoetan, zehaztutako neurrien zehaztapenean eta ezarpenean haien ekarpenak txertatuz. \n","-Eguneratuta eduki ezazu ingurumen-plangintza, sektorearen egungo testuingurua, merkatuaren eskakizun berriak eta eskura dauden teknologia berriak kontuan hartuta. Saiatu ekintza-planean ezarri beharreko neurri espezifikoak txertatzen, eta berrikusi epe labur, ertain eta luzera lortu beharreko helburuak Kanpo-aholkularitzak eta benchmarking-ak arlo honetan lagun zaitzakete.\n\n- Saia zaitez merkatuaren balizko eskaerei aurrea hartzen eta zure sektoreari, jarduerari, produktuari edo emandako zerbitzuari aplika dakizkiekeen ingurumen-eskakizunei erantzuteko posizionatzen. Zure bezero nagusiei horren inguruan galdetzeak etorkizuneko eskakizunei buruzko orientabideak eman diezazkizuke, eta horri buruzko jarrera bat harrarazi.\n\n- Bidera ezazu aurrekontuaren zati bat erakundearen deskarbonizazio eta ingurumen-jarduna hobetzera. Horrek aukera emango dizu ezarritako etengabeko hobekuntzaren bideari eusteko  eta merkatuaren eskakizunei aurrea hartzeko.\n\n- Manten itzazu langileak eta zuzendaritza inplikatuta erakundeak deskarbonizazioarekin dituen konpromisoetan, zehaztutako neurrien zehaztapenean eta ezarpenean haien ekarpenak txertatuz. \n"]
["Makina-erreminta/ Máquina-herramienta","- Baloratu zer aukera eman ditzakeen erakundea deskarbonizatzeko estrategia bat zehazteak, ingurumen-politika, ezarri beharreko berariazko neurriak dituzten ekintza-planak eta epe labur, ertain eta luzera lortu beharreko helburuak jasotzen dituen tresna gisa. Kanpoko aholkularitzak gai honetan lagun zaitzake.\n\n- Gero eta gehiago dira merkatuak erakundeen eta haien produktu eta zerbitzuen ingurumen-posizionamenduarekiko dituen eskakizunak. Saiatu merkatuaren eskaerak identifikatzen eta zure sektoreari edo jarduerari aplika dakizkiokeen ingurumen-eskakizunei erantzuteko posizionatzen.\n\n- Bideratu urteko aurrekontuaren zati bat erakundearen ingurumen-inpaktua murrizteko neurriak ezartzera. Hala, ingurumen-jarduna etengabe hobetuko da, eta merkatuaren eskakizunetara egokituko da pixkanaka.\n\n- Garatu neurriak edo programak, erakundeak karbonoa kentzeko hartutako konpromisoaren inguruan langileak eta zuzendaritza sentsibilizatzeko eta  partaide bihurtzeko, neurri horiek zehazten eta  ezartzen inplika daitezen. \n","- Eguneratu ezazu zure indarreko ingurumen-plangintza, sektorearen egungo testuingurua, merkatuaren eskakizun berriak eta eskura dauden teknologia berriak kontuan hartuta. Saiatu ekintza-planean ezarri beharreko neurri espezifikoak txertatzen, eta berrikusi epe labur, ertain eta luzera lortu beharreko helburuak Kanpo-aholkularitzak eta benchmarking-ak arlo honetan lagun zaitzakete.\n\n- Saiatu merkatuaren eskaerak identifikatzen eta posizionatzen, zure sektorean, jardueran, produktuan edo emandako zerbitzuan aplikagarriak diren ingurumen-eskakizunei erantzuteko. Zure bezero nagusiei horren inguruan galdetzeak etorkizuneko eskakizunei buruzko orientabideak eman diezazkizuke, eta horri buruzko jarrera bat harrarazi.\n\n- Eslei ezazu aurrekontuaren zati bat erakundearen ingurumen-jarduna hobetzen eta deskarbonizatzen jarraitzera . Horrek aukera emango dizu ezarritako etengabeko hobekuntzaren bideari eusteko  eta merkatuaren eskakizunei aurrea hartzeko.\n\n- Manten itzazu langileak eta zuzendaritza inplikatuta erakundeak deskarbonizazioarekin dituen konpromisoetan, zehaztutako neurrien zehaztapenean eta ezarpenean haien ekarpenak txertatuz. \n","-Eguneratuta eduki ezazu ingurumen-plangintza, sektorearen egungo testuingurua, merkatuaren eskakizun berriak eta eskura dauden teknologia berriak kontuan hartuta. Saiatu ekintza-planean ezarri beharreko neurri espezifikoak txertatzen, eta berrikusi epe labur, ertain eta luzera lortu beharreko helburuak Kanpo-aholkularitzak eta benchmarking-ak arlo honetan lagun zaitzakete.\n\n- Saia zaitez merkatuaren balizko eskaerei aurrea hartzen eta zure sektoreari, jarduerari, produktuari edo emandako zerbitzuari aplika dakizkiekeen ingurumen-eskakizunei erantzuteko posizionatzen. Zure bezero nagusiei horren inguruan galdetzeak etorkizuneko eskakizunei buruzko orientabideak eman diezazkizuke, eta horri buruzko jarrera bat harrarazi.\n\n- Bidera ezazu aurrekontuaren zati bat erakundearen deskarbonizazio eta ingurumen-jarduna hobetzera. Horrek aukera emango dizu ezarritako etengabeko hobekuntzaren bideari eusteko  eta merkatuaren eskakizunei aurrea hartzeko.\n\n- Manten itzazu langileak eta zuzendaritza inplikatuta erakundeak deskarbonizazioarekin dituen konpromisoetan, zehaztutako neurrien zehaztapenean eta ezarpenean haien ekarpenak txertatuz. \n"]
["Nekazaritza eta elikagai sektorea/ Agroalimentario","- Baloratu zer aukera eman ditzakeen erakundea deskarbonizatzeko estrategia bat zehazteak, ingurumen-politika, ezarri beharreko berariazko neurriak dituzten ekintza-planak eta epe labur, ertain eta luzera lortu beharreko helburuak jasotzen dituen tresna gisa. Kanpoko aholkularitzak gai honetan lagun zaitzake.\n\n- Gero eta gehiago dira merkatuak erakundeen eta haien produktu eta zerbitzuen ingurumen-posizionamenduarekiko dituen eskakizunak. Saiatu merkatuaren eskaerak identifikatzen eta zure sektoreari edo jarduerari aplika dakizkiokeen ingurumen-eskakizunei erantzuteko posizionatzen.\n\n- Bideratu urteko aurrekontuaren zati bat erakundearen ingurumen-inpaktua murrizteko neurriak ezartzera. Hala, ingurumen-jarduna etengabe hobetuko da, eta merkatuaren eskakizunetara egokituko da pixkanaka.\n\n- Garatu neurriak edo programak, erakundeak karbonoa kentzeko hartutako konpromisoaren inguruan langileak eta zuzendaritza sentsibilizatzeko eta  partaide bihurtzeko, neurri horiek zehazten eta  ezartzen inplika daitezen. \n","- Eguneratu ezazu zure indarreko ingurumen-plangintza, sektorearen egungo testuingurua, merkatuaren eskakizun berriak eta eskura dauden teknologia berriak kontuan hartuta. Saiatu ekintza-planean ezarri beharreko neurri espezifikoak txertatzen, eta berrikusi epe labur, ertain eta luzera lortu beharreko helburuak Kanpo-aholkularitzak eta benchmarking-ak arlo honetan lagun zaitzakete.\n\n- Saiatu merkatuaren eskaerak identifikatzen eta posizionatzen, zure sektorean, jardueran, produktuan edo emandako zerbitzuan aplikagarriak diren ingurumen-eskakizunei erantzuteko. Zure bezero nagusiei horren inguruan galdetzeak etorkizuneko eskakizunei buruzko orientabideak eman diezazkizuke, eta horri buruzko jarrera bat harrarazi.\n\n- Eslei ezazu aurrekontuaren zati bat erakundearen ingurumen-jarduna hobetzen eta deskarbonizatzen jarraitzera . Horrek aukera emango dizu ezarritako etengabeko hobekuntzaren bideari eusteko  eta merkatuaren eskakizunei aurrea hartzeko.\n\n- Manten itzazu langileak eta zuzendaritza inplikatuta erakundeak deskarbonizazioarekin dituen konpromisoetan, zehaztutako neurrien zehaztapenean eta ezarpenean haien ekarpenak txertatuz. \n","-Eguneratuta eduki ezazu ingurumen-plangintza, sektorearen egungo testuingurua, merkatuaren eskakizun berriak eta eskura dauden teknologia berriak kontuan hartuta. Saiatu ekintza-planean ezarri beharreko neurri espezifikoak txertatzen, eta berrikusi epe labur, ertain eta luzera lortu beharreko helburuak Kanpo-aholkularitzak eta benchmarking-ak arlo honetan lagun zaitzakete.\n\n- Saia zaitez merkatuaren balizko eskaerei aurrea hartzen eta zure sektoreari, jarduerari, produktuari edo emandako zerbitzuari aplika dakizkiekeen ingurumen-eskakizunei erantzuteko posizionatzen. Zure bezero nagusiei horren inguruan galdetzeak etorkizuneko eskakizunei buruzko orientabideak eman diezazkizuke, eta horri buruzko jarrera bat harrarazi.\n\n- Bidera ezazu aurrekontuaren zati bat erakundearen deskarbonizazio eta ingurumen-jarduna hobetzera. Horrek aukera emango dizu ezarritako etengabeko hobekuntzaren bideari eusteko  eta merkatuaren eskakizunei aurrea hartzeko.\n\n- Manten itzazu langileak eta zuzendaritza inplikatuta erakundeak deskarbonizazioarekin dituen konpromisoetan, zehaztutako neurrien zehaztapenean eta ezarpenean haien ekarpenak txertatuz. \n"]
["Zerbitzuak/ Servicios","- Baloratu zer aukera eman ditzakeen erakundea deskarbonizatzeko estrategia bat zehazteak, ingurumen-politika, ezarri beharreko berariazko neurriak dituzten ekintza-planak eta epe labur, ertain eta luzera lortu beharreko helburuak jasotzen dituen tresna gisa. Kanpoko aholkularitzak gai honetan lagun zaitzake.\n\n- Gero eta gehiago dira merkatuak erakundeen eta haien produktu eta zerbitzuen ingurumen-posizionamenduarekiko dituen eskakizunak. Saiatu merkatuaren eskaerak identifikatzen eta zure sektoreari edo jarduerari aplika dakizkiokeen ingurumen-eskakizunei erantzuteko posizionatzen.\n\n- Bideratu urteko aurrekontuaren zati bat erakundearen ingurumen-inpaktua murrizteko neurriak ezartzera. Hala, ingurumen-jarduna etengabe hobetuko da, eta merkatuaren eskakizunetara egokituko da pixkanaka.\n\n- Garatu neurriak edo programak, erakundeak karbonoa kentzeko hartutako konpromisoaren inguruan langileak eta zuzendaritza sentsibilizatzeko eta  partaide bihurtzeko, neurri horiek zehazten eta  ezartzen inplika daitezen. \n","- Eguneratu ezazu zure indarreko ingurumen-plangintza, sektorearen egungo testuingurua, merkatuaren eskakizun berriak eta eskura dauden teknologia berriak kontuan hartuta. Saiatu ekintza-planean ezarri beharreko neurri espezifikoak txertatzen, eta berrikusi epe labur, ertain eta luzera lortu beharreko helburuak Kanpo-aholkularitzak eta benchmarking-ak arlo honetan lagun zaitzakete.\n\n- Saiatu merkatuaren eskaerak identifikatzen eta posizionatzen, zure sektorean, jardueran, produktuan edo emandako zerbitzuan aplikagarriak diren ingurumen-eskakizunei erantzuteko. Zure bezero nagusiei horren inguruan galdetzeak etorkizuneko eskakizunei buruzko orientabideak eman diezazkizuke, eta horri buruzko jarrera bat harrarazi.\n\n- Eslei ezazu aurrekontuaren zati bat erakundearen ingurumen-jarduna hobetzen eta deskarbonizatzen jarraitzera . Horrek aukera emango dizu ezarritako etengabeko hobekuntzaren bideari eusteko  eta merkatuaren eskakizunei aurrea hartzeko.\n\n- Manten itzazu langileak eta zuzendaritza inplikatuta erakundeak deskarbonizazioarekin dituen konpromisoetan, zehaztutako neurrien zehaztapenean eta ezarpenean haien ekarpenak txertatuz. \n","-Eguneratuta eduki ezazu ingurumen-plangintza, sektorearen egungo testuingurua, merkatuaren eskakizun berriak eta eskura dauden teknologia berriak kontuan hartuta. Saiatu ekintza-planean ezarri beharreko neurri espezifikoak txertatzen, eta berrikusi epe labur, ertain eta luzera lortu beharreko helburuak Kanpo-aholkularitzak eta benchmarking-ak arlo honetan lagun zaitzakete.\n\n- Saia zaitez merkatuaren balizko eskaerei aurrea hartzen eta zure sektoreari, jarduerari, produktuari edo emandako zerbitzuari aplika dakizkiekeen ingurumen-eskakizunei erantzuteko posizionatzen. Zure bezero nagusiei horren inguruan galdetzeak etorkizuneko eskakizunei buruzko orientabideak eman diezazkizuke, eta horri buruzko jarrera bat harrarazi.\n\n- Bidera ezazu aurrekontuaren zati bat erakundearen deskarbonizazio eta ingurumen-jarduna hobetzera. Horrek aukera emango dizu ezarritako etengabeko hobekuntzaren bideari eusteko  eta merkatuaren eskakizunei aurrea hartzeko.\n\n- Manten itzazu langileak eta zuzendaritza inplikatuta erakundeak deskarbonizazioarekin dituen konpromisoetan, zehaztutako neurrien zehaztapenean eta ezarpenean haien ekarpenak txertatuz. \n"]
["Beste batzuk/ Otros","- Baloratu zer aukera eman ditzakeen erakundea deskarbonizatzeko estrategia bat zehazteak, ingurumen-politika, ezarri beharreko berariazko neurriak dituzten ekintza-planak eta epe labur, ertain eta luzera lortu beharreko helburuak jasotzen dituen tresna gisa. Kanpoko aholkularitzak gai honetan lagun zaitzake.\n\n- Gero eta gehiago dira merkatuak erakundeen eta haien produktu eta zerbitzuen ingurumen-posizionamenduarekiko dituen eskakizunak. Saiatu merkatuaren eskaerak identifikatzen eta zure sektoreari edo jarduerari aplika dakizkiokeen ingurumen-eskakizunei erantzuteko posizionatzen.\n\n- Bideratu urteko aurrekontuaren zati bat erakundearen ingurumen-inpaktua murrizteko neurriak ezartzera. Hala, ingurumen-jarduna etengabe hobetuko da, eta merkatuaren eskakizunetara egokituko da pixkanaka.\n\n- Garatu neurriak edo programak, erakundeak karbonoa kentzeko hartutako konpromisoaren inguruan langileak eta zuzendaritza sentsibilizatzeko eta  partaide bihurtzeko, neurri horiek zehazten eta  ezartzen inplika daitezen. \n","- Eguneratu ezazu zure indarreko ingurumen-plangintza, sektorearen egungo testuingurua, merkatuaren eskakizun berriak eta eskura dauden teknologia berriak kontuan hartuta. Saiatu ekintza-planean ezarri beharreko neurri espezifikoak txertatzen, eta berrikusi epe labur, ertain eta luzera lortu beharreko helburuak Kanpo-aholkularitzak eta benchmarking-ak arlo honetan lagun zaitzakete.\n\n- Saiatu merkatuaren eskaerak identifikatzen eta posizionatzen, zure sektorean, jardueran, produktuan edo emandako zerbitzuan aplikagarriak diren ingurumen-eskakizunei erantzuteko. Zure bezero nagusiei horren inguruan galdetzeak etorkizuneko eskakizunei buruzko orientabideak eman diezazkizuke, eta horri buruzko jarrera bat harrarazi.\n\n- Eslei ezazu aurrekontuaren zati bat erakundearen ingurumen-jarduna hobetzen eta deskarbonizatzen jarraitzera . Horrek aukera emango dizu ezarritako etengabeko hobekuntzaren bideari eusteko  eta merkatuaren eskakizunei aurrea hartzeko.\n\n- Manten itzazu langileak eta zuzendaritza inplikatuta erakundeak deskarbonizazioarekin dituen konpromisoetan, zehaztutako neurrien zehaztapenean eta ezarpenean haien ekarpenak txertatuz. \n","-Eguneratuta eduki ezazu ingurumen-plangintza, sektorearen egungo testuingurua, merkatuaren eskakizun berriak eta eskura dauden teknologia berriak kontuan hartuta. Saiatu ekintza-planean ezarri beharreko neurri espezifikoak txertatzen, eta berrikusi epe labur, ertain eta luzera lortu beharreko helburuak Kanpo-aholkularitzak eta benchmarking-ak arlo honetan lagun zaitzakete.\n\n- Saia zaitez merkatuaren balizko eskaerei aurrea hartzen eta zure sektoreari, jarduerari, produktuari edo emandako zerbitzuari aplika dakizkiekeen ingurumen-eskakizunei erantzuteko posizionatzen. Zure bezero nagusiei horren inguruan galdetzeak etorkizuneko eskakizunei buruzko orientabideak eman diezazkizuke, eta horri buruzko jarrera bat harrarazi.\n\n- Bidera ezazu aurrekontuaren zati bat erakundearen deskarbonizazio eta ingurumen-jarduna hobetzera. Horrek aukera emango dizu ezarritako etengabeko hobekuntzaren bideari eusteko  eta merkatuaren eskakizunei aurrea hartzeko.\n\n- Manten itzazu langileak eta zuzendaritza inplikatuta erakundeak deskarbonizazioarekin dituen konpromisoetan, zehaztutako neurrien zehaztapenean eta ezarpenean haien ekarpenak txertatuz. \n"]

{"sheet":"2 BLOKEA_Neurriak","index":15,"n_rows":56,"n_cols":5,"rows_kept":56,"cut":false,"hidden":true,"merged":[[41,0,47,0],[49,0,55,0],[0,0,0,1],[1,0,7,0],[9,0,15,0],[17,0,23,0],[25,0,31,0],[33,0,39,0]]}
["BLOQUE 2: Gestión energética y emisiones GEI",null,"< 30 %","> 30 y < 65 %","> 65 %"]
["Ahorro y eficiencia energética","Eraikuntza/ Construcción","- Ezagut itzazu zure erakundearen energia-kontsumoak . \nEdozein enpresatan energia-kontsumoa murrizteko lehen urratsa ekipo, makina eta instalazioen energia-kontsumoak zehatz-mehatz ezagutzea da. Horri esker, hobekuntza-arlo nagusiak identifika daitezke, eta kontsumoa murrizteko eta energia-aurrezpena handitzeko erabaki informatuak hartzea errazten da, kostuak aurreztuz eta berotegi-efektuko gasen emisioak murriztuz.\n\n- Energia-auditoretza bat egin ezazu. \nEnergia-auditoretzek, erakunde baten energia-fluxuen monitorizazioaren eta analisiaren bidez, energia-kontsumoan sakontzea eta xehetasunez aztertzea ahalbidetzen dute. Kudeaketa eta efizientzia optimizatzeko funtsezko tresna dira, eta prozesu bakoitzerako hobekuntza-aukerak eta teknologia eraginkorrenak identifikatzen dituzte.\n\n- Hobekuntza-arlo nagusiak identifikatu eta kostu eta etekin erlazio onena duten aurrezpen eta efizientzia energetikoko neurriak finkatu ondoren, Energia Aurrezteko eta Eraginkortasunerako Plana etengabeko hobekuntzako estrategia gisa zehazteko unea da. Planak energia-kontsumoa murrizteko eta energia berriztagarriak ezartzeko helburu errealistak, zehaztutako helburuak lortzeko ezarri beharreko ekintza zehatzak eta hedatzeko inbertsio-plan bat izan behar ditu. \n\n- Ezarri energia Aurrezteko eta Eraginkortasunez Erabiltzeko Planetik eratorritako neurriak. Neurri horien artean, honako hauek nabarmendu ohi dira: ekipoak eta makineria enpresaren ekoizpen-jardueraren beharretara egokitzea, energia-kudeatzaile bat izendatzea, ekipo ez-eraginkorrak eta kontsumo handikoak ordezkatzea, hondar-energia termikoa atzematea eta berrerabiltzea ahalbidetuko duten berreskuratze-sistemak ezartzea, eta lantokiaren beraren energia-aurrezpena eta -eraginkortasuna hobetzeko beste neurri batzuk (luminariak ordezkatzea, isolamendu termikoa hobetzea...).\n\n- Ez ahaztu langile guztien prestakuntza eta trebakuntzaren garrantzia aurrezpen eta eraginkortasun energetikoaren arloan; horrek enpresaren politikarekin bat etortzea erraztuko du, etadeskarbonizazio-helburuak lortzen lagunduko du. \n\nGarrantzitsua da, halaber, egindako eraikuntza, birgaitze eta erreforma berrien energia-beharrak optimizatzea. Horretarako, bezeroarekin baloratu ahal izango da proiektuaren diseinu-fasetik autokontsumoa ezartzeko aukera, edo, bestela, etorkizunean ezartzeko aukera diseinuan sartzea; birgaitze-obretan erregai fosilak ordezkatzea sustatzea; ur bero sanitarioarentzat (UBS) sistema eraginkorren instalazioa bezeroarekin baloratzea; eraginkortasun energetikoaren ziurtagiriak eta eraikuntza jasangarriaren ziurtagiriak lortzea erakundeak garatutako proiektuetan, eta abar.","- Ekipoen, makinen eta instalazioen energia-kontsumoak xehetasunez ezagutzeak hobekuntza-arlo nagusiak zeintzuk diren identifikatzeko aukera ematen du, eta kontsumoa murrizteko eta energia-aurrezpena handitzeko erabaki informatuak hartzea errazten du; ondorioz, kostuak aurreztuz eta berotegi-efektuko gasen emisioak murrizten dira.\n\n- Energia-auditoretza bat egin ezazu. Energia-auditoriak egin badituzu, horiek eguneratzeko aukera ebaluatu. Energia-auditoretzek, erakunde baten energia-fluxuen monitorizazioaren eta analisiaren bidez, energia-kontsumoan sakontzea eta xehetasunez aztertzea ahalbidetzen dute. Kudeaketa eta efizientzia optimizatzeko funtsezko tresna dira, eta prozesu bakoitzerako hobekuntza-aukerak eta teknologia eraginkorrenak identifikatzen dituzte. Iraganean egindako energia-auditoriak baloratu, eta beste ekipo eta/edo instalazio batzuetara zabaltzeko apustua egin.\n\n- Hobekuntza-arlo nagusiak identifikatu, eta Energia Aurrezteko eta Eraginkortasunez Erabiltzeko Plana zehaztu ezazu, kostu-onura erlazio onena duten neurriekin.  Planak energia-kontsumoa murrizteko eta energia berriztagarriak ezartzeko helburu errealistak, zehaztutako helburuak lortzeko ezarri beharreko ekintza zehatzak eta hedatzeko inbertsio-plan bat izan behar ditu. Dagoeneko plan bat edukiz gero, hura eguneratzea baloratu, bereziki hura ezarri ondoren energia-auditoretzak egin badira edo egingo badira\n\n- Energia Aurrezteko eta Eraginkortasunerako Planetik eratorritako neurriak inplementatu, eta, plana eguneratuta badago, egutegi bat eta inbertsio-plan bat egin ezazu, identifikatutako energia aurrezteko eta eraginkortasunez erabiltzeko balizko neurri berriak sartzeko. Neurri horien artean honako hauek nabarmendu daitezke: energia-kudeatzaile bat izendatzea, erabilitako makineriaren eta ekipoen energia-kontsumoak minimizatzea, bereziki obran (gaindimentsionamenduak saihestuz, ekipoen funtzionamendu-parametroak optimizatuz, mantentze-lan egokia eginez,...), obraren barruko koordinazioa optimizatzea, etab., lantokiaren beraren energia-aurrezpena eta -eraginkortasuna hobetzeko neurriekin batera (luminariak ordezkatzea, isolamendu termikoa hobetzea...) eta eraikinaren beraren energia-eraginkortasuneko ziurtagiri bat lortzea.\n\n- Ez ahaztu langile guztien prestakuntza eta trebakuntzaren garrantzia aurrezpen eta eraginkortasun energetikoaren arloan; horrek enpresaren politikarekin bat etortzea erraztuko du, etadeskarbonizazio-helburuak lortzen lagunduko du.\n\nGarrantzitsua da, halaber, egindako eraikuntza, birgaitze eta erreforma berrien energia-beharrak optimizatzea. Horretarako, bezeroarekin baloratu ahal izango da proiektuaren diseinu-fasetik autokontsumoa ezartzeko aukera, edo, bestela, etorkizunean ezartzeko aukera diseinuan sartzea; birgaitze-obretan erregai fosilak ordezkatzea sustatzea; ur bero sanitarioarentzat (UBS) sistema eraginkorren instalazioa bezeroarekin baloratzea; eraginkortasun energetikoaren ziurtagiriak eta eraikuntza jasangarriaren ziurtagiriak lortzea erakundeak garatutako proiektuetan, eta abar.","- Energia-kontsumoen etengabeko kontrola egiten jarraitu. Kontrol horretan ekipo berriak sartzeko aukera baloratu ezazu.\n\n- Erakundearen energia-kudeaketa eta efizientzia optimizatzeko energia-auditoretza eguneratzeko aukera balora ezazu, bai eta hobetzeko aukera berriak eta prozesu bakoitzerako teknologia eraginkorrenak identifikatzeko aukera ere. Iraganean egindako energia-auditoretzak aztertu, eta beste ekipo eta/edo instalazio batzuetara zabaltzeko apustua egin ezazu.\n\n- Energia Aurrezteko eta Efizientzia Energetikorako Planean hobekuntza-aukera berriak sartu, irabazi-kostuaren erlazio hobearekin, eta planaren helburuak eta zehaztutako helburu berriak lortzeko ezarri beharreko ekintza zehatzak eguneratu, baita hura hedatzeko inbertsio-plan bat ere. \n\n- Energia Aurrezteko eta Eraginkortasunez Erabiltzeko Planetik eratorritako neurriak ezartzen jarraitu, etekin-kostu erlazio onena dutenak lehenetsiz.\n\n- Ez ahaztu langile guztien prestakuntza eta trebakuntzaren garrantzia aurrezpen eta eraginkortasun energetikoaren arloan; horrek enpresaren politikarekin bat etortzea erraztuko du, etadeskarbonizazio-helburuak lortzen lagunduko du.\n\nGarrantzitsua da, halaber, egindako eraikuntza, birgaitze eta erreforma berrien energia-beharrak optimizatzea. Horretarako, bezeroarekin baloratu ahal izango da proiektuaren diseinu-fasetik autokontsumoa ezartzeko aukera, edo, bestela, etorkizunean ezartzeko aukera diseinuan sartzea; birgaitze-obretan erregai fosilak ordezkatzea sustatzea; ur bero sanitarioarentzat (UBS) sistema eraginkorren instalazioa bezeroarekin baloratzea; eraginkortasun energetikoaren ziurtagiriak eta eraikuntza jasangarriaren ziurtagiriak lortzea erakundeak garatutako proiektuetan, eta abar."]
[null,"Papera eta kartoia/ Papel y cartón","- Ezagut itzazu zure erakundearen energia-kontsumoak. \nEdozein enpresatan energia-kontsumoa murrizteko lehen urratsa ekipo, makina eta instalazioen energia-kontsumoak zehatz-mehatz ezagutzea da. Horri esker, hobekuntza-arlo nagusiak identifika daitezke, eta kontsumoa murrizteko eta energia-aurrezpena handitzeko erabaki informatuak hartzea errazten da, kostuak aurreztuz eta berotegi-efektuko gasen emisioak murriztuz.\n\n- Energia-auditoretza bat egin ezazu. \nEnergia-auditoretzek, erakunde baten energia-fluxuen monitorizazioaren eta analisiaren bidez, energia-kontsumoan sakontzea eta xehetasunez aztertzea ahalbidetzen dute. Kudeaketa eta efizientzia optimizatzeko funtsezko tresna dira, eta prozesu bakoitzerako hobekuntza-aukerak eta teknologia eraginkorrenak identifikatzen dituzte.\n\n- Hobekuntza-arlo nagusiak identifikatu eta kostu eta etekin erlazio onena duten aurrezpen eta efizientzia energetikoko neurriak finkatu ondoren, Energia Aurrezteko eta Eraginkortasunerako Plana etengabeko hobekuntzako estrategia gisa zehazteko unea da. Planak energia-kontsumoa murrizteko eta energia berriztagarriak ezartzeko helburu errealistak, zehaztutako helburuak lortzeko ezarri beharreko ekintza zehatzak eta hedatzeko inbertsio-plan bat izan behar ditu. \n\n- Ezarri energia Aurrezteko eta Eraginkortasunez Erabiltzeko Planetik eratorritako neurriak. Neurri horien artean honako hauek nabarmendu daitezke: ekipoak eta makineria enpresaren ekoizpen-jardueraren beharretara egokitzea, energia-kudeatzaile bat izendatzea, ekipo ez-eraginkorrak eta kontsumo handikoak ordezkatzea, hondar-energia termikoa atzematea eta berrerabiltzea ahalbidetuko duten berreskuratze-sistemak ezartzea, eta lantokiaren beraren energia-aurrezpena eta -eraginkortasuna hobetzeko beste neurri batzuk (luminariak ordezkatzea, isolamendu termikoa hobetzea...).\n\n- Ez ahaztu langile guztien prestakuntza eta trebakuntzaren garrantzia aurrezpen eta eraginkortasun energetikoaren arloan; horrek enpresaren politikarekin bat etortzea erraztuko du, etadeskarbonizazio-helburuak lortzen lagunduko du.","- Ekipoen, makinen eta instalazioen energia-kontsumoak xehetasunez ezagutzeak hobekuntza-arlo nagusiak zeintzuk diren identifikatzeko aukera ematen du, eta kontsumoa murrizteko eta energia-aurrezpena handitzeko erabaki informatuak hartzea errazten du; ondorioz, kostuak aurreztuz eta berotegi-efektuko gasen emisioak murrizten dira.\n\n- Energia-auditoretza bat egin ezazu. Energia-auditoriak egin badituzu, horiek eguneratzeko aukera ebaluatu. Energia-auditoretzek, erakunde baten energia-fluxuen monitorizazioaren eta analisiaren bidez, energia-kontsumoan sakontzea eta xehetasunez aztertzea ahalbidetzen dute. Kudeaketa eta efizientzia optimizatzeko funtsezko tresna dira, eta prozesu bakoitzerako hobekuntza-aukerak eta teknologia eraginkorrenak identifikatzen dituzte. Iraganean egindako energia-auditoriak baloratu, eta beste ekipo eta/edo instalazio batzuetara zabaltzeko apustua egin.\n\n- Hobekuntza-arlo nagusiak identifikatu, eta Energia Aurrezteko eta Eraginkortasunez Erabiltzeko Plana zehaztu ezazu, kostu-onura erlazio onena duten neurriekin.  Planak energia-kontsumoa murrizteko eta energia berriztagarriak ezartzeko helburu errealistak, zehaztutako helburuak lortzeko ezarri beharreko ekintza zehatzak eta hedatzeko inbertsio-plan bat izan behar ditu. Dagoeneko plan bat edukiz gero, hura eguneratzea baloratu, bereziki ezarri ondoren energia-auditoretzak egin badira edo egingo badira\n\n-Energia Aurrezteko eta Eraginkortasunerako Planetik eratorritako neurriak inplementatu, eta, plana eguneratuta badago, egutegi bat eta inbertsio-plan bat egin ezazu, identifikatutako energia aurrezteko eta eraginkortasunez erabiltzeko balizko neurri berriak sartzeko. Neurri horien artean honako hauek nabarmendu daitezke: ekipoak eta makineria enpresaren ekoizpen-jardueraren beharretara egokitzea, energia-kudeatzaile bat izendatzea, ekipo ez-eraginkorrak eta kontsumo handikoak ordezkatzea, hondar-energia termikoa atzematea eta berrerabiltzea ahalbidetuko duten berreskuratze-sistemak ezartzea, eta lantokiaren beraren energia-aurrezpena eta -eraginkortasuna hobetzeko beste neurri batzuk (luminariak ordezkatzea, isolamendu termikoa hobetzea...).\n\n- Ez ahaztu langile guztien prestakuntza eta trebakuntzaren garrantzia aurrezpen eta eraginkortasun energetikoaren arloan; horrek enpresaren politikarekin bat etortzea erraztuko du, etadeskarbonizazio-helburuak lortzen lagunduko du.","- Energia-kontsumoen etengabeko kontrola egiten jarraitu. Kontrol horretan ekipo berriak sartzeko aukera baloratu ezazu.\n\n- Erakundearen energia-kudeaketa eta efizientzia optimizatzeko energia-auditoretza eguneratzeko aukera balora ezazu, bai eta hobetzeko aukera berriak eta prozesu bakoitzerako teknologia eraginkorrenak identifikatzeko aukera ere. Iraganean egindako energia-auditoretzak aztertu, eta beste ekipo eta/edo instalazio batzuetara zabaltzeko apustua egin ezazu.\n\n- Energia Aurrezteko eta Efizientzia Energetikorako Planean hobekuntza-aukera berriak sartu, irabazi-kostuaren erlazio hobearekin, eta planaren helburuak eta zehaztutako helburu berriak lortzeko ezarri beharreko ekintza zehatzak eguneratu, baita hura hedatzeko inbertsio-plan bat ere. \n\n- Energia Aurrezteko eta Eraginkortasunez Erabiltzeko Planetik eratorritako neurriak ezartzen jarraitu, etekin-kostu erlazio onena dutenak lehenetsiz.\n\n- Ez ahaztu langile guztien prestakuntza eta trebakuntzaren garrantzia aurrezpen eta eraginkortasun energetikoaren arloan; horrek enpresaren politikarekin bat etortzea erraztuko du, etadeskarbonizazio-helburuak lortzen lagunduko du."]
[null,"Metalmekanikoa/ Metalmecánico","- Ezagut itzazu zure erakundearen energia-kontsumoak. \nEdozein enpresatan energia-kontsumoa murrizteko lehen urratsa ekipo, makina eta instalazioen energia-kontsumoak zehatz-mehatz ezagutzea da. Horri esker, hobekuntza-arlo nagusiak identifika daitezke, eta kontsumoa murrizteko eta energia-aurrezpena handitzeko erabaki informatuak hartzea errazten da, kostuak aurreztuz eta berotegi-efektuko gasen emisioak murriztuz.\n\n- Energia-auditoretza bat egin ezazu. \nEnergia-auditoretzek, erakunde baten energia-fluxuen monitorizazioaren eta analisiaren bidez, energia-kontsumoan sakontzea eta xehetasunez aztertzea ahalbidetzen dute. Kudeaketa eta efizientzia optimizatzeko funtsezko tresna dira, eta prozesu bakoitzerako hobekuntza-aukerak eta teknologia eraginkorrenak identifikatzen dituzte.\n\n- Hobekuntza-arlo nagusiak identifikatu eta kostu eta etekin erlazio onena duten aurrezpen eta efizientzia energetikoko neurriak finkatu ondoren, Energia Aurrezteko eta Eraginkortasunerako Plana etengabeko hobekuntzako estrategia gisa zehazteko unea da. Planak energia-kontsumoa murrizteko eta energia berriztagarriak ezartzeko helburu errealistak, zehaztutako helburuak lortzeko ezarri beharreko ekintza zehatzak eta hedatzeko inbertsio-plan bat izan behar ditu. \n\n- Ezarri energia Aurrezteko eta Eraginkortasunez Erabiltzeko Planetik eratorritako neurriak. Neurri horien artean, honako hauek nabarmendu ohi dira: ekipoak eta makineria enpresaren ekoizpen-jardueraren beharretara egokitzea, energia-kudeatzaile bat izendatzea, ekipo ez-eraginkorrak eta kontsumo handikoak ordezkatzea, hondar-energia termikoa atzematea eta berrerabiltzea ahalbidetuko duten berreskuratze-sistemak ezartzea, 4.0 industriaren kontzeptua inplementatzea, energia erreaktiboaren kontsumoa murriztea, goi-tentsioko kontratazioa baloratzea, lantokiaren beraren energia-aurrezpena eta -eraginkortasuna hobetzeko beste neurri batzuk (luminariak ordezkatzea, isolamendu termikoa hobetzea...).\n\n- Ez ahaztu langile guztien prestakuntza eta trebakuntzaren garrantzia aurrezpen eta eraginkortasun energetikoaren arloan; horrek enpresaren politikarekin bat etortzea erraztuko du, etadeskarbonizazio-helburuak lortzen lagunduko du.","- Ekipoen, makinen eta instalazioen energia-kontsumoak xehetasunez ezagutzeak hobekuntza-arlo nagusiak zeintzuk diren identifikatzeko aukera ematen du, eta kontsumoa murrizteko eta energia-aurrezpena handitzeko erabaki informatuak hartzea errazten du; ondorioz, kostuak aurreztuz eta berotegi-efektuko gasen emisioak murrizten dira.\n\n- Energia-auditoretza bat egin ezazu. Energia-auditoriak egin badituzu, horiek eguneratzeko aukera ebaluatu. Energia-auditoretzek, erakunde baten energia-fluxuen monitorizazioaren eta analisiaren bidez, energia-kontsumoan sakontzea eta xehetasunez aztertzea ahalbidetzen dute. Kudeaketa eta efizientzia optimizatzeko funtsezko tresna dira, eta prozesu bakoitzerako hobekuntza-aukerak eta teknologia eraginkorrenak identifikatzen dituzte. Iraganean egindako energia-auditoriak baloratu, eta beste ekipo eta/edo instalazio batzuetara zabaltzeko apustua egin.\n\n- Hobekuntza-arlo nagusiak identifikatu, eta Energia Aurrezteko eta Eraginkortasunez Erabiltzeko Plana zehaztu ezazu, kostu-onura erlazio onena duten neurriekin.  Planak energia-kontsumoa murrizteko eta energia berriztagarriak ezartzeko helburu errealistak, zehaztutako helburuak lortzeko ezarri beharreko ekintza zehatzak eta hedatzeko inbertsio-plan bat izan behar ditu. Dagoeneko plan bat edukiz gero, hura eguneratzea baloratu, bereziki ezarri ondoren energia-auditoretzak egin badira edo egingo badira\n\n- Energia Aurrezteko eta Eraginkortasunerako Planetik eratorritako neurriak inplementatu, eta, plana eguneratuta badago, egutegi bat eta inbertsio-plan bat egin ezazu, identifikatutako energia aurrezteko eta eraginkortasunez erabiltzeko balizko neurri berriak sartzeko. Neurri horien artean, honako hauek nabarmendu ohi dira: ekipoak eta makineria enpresaren ekoizpen-jardueraren beharretara egokitzea, energia-kudeatzaile bat izendatzea, ekipo ez-eraginkorrak eta kontsumo handikoak ordezkatzea, hondar-energia termikoa atzematea eta berrerabiltzea ahalbidetuko duten berreskuratze-sistemak ezartzea, 4.0 industriaren kontzeptua inplementatzea, energia erreaktiboaren kontsumoa murriztea, goi-tentsioko kontratazioa baloratzea, lantokiaren beraren energia-aurrezpena eta -eraginkortasuna hobetzeko beste neurri batzuk (luminariak ordezkatzea, isolamendu termikoa hobetzea...).\n\n- Ez ahaztu langile guztien prestakuntza eta trebakuntzaren garrantzia aurrezpen eta eraginkortasun energetikoaren arloan; horrek enpresaren politikarekin bat etortzea erraztuko du, etadeskarbonizazio-helburuak lortzen lagunduko du.","- Energia-kontsumoen etengabeko kontrola egiten jarraitu. Kontrol horretan ekipo berriak sartzeko aukera baloratu ezazu.\n\n- Erakundearen energia-kudeaketa eta efizientzia optimizatzeko energia-auditoretza eguneratzeko aukera balora ezazu, bai eta hobetzeko aukera berriak eta prozesu bakoitzerako teknologia eraginkorrenak identifikatzeko aukera ere. Iraganean egindako energia-auditoretzak aztertu, eta beste ekipo eta/edo instalazio batzuetara zabaltzeko apustua egin ezazu.\n\n- Energia Aurrezteko eta Efizientzia Energetikorako Planean hobekuntza-aukera berriak sartu, irabazi-kostuaren erlazio hobearekin, eta planaren helburuak eta zehaztutako helburu berriak lortzeko ezarri beharreko ekintza zehatzak eguneratu, baita hura hedatzeko inbertsio-plan bat ere. \n\n- Energia Aurrezteko eta Eraginkortasunez Erabiltzeko Planetik eratorritako neurriak ezartzen jarraitu, etekin-kostu erlazio onena dutenak lehenetsiz.\n\n- Ez ahaztu langile guztien prestakuntza eta trebakuntzaren garrantzia aurrezpen eta eraginkortasun energetikoaren arloan; horrek enpresaren politikarekin bat etortzea erraztuko du, etadeskarbonizazio-helburuak lortzen lagunduko du."]
[null,"Makina-erreminta/ Máquina-herramienta","- Ezagut itzazu zure erakundearen energia-kontsumoak. \nEdozein enpresatan energia-kontsumoa murrizteko lehen urratsa ekipo, makina eta instalazioen energia-kontsumoak zehatz-mehatz ezagutzea da. Horri esker, hobekuntza-arlo nagusiak identifika daitezke, eta kontsumoa murrizteko eta energia-aurrezpena handitzeko erabaki informatuak hartzea errazten da, kostuak aurreztuz eta berotegi-efektuko gasen emisioak murriztuz.\n\n- Energia-auditoretza bat egin ezazu. \nEnergia-auditoretzek, erakunde baten energia-fluxuen monitorizazioaren eta analisiaren bidez, energia-kontsumoan sakontzea eta xehetasunez aztertzea ahalbidetzen dute. Kudeaketa eta efizientzia optimizatzeko funtsezko tresna dira, eta prozesu bakoitzerako hobekuntza-aukerak eta teknologia eraginkorrenak identifikatzen dituzte.\n\n- Hobekuntza-arlo nagusiak identifikatu eta kostu eta etekin erlazio onena duten aurrezpen eta efizientzia energetikoko neurriak finkatu ondoren, Energia Aurrezteko eta Eraginkortasunerako Plana etengabeko hobekuntzako estrategia gisa zehazteko unea da. Planak energia-kontsumoa murrizteko eta energia berriztagarriak ezartzeko helburu errealistak, zehaztutako helburuak lortzeko ezarri beharreko ekintza zehatzak eta hedatzeko inbertsio-plan bat izan behar ditu. \n\n- Ezarri energia Aurrezteko eta Eraginkortasunez Erabiltzeko Planetik eratorritako neurriak. Neurri horien artean, honako hauek nabarmendu daitezke: ekipoak eta makineria erakundearen ekoizpen-jardueraren beharretara egokitzea, kontsumoa murrizteko; energia-kudeatzaile bat izendatzea; ekipo ez-eraginkorrak eta kontsumo handikoak ordeztea; hondar-energia termikoa atzitzea eta berrerabiltzea ahalbidetuko duten berreskuratze-sistemak ezartzea; 4.0 industria ezartzea; energia erreaktiboaren kontsumoa murriztea; goi-tentsioko energia elektrikoaren kontratazioa balioestea; eta lantokiaren beraren energia-aurrezpena eta -eraginkortasuna hobetzeko beste neurri batzuk (luminariak ordezkatzea, isolamendu termikoa hobetzea...).\n\n- Ez ahaztu langile guztien prestakuntza eta trebakuntzaren garrantzia aurrezpen eta eraginkortasun energetikoaren arloan; horrek enpresaren politikarekin bat etortzea erraztuko du, etadeskarbonizazio-helburuak lortzen lagunduko du.","- Ekipoen, makinen eta instalazioen energia-kontsumoak xehetasunez ezagutzeak hobekuntza-arlo nagusiak zeintzuk diren identifikatzeko aukera ematen du, eta kontsumoa murrizteko eta energia-aurrezpena handitzeko erabaki informatuak hartzea errazten du; ondorioz, kostuak aurreztuz eta berotegi-efektuko gasen emisioak murrizten dira.\n\n- Energia-auditoretza bat egin ezazu. Energia-auditoriak egin badituzu, horiek eguneratzeko aukera ebaluatu. Energia-auditoretzek, erakunde baten energia-fluxuen monitorizazioaren eta analisiaren bidez, energia-kontsumoan sakontzea eta xehetasunez aztertzea ahalbidetzen dute. Kudeaketa eta efizientzia optimizatzeko funtsezko tresna dira, eta prozesu bakoitzerako hobekuntza-aukerak eta teknologia eraginkorrenak identifikatzen dituzte. Iraganean egindako energia-auditoriak baloratu, eta beste ekipo eta/edo instalazio batzuetara zabaltzeko apustua egin.\n\n- Hobekuntza-arlo nagusiak identifikatu, eta Energia Aurrezteko eta Eraginkortasunez Erabiltzeko Plana zehaztu ezazu, kostu-onura erlazio onena duten neurriekin.  Planak energia-kontsumoa murrizteko eta energia berriztagarriak ezartzeko helburu errealistak, zehaztutako helburuak lortzeko ezarri beharreko ekintza zehatzak eta hedatzeko inbertsio-plan bat izan behar ditu. Dagoeneko plan bat edukiz gero, hura eguneratzea baloratu, bereziki ezarri ondoren energia-auditoretzak egin badira edo egingo badira\n\n- Energia Aurrezteko eta Eraginkortasunerako Planetik eratorritako neurriak inplementatu, eta, plana eguneratuta badago, egutegi bat eta inbertsio-plan bat egin ezazu, identifikatutako energia aurrezteko eta eraginkortasunez erabiltzeko balizko neurri berriak sartzeko. Neurri horien artean, honako hauek nabarmendu daitezke: ekipoak eta makineria erakundearen ekoizpen-jardueraren beharretara egokitzea, kontsumoa murrizteko; energia-kudeatzaile bat izendatzea; ekipo ez-eraginkorrak eta kontsumo handikoak ordeztea; hondar-energia termikoa atzitzea eta berrerabiltzea ahalbidetuko duten berreskuratze-sistemak ezartzea; 4.0 industria ezartzea; energia erreaktiboaren kontsumoa murriztea; goi-tentsioko energia elektrikoaren kontratazioa balioestea; eta lantokiaren beraren energia-aurrezpena eta -eraginkortasuna hobetzeko beste neurri batzuk (luminariak ordezkatzea, isolamendu termikoa hobetzea...).\n\n- Ez ahaztu langile guztien prestakuntza eta trebakuntzaren garrantzia aurrezpen eta eraginkortasun energetikoaren arloan; horrek enpresaren politikarekin bat etortzea erraztuko du, etadeskarbonizazio-helburuak lortzen lagunduko du.","- Energia-kontsumoen etengabeko kontrola egiten jarraitu. Kontrol horretan ekipo berriak sartzeko aukera baloratu ezazu.\n\n- Erakundearen energia-kudeaketa eta efizientzia optimizatzeko energia-auditoretza eguneratzeko aukera balora ezazu, bai eta hobetzeko aukera berriak eta prozesu bakoitzerako teknologia eraginkorrenak identifikatzeko aukera ere. Iraganean egindako energia-auditoretzak aztertu, eta beste ekipo eta/edo instalazio batzuetara zabaltzeko apustua egin ezazu.\n\n- Energia Aurrezteko eta Efizientzia Energetikorako Planean hobekuntza-aukera berriak sartu, irabazi-kostuaren erlazio hobearekin, eta planaren helburuak eta zehaztutako helburu berriak lortzeko ezarri beharreko ekintza zehatzak eguneratu, baita hura hedatzeko inbertsio-plan bat ere. \n\n- Energia Aurrezteko eta Eraginkortasunez Erabiltzeko Planetik eratorritako neurriak ezartzen jarraitu, etekin-kostu erlazio onena dutenak lehenetsiz.\n\n- Ez ahaztu langile guztien prestakuntza eta trebakuntzaren garrantzia aurrezpen eta eraginkortasun energetikoaren arloan; horrek enpresaren politikarekin bat etortzea erraztuko du, etadeskarbonizazio-helburuak lortzen lagunduko du."]
[null,"Nekazaritza eta elikagai sektorea/ Agroalimentario","- Ezagut itzazu zure erakundearen energia-kontsumoak. \nEdozein enpresatan energia-kontsumoa murrizteko lehen urratsa ekipo, makina eta instalazioen energia-kontsumoak zehatz-mehatz ezagutzea da. Horri esker, hobekuntza-arlo nagusiak identifika daitezke, eta kontsumoa murrizteko eta energia-aurrezpena handitzeko erabaki informatuak hartzea errazten da, kostuak aurreztuz eta berotegi-efektuko gasen emisioak murriztuz.\n\n- Energia-auditoretza bat egin ezazu. \nEnergia-auditoretzek, erakunde baten energia-fluxuen monitorizazioaren eta analisiaren bidez, energia-kontsumoan sakontzea eta xehetasunez aztertzea ahalbidetzen dute. Kudeaketa eta efizientzia optimizatzeko funtsezko tresna dira, eta prozesu bakoitzerako hobekuntza-aukerak eta teknologia eraginkorrenak identifikatzen dituzte.\n\n- Hobekuntza-arlo nagusiak identifikatu eta kostu eta etekin erlazio onena duten aurrezpen eta efizientzia energetikoko neurriak finkatu ondoren, Energia Aurrezteko eta Eraginkortasunerako Plana etengabeko hobekuntzako estrategia gisa zehazteko unea da. Planak energia-kontsumoa murrizteko eta energia berriztagarriak ezartzeko helburu errealistak, zehaztutako helburuak lortzeko ezarri beharreko ekintza zehatzak eta hedatzeko inbertsio-plan bat izan behar ditu. \n\n- Ezarri energia Aurrezteko eta Eraginkortasunez Erabiltzeko Planetik eratorritako neurriak. Neurri horien artean honako hauek azpimarra daitezke: energia-kudeatzaile bat izendatzea; erabilitako makineriaren eta ekipoen energia-kontsumoak minimizatzea, batez ere hotz- eta bero-ekipoen optimizazioa; hondar-beroa berreskuratzea; 4.0 industriaren kontzeptua inplementatzeko aukera, eta eraikuntzaren beraren energia-eraginkortasuna hobetzea (inguratzailearen isolamendu termikoa, klimatizazioa eta argiztapena hobetzeko interes bereziarekin).\n\n- Ez ahaztu langile guztien prestakuntza eta trebakuntzaren garrantzia aurrezpen eta eraginkortasun energetikoaren arloan; horrek enpresaren politikarekin bat etortzea erraztuko du, etadeskarbonizazio-helburuak lortzen lagunduko du.","- Ekipoen, makinen eta instalazioen energia-kontsumoak xehetasunez ezagutzeak hobekuntza-arlo nagusiak zeintzuk diren identifikatzeko aukera ematen du, eta kontsumoa murrizteko eta energia-aurrezpena handitzeko erabaki informatuak hartzea errazten du; ondorioz, kostuak aurreztuz eta berotegi-efektuko gasen emisioak murrizten dira.\n\n- Energia-auditoretza bat egin ezazu. Energia-auditoriak egin badituzu, horiek eguneratzeko aukera ebaluatu. Energia-auditoretzek, erakunde baten energia-fluxuen monitorizazioaren eta analisiaren bidez, energia-kontsumoan sakontzea eta xehetasunez aztertzea ahalbidetzen dute. Kudeaketa eta efizientzia optimizatzeko funtsezko tresna dira, eta prozesu bakoitzerako hobekuntza-aukerak eta teknologia eraginkorrenak identifikatzen dituzte. Iraganean egindako energia-auditoriak baloratu, eta beste ekipo eta/edo instalazio batzuetara zabaltzeko apustua egin.\n\n- Hobekuntza-arlo nagusiak identifikatu, eta Energia Aurrezteko eta Eraginkortasunez Erabiltzeko Plana zehaztu ezazu, kostu-onura erlazio onena duten neurriekin.  Planak energia-kontsumoa murrizteko eta energia berriztagarriak ezartzeko helburu errealistak, zehaztutako helburuak lortzeko ezarri beharreko ekintza zehatzak eta hedatzeko inbertsio-plan bat izan behar ditu. Dagoeneko plan bat edukiz gero, hura eguneratzea baloratu, bereziki ezarri ondoren energia-auditoretzak egin badira edo egingo badira\n\n- Energia Aurrezteko eta Eraginkortasunerako Planetik eratorritako neurriak inplementatu, eta, plana eguneratuta badago, egutegi bat eta inbertsio-plan bat egin ezazu, identifikatutako energia aurrezteko eta eraginkortasunez erabiltzeko balizko neurri berriak sartzeko. Neurri horien artean honako hauek azpimarra daitezke: energia-kudeatzaile bat izendatzea; erabilitako makineriaren eta ekipoen energia-kontsumoak minimizatzea, batez ere hotz- eta bero-ekipoen optimizazioa; hondar-beroa berreskuratzea; 4.0 industriaren kontzeptua inplementatzeko aukera, eta eraikuntzaren beraren energia-eraginkortasuna hobetzea (inguratzailearen isolamendu termikoa, klimatizazioa eta argiztapena hobetzeko interes bereziarekin).\n\n- Ez ahaztu langile guztien prestakuntza eta trebakuntzaren garrantzia aurrezpen eta eraginkortasun energetikoaren arloan; horrek enpresaren politikarekin bat etortzea erraztuko du, etadeskarbonizazio-helburuak lortzen lagunduko du.","- Energia-kontsumoen etengabeko kontrola egiten jarraitu. Kontrol horretan ekipo berriak sartzeko aukera baloratu ezazu.\n\n- Erakundearen energia-kudeaketa eta efizientzia optimizatzeko energia-auditoretza eguneratzeko aukera balora ezazu, bai eta hobetzeko aukera berriak eta prozesu bakoitzerako teknologia eraginkorrenak identifikatzeko aukera ere. Iraganean egindako energia-auditoretzak aztertu, eta beste ekipo eta/edo instalazio batzuetara zabaltzeko apustua egin ezazu.\n\n- Energia Aurrezteko eta Efizientzia Energetikorako Planean hobekuntza-aukera berriak sartu, irabazi-kostuaren erlazio hobearekin, eta planaren helburuak eta zehaztutako helburu berriak lortzeko ezarri beharreko ekintza zehatzak eguneratu, baita hura hedatzeko inbertsio-plan bat ere. \n\n- Energia Aurrezteko eta Eraginkortasunez Erabiltzeko Planetik eratorritako neurriak ezartzen jarraitu, etekin-kostu erlazio onena dutenak lehenetsiz.\n\n- Ez ahaztu langile guztien prestakuntza eta trebakuntzaren garrantzia aurrezpen eta eraginkortasun energetikoaren arloan; horrek enpresaren politikarekin bat etortzea erraztuko du, etadeskarbonizazio-helburuak lortzen lagunduko du."]
[null,"Zerbitzuak/ Servicios","- Ezagut itzazu zure erakundearen energia-kontsumoak. \nEdozein enpresatan energia-kontsumoa murrizteko lehen urratsa ekipo, makina eta instalazioen energia-kontsumoak zehatz-mehatz ezagutzea da. Horri esker, hobekuntza-arlo nagusiak identifika daitezke, eta kontsumoa murrizteko eta energia-aurrezpena handitzeko erabaki informatuak hartzea errazten da, kostuak aurreztuz eta berotegi-efektuko gasen emisioak murriztuz.\n\n- Energia-auditoretza bat egin ezazu. \nEnergia-auditoretzek, erakunde baten energia-fluxuen monitorizazioaren eta analisiaren bidez, energia-kontsumoan sakontzea eta xehetasunez aztertzea ahalbidetzen dute. Kudeaketa eta efizientzia optimizatzeko funtsezko tresna dira, eta prozesu bakoitzerako hobekuntza-aukerak eta teknologia eraginkorrenak identifikatzen dituzte.\n\n- Hobekuntza-arlo nagusiak identifikatu eta kostu eta etekin erlazio onena duten aurrezpen eta efizientzia energetikoko neurriak finkatu ondoren, Energia Aurrezteko eta Eraginkortasunerako Plana etengabeko hobekuntzako estrategia gisa zehazteko unea da. Planak energia-kontsumoa murrizteko eta energia berriztagarriak ezartzeko helburu errealistak, zehaztutako helburuak lortzeko ezarri beharreko ekintza zehatzak eta hedatzeko inbertsio-plan bat izan behar ditu. \n\n- Ezarri energia Aurrezteko eta Eraginkortasunez Erabiltzeko Planetik eratorritako neurriak. Neurri horien artean honako hauek nabarmendu daitezke: establezimenduen/eraikinen eraginkortasun energetikoa hobetzea (interes berezia jarriz inguratzailearen isolamendu termikoa, klimatizazioa, ur bero sanitarioa eta argiztapena hobetzeko); hotz-ekipoen eraginkortasuna hobetzea, hozgarri-ihesak saihestea, kudeatzaile energetiko bat izendatzea edo hondar-energia termikoa harrapatzea eta berrerabiltzea ahalbidetuko duten berreskuratze-sistemak ezartzea, besteak beste.  \n\n- Ez ahaztu langile guztien prestakuntza eta trebakuntzaren garrantzia aurrezpen eta eraginkortasun energetikoaren arloan; horrek enpresaren politikarekin bat etortzea erraztuko du, etadeskarbonizazio-helburuak lortzen lagunduko du.","- Ekipoen, makinen eta instalazioen energia-kontsumoak xehetasunez ezagutzeak hobekuntza-arlo nagusiak zeintzuk diren identifikatzeko aukera ematen du, eta kontsumoa murrizteko eta energia-aurrezpena handitzeko erabaki informatuak hartzea errazten du; ondorioz, kostuak aurreztuz eta berotegi-efektuko gasen emisioak murrizten dira.\n\n- Energia-auditoretza bat egin ezazu. Energia-auditoriak egin badituzu, horiek eguneratzeko aukera ebaluatu. Energia-auditoretzek, erakunde baten energia-fluxuen monitorizazioaren eta analisiaren bidez, energia-kontsumoan sakontzea eta xehetasunez aztertzea ahalbidetzen dute. Kudeaketa eta efizientzia optimizatzeko funtsezko tresna dira, eta prozesu bakoitzerako hobekuntza-aukerak eta teknologia eraginkorrenak identifikatzen dituzte. Iraganean egindako energia-auditoriak baloratu, eta beste ekipo eta/edo instalazio batzuetara zabaltzeko apustua egin.\n\n- Hobekuntza-arlo nagusiak identifikatu, eta Energia Aurrezteko eta Eraginkortasunez Erabiltzeko Plana zehaztu ezazu, kostu-onura erlazio onena duten neurriekin.  Planak energia-kontsumoa murrizteko eta energia berriztagarriak ezartzeko helburu errealistak, zehaztutako helburuak lortzeko ezarri beharreko ekintza zehatzak eta hedatzeko inbertsio-plan bat izan behar ditu. Dagoeneko plan bat edukiz gero, hura eguneratzea baloratu, bereziki ezarri ondoren energia-auditoretzak egin badira edo egingo badira\n\n- Energia Aurrezteko eta Eraginkortasunerako Planetik eratorritako neurriak inplementatu, eta, plana eguneratuta badago, egutegi bat eta inbertsio-plan bat egin ezazu, identifikatutako energia aurrezteko eta eraginkortasunez erabiltzeko balizko neurri berriak sartzeko. Neurri horien artean honako hauek nabarmendu daitezke: establezimenduen/eraikinen eraginkortasun energetikoa hobetzea (interes berezia jarriz inguratzailearen isolamendu termikoa, klimatizazioa, ur bero sanitarioa eta argiztapena hobetzeko); hotz-ekipoen eraginkortasuna hobetzea, hozgarri-ihesak saihestea, kudeatzaile energetiko bat izendatzea edo hondar-energia termikoa harrapatzea eta berrerabiltzea ahalbidetuko duten berreskuratze-sistemak ezartzea, besteak beste.  \n\n- Ez ahaztu langile guztien prestakuntza eta trebakuntzaren garrantzia aurrezpen eta eraginkortasun energetikoaren arloan; horrek enpresaren politikarekin bat etortzea erraztuko du, etadeskarbonizazio-helburuak lortzen lagunduko du.","- Energia-kontsumoen etengabeko kontrola egiten jarraitu. Kontrol horretan ekipo berriak sartzeko aukera baloratu ezazu.\n\n- Erakundearen energia-kudeaketa eta efizientzia optimizatzeko energia-auditoretza eguneratzeko aukera balora ezazu, bai eta hobetzeko aukera berriak eta prozesu bakoitzerako teknologia eraginkorrenak identifikatzeko aukera ere. Iraganean egindako energia-auditoretzak aztertu, eta beste ekipo eta/edo instalazio batzuetara zabaltzeko apustua egin ezazu.\n\n- Energia Aurrezteko eta Efizientzia Energetikorako Planean hobekuntza-aukera berriak sartu, irabazi-kostuaren erlazio hobearekin, eta planaren helburuak eta zehaztutako helburu berriak lortzeko ezarri beharreko ekintza zehatzak eguneratu, baita hura hedatzeko inbertsio-plan bat ere. \n\n- Energia Aurrezteko eta Eraginkortasunez Erabiltzeko Planetik eratorritako neurriak ezartzen jarraitu, etekin-kostu erlazio onena dutenak lehenetsiz.\n\n- Ez ahaztu langile guztien prestakuntza eta trebakuntzaren garrantzia aurrezpen eta eraginkortasun energetikoaren arloan; horrek enpresaren politikarekin bat etortzea erraztuko du, etadeskarbonizazio-helburuak lortzen lagunduko du."]
[null,"Beste batzuk/ Otros","- Ezagut itzazu zure erakundearen energia-kontsumoak. \nEdozein enpresatan energia-kontsumoa murrizteko lehen urratsa ekipo, makina eta instalazioen energia-kontsumoak zehatz-mehatz ezagutzea da. Horri esker, hobekuntza-arlo nagusiak identifika daitezke, eta kontsumoa murrizteko eta energia-aurrezpena handitzeko erabaki informatuak hartzea errazten da, kostuak aurreztuz eta berotegi-efektuko gasen emisioak murriztuz.\n\n- Energia-auditoretza bat egin ezazu. \nEnergia-auditoretzek, erakunde baten energia-fluxuen monitorizazioaren eta analisiaren bidez, energia-kontsumoan sakontzea eta xehetasunez aztertzea ahalbidetzen dute. Kudeaketa eta efizientzia optimizatzeko funtsezko tresna dira, eta prozesu bakoitzerako hobekuntza-aukerak eta teknologia eraginkorrenak identifikatzen dituzte.\n\n- Hobekuntza-arlo nagusiak identifikatu eta kostu eta etekin erlazio onena duten aurrezpen eta efizientzia energetikoko neurriak finkatu ondoren, Energia Aurrezteko eta Eraginkortasunerako Plana etengabeko hobekuntzako estrategia gisa zehazteko unea da. Planak energia-kontsumoa murrizteko eta energia berriztagarriak ezartzeko helburu errealistak, zehaztutako helburuak lortzeko ezarri beharreko ekintza zehatzak eta hedatzeko inbertsio-plan bat izan behar ditu. \n\n- Ezarri energia Aurrezteko eta Eraginkortasunez Erabiltzeko Planetik eratorritako neurriak. Neurri horien artean honako hauek nabarmendu ohi dira: ekipoen, instalazioen eta makinen monitorizazioa; ekipoak eta makineria enpresaren ekoizpen-jardueraren beharretara egokitzea; ekipo ez-eraginkorrak eta kontsumo handikoak ordezkatzea; energia-kudeatzaile bat izendatzea; lantokiaren beraren energia-aurrezpena eta -eraginkortasuna hobetzeko neurriak (luminariak ordezkatzea, isolamendu termikoa hobetzea...); hondar-energia termikoa atzitzea eta berrerabiltzea ahalbidetuko duten berreskuratze-sistemak ezartzea, besteak beste.\n\n- Ez ahaztu langile guztien prestakuntza eta trebakuntzaren garrantzia aurrezpen eta eraginkortasun energetikoaren arloan; horrek enpresaren politikarekin bat etortzea erraztuko du, etadeskarbonizazio-helburuak lortzen lagunduko du.","- Ekipoen, makinen eta instalazioen energia-kontsumoak xehetasunez ezagutzeak hobekuntza-arlo nagusiak zeintzuk diren identifikatzeko aukera ematen du, eta kontsumoa murrizteko eta energia-aurrezpena handitzeko erabaki informatuak hartzea errazten du; ondorioz, kostuak aurreztuz eta berotegi-efektuko gasen emisioak murrizten dira.\n\n- Energia-auditoretza bat egin ezazu. Energia-auditoriak egin badituzu, horiek eguneratzeko aukera ebaluatu. Energia-auditoretzek, erakunde baten energia-fluxuen monitorizazioaren eta analisiaren bidez, energia-kontsumoan sakontzea eta xehetasunez aztertzea ahalbidetzen dute. Kudeaketa eta efizientzia optimizatzeko funtsezko tresna dira, eta prozesu bakoitzerako hobekuntza-aukerak eta teknologia eraginkorrenak identifikatzen dituzte. Iraganean egindako energia-auditoriak baloratu, eta beste ekipo eta/edo instalazio batzuetara zabaltzeko apustua egin.\n\n- Hobekuntza-arlo nagusiak identifikatu, eta Energia Aurrezteko eta Eraginkortasunez Erabiltzeko Plana zehaztu ezazu, kostu-onura erlazio onena duten neurriekin.  Planak energia-kontsumoa murrizteko eta energia berriztagarriak ezartzeko helburu errealistak, zehaztutako helburuak lortzeko ezarri beharreko ekintza zehatzak eta hedatzeko inbertsio-plan bat izan behar ditu. Dagoeneko plan bat edukiz gero, hura eguneratzea baloratu, bereziki ezarri ondoren energia-auditoretzak egin badira edo egingo badira\n\n- Energia Aurrezteko eta Eraginkortasunez Erabiltzeko Planetik eratorritako neurriak ezartzen jarrai ezazu. Neurri horien artean honako hauek nabarmendu ohi dira: ekipoen, instalazioen eta makinen monitorizazioa; ekipoak eta makineria enpresaren ekoizpen-jardueraren beharretara egokitzea; ekipo ez-eraginkorrak eta kontsumo handikoak ordezkatzea; energia-kudeatzaile bat izendatzea; lantokiaren beraren energia-aurrezpena eta -eraginkortasuna hobetzeko neurriak (luminariak ordezkatzea, isolamendu termikoa hobetzea...); hondar-energia termikoa atzitzea eta berrerabiltzea ahalbidetuko duten berreskuratze-sistemak ezartzea, besteak beste.\n\n- Ez ahaztu langile guztien prestakuntza eta trebakuntzaren garrantzia aurrezpen eta eraginkortasun energetikoaren arloan; horrek enpresaren politikarekin bat etortzea erraztuko du, etadeskarbonizazio-helburuak lortzen lagunduko du.","- Energia-kontsumoen etengabeko kontrola egiten jarraitu. Kontrol horretan ekipo berriak sartzeko aukera baloratu ezazu.\n\n- Erakundearen energia-kudeaketa eta efizientzia optimizatzeko energia-auditoretza eguneratzeko aukera balora ezazu, bai eta hobetzeko aukera berriak eta prozesu bakoitzerako teknologia eraginkorrenak identifikatzeko aukera ere. Iraganean egindako energia-auditoretzak aztertu, eta beste ekipo eta/edo instalazio batzuetara zabaltzeko apustua egin ezazu.\n\n- Energia Aurrezteko eta Efizientzia Energetikorako Planean hobekuntza-aukera berriak sartu, irabazi-kostuaren erlazio hobearekin, eta planaren helburuak eta zehaztutako helburu berriak lortzeko ezarri beharreko ekintza zehatzak eguneratu, baita hura hedatzeko inbertsio-plan bat ere. \n\n- Energia Aurrezteko eta Eraginkortasunez Erabiltzeko Planetik eratorritako neurriak ezartzen jarraitu, etekin-kostu erlazio onena dutenak lehenetsiz.\n\n- Ez ahaztu langile guztien prestakuntza eta trebakuntzaren garrantzia aurrezpen eta eraginkortasun energetikoaren arloan; horrek enpresaren politikarekin bat etortzea erraztuko du, etadeskarbonizazio-helburuak lortzen lagunduko du."]
[null,null,"< 30 %","> 30 y < 70 %","> 70 %"]
["Energía renovable","Eraikuntza/ Construcción","- Energia berriztagarriak ezartzea eta erregai fosilak ordezkatzea funtsezkoak dira trantsizio energetikorako. \nAzter ezazu zure enpresan autokontsumo energetikoa ezartzearen bideragarritasuna. Horrek zure mendekotasuna murriztea ahalbidetuko dizu, baita zure karbono-aztarna ere. Autokontsumoa ezartzea bideragarria edo nahikoa ez bada zure erakundearen energia elektrikoaren eskaera guztiaasetzeko, karbono-aztarna zeharka murrizteko beste neurri bat energia elektrikoa kontratatzea izan daiteke, jatorri berriztagarria bermatuta.\n\n- Balora ezazu erregai fosilak ordezko erregaiekin ordezkatzeko aukera; adibidez, gas-galdaren ordez biomasa, aerotermia edo halako  beste sistemaren bat erabiltzea.","- Azter ezazu bideragarria den autokontsumo energetikoa zure enpresan ezartzea, edo, halakorik izanez gero, zabaldu instalazio berriekin. Autokontsumoagatik sortu ezin den energia elektrikoaren kasuan, jatorri berriztagarria bermatzen duen energia elektrikoaren kontratazioa baloratezazu.\n\n- Balora ezazu erregai fosilak ordezko erregaiekin ordezkatzeko aukera; adibidez, gas-galdaren ordez biomasa, aerotermia edo halako  beste sistemaren bat erabiltzea.","- Balora ezazu autokontsumoaren bidez sortutako energiaren ehunekoa handitzea. Autokontsumoagatik sortu ezin den energia elektrikoaren kasuan, jatorri berriztagarria bermatzen duen energia elektrikoaren kontratazioa balora ezazu.\n\n- Erabilitako erregai fosilak ordezko erregaiekin ordezten jarrai ezazu, edo, adibidez, gas-galdarak ordezko beste erregai batekin (esaterako,biomasa) edo beste sistema batekin (aerotermia, adibidez) ordezkatu.\n"]
[null,"Papera eta kartoia/ Papel y cartón","- Berriztagarriak ezartzea eta erregai fosilak ordezkatzea funtsezkoak dira trantsizio energetikorako. \nAzter ezazu zure enpresan autokontsumo energetikoa ezartzearen bideragarritasuna. Horrek zure mendekotasuna murriztea ahalbidetuko dizu, baita zure karbono-aztarna ere. Autokontsumoa ezartzea bideragarria edo nahikoa ez bada zure erakundearen energia elektrikoaren eskaera guztiaasetzeko, karbono-aztarna zeharka murrizteko beste neurri bat energia elektrikoa kontratatzea izan daiteke, jatorri berriztagarria bermatuta.\n\n- Balora ezazu erregai fosilak ordezko erregaiekin ordezkatzeko aukera; adibidez, gas-galdaren ordez biomasa, aerotermia edo halako beste sistemaren bat erabiltzea. Azkenik, mikrokogenerazio-prozesuen integrazioaren bideragarritasun teknikoa eta finantzarioa ebalua ezazu.","- Azter ezazu bideragarria den autokontsumo energetikoa zure enpresan ezartzea, edo, halakorik izanez gero, zabaldu instalazio berriekin. Autokontsumoagatik sortu ezin den energia elektrikoaren kasuan, jatorri berriztagarria bermatzen duen energia elektrikoaren kontratazioa balora ezazu.\n\n- Era berean, erregai fosilak ordezko erregaiekin ordezkatzeko aukera balora ezazu; adibidez, gas-galdarak ordezko erregaiekin ordezkatzea (biomasa, adibidez) edo aerotermia edo halako sistemaren aldeko apustua egitea. Azkenik, mikrokogenerazio-prozesuen integrazioaren bideragarritasun teknikoa eta finantzarioa ebalua ezazu.","- Balora ezazu autokontsumoaren bidez sortutako energiaren ehunekoa handitzea. Autokontsumoagatik sortu ezin den energia elektrikoaren kasuan, jatorri berriztagarria bermatzen duen energia elektrikoaren kontratazioa balora ezazu.\n\n- Erabilitako erregai fosilak ordezko erregaiekin ordezten jarrai ezazu, edo, adibidez, gas-galdarak ordezko beste erregai batekin (esaterako,biomasa) edo beste sistema batekin (aerotermia, adibidez) ordezkatu. Azkenik, mikrokogenerazio-prozesuen integrazioaren bideragarritasun teknikoa eta finantzarioa ebalua ezazu."]
[null,"Metalmekanikoa/ Metalmecánico","- Energia berriztagarriak ezartzea eta erregai fosilak ordezkatzea funtsezkoak dira trantsizio energetikorako. \nAzter ezazu zure enpresan autokontsumo energetikoa ezartzearen bideragarritasuna. Horrek zure mendekotasuna murriztea ahalbidetuko dizu, baita zure karbono-aztarna ere. Autokontsumoa ezartzea bideragarria edo nahikoa ez bada zure erakundearen energia elektrikoaren eskaera guztiaasetzeko, karbono-aztarna zeharka murrizteko beste neurri bat energia elektrikoa kontratatzea izan daiteke, jatorri berriztagarria bermatuta.\n\n- Balora ezazu erregai fosilak ordezko erregaiekin ordezkatzeko aukera; adibidez, gas-galdaren ordez biomasa, aerotermia edo halako beste sistemaren bat erabiltzea. ","- Azter ezazu bideragarria den autokontsumo energetikoa zure enpresan ezartzea, edo, halakorik izanez gero, zabaldu instalazio berriekin. Autokontsumoagatik sortu ezin den energia elektrikoaren kasuan, jatorri berriztagarria bermatzen duen energia elektrikoaren kontratazioa baloratezazu.\n\n- Balora ezazu erregai fosilak ordezko erregaiekin ordezkatzeko aukera; adibidez, gas-galdaren ordez biomasa, aerotermia edo halako beste sistemaren bat erabiltzea.","- Balora ezazu autokontsumoaren bidez sortutako energiaren ehunekoa handitzea. Autokontsumoagatik sortu ezin den energia elektrikoaren kasuan, jatorri berriztagarria bermatzen duen energia elektrikoaren kontratazioa balora ezazu.\n\n- Erabilitako erregai fosilak ordezko erregaiekin ordezten jarrai ezazu, edo, adibidez, gas-galdarak ordezko beste erregai batekin (esaterako,biomasa) edo beste sistema batekin (aerotermia, adibidez) ordezkatu."]
[null,"Makina-erreminta/ Máquina-herramienta","- Energia berriztagarriak ezartzea eta erregai fosilak ordezkatzea funtsezkoak dira trantsizio energetikorako. \nAzter ezazu zure enpresan autokontsumo energetikoa ezartzearen bideragarritasuna. Horrek zure mendekotasuna murriztea ahalbidetuko dizu, baita zure karbono-aztarna ere. Autokontsumoa ezartzea bideragarria edo nahikoa ez bada zure erakundearen energia elektrikoaren eskaera guztiaasetzeko, karbono-aztarna zeharka murrizteko beste neurri bat energia elektrikoa kontratatzea izan daiteke, jatorri berriztagarria bermatuta.\n\n- Erabilitako erregai fosilak ordezko erregaiekin ordezten jarrai ezazu, edo, adibidez, gas-galdarak ordezko beste erregai batekin (esaterako,biomasa) edo beste sistema batekin (aerotermia, adibidez) ordezkatu.","- Azter ezazu bideragarria den autokontsumo energetikoa zure enpresan ezartzea, edo, halakorik izanez gero, zabaldu instalazio berriekin. Autokontsumoagatik sortu ezin den energia elektrikoaren kasuan, jatorri berriztagarria bermatzen duen energia elektrikoaren kontratazioa baloratezazu.\n\n- Erabilitako erregai fosilak ordezko erregaiekin ordezten jarrai ezazu, edo, adibidez, gas-galdarak ordezko beste erregai batekin (esaterako,biomasa) edo beste sistema batekin (aerotermia, adibidez) ordezkatu.","- Balora ezazu autokontsumoaren bidez sortutako energiaren ehunekoa handitzea. Autokontsumoagatik sortu ezin den energia elektrikoaren kasuan, jatorri berriztagarria bermatzen duen energia elektrikoaren kontratazioa balora ezazu.\n\n- Erabilitako erregai fosilak ordezko erregaiekin ordezten jarrai ezazu, edo, adibidez, gas-galdarak ordezko beste erregai batekin (esaterako,biomasa) edo beste sistema batekin (aerotermia, adibidez) ordeztea balora ezazu."]
[null,"Nekazaritza eta elikagai sektorea/ Agroalimentario","- Energia berriztagarriak ezartzea eta erregai fosilak ordezkatzea funtsezkoak dira trantsizio energetikorako. \nAzter ezazu zure enpresan autokontsumo energetikoa ezartzearen bideragarritasuna. Horrek zure mendekotasuna murriztea ahalbidetuko dizu, baita zure karbono-aztarna ere. Autokontsumoa ezartzea bideragarria edo nahikoa ez bada zure erakundearen energia elektrikoaren eskaera guztiaasetzeko, karbono-aztarna zeharka murrizteko beste neurri bat energia elektrikoa kontratatzea izan daiteke, jatorri berriztagarria bermatuta.\n\n- Balora ezazu erregai fosilak ordezko erregaiekin ordezkatzeko aukera; adibidez, gas-galdaren ordez biomasa, aerotermia edo halako beste sistemaren bat erabiltzea. \n\n- Azkenik, mikrokogenerazio-prozesuen integrazioaren bideragarritasun teknikoa eta finantzarioa ebalua ezazu.","- Azter ezazu bideragarria den autokontsumo energetikoa zure enpresan ezartzea, edo, halakorik izanez gero, zabaldu instalazio berriekin. Autokontsumoagatik sortu ezin den energia elektrikoaren kasuan, jatorri berriztagarria bermatzen duen energia elektrikoaren kontratazioa baloratezazu.\n\n- Era berean, erregai fosilak ordezko erregaiekin ordezkatzeko aukera balora ezazu; adibidez, gas-galdarak ordezko erregaiekin ordezkatzea (biomasa, adibidez) edo aerotermia edo halako sistemaren aldeko apustua egitea. \n\n- Azkenik, mikrokogenerazio-prozesuen integrazioaren bideragarritasun teknikoa eta finantzarioa ebalua ezazu.","- Balora ezazu autokontsumoaren bidez sortutako energiaren ehunekoa handitzea. Autokontsumoagatik sortu ezin den energia elektrikoaren kasuan, jatorri berriztagarria bermatzen duen energia elektrikoaren kontratazioa balora ezazu.\n\n- Erabilitako erregai fosilak ordezko erregaiekin ordezten jarrai ezazu, edo, adibidez, gas-galdarak ordezko beste erregai batekin (esaterako,biomasa) edo beste sistema batekin (aerotermia, adibidez) ordezkatu. \n\n- Azkenik, mikrokogenerazio-prozesuen integrazioaren bideragarritasun teknikoa eta finantzarioa ebalua ezazu."]
[null,"Zerbitzuak/ Servicios","- Energia berriztagarriak ezartzea eta erregai fosilak ordezkatzea funtsezkoak dira trantsizio energetikorako. \nAzter ezazu zure enpresan autokontsumo energetikoa ezartzearen bideragarritasuna. Horrek zure mendekotasuna murriztea ahalbidetuko dizu, baita zure karbono-aztarna ere. Autokontsumoa ezartzea bideragarria edo nahikoa ez bada zure erakundearen energia elektrikoaren eskaera guztiaasetzeko, karbono-aztarna zeharka murrizteko beste neurri bat energia elektrikoa kontratatzea izan daiteke, jatorri berriztagarria bermatuta.\n\n- Balora ezazu erregai fosilak ordezko erregaiekin ordezkatzeko aukera; adibidez, gas-galdaren ordez biomasa, aerotermia edo halako  beste sistemaren bat erabiltzea.","- Azter ezazu bideragarria den autokontsumo energetikoa zure enpresan ezartzea, edo, halakorik izanez gero, zabaldu instalazio berriekin. Autokontsumoagatik sortu ezin den energia elektrikoaren kasuan, jatorri berriztagarria bermatzen duen energia elektrikoaren kontratazioa baloratezazu.\n\n- Balora ezazu erregai fosilak ordezko erregaiekin ordezkatzeko aukera; adibidez, gas-galdaren ordez biomasa, aerotermia edo halako  beste sistemaren bat erabiltzea.","- Balora ezazu autokontsumoaren bidez sortutako energiaren ehunekoa handitzea. Autokontsumoagatik sortu ezin den energia elektrikoaren kasuan, jatorri berriztagarria bermatzen duen energia elektrikoaren kontratazioa balora ezazu.\n\n- Erabilitako erregai fosilak ordezko erregaiekin ordezten jarrai ezazu, edo, adibidez, gas-galdarak ordezko beste erregai batekin (esaterako,biomasa) edo beste sistema batekin (aerotermia, adibidez) ordezkatu."]
[null,"Beste batzuk/ Otros","- Energia berriztagarriak ezartzea eta erregai fosilak ordezkatzea funtsezkoak dira trantsizio energetikorako. \nAzter ezazu zure enpresan autokontsumo energetikoa ezartzearen bideragarritasuna. Horrek zure mendekotasuna murriztea ahalbidetuko dizu, baita zure karbono-aztarna ere. Autokontsumoa ezartzea bideragarria edo nahikoa ez bada zure erakundearen energia elektrikoaren eskaera guztiaasetzeko, karbono-aztarna zeharka murrizteko beste neurri bat energia elektrikoa kontratatzea izan daiteke, jatorri berriztagarria bermatuta.\n\n- Balora ezazu erregai fosilak ordezko erregaiekin ordezkatzeko aukera; adibidez, gas-galdaren ordez biomasa, aerotermia edo halako beste sistemaren bat erabiltzea. ","- Azter ezazu bideragarria den autokontsumo energetikoa zure enpresan ezartzea, edo, halakorik izanez gero, zabaldu instalazio berriekin. Autokontsumoagatik sortu ezin den energia elektrikoaren kasuan, jatorri berriztagarria bermatzen duen energia elektrikoaren kontratazioa baloratezazu.\n\n- Balora ezazu erregai fosilak ordezko erregaiekin ordezkatzeko aukera; adibidez, gas-galdaren ordez biomasa, aerotermia edo halako beste sistemaren bat erabiltzea.","- Balora ezazu autokontsumoaren bidez sortutako energiaren ehunekoa handitzea. Autokontsumoagatik sortu ezin den energia elektrikoaren kasuan, jatorri berriztagarria bermatzen duen energia elektrikoaren kontratazioa balora ezazu.\n\n- Erabilitako erregai fosilak ordezko erregaiekin ordezten jarrai ezazu, edo, adibidez, gas-galdarak ordezko beste erregai batekin (esaterako,biomasa) edo beste sistema batekin (aerotermia, adibidez) ordezkatu."]
[null,null,"< 35 %","> 35 y < 70 %","> 70 %"]
["Logística y movilidad sostenible","Eraikuntza/ Construcción","- Erregai fosilen kontsumoak eragindako garraio-isurketak berotegi-efektuko gasen isurketen iturri oso garrantzitsuak dira. Hori dela eta, zuzenean jardun dezakezu erakundearen ibilgailuen egungo flotan, erregai fosilak ordezko erregaiekin ordezkatzearen bideragarritasuna aztertuz eta, flota berritu behar denean, ordezko erregaiak kontsumitzen dituzten ibilgailuei laguntzeko irizpideak sartuz, adibidez, elektrikoak, hibridoak eta abar lehenetsiz. Era berean, kontratatutako salgaien garraioan jardun dezakezu, mugikortasun jasangarriko zerbitzuak edo erregai alternatiboak eskaintzen dituztenak baloratuz.\n\n- Langileen lantokirako joan-etorriak deskarbonizatzen laguntzeko neurriak ezar itzazu. Langileekin batera, mugikortasun jasangarria bultza dezaketen neurriak aztertu, hala nola, bizikletaren erabilera, garraio publikoa, garraio partekatua, telelana...","-Deskarbonizazioan aurrera egin ezazu, erakundearen ibilgailuen egungo flotan zuzenean eraginez, erregai fosilak ordezko erregaiekin ordezkatzearen bideragarritasuna aztertuz eta, flota berritu behar denean, erregai alternatiboak kontsumitzen dituzten ibilgailuei laguntzen dieten irizpideak sartuz, hala nola elektrikoak, hibridoak eta abar lehenetsiz. Era berean, kontratatutako salgaien garraioan jardun dezakezu, mugikortasun jasangarriko zerbitzuak edo erregai alternatiboak eskaintzen dituztenak baloratuz.\n\n- Langileen lantokirako joan-etorriak deskarbonizatzen laguntzen duten neurriak ezarri edo areagotu itzazu. Langileekin batera, mugikortasun jasangarria bultza dezaketen neurriak aztertu, hala nola, bizikletaren erabilera, garraio publikoa, garraio partekatua, telelana... ","- Deskarbonizazioan aurrera egin ezazu, erakundearen flotaren barruan ibilgailu jasangarrien ehunekoa handituz, dela norberarena, dela azpikontratatua. Erregai fosilak erregai alternatiboekin ordezkatzearen bideragarritasuna azter ezazu, oraindik erregai horiek erabiltzen dituzten flotako ibilgailuetan.\n\n- Langileen lantokirako joan-etorrien deskarbonizazioa ezarri edo areagotu itzazu. Langileekin batera, mugikortasun jasangarria bultza dezaketen neurri berriak aztertu, hala nola bizikletaren erabilera, garraio publikoa, garraio partekatua, telelana... "]
[null,"Papera eta kartoia/ Papel y cartón","- Erregai fosilen kontsumoak eragindako garraio-isurketak berotegi-efektuko gasen isurketen iturri oso garrantzitsuak dira. Hori dela eta, zuzenean jardun dezakezu erakundearen ibilgailuen egungo flotan, erregai fosilak ordezko erregaiekin ordezkatzearen bideragarritasuna aztertuz eta, flota berritu behar denean, ordezko erregaiak kontsumitzen dituzten ibilgailuei laguntzeko irizpideak sartuz, adibidez, elektrikoak, hibridoak eta abar lehenetsiz. Era berean, kontratatutako salgaien garraioan jardun dezakezu, mugikortasun jasangarriko zerbitzuak edo erregai alternatiboak eskaintzen dituztenak baloratuz.\n\n- Langileen lantokirako joan-etorriak deskarbonizatzen laguntzeko neurriak ezar itzazu. Langileekin batera, mugikortasun jasangarria bultza dezaketen neurriak aztertu, hala nola, bizikletaren erabilera, garraio publikoa, garraio partekatua, telelana...","-Deskarbonizazioan aurrera egin ezazu, erakundearen ibilgailuen egungo flotan zuzenean eraginez, erregai fosilak ordezko erregaiekin ordezkatzearen bideragarritasuna aztertuz eta, flota berritu behar denean, erregai alternatiboak kontsumitzen dituzten ibilgailuei laguntzen dieten irizpideak sartuz, hala nola elektrikoak, hibridoak eta abar lehenetsiz. Era berean, kontratatutako salgaien garraioan jardun dezakezu, mugikortasun jasangarriko zerbitzuak edo erregai alternatiboak eskaintzen dituztenak baloratuz.\n\n- Langileen lantokirako joan-etorriak deskarbonizatzen laguntzen duten neurriak ezarri edo areagotu itzazu. Langileekin batera, mugikortasun jasangarria bultza dezaketen neurriak aztertu, hala nola, bizikletaren erabilera, garraio publikoa, garraio partekatua, telelana...","- Deskarbonizazioan aurrera egin ezazu, erakundearen flotaren barruan ibilgailu jasangarrien ehunekoa handituz, dela norberarena, dela azpikontratatua. Erregai fosilak erregai alternatiboekin ordezkatzearen bideragarritasuna azter ezazu, oraindik erregai horiek erabiltzen dituzten flotako ibilgailuetan.\n\n- Langileen lantokirako joan-etorrien deskarbonizazioa ezarri edo areagotu itzazu. Langileekin batera, mugikortasun jasangarria bultza dezaketen neurri berriak aztertu, hala nola bizikletaren erabilera, garraio publikoa, garraio partekatua, telelana... "]
[null,"Metalmekanikoa/ Metalmecánico","- Erregai fosilen kontsumoak eragindako garraio-isurketak berotegi-efektuko gasen isurketen iturri oso garrantzitsuak dira. Hori dela eta, zuzenean jardun dezakezu erakundearen ibilgailuen egungo flotan, erregai fosilak ordezko erregaiekin ordezkatzearen bideragarritasuna aztertuz eta, flota berritu behar denean, ordezko erregaiak kontsumitzen dituzten ibilgailuei laguntzeko irizpideak sartuz, adibidez, elektrikoak, hibridoak eta abar lehenetsiz. Era berean, kontratatutako salgaien garraioan jardun dezakezu, mugikortasun jasangarriko zerbitzuak edo erregai alternatiboak eskaintzen dituztenak baloratuz.\n\n- Langileen lantokirako joan-etorriak deskarbonizatzen laguntzeko neurriak ezar itzazu. Langileekin batera, mugikortasun jasangarria bultza dezaketen neurriak aztertu, hala nola, bizikletaren erabilera, garraio publikoa, garraio partekatua, telelana...","-Deskarbonizazioan aurrera egin ezazu, erakundearen ibilgailuen egungo flotan zuzenean eraginez, erregai fosilak ordezko erregaiekin ordezkatzearen bideragarritasuna aztertuz eta, flota berritu behar denean, erregai alternatiboak kontsumitzen dituzten ibilgailuei laguntzen dieten irizpideak sartuz, hala nola elektrikoak, hibridoak eta abar lehenetsiz. Era berean, kontratatutako salgaien garraioan jardun dezakezu, mugikortasun jasangarriko zerbitzuak edo erregai alternatiboak eskaintzen dituztenak baloratuz.\n\n- Langileen lantokirako joan-etorriak deskarbonizatzen laguntzen duten neurriak ezarri edo areagotu itzazu. Langileekin batera, mugikortasun jasangarria bultza dezaketen neurriak aztertuz, hala nola, bizikletaren erabilera, garraio publikoa, garraio partekatua, telelana... \n\n- Ekodiseinuaren bidez produktuen enbalajea berriz zehaztea ere pisua murrizteko bide bat izan daiteke, garraioa errazteko eta horri lotutako emisioak murrizteko, eta sortzen dituen hondakinen kudeaketa eta birziklapena errazteko. ","- Deskarbonizazioan aurrera egin ezazu, erakundearen flotaren barruan ibilgailu jasangarrien ehunekoa handituz, dela norberarena, dela azpikontratatua. Erregai fosilak erregai alternatiboekin ordezkatzearen bideragarritasuna azter ezazu, oraindik erregai horiek erabiltzen dituzten flotako ibilgailuetan.\n\n- Langileen lantokirako joan-etorrien deskarbonizazioa ezarri edo areagotu itzazu. Langileekin batera, mugikortasun jasangarria bultza dezaketen neurriak aztertuz, hala nola, bizikletaren erabilera, garraio publikoa, garraio partekatua, telelana... \n\n- Ekodiseinuaren bidez produktuen enbalajea berriz zehaztea ere pisua murrizteko bide bat izan daiteke, garraioa errazteko eta horri lotutako emisioak murrizteko, eta sortzen dituen hondakinen kudeaketa eta birziklapena errazteko. "]
[null,"Makina-erreminta/ Máquina-herramienta","- Erregai fosilen kontsumoak eragindako garraio-isurketak berotegi-efektuko gasen isurketen iturri oso garrantzitsuak dira. Hori dela eta, zuzenean jardun dezakezu erakundearen ibilgailuen egungo flotan, erregai fosilak ordezko erregaiekin ordezkatzearen bideragarritasuna aztertuz eta, flota berritu behar denean, ordezko erregaiak kontsumitzen dituzten ibilgailuei laguntzeko irizpideak sartuz, adibidez, elektrikoak, hibridoak eta abar lehenetsiz. Era berean, kontratatutako salgaien garraioan jardun dezakezu, mugikortasun jasangarriko zerbitzuak edo erregai alternatiboak eskaintzen dituztenak baloratuz.\n\n- Langileen lantokirako joan-etorriak deskarbonizatzen laguntzeko neurriak ezar itzazu. Langileekin batera, mugikortasun jasangarria bultza dezaketen neurriak aztertu, hala nola, bizikletaren erabilera, garraio publikoa, garraio partekatua, telelana...","-Deskarbonizazioan aurrera egin ezazu, erakundearen ibilgailuen egungo flotan zuzenean eraginez, erregai fosilak ordezko erregaiekin ordezkatzearen bideragarritasuna aztertuz eta, flota berritu behar denean, erregai alternatiboak kontsumitzen dituzten ibilgailuei laguntzen dieten irizpideak sartuz, hala nola elektrikoak, hibridoak eta abar lehenetsiz. Era berean, kontratatutako salgaien garraioan jardun dezakezu, mugikortasun jasangarriko zerbitzuak edo erregai alternatiboak eskaintzen dituztenak baloratuz.\n\n- Langileen lantokirako joan-etorriak deskarbonizatzen laguntzen duten neurriak ezarri edo areagotu itzazu. Langileekin batera, mugikortasun jasangarria bultza dezaketen neurriak aztertuz, hala nola, bizikletaren erabilera, garraio publikoa, garraio partekatua, telelana...\n\n- Ekodiseinuaren bidez produktuen enbalajea berriz zehaztea ere pisua murrizteko bide bat izan daiteke, garraioa errazteko eta horri lotutako emisioak murrizteko, eta sortzen dituen hondakinen kudeaketa eta birziklapena errazteko. ","- Deskarbonizazioan aurrera egin ezazu, erakundearen flotaren barruan ibilgailu jasangarrien ehunekoa handituz, dela norberarena, dela azpikontratatua. Erregai fosilak erregai alternatiboekin ordezkatzearen bideragarritasuna azter ezazu, oraindik erregai horiek erabiltzen dituzten flotako ibilgailuetan.\n\n- Langileen lantokirako joan-etorrien deskarbonizazioa ezarri edo areagotu itzazu. Langileekin batera, mugikortasun jasangarria bultza dezaketen neurriak aztertuz, hala nola, bizikletaren erabilera, garraio publikoa, garraio partekatua, telelana...\n\n- Ekodiseinuaren bidez produktuen enbalajea berriz zehaztea ere pisua murrizteko bide bat izan daiteke, garraioa errazteko eta horri lotutako emisioak murrizteko, eta sortzen dituen hondakinen kudeaketa eta birziklapena errazteko. "]
[null,"Nekazaritza eta elikagai sektorea/ Agroalimentario","- Erregai fosilen kontsumoak eragindako garraio-isurketak berotegi-efektuko gasen isurketen iturri oso garrantzitsuak dira. Hori dela eta, zuzenean jardun dezakezu erakundearen ibilgailuen egungo flotan, erregai fosilak ordezko erregaiekin ordezkatzearen bideragarritasuna aztertuz eta, flota berritu behar denean, ordezko erregaiak kontsumitzen dituzten ibilgailuei laguntzeko irizpideak sartuz, adibidez, elektrikoak, hibridoak eta abar lehenetsiz. Era berean, kontratatutako salgaien garraioan jardun dezakezu, mugikortasun jasangarriko zerbitzuak edo erregai alternatiboak eskaintzen dituztenak baloratuz.\n\n- Langileen lantokirako joan-etorriak deskarbonizatzen laguntzeko neurriak ezar itzazu. Langileekin batera, mugikortasun jasangarria bultza dezaketen neurriak aztertu, hala nola, bizikletaren erabilera, garraio publikoa, garraio partekatua, telelana...","-Deskarbonizazioan aurrera egin ezazu, erakundearen ibilgailuen egungo flotan zuzenean eraginez, erregai fosilak ordezko erregaiekin ordezkatzearen bideragarritasuna aztertuz eta, flota berritu behar denean, erregai alternatiboak kontsumitzen dituzten ibilgailuei laguntzen dieten irizpideak sartuz, hala nola elektrikoak, hibridoak eta abar lehenetsiz. Era berean, kontratatutako salgaien garraioan jardun dezakezu, mugikortasun jasangarriko zerbitzuak edo erregai alternatiboak eskaintzen dituztenak baloratuz.\n\n- Langileen lantokirako joan-etorriak deskarbonizatzen laguntzen duten neurriak ezarri edo areagotu itzazu. Langileekin batera, mugikortasun jasangarria bultza dezaketen neurriak aztertuz, hala nola, bizikletaren erabilera, garraio publikoa, garraio partekatua, telelana... \n\n- Ekodiseinuaren bidez produktuen enbalajea berriz zehaztea ere pisua murrizteko bide bat izan daiteke, garraioa errazteko eta horri lotutako emisioak murrizteko, eta sortzen dituen hondakinen kudeaketa eta birziklapena errazteko. ","- Deskarbonizazioan aurrera egin ezazu, erakundearen flotaren barruan ibilgailu jasangarrien ehunekoa handituz, dela norberarena, dela azpikontratatua. Erregai fosilak erregai alternatiboekin ordezkatzearen bideragarritasuna azter ezazu, oraindik erregai horiek erabiltzen dituzten flotako ibilgailuetan.\n\n- Langileen lantokirako joan-etorrien deskarbonizazioa ezarri edo areagotu itzazu. Langileekin batera, mugikortasun jasangarria bultza dezaketen neurriak aztertuz, hala nola, bizikletaren erabilera, garraio publikoa, garraio partekatua, telelana... \n\n- Ekodiseinuaren bidez produktuen enbalajea berriz zehaztea ere pisua murrizteko bide bat izan daiteke, garraioa errazteko eta horri lotutako emisioak murrizteko, eta sortzen dituen hondakinen kudeaketa eta birziklapena errazteko. "]
[null,"Zerbitzuak/ Servicios","- Erregai fosilen kontsumoak eragindako garraio-isurketak berotegi-efektuko gasen isurketen iturri oso garrantzitsuak dira. Hornigaiak hornitzeko edo banatzeko ibilgailuren bat izanez gero, aztertu, berrituz gero, ibilgailuen hautaketan deskarbonizaziorako eta isuriak murrizteko irizpideak sartzea (ibilgailu elektrikoak, hibridoak, PGLak, deskarbonizatutako erregaiak lehenestea...) eta horien karga optimizatzea. Era berean, kontratatutako salgaien garraioan jardun dezakezu, mugikortasun jasangarriko zerbitzuak edo erregai alternatiboak eskaintzen dituztenak baloratuz.\n\n- Langileen lantokirako joan-etorriak deskarbonizatzen laguntzeko neurriak ezar itzazu. Langileekin batera, mugikortasun jasangarria bultza dezaketen neurriak aztertu, hala nola, bizikletaren erabilera, garraio publikoa, garraio partekatua, telelana...\n\n","- Deskarbonizazioan aurrera egin ezazu, erakundearen flotaren barruan ibilgailu jasangarrien ehunekoa handituz, dela norberarena, dela azpikontratatua. Erregai fosilak erregai alternatiboekin ordezkatzearen bideragarritasuna azter ezazu, oraindik erregai horiek erabiltzen dituzten flotako ibilgailuetan.\n\n- Langileen lantokirako joan-etorriak deskarbonizatzen laguntzen duten neurriak ezarri edo areagotu itzazu. Langileekin batera, mugikortasun jasangarria bultza dezaketen neurriak aztertu, hala nola, bizikletaren erabilera, garraio publikoa, garraio partekatua, telelana... \n\n","- Deskarbonizazioan aurrera egin ezazu, erakundearen flotaren barruan ibilgailu jasangarrien ehunekoa handituz, dela norberarena, dela azpikontratatua. Erregai fosilak erregai alternatiboekin ordezkatzearen bideragarritasuna azter ezazu, oraindik erregai horiek erabiltzen dituzten flotako ibilgailuetan.\n\n- Langileen lantokirako joan-etorrien deskarbonizazioa ezarri edo areagotu itzazu. Langileekin batera, mugikortasun jasangarria bultza dezaketen neurri berriak aztertu, hala nola bizikletaren erabilera, garraio publikoa, garraio partekatua, telelana... "]
[null,"Beste batzuk/ Otros","- Erregai fosilen kontsumoak eragindako garraio-isurketak berotegi-efektuko gasen isurketen iturri oso garrantzitsuak dira. Hori dela eta, zuzenean jardun dezakezu erakundearen ibilgailuen egungo flotan, erregai fosilak ordezko erregaiekin ordezkatzearen bideragarritasuna aztertuz eta, flota berritu behar denean, ordezko erregaiak kontsumitzen dituzten ibilgailuei laguntzeko irizpideak sartuz, adibidez, elektrikoak, hibridoak eta abar lehenetsiz. Era berean, kontratatutako salgaien garraioan jardun dezakezu, mugikortasun jasangarriko zerbitzuak edo erregai alternatiboak eskaintzen dituztenak baloratuz.\n\n- Langileen lantokirako joan-etorriak deskarbonizatzen laguntzeko neurriak ezar itzazu. Langileekin batera, mugikortasun jasangarria bultza dezaketen neurriak aztertu, hala nola, bizikletaren erabilera, garraio publikoa, garraio partekatua, telelana...","-Deskarbonizazioan aurrera egin ezazu, erakundearen ibilgailuen egungo flotan zuzenean eraginez, erregai fosilak ordezko erregaiekin ordezkatzearen bideragarritasuna aztertuz eta, flota berritu behar denean, erregai alternatiboak kontsumitzen dituzten ibilgailuei laguntzen dieten irizpideak sartuz, hala nola elektrikoak, hibridoak eta abar lehenetsiz. Era berean, kontratatutako salgaien garraioan jardun dezakezu, mugikortasun jasangarriko zerbitzuak edo erregai alternatiboak eskaintzen dituztenak baloratuz.\n\n- Langileen lantokirako joan-etorriak deskarbonizatzen laguntzen duten neurriak ezarri edo areagotu itzazu. Langileekin batera, mugikortasun jasangarria bultza dezaketen neurriak aztertuz, hala nola, bizikletaren erabilera, garraio publikoa, garraio partekatua, telelana... \n\n- Ekodiseinuaren bidez produktuen enbalajea berriz zehaztea ere pisua murrizteko bide bat izan daiteke, garraioa errazteko eta horri lotutako emisioak murrizteko, eta sortzen dituen hondakinen kudeaketa eta birziklapena errazteko. ","- Deskarbonizazioan aurrera egin ezazu, erakundearen flotaren barruan ibilgailu jasangarrien ehunekoa handituz, dela norberarena, dela azpikontratatua. Erregai fosilak erregai alternatiboekin ordezkatzearen bideragarritasuna azter ezazu, oraindik erregai horiek erabiltzen dituzten flotako ibilgailuetan.\n\n- Langileen lantokirako joan-etorrien deskarbonizazioa ezarri edo areagotu itzazu. Langileekin batera, mugikortasun jasangarria bultza dezaketen neurriak aztertuz, hala nola, bizikletaren erabilera, garraio publikoa, garraio partekatua, telelana...\n\n- Ekodiseinuaren bidez produktuen enbalajea berriz zehaztea ere pisua murrizteko bide bat izan daiteke, garraioa errazteko eta horri lotutako emisioak murrizteko, eta sortzen dituen hondakinen kudeaketa eta birziklapena errazteko. "]
[null,null,"< 30 %","> 30 y < 70 %","> 70 %"]
["Economía circular","Eraikuntza/ Construcción","- Baliabideen kontsumoa eta hondakinen sorrera murrizten jarrai ezazu, ekonomia zirkularraren bidez. Ekonomia zirkularra, trantsizio energetikoarekin batera, erakunde bat deskarbonizatzeko zutabeetako bat da. Zirkulartasun-plan bat ezartzeak baliabideen (materialak eta energetikoak) kontsumoa murriztea eta hondakinak ahalik eta gutxien sortzea ahalbidetuko du. Horren ondorioz, berotegi-efektuko gasen emisioa, ingurumen-inpaktuak eta ekoizpen-kostuak murriztuko dira, eta erakundearen egokitzeko eta lehiatzeko gaitasuna handituko da. \n\n- Hornitzaile, ondasun eta zerbitzuen hautaketan, ingurumen-jasangarritasuneko irizpideak barnera itzazu, hornidura-kate osoa kontuan hartuta eta ingurumenaren aldetik jasangarriak direnak bultzatuz. Inbentarioak optimiza itzazu, soberakinak saihesteko edo murrizteko.\n\n- Eraikuntzako eta eraispeneko hondakinen kudeaketa arduratsua egin ezazu.\n\n- Obran eta lantokian uraren kontsumoa murriztu ezazu.\n\nEraikuntzaren sektorean ere oso garrantzitsua da produktuaren erabilera deskarbonizatzea, hau da, eraikuntza bera:\n\n- Proiektuaren diseinuan eragin ahal izanez gero, ekodiseinua eta arkitektura bioklimatikoaren kontzeptua inplementatzeak lagunduko dizu, diseinu-fasetik, baliabide materialen eta energetikoen kontsumoa optimizatzen eta obra-fasean, erabilera-fasean eta eraikuntzaren edo birgaitzearen desegite- edo eraiste-fasean sortutako hondakin-kopurua murrizten. Ekodiseinua honela defini daiteke: produktuen diseinuan eta garapenean ingurumen-kontsiderazioak integratzeko prozesua, produktuen bizi-ziklo osoan ingurumen-inpaktuak murrizteko, baldintza ekologikoak eta ekonomikoak orekatuz. Ekonomia zirkularraren oinarria da; izan ere, birziklatze-katearen jatorria da, eta baliabideen kontsumoa minimizatzea ahalbidetzen du, baita emisio, hondakin eta isuriena ere.\n\n- Eraikuntzan material jasangarrien erabilera areagotu ezazu, beste obra batzuetako material birziklatuak, karbono gutxiko zementuak eta hormigoiak erabiliz, ingurumenean eragin handia duten materialak ordezkatuz... eta proiektuetan ur sanitarioaren kontsumoa eta ur bero sanitarioaren energia-kontsumoa minimizatu.\n\n- Azkenik, bizi-zikloaren azterketa bat egiteak aukera emango dizu bere bizi-ziklo osoan zehar egindako eraikuntza, birgaitze edo erreforma berrien ingurumen-inpaktu guztiak ezagutzeko. Horrek erraztu egiten du inpaktu horiek minimizatuko dituzten neurriak ezartzea.\n","- Baliabideen kontsumoa eta hondakinen sorrera murrizten jarrai ezazu, ekonomia zirkularraren bidez. Ekonomia zirkularra, trantsizio energetikoarekin batera, erakunde bat deskarbonizatzeko zutabeetako bat da. Zirkulartasun plan bat ezartzeak baliabideen (materialak eta energetikoak) kontsumoa murrizten eta hondakinak ahalik eta gutxien sortzen lagunduko du. Horren ondorioz, berotegi-efektuko gasen emisioa, ingurumen-inpaktuak eta ekoizpen-kostuak murriztuko dira, eta erakundearen egokitzeko eta lehiatzeko gaitasuna handituko da. Erakundeak Zirkulartasun Plan bat badu, baloratu hura eguneratzea, sektorearen egungo testuingurua, eskura dauden teknologia berriak eta merkatuaren eskakizun berriak kontuan hartuta.\n\n- Hornitzaile, ondasun eta zerbitzuen hautaketan, ingurumen-jasangarritasuneko irizpideak barnera itzazu, hornidura-kate osoa kontuan hartuta eta ingurumenaren aldetik jasangarriak direnak bultzatuz. Inbentarioak optimiza itzazu, soberakinak saihesteko edo murrizteko.\n\n- Eraikuntzako eta eraispeneko hondakinen kudeaketa arduratsua egin ezazu, eta obran eta lantokian uraren kontsumoa murriztu ezazu.\n\nEraikuntzaren sektorean ere oso garrantzitsua da produktuaren erabilera deskarbonizatzea, hau da, eraikuntza bera:\n\n- Proiektuaren diseinuan eragin ahal izanez gero, ekodiseinua eta arkitektura bioklimatikoaren kontzeptua inplementatzeak lagunduko dizu, diseinu-fasetik, baliabide materialen eta energetikoen kontsumoa optimizatzen eta obra-fasean, erabilera-fasean eta eraikuntzaren edo birgaitzearen desegite- edo eraiste-fasean sortutako hondakin-kopurua murrizten. Ekodiseinua honela defini daiteke: produktuen diseinuan eta garapenean ingurumen-kontsiderazioak integratzeko prozesua, produktuen bizi-ziklo osoan ingurumen-inpaktuak murrizteko, baldintza ekologikoak eta ekonomikoak orekatuz. Ekonomia zirkularraren oinarria da; izan ere, birziklatze-katearen jatorria da, eta baliabideen kontsumoa minimizatzea ahalbidetzen du, baita emisio, hondakin eta isuriena ere. Ekodiseinua ezarrita izanez gero, benchmarkinga egin, eta kanpo-aholkularitza baloratu, produktua eta produkzio-prozesua optimizatzen jarraitzeko.\n\n- Eraikuntzan material jasangarrien erabilera areagotu ezazu, beste obra batzuetako material birziklatuak, karbono gutxiko zementuak eta hormigoiak erabiliz, ingurumenean eragin handia duten materialak ordezkatuz... eta proiektuetan ur sanitarioaren kontsumoa eta ur bero sanitarioaren energia-kontsumoa minimizatu.\n\n- Azkenik, bizi-zikloaren azterketa bat egiteak aukera emango dizu bere bizi-ziklo osoan egindako eraikuntza, birgaitze edo erreforma berrien ingurumen-inpaktu guztiak ezagutzeko, eta, horri esker, errazagoa izango da inpaktu horiek minimizatuko dituzten neurriak ezartzea.","- Eutsi ekonomia zirkularrarekiko konpromisoari, eta jarraitu baliabideen kontsumoa eta hondakinen sorrera murrizten. Zirkulartasun Plana eguneratzea baloratu, sektorearen egungo testuingurua, eskura dauden teknologia berriak eta merkatuaren eskakizun berriak kontuan hartuta.\n\n- Hornitzaile, ondasun eta zerbitzuen hautaketan, ingurumen-jasangarritasuneko irizpideak barnera itzazu, hornidura-kate osoa kontuan hartuta eta ingurumenaren aldetik jasangarriak direnak bultzatuz. Inbentarioak optimiza itzazu, soberakinak saihesteko edo murrizteko.\n\n- Eraikuntzako eta eraispeneko hondakinen kudeaketa arduratsua egin ezazu, eta obran eta lantokian uraren kontsumoa murriztu ezazu.\n\nEraikuntzaren sektorean ere oso garrantzitsua da produktuaren erabilera deskarbonizatzea, hau da, eraikuntza bera:\n\n- Proiektuaren diseinuan eragin ahal izanez gero, ekodiseinua eta arkitektura bioklimatikoaren kontzeptua inplementatzeak lagunduko dizu baliabide materialen eta energetikoen kontsumoa optimizatzen, eta obra-fasean, erabilera-fasean eta eraikuntzaren edo birgaitzearen eraiste- edo eraispen-fasean sortutako hondakin-kopurua murrizten. Ekodiseinua ezarrita izanez gero, benchmarkinga egin eta kanpoko aholkularitza baloratu, eraikuntza optimizatzen jarraitzeko.\n\n- Eraikuntzan material jasangarrien erabilera areagotu ezazu, beste obra batzuetako material birziklatuak, karbono gutxiko zementuak eta hormigoiak erabiliz, ingurumenean eragin handia duten materialak ordezkatuz... eta proiektuetan ur sanitarioaren kontsumoa eta ur bero sanitarioaren energia-kontsumoa minimizatu.\n\n- Azkenik, bizi-zikloaren azterketa bat egiteak aukera emango dizu bere bizi-ziklo osoan egindako eraikuntza, birgaitze edo erreforma berrien ingurumen-inpaktu guztiak ezagutzeko, eta, horri esker, errazagoa izango da inpaktu horiek minimizatuko dituzten neurriak ezartzea."]
[null,"Papera eta kartoia/ Papel y cartón","- Baliabideen kontsumoa eta hondakinen sorrera murrizten jarrai ezazu, ekonomia zirkularraren bidez. Ekonomia zirkularra, trantsizio energetikoarekin batera, erakunde bat deskarbonizatzeko zutabeetako bat da. Zirkulartasun-plan bat ezartzeak baliabideen (materialak eta energetikoak) kontsumoa murriztea eta hondakinak ahalik eta gutxien sortzea ahalbidetuko du. Horren ondorioz, berotegi-efektuko gasen emisioa, ingurumen-inpaktuak eta ekoizpen-kostuak murriztuko dira, eta erakundearen egokitzeko eta lehiatzeko gaitasuna handituko da. \n\n- Fabrikatutako produktuen diseinuan eragin ahal izanez gero, ekodiseinua ezartzeak lagunduko dizu, diseinu-fasetik, produktua eta ekoizpen-prozesua optimizatzen, baliabideen kontsumoa eta hondakinen sorrera minimizatuz. Ekodiseinua honela defini daiteke: produktuen diseinuan eta garapenean ingurumen-kontsiderazioak integratzeko prozesua, produktuen bizi-ziklo osoan ingurumen-inpaktuak murrizteko, baldintza ekologikoak eta ekonomikoak orekatuz. Ekonomia zirkularraren oinarria da; izan ere, birziklatze-katearen jatorria da, eta baliabideen kontsumoa minimizatzea ahalbidetzen du, baita emisio, hondakin eta isuriena ere. Europa garbiago eta lehiakorrago baten aldeko ekonomia zirkularrerako ekintza-plan berriaren arabera, \"produktuen ingurumen-inpaktuen % 80 diseinu-fasean zehazten da\". Ekodiseinuaren bidez produktuen enbalajea berriz zehaztea ere bide bat izan daiteke salgaien garraioa errazteko eta horri lotutako emisioak murrizteko, bai eta sortzen dituen hondakinen kudeaketa eta birziklapena errazteko ere. \n\n- Hornitzaile, ondasun eta zerbitzuen hautaketan, ingurumen-jasangarritasuneko irizpideak barnera itzazu, hornidura-kate osoa kontuan hartuta eta ingurumenaren aldetik jasangarriak direnak bultzatuz. Lehengai gisa, material jasangarriak erabil itzazu, birziklatuak lehenetsiz, baso-kudeaketa jasangarriaren ziurtagiriak dituzten basoak edo zuntz-iturri alternatiboak dituztenak, hala nola zurgaiak ez diren landare-zuntzak.\n\n- Ekonomia zirkularraren estrategiaren barruko beste neurri garrantzitsu batzuk, substantzia arriskutsuen minimizazioa (EuPIAren zerrendan dauden tintak saihestu) edo hondakinen kudeaketa arduratsua.\n\n- Azkenik, bizi-zikloaren analisia egiteak produktu edo zerbitzu batek bere bizi-ziklo osoan zehar dituen ingurumen-inpaktu guztiak ezagutzeko aukera emango dizu. Horrek erraztu egiten du inpaktu horiek minimizatuko dituzten neurriak ezartzea.\n","- Baliabideen kontsumoa eta hondakinen sorrera murrizten jarrai ezazu, ekonomia zirkularraren bidez. Ekonomia zirkularra, trantsizio energetikoarekin batera, erakunde bat deskarbonizatzeko zutabeetako bat da. Zirkulartasun plan bat ezartzeak baliabideen (materialak eta energetikoak) kontsumoa murrizten eta hondakinak ahalik eta gutxien sortzen lagunduko du. Horren ondorioz, berotegi-efektuko gasen emisioa, ingurumen-inpaktuak eta ekoizpen-kostuak murriztuko dira, eta erakundearen egokitzeko eta lehiatzeko gaitasuna handituko da. Erakundeak Zirkulartasun Plan bat badu, baloratu hura eguneratzea, sektorearen egungo testuingurua, eskura dauden teknologia berriak eta merkatuaren eskakizun berriak kontuan hartuta.\n\n- Fabrikatutako produktuen diseinuan eragin ahal izanez gero, ekodiseinua ezartzeak lagunduko dizu, diseinu-fasetik, produktua eta ekoizpen-prozesua optimizatzen, baliabideen kontsumoa eta hondakinen sorrera minimizatuz. Ekodiseinua honela defini daiteke: produktuen diseinuan eta garapenean ingurumen-kontsiderazioak integratzeko prozesua, produktuen bizi-ziklo osoan ingurumen-inpaktuak murrizteko, baldintza ekologikoak eta ekonomikoak orekatuz. Ekonomia zirkularraren oinarria da; izan ere, birziklatze-katearen jatorria da, eta baliabideen kontsumoa minimizatzea ahalbidetzen du, baita emisio, hondakin eta isuriena ere. Europa garbiago eta lehiakorrago baten aldeko ekonomia zirkularrerako ekintza-plan berriaren arabera, \"produktuen ingurumen-inpaktuen % 80 diseinu-fasean zehazten da\". Ekodiseinua ezarrita izanez gero, benchmarkinga egin, eta kanpo-aholkularitza baloratu, produktua eta produkzio-prozesua optimizatzen jarraitzeko.\n\n- Hornitzaile, ondasun eta zerbitzuen hautaketan ingurumen-jasangarritasuneko irizpideak barnera itzazu, hornidura-kate osoa kontuan hartuta eta ingurumenaren aldetik jasangarriak direnak bultzatuz. Lehengai gisa material jasangarrien erabilera handitu ezazu, birziklatuak lehenetsiz, baso-kudeaketa jasangarriaren ziurtagiriak dituzten basoak edo zuntz-iturri alternatiboak dituztenak, hala nola zurgaiak ez diren landare-zuntzak.\n\n- Ekonomia zirkularraren estrategiaren barruko beste neurri garrantzitsu batzuk, substantzia arriskutsuen minimizazioa (EuPIAren zerrendan dauden tintak saihestu) edo hondakinen kudeaketa arduratsua.\n\n- Bizi-zikloaren analisia egiteak produktu edo zerbitzu batek bere bizi-ziklo osoan zehar dituen ingurumen-inpaktu guztiak ezagutzeko aukera emango dizu. Horrek erraztu egiten du inpaktu horiek minimizatuko dituzten neurriak ezartzea.","- Eutsi ekonomia zirkularrarekiko konpromisoari, eta jarraitu baliabideen kontsumoa eta hondakinen sorrera murrizten. Zirkulartasun Plana eguneratzea baloratu, sektorearen egungo testuingurua, eskura dauden teknologia berriak eta merkatuaren eskakizun berriak kontuan hartuta.\n\n- Fabrikatutako produktuen diseinuan eragin ahal izanez gero, aurrera egin ekodiseinuan benchmarking-aren eta kanpo-aholkularitzaren bidez, produktua eta produkzio-prozesua optimizatzen jarraitzeko.\n\n- Lehengai gisa material jasangarrien erabilera lehenesten jarrai ezazu, eta, ahal den neurrian, areagotu , hala nola birziklatuak, baso-kudeaketa jasangarriaren ziurtagiriak dituzten basoak edo zuntz-iturri alternatiboak dituztenak, hala nola zurgaiak ez diren landare-zuntzak.\n\n- Ekonomia zirkularraren estrategiaren barruko beste neurri garrantzitsu batzuk honako hauek dira: hornitzaileen hautaketan jasangarritasun-irizpideak txertatzea, substantzia arriskutsuak minimizatzea (EuPIAren zerrendan dauden tintak saihestea) edo hondakinen kudeaketa arduratsua egitea.\n\n- Dakizunez, Bizi Zikloaren Analisia egiteak produktu edo zerbitzu batek bere bizi-ziklo osoan zehar dituen ingurumen-inpaktu guztiak ezagutzeko aukera ematen dizu. Horrek erraztu egiten du inpaktu horiek minimizatuko dituzten neurriak ezartzea."]
[null,"Metalmekanikoa/ Metalmecánico","- Baliabideen kontsumoa eta hondakinen sorrera murrizten jarrai ezazu, ekonomia zirkularraren bidez. Ekonomia zirkularra, trantsizio energetikoarekin batera, erakunde bat deskarbonizatzeko zutabeetako bat da. Zirkulartasun-plan bat ezartzeak baliabideen (materialak eta energetikoak) kontsumoa murriztea eta hondakinak ahalik eta gutxien sortzea ahalbidetuko du. Horren ondorioz, berotegi-efektuko gasen emisioa, ingurumen-inpaktuak eta ekoizpen-kostuak murriztuko dira, eta erakundearen egokitzeko eta lehiatzeko gaitasuna handituko da. \n\n- Fabrikatutako produktuen diseinuan eragin ahal izanez gero, ekodiseinua ezartzeak lagunduko dizu, diseinu-fasetik, produktua eta ekoizpen-prozesua optimizatzen, baliabideen kontsumoa eta hondakinen sorrera minimizatuz. Ekodiseinua honela defini daiteke: produktuen diseinuan eta garapenean ingurumen-kontsiderazioak integratzeko prozesua, produktuen bizi-ziklo osoan ingurumen-inpaktuak murrizteko, baldintza ekologikoak eta ekonomikoak orekatuz. Ekonomia zirkularraren oinarria da; izan ere, birziklatze-katearen jatorria da, eta baliabideen kontsumoa minimizatzea ahalbidetzen du, baita emisio, hondakin eta isuriena ere. Europa garbiago eta lehiakorrago baten aldeko ekonomia zirkularrerako ekintza-plan berriaren arabera, \"produktuen ingurumen-inpaktuen % 80 diseinu-fasean zehazten da\". \n\n- Hornitzaile, ondasun eta zerbitzuen hautaketan, ingurumen-jasangarritasuneko irizpideak barnera itzazu, hornidura-kate osoa kontuan hartuta eta ingurumenaren aldetik jasangarriak direnak bultzatuz. Zehaztapenek ahalbidetzen dutenean, material birziklatuak erabil itzazu.\n\n- Ekonomia zirkularraren estrategiaren barruko beste neurri garrantzitsu batzuk dira substantzia arriskutsuen minimizazioa edo sortutako hondakinen kudeaketa arduratsua, hala nola txatarrena, ebaketa-fluidoena, olioena edo koipegabetzaileena.\n\n- Azkenik, bizi-zikloaren analisia egiteak produktu edo zerbitzu batek bere bizi-ziklo osoan zehar dituen ingurumen-inpaktu guztiak ezagutzeko aukera emango dizu. Horrek erraztu egiten du inpaktu horiek minimizatuko dituzten neurriak ezartzea.\n","- Baliabideen kontsumoa eta hondakinen sorrera murrizten jarrai ezazu, ekonomia zirkularraren bidez. Ekonomia zirkularra, trantsizio energetikoarekin batera, erakunde bat deskarbonizatzeko zutabeetako bat da. Zirkulartasun plan bat ezartzeak baliabideen (materialak eta energetikoak) kontsumoa murrizten eta hondakinak ahalik eta gutxien sortzen lagunduko du. Horren ondorioz, berotegi-efektuko gasen emisioa, ingurumen-inpaktuak eta ekoizpen-kostuak murriztuko dira, eta erakundearen egokitzeko eta lehiatzeko gaitasuna handituko da. Erakundeak Zirkulartasun Plan bat badu, baloratu hura eguneratzea, sektorearen egungo testuingurua, eskura dauden teknologia berriak eta merkatuaren eskakizun berriak kontuan hartuta.\n\n- Fabrikatutako produktuen diseinuan eragin ahal izanez gero, ekodiseinua ezartzeak lagunduko dizu, diseinu-fasetik, produktua eta ekoizpen-prozesua optimizatzen, baliabideen kontsumoa eta hondakinen sorrera minimizatuz. Ekodiseinua honela defini daiteke: produktuen diseinuan eta garapenean ingurumen-kontsiderazioak integratzeko prozesua, produktuen bizi-ziklo osoan ingurumen-inpaktuak murrizteko, baldintza ekologikoak eta ekonomikoak orekatuz. Ekonomia zirkularraren oinarria da; izan ere, birziklatze-katearen jatorria da, eta baliabideen kontsumoa minimizatzea ahalbidetzen du, baita emisio, hondakin eta isuriena ere. Europa garbiago eta lehiakorrago baten aldeko ekonomia zirkularrerako ekintza-plan berriaren arabera, \"produktuen ingurumen-inpaktuen % 80 diseinu-fasean zehazten da\". Ekodiseinua ezarrita izanez gero, benchmarkinga egin, eta kanpo-aholkularitza baloratu, produktua eta produkzio-prozesua optimizatzen jarraitzeko.\n\n- Hornitzaile, ondasun eta zerbitzuen hautaketan ingurumen-jasangarritasuneko irizpideak barnera itzazu, hornidura-kate osoa kontuan hartuta eta ingurumenaren aldetik jasangarriak direnak bultzatuz. Lehengai gisa material jasangarrien erabilera areagotu ezazu, material birziklatuari lehentasuna emanez, zehaztapenek ahalbidetzen dutenean.\n\n- Ekonomia zirkularraren estrategiaren barruko beste neurri garrantzitsu batzuk dira substantzia arriskutsuen minimizazioa edo sortutako hondakinen kudeaketa arduratsua, hala nola txatarrena, ebaketa-fluidoena, olioena edo koipegabetzaileena.\n\n- Bizi-zikloaren analisia egiteak produktu edo zerbitzu batek bere bizi-ziklo osoan zehar dituen ingurumen-inpaktu guztiak ezagutzeko aukera emango dizu. Horrek erraztu egiten du inpaktu horiek minimizatuko dituzten neurriak ezartzea.","- Eutsi ekonomia zirkularrarekiko konpromisoari, eta jarraitu baliabideen kontsumoa eta hondakinen sorrera murrizten. Zirkulartasun Plana eguneratzea baloratu, sektorearen egungo testuingurua, eskura dauden teknologia berriak eta merkatuaren eskakizun berriak kontuan hartuta.\n\n- Fabrikatutako produktuen diseinuan eragin ahal izanez gero, aurrera egin ekodiseinuan benchmarking-aren eta kanpo-aholkularitzaren bidez, produktua eta produkzio-prozesua optimizatzen jarraitzeko.\n\n- Hornitzaile, ondasun eta zerbitzuen hautaketan ingurumen-jasangarritasuneko irizpideak gehitu edo barnera itzazu, hornidura-kate osoa kontuan hartuta. Material jasangarrien erabilera lehenets ezazu, lehengai gisa, hala nola birziklatutako lehengaiak, produktuaren zehaztapenek horretarako aukera ematen dutenean.\n\n- Ekonomia zirkularraren estrategiaren barruko beste neurri garrantzitsu batzuk dira substantzia arriskutsuen minimizazioa edo sortutako hondakinen kudeaketa arduratsua, hala nola txatarrena, ebaketa-fluidoena, olioena edo koipegabetzaileena.\n\n- Dakizunez, Bizi Zikloaren Analisia egiteak produktu edo zerbitzu batek bere bizi-ziklo osoan zehar dituen ingurumen-inpaktu guztiak ezagutzeko aukera ematen dizu. Horrek erraztu egiten du inpaktu horiek minimizatuko dituzten neurriak ezartzea."]
[null,"Makina-erreminta/ Máquina-herramienta","- Baliabideen kontsumoa eta hondakinen sorrera murrizten jarrai ezazu, ekonomia zirkularraren bidez. Ekonomia zirkularra, trantsizio energetikoarekin batera, erakunde bat deskarbonizatzeko zutabeetako bat da. Zirkulartasun-plan bat ezartzeak baliabideen (materialak eta energetikoak) kontsumoa murriztea eta hondakinak ahalik eta gutxien sortzea ahalbidetuko du. Horren ondorioz, berotegi-efektuko gasen emisioa, ingurumen-inpaktuak eta ekoizpen-kostuak murriztuko dira, eta erakundearen egokitzeko eta lehiatzeko gaitasuna handituko da. \n\n- Fabrikatutako produktuen diseinuan eragin ahal izanez gero, ekodiseinua ezartzeak lagunduko dizu, diseinu-fasetik, produktua eta ekoizpen-prozesua optimizatzen, baliabideen kontsumoa eta hondakinen sorrera minimizatuz. Ekodiseinua honela defini daiteke: produktuen diseinuan eta garapenean ingurumen-kontsiderazioak integratzeko prozesua, produktuen bizi-ziklo osoan ingurumen-inpaktuak murrizteko, baldintza ekologikoak eta ekonomikoak orekatuz. Ekonomia zirkularraren oinarria da; izan ere, birziklatze-katearen jatorria da, eta baliabideen kontsumoa minimizatzea ahalbidetzen du, baita emisio, hondakin eta isuriena ere. Europa garbiago eta lehiakorrago baten aldeko ekonomia zirkularrerako ekintza-plan berriaren arabera, \"produktuen ingurumen-inpaktuen % 80 diseinu-fasean zehazten da\". \n\n- Hornitzaile, ondasun eta zerbitzuen hautaketan ingurumen-jasangarritasuneko irizpideak barnera itzazu, hornidura-kate osoa kontuan hartuta eta ingurumenaren aldetik jasangarriak direnak bultzatuz. Zehaztapenek ahalbidetzen dutenean, material birziklatuak erabil itzazu.\n\n- Sortutako hondakinen kudeaketa arduratsua egin ezazu, hala nola txatarrena ebaketa-fluidoena, olioena edo koipegabetzaileena. Substantzia arriskutsuen erabilera minimizatu, etajasangarriagoak diren beste batzuekin ordezkatzea baloratu ezazu.\n\n- Bizi-zikloaren analisia egiteak produktu edo zerbitzu batek bere bizi-ziklo osoan zehar dituen ingurumen-inpaktu guztiak ezagutzeko aukera emango dizu. Horrek erraztu egiten du inpaktu horiek minimizatuko dituzten neurriak ezartzea.\n","- Baliabideen kontsumoa eta hondakinen sorrera murrizten jarrai ezazu, ekonomia zirkularraren bidez. Ekonomia zirkularra, trantsizio energetikoarekin batera, erakunde bat deskarbonizatzeko zutabeetako bat da. Zirkulartasun plan bat ezartzeak baliabideen (materialak eta energetikoak) kontsumoa murrizten eta hondakinak ahalik eta gutxien sortzen lagunduko du. Horren ondorioz, berotegi-efektuko gasen emisioa, ingurumen-inpaktuak eta ekoizpen-kostuak murriztuko dira, eta erakundearen egokitzeko eta lehiatzeko gaitasuna handituko da. Erakundeak Zirkulartasun Plan bat badu, baloratu hura eguneratzea, sektorearen egungo testuingurua, eskura dauden teknologia berriak eta merkatuaren eskakizun berriak kontuan hartuta.\n\n- Fabrikatutako produktuen diseinuan eragin ahal izanez gero, ekodiseinua ezartzeak lagunduko dizu, diseinu-fasetik, produktua eta ekoizpen-prozesua optimizatzen, baliabideen kontsumoa eta hondakinen sorrera minimizatuz. Ekodiseinua honela defini daiteke: produktuen diseinuan eta garapenean ingurumen-kontsiderazioak integratzeko prozesua, produktuen bizi-ziklo osoan ingurumen-inpaktuak murrizteko, baldintza ekologikoak eta ekonomikoak orekatuz. Ekonomia zirkularraren oinarria da; izan ere, birziklatze-katearen jatorria da, eta baliabideen kontsumoa minimizatzea ahalbidetzen du, baita emisio, hondakin eta isuriena ere. Europa garbiago eta lehiakorrago baten aldeko ekonomia zirkularrerako ekintza-plan berriaren arabera, \"produktuen ingurumen-inpaktuen % 80 diseinu-fasean zehazten da\". Ekodiseinua ezarrita izanez gero, benchmarkinga egin, eta kanpo-aholkularitza baloratu, produktua eta produkzio-prozesua optimizatzen jarraitzeko.\n\n- Hornitzaile, ondasun eta zerbitzuen hautaketan ingurumen-jasangarritasuneko irizpideak barnera itzazu, hornidura-kate osoa kontuan hartuta eta ingurumenaren aldetik jasangarriak direnak bultzatuz. Zehaztapenek ahalbidetzen dutenean, material birziklatuak erabil itzazu.\n\n- Txatarrak, ebaketa-fluidoak, olioak, koipegabetzaileak eta halako hondakinen kudeaketa arduratsua egin ezazu. Substantzia arriskutsuen erabilera minimizatu, etajasangarriagoak diren beste batzuekin ordezkatzea baloratu ezazu.\n\n- Bizi-zikloaren analisia egiteak produktu edo zerbitzu batek bere bizi-ziklo osoan zehar dituen ingurumen-inpaktu guztiak ezagutzeko aukera emango dizu. Horrek erraztu egiten du inpaktu horiek minimizatuko dituzten neurriak ezartzea.","- Eutsi ekonomia zirkularrarekiko konpromisoari, eta jarraitu baliabideen kontsumoa eta hondakinen sorrera murrizten. Zirkulartasun Plana eguneratzea baloratu, sektorearen egungo testuingurua, eskura dauden teknologia berriak eta merkatuaren eskakizun berriak kontuan hartuta.\n\n- Fabrikatutako produktuen diseinuan eragin ahal izanez gero, aurrera egin ekodiseinuan benchmarking-aren eta kanpo-aholkularitzaren bidez, produktua eta produkzio-prozesua optimizatzen jarraitzeko.\n\n- Hornitzaile, ondasun eta zerbitzuen hautaketan ingurumen-jasangarritasuna lehenesten jarrai ezazu, hornidura-kate osoa kontuan hartuta.\n\n- Sortutako hondakinen kudeaketa egokia egiten jarraitu. \n\n- Dakizunez, Bizi Zikloaren Analisia egiteak produktu edo zerbitzu batek bere bizi-ziklo osoan zehar dituen ingurumen-inpaktu guztiak ezagutzeko aukera ematen dizu. Horrek erraztu egiten du inpaktu horiek minimizatuko dituzten neurriak ezartzea."]
[null,"Nekazaritza eta elikagai sektorea/ Agroalimentario","- Baliabideen kontsumoa eta hondakinen sorrera murrizten jarrai ezazu, ekonomia zirkularraren bidez. Ekonomia zirkularra, trantsizio energetikoarekin batera, erakunde bat deskarbonizatzeko zutabeetako bat da. Zirkulartasun-plan bat ezartzeak baliabideen (materialak eta energetikoak) kontsumoa murriztea eta hondakinak ahalik eta gutxien sortzea ahalbidetuko du. Horren ondorioz, berotegi-efektuko gasen emisioa, ingurumen-inpaktuak eta ekoizpen-kostuak murriztuko dira, eta erakundearen egokitzeko eta lehiatzeko gaitasuna handituko da. \n\n- Hornitzaile, ondasun eta zerbitzuen hautaketan, ingurumen-jasangarritasuneko irizpideak barnera itzazu, hornidura-kate osoa kontuan hartuta eta ingurumenaren aldetik jasangarriak direnak bultzatuz. Ekoitzitako elikadura-lehengaiak erabil itzazu, baliabide naturalen kontserbazioa, ingurumena eta biodibertsitatearen mantentzea bultzatuz.\n\n- Sortutako hondakinak era egokian kudea itzazu. Hondakin organikoak azpiproduktu gisa baloriza daitezke beste industria batzuetan. Elikagai-hondakinak murrizteko neurriak ezar itzazu, hala nola gizarte-erakundeekin lankidetzan aritzea elikagai-soberakina edo kontsumitzeko guztiz egokiak izan arren merkatura ateratzen ez direnak (adibidez, ontzian kalteak izateagatik) dohaintzan emateko. \n\n- Ekonomia zirkularraren estrategiaren barruko beste neurri garrantzitsu batzuk honako hauek dira: iraungitzeak saihesteko eta soberakinak murrizteko inbentarioak optimizatzea, elikagaiak behar bezala biltegiratzea, ekipoak eta instalazioak garbitzean sortutako ingurumen-inpaktuak minimizatzea, erakundearen kudeaketa hidrikoa hobetzea edo ekodiseinua packagingean ezartzea, kontsumitutako baliabideen eta sortutako hondakinen kopurua murriztuz.\n\n- Azkenik, bizi-zikloaren analisia egiteak produktu edo zerbitzu batek bere bizi-ziklo osoan zehar dituen ingurumen-inpaktu guztiak ezagutzeko aukera emango dizu. Horrek erraztu egiten du inpaktu horiek minimizatuko dituzten neurriak ezartzea.","- Baliabideen kontsumoa eta hondakinen sorrera murrizten jarrai ezazu, ekonomia zirkularraren bidez. Ekonomia zirkularra, trantsizio energetikoarekin batera, erakunde bat deskarbonizatzeko zutabeetako bat da. Zirkulartasun plan bat ezartzeak baliabideen (materialak eta energetikoak) kontsumoa murrizten eta hondakinak ahalik eta gutxien sortzen lagunduko du. Horren ondorioz, berotegi-efektuko gasen emisioa, ingurumen-inpaktuak eta ekoizpen-kostuak murriztuko dira, eta erakundearen egokitzeko eta lehiatzeko gaitasuna handituko da. Erakundeak Zirkulartasun Plan bat badu, baloratu hura eguneratzea, sektorearen egungo testuingurua, eskura dauden teknologia berriak eta merkatuaren eskakizun berriak kontuan hartuta.\n\n- Hornitzaile, ondasun eta zerbitzuen hautaketan, ingurumen-jasangarritasuneko irizpideak barnera itzazu, hornidura-kate osoa kontuan hartuta eta ingurumenaren aldetik jasangarriak direnak bultzatuz. Ekoitzitako elikadura-lehengaiak erabil itzazu, baliabide naturalen kontserbazioa, ingurumena eta biodibertsitatearen mantentzea bultzatuz.\n\n- Sortutako hondakinak era egokian kudea itzazu. Hondakin organikoak azpiproduktu gisa baloriza daitezke beste industria batzuetan. Elikagai-hondakinak murrizteko neurriak ezar itzazu, hala nola gizarte-erakundeekin lankidetzan aritzea elikagai-soberakina edo kontsumitzeko guztiz egokiak izan arren merkatura ateratzen ez direnak (adibidez, ontzian kalteak izateagatik) dohaintzan emateko.\n\n- Ekonomia zirkularraren estrategiaren barruko beste neurri garrantzitsu batzuk honako hauek dira: iraungitzeak saihesteko eta soberakinak murrizteko inbentarioak optimizatzea, elikagaiak behar bezala biltegiratzea, ekipoak eta instalazioak garbitzean sortutako ingurumen-inpaktuak minimizatzea, erakundearen kudeaketa hidrikoa hobetzea edo ekodiseinua packagingean ezartzea, kontsumitutako baliabideen eta sortutako hondakinen kopurua murriztuz.\n\n- Bizi-zikloaren analisia egiteak produktu edo zerbitzu batek bere bizi-ziklo osoan zehar dituen ingurumen-inpaktu guztiak ezagutzeko aukera emango dizu. Horrek erraztu egiten du inpaktu horiek minimizatuko dituzten neurriak ezartzea.","- Eutsi ekonomia zirkularrarekiko konpromisoari, eta jarraitu baliabideen kontsumoa eta hondakinen sorrera murrizten. Zirkulartasun Plana eguneratzea baloratu, sektorearen egungo testuingurua, eskura dauden teknologia berriak eta merkatuaren eskakizun berriak kontuan hartuta.\n\n- Hornitzaile, ondasun eta zerbitzuen hautaketan ingurumen-jasangarritasuneko irizpideak txertatzen jarrai ezazu, ingurumenaren aldetik jasangarriak direnak bultzatuz. Ekoitzitako elikadura-lehengaiak erabil itzazu, baliabide naturalen kontserbazioa, ingurumena eta biodibertsitatearen mantentzea bultzatuz.\n\n- Sortutako hondakinak modu egokian kudeatzen jarrai ezazu. Hondakin organikoak azpiproduktu gisa baloriza daitezke beste industria batzuetan. Elikagai-hondakinak murrizteko neurriak ezar itzazu, hala nola gizarte-erakundeekin lankidetzan aritzea elikagai-soberakina edo kontsumitzeko guztiz egokiak izan arren merkatura ateratzen ez direnak (adibidez, ontzian kalteak izateagatik) dohaintzan emateko.\n\n- Ekonomia zirkularraren estrategiaren barruko beste neurri garrantzitsu batzuk honako hauek dira: iraungitzeak saihesteko eta soberakinak murrizteko inbentarioak optimizatzea, elikagaiak behar bezala biltegiratzea, ekipoak eta instalazioak garbitzean sortutako ingurumen-inpaktuak minimizatzea, erakundearen kudeaketa hidrikoa hobetzea edo ekodiseinua packagingean ezartzea, kontsumitutako baliabideen eta sortutako hondakinen kopurua murriztuz.\n\n- Dakizunez, Bizi Zikloaren Analisia egiteak produktu edo zerbitzu batek bere bizi-ziklo osoan zehar dituen ingurumen-inpaktu guztiak ezagutzeko aukera ematen dizu. Horrek erraztu egiten du inpaktu horiek minimizatuko dituzten neurriak ezartzea."]
[null,"Zerbitzuak/ Servicios","- Baliabideen kontsumoa eta hondakinen sorrera murrizten jarrai ezazu, ekonomia zirkularraren bidez. Ekonomia zirkularra, trantsizio energetikoarekin batera, erakunde bat deskarbonizatzeko zutabeetako bat da. Zirkulartasun-plan bat ezartzeak baliabideen (materialak eta energetikoak) kontsumoa murriztea eta hondakinak ahalik eta gutxien sortzea ahalbidetuko du. Horren ondorioz, berotegi-efektuko gasen emisioa, ingurumen-inpaktuak eta ekoizpen-kostuak murriztuko dira, eta erakundearen egokitzeko eta lehiatzeko gaitasuna handituko da. \n\n- Hornitzaile, ondasun eta zerbitzuen hautaketan, ingurumen-jasangarritasuneko irizpideak barnera itzazu, hornidura-kate osoa kontuan hartuta eta ingurumenaren aldetik jasangarriak direnak bultzatuz. Lehentasuna eman sasoiko produktuen eta zero kilometroko produktu ekologikoen salerosketari eta solteko produktuen salerosketari. Elikagaien alferreko galera murrizteko neurriak eta praktikak ezar itzazu, hala nola gizarte-erakundeekin lankidetzan aritzea soberakinak dohaintzan emateko.\n\n- Inbentarioak optimiza itzazu, iraungitzeak saihesteko edo soberakinak murrizteko. Elikagaiak behar bezala biltegiratu.\n\n- Sortutako hondakinen kudeaketa egokia egin ezazu. \n\n- Erakundearen ur sanitarioaren kontsumoa eta ur bero sanitarioa izateko energia-kontsumoa murrizteko neurriak ezar itzazu.","- Baliabideen kontsumoa eta hondakinen sorrera murrizten jarrai ezazu, ekonomia zirkularraren bidez. Ekonomia zirkularra, trantsizio energetikoarekin batera, erakunde bat deskarbonizatzeko zutabeetako bat da. Zirkulartasun plan bat ezartzeak baliabideen (materialak eta energetikoak) kontsumoa murrizten eta hondakinak ahalik eta gutxien sortzen lagunduko du. Horren ondorioz, berotegi-efektuko gasen emisioa, ingurumen-inpaktuak eta ekoizpen-kostuak murriztuko dira, eta erakundearen egokitzeko eta lehiatzeko gaitasuna handituko da. Erakundeak Zirkulartasun Plan bat badu, baloratu hura eguneratzea, sektorearen egungo testuingurua, eskura dauden teknologia berriak eta merkatuaren eskakizun berriak kontuan hartuta.\n\n- Hornitzaile, ondasun eta zerbitzuen hautaketan ingurumen-jasangarritasuneko irizpideak areagotu edo barnera itzazu, hornidura-kate osoa kontuan hartuta eta ingurumenaren aldetik jasangarriak direnak bultzatuz. Lehentasuna eman sasoiko produktuen eta zero kilometroko produktu ekologikoen salerosketari eta solteko produktuen salerosketari. Elikagaien hondakinak murrizteko neurriak eta praktikak ezar itzazu, hala nola gizarte-erakundeekin lankidetzan aritzea soberakinak dohaintzan emateko, eta hondakinen sorrera minimizatu.\n\n- Inbentarioak optimiza itzazu, iraungitzeak saihesteko edo soberakinak murrizteko. Elikagaiak behar bezala biltegiratu.\n\n- Sortutako hondakinen kudeaketa egokia egin ezazu. \n\n- Erakundearen ur sanitarioaren kontsumoa eta ur bero sanitarioa izateko energia-kontsumoa murrizteko neurriak ezar itzazu.","- Eutsi ekonomia zirkularrarekiko konpromisoari, eta jarraitu baliabideen kontsumoa eta hondakinen sorrera murrizten. Zirkulartasun Plana eguneratzea baloratu, sektorearen egungo testuingurua, eskura dauden teknologia berriak eta merkatuaren eskakizun berriak kontuan hartuta.\n\n- Denboraldiko produktuen eta zero kilometroko produktu ekologikoen erabilera eta salmenta lehenesten eta, ahal den neurrian, handitzen jarrai ezazu, bai eta solteko produktuen salerosketa ere. Elikagaien hondakinak murrizteko neurriak eta praktikak ezar itzazu, hala nola gizarte-erakundeekin lankidetzan aritzea soberakinak dohaintzan emateko, eta hondakinen sorrera minimizatu.\n\n- Sortutako hondakinen kudeaketa egokia egiten jarraitu. \n\n- Erakundearen ur sanitarioaren kontsumoa eta ur bero sanitarioa izateko energia-kontsumoa murrizteko neurriak ezar itzazu."]
[null,"Beste batzuk/ Otros","- Baliabideen kontsumoa eta hondakinen sorrera murrizten jarrai ezazu, ekonomia zirkularraren bidez. Ekonomia zirkularra, trantsizio energetikoarekin batera, erakunde bat deskarbonizatzeko zutabeetako bat da. Zirkulartasun-plan bat ezartzeak baliabideen (materialak eta energetikoak) kontsumoa murriztea eta hondakinak ahalik eta gutxien sortzea ahalbidetuko du. Horren ondorioz, berotegi-efektuko gasen emisioa, ingurumen-inpaktuak eta ekoizpen-kostuak murriztuko dira, eta erakundearen egokitzeko eta lehiatzeko gaitasuna handituko da. \n\n- Fabrikatutako produktuen diseinuan eragin ahal izanez gero, ekodiseinua ezartzeak lagunduko dizu, diseinu-fasetik, produktua eta ekoizpen-prozesua optimizatzen, baliabideen kontsumoa eta hondakinen sorrera minimizatuz. Ekodiseinua honela defini daiteke: produktuen diseinuan eta garapenean ingurumen-kontsiderazioak integratzeko prozesua, produktuen bizi-ziklo osoan ingurumen-inpaktuak murrizteko, baldintza ekologikoak eta ekonomikoak orekatuz. Ekonomia zirkularraren oinarria da; izan ere, birziklatze-katearen jatorria da, eta baliabideen kontsumoa minimizatzea ahalbidetzen du, baita emisio, hondakin eta isuriena ere. Europa garbiago eta lehiakorrago baten aldeko ekonomia zirkularrerako ekintza-plan berriaren arabera, \"produktuen ingurumen-inpaktuen % 80 diseinu-fasean zehazten da\". \n\n- Hornitzaile, ondasun eta zerbitzuen hautaketan, ingurumen-jasangarritasuneko irizpideak barnera itzazu, hornidura-kate osoa kontuan hartuta eta ingurumenaren aldetik jasangarriak direnak bultzatuz. Adibidez, birziklatutako materialen kontsumoari edo hurbileko hornitzaileei lehentasuna emanez, eta, horrela, garraioa minimizatuz.\n\n- Hondakinen tratamendu egokia egin ezazu, jatorrian bereiziz, ahalik eta hondakin gehien balorizatuz eta gainerako hondakinak ezabatzeko baimendutako hondakinen kudeatzaileak erabiliz.\n\n- Azkenik, bizi-zikloaren analisia egiteak produktu edo zerbitzu batek bere bizi-ziklo osoan zehar dituen ingurumen-inpaktu guztiak ezagutzeko aukera emango dizu. Horrek erraztu egiten du inpaktu horiek minimizatuko dituzten neurriak ezartzea.\n","- Baliabideen kontsumoa eta hondakinen sorrera murrizten jarrai ezazu, ekonomia zirkularraren bidez. Ekonomia zirkularra, trantsizio energetikoarekin batera, erakunde bat deskarbonizatzeko zutabeetako bat da. Zirkulartasun plan bat ezartzeak baliabideen (materialak eta energetikoak) kontsumoa murrizten eta hondakinak ahalik eta gutxien sortzen lagunduko du. Horren ondorioz, berotegi-efektuko gasen emisioa, ingurumen-inpaktuak eta ekoizpen-kostuak murriztuko dira, eta erakundearen egokitzeko eta lehiatzeko gaitasuna handituko da. Erakundeak Zirkulartasun Plan bat badu, baloratu hura eguneratzea, sektorearen egungo testuingurua, eskura dauden teknologia berriak eta merkatuaren eskakizun berriak kontuan hartuta.\n\n- Fabrikatutako produktuen diseinuan eragin ahal izanez gero, ekodiseinua ezartzeak lagunduko dizu, diseinu-fasetik, produktua eta ekoizpen-prozesua optimizatzen, baliabideen kontsumoa eta hondakinen sorrera minimizatuz. Ekodiseinua honela defini daiteke: produktuen diseinuan eta garapenean ingurumen-kontsiderazioak integratzeko prozesua, produktuen bizi-ziklo osoan ingurumen-inpaktuak murrizteko, baldintza ekologikoak eta ekonomikoak orekatuz. Ekonomia zirkularraren oinarria da; izan ere, birziklatze-katearen jatorria da, eta baliabideen kontsumoa minimizatzea ahalbidetzen du, baita emisio, hondakin eta isuriena ere. Europa garbiago eta lehiakorrago baten aldeko ekonomia zirkularrerako ekintza-plan berriaren arabera, \"produktuen ingurumen-inpaktuen % 80 diseinu-fasean zehazten da\". Ekodiseinua ezarrita izanez gero, benchmarkinga egin, eta kanpo-aholkularitza baloratu, produktua eta produkzio-prozesua optimizatzen jarraitzeko.\n\n- Hornitzaile, ondasun eta zerbitzuen hautaketan ingurumen-jasangarritasuneko irizpideak barnera itzazu, hornidura-kate osoa kontuan hartuta eta ingurumenaren aldetik jasangarriak direnak bultzatuz. Adibidez, birziklatutako materialen kontsumoari edo hurbileko hornitzaileei lehentasuna emanez, eta, horrela, garraioa minimizatuz.\n\n- Hondakinen tratamendu egokia egin ezazu, jatorrian bereiziz, ahalik eta hondakin gehien balorizatuz eta gainerako hondakinak ezabatzeko baimendutako hondakinen kudeatzaileak erabiliz.\n\n- Bizi-zikloaren analisia egiteak produktu edo zerbitzu batek bere bizi-ziklo osoan zehar dituen ingurumen-inpaktu guztiak ezagutzeko aukera emango dizu. Horrek erraztu egiten du inpaktu horiek minimizatuko dituzten neurriak ezartzea.","- Eutsi ekonomia zirkularrarekiko konpromisoari, eta jarraitu baliabideen kontsumoa eta hondakinen sorrera murrizten. Zirkulartasun Plana eguneratzea baloratu, sektorearen egungo testuingurua, eskura dauden teknologia berriak eta merkatuaren eskakizun berriak kontuan hartuta.\n\n- Fabrikatutako produktuen diseinuan eragin ahal izanez gero, aurrera egin ekodiseinuan benchmarking-aren eta kanpo-aholkularitzaren bidez, produktua eta produkzio-prozesua optimizatzen jarraitzeko.\n\n- Hornitzaile, ondasun eta zerbitzuen hautaketan ingurumen-jasangarritasuneko irizpideak txertatzen jarraitu, jasangarrien kate osoa kontuan hartuta, eta ahal den neurrian, halako gero eta irizpide gehiago erabil itzazu.\n\n- Hondakinen tratamendu egokia egiten jarrai ezazu, balorizatutako hondakinen kopurua handitzen saiatuz.\n\n- Dakizunez, Bizi Zikloaren Analisia egiteak produktu edo zerbitzu batek bere bizi-ziklo osoan zehar dituen ingurumen-inpaktu guztiak ezagutzeko aukera ematen dizu. Horrek erraztu egiten du inpaktu horiek minimizatuko dituzten neurriak ezartzea."]
[null,null,0,"> 0 y < 70 %","> 70  %"]
["Calculo de emisiones","Eraikuntza/ Construcción","- Kalkula ezazu zure enpresaren karbono-aztarna. Karbono-aztarnak erakunde baten berotegi-efektuko gasen (BEG) isurketen guztizko kopurua neurtzen du, eta, horri esker, BEGen isurketa-iturri nagusiak identifika daitezke. Horrek erabakiak informatuta hartzea eta murrizteko helburu kuantifikagarriak ezartzea errazten du. Gainera, karbono-aztarnaren aldizkako kalkuluak BEG emisioen murrizketan izandako aurrerapena monitorizatzea eta hartutako neurrien eragina ebaluatzea ahalbidetzen du.\n\nHirugarren independente batek karbono-aztarna balioztatu eta egiaztatzeak objektibotasun, sinesgarritasun, gardentasun eta fidagarritasun handiagoa ematen die lortutako emaitzei. Karbono-aztarna lortu ondoren, erregistro publiko batean erregistra daiteke, deskarbonizazioarekiko eta jasangarritasunarekiko konpromisoa, ingurumen-erantzukizuna eta enpresaren gardentasuna frogatzen laguntzeko.","- Kalkula ezazu zure enpresaren karbono-aztarna. Baliteke 1. eta 2. irismenaren kalkuluarekin hasi izana; hala bada, saiatu aurrera egiten eta hasi 3. irismenaren kalkulua egiten, kategoria batzuekin lanean hasi eta pixkanaka irismena zabaltzen saiatuz.\n\nHirugarren independente batek karbono-aztarna balioztatu eta egiaztatzeak objektibotasun, sinesgarritasun, gardentasun eta fidagarritasun handiagoa ematen die lortutako emaitzei. Karbono-aztarna lortu ondoren, erregistro publiko batean erregistra daiteke, deskarbonizazioarekiko eta jasangarritasunarekiko konpromisoa, ingurumen-erantzukizuna eta enpresaren gardentasuna frogatzen laguntzeko.","- Jarraitu zure enpresaren karbono-aztarna kalkulatzen. Saia zaitez 3. mailako aztarnaren kalkuluan aurrera egiten, kategoria berriak sartuz eta, ahal den neurrian, zure ondasun- eta zerbitzu-hornitzaileak tartean sartuz.\n\nHirugarren independente batek karbono-aztarna balioztatu eta egiaztatzeak objektibotasun, sinesgarritasun, gardentasun eta fidagarritasun handiagoa ematen die lortutako emaitzei. Karbono-aztarna lortu ondoren, erregistro publiko batean erregistra daiteke, deskarbonizazioarekiko eta jasangarritasunarekiko konpromisoa, ingurumen-erantzukizuna eta enpresaren gardentasuna frogatzen laguntzeko."]
[null,"Papera eta kartoia/ Papel y cartón","- Kalkula ezazu zure enpresaren karbono-aztarna. Karbono-aztarnak erakunde baten berotegi-efektuko gasen (BEG) isurketen guztizko kopurua neurtzen du, eta, horri esker, BEGen isurketa-iturri nagusiak identifika daitezke. Horrek erabakiak informatuta hartzea eta murrizteko helburu kuantifikagarriak ezartzea errazten du. Gainera, karbono-aztarnaren aldizkako kalkuluak BEG emisioen murrizketan izandako aurrerapena monitorizatzea eta hartutako neurrien eragina ebaluatzea ahalbidetzen du.\n\nHirugarren independente batek karbono-aztarna balioztatu eta egiaztatzeak objektibotasun, sinesgarritasun, gardentasun eta fidagarritasun handiagoa ematen die lortutako emaitzei. Karbono-aztarna lortu ondoren, erregistro publiko batean erregistra daiteke, deskarbonizazioarekiko eta jasangarritasunarekiko konpromisoa, ingurumen-erantzukizuna eta enpresaren gardentasuna frogatzen laguntzeko.","- Kalkula ezazu zure enpresaren karbono-aztarna. Baliteke 1. eta 2. irismenaren kalkuluarekin hasi izana; hala bada, saiatu aurrera egiten eta hasi 3. irismenaren kalkulua egiten, kategoria batzuekin lanean hasi eta pixkanaka irismena zabaltzen saiatuz.\n\nHirugarren independente batek karbono-aztarna balioztatu eta egiaztatzeak objektibotasun, sinesgarritasun, gardentasun eta fidagarritasun handiagoa ematen die lortutako emaitzei. Karbono-aztarna lortu ondoren, erregistro publiko batean erregistra daiteke, deskarbonizazioarekiko eta jasangarritasunarekiko konpromisoa, ingurumen-erantzukizuna eta enpresaren gardentasuna frogatzen laguntzeko.","- Jarraitu zure enpresaren karbono-aztarna kalkulatzen. Saia zaitez 3. mailako aztarnaren kalkuluan aurrera egiten, kategoria berriak sartuz eta, ahal den neurrian, zure ondasun- eta zerbitzu-hornitzaileak tartean sartuz.\n\nHirugarren independente batek karbono-aztarna balioztatu eta egiaztatzeak objektibotasun, sinesgarritasun, gardentasun eta fidagarritasun handiagoa ematen die lortutako emaitzei. Karbono-aztarna lortu ondoren, erregistro publiko batean erregistra daiteke, deskarbonizazioarekiko eta jasangarritasunarekiko konpromisoa, ingurumen-erantzukizuna eta enpresaren gardentasuna frogatzen laguntzeko."]
[null,"Metalmekanikoa/ Metalmecánico","- Kalkula ezazu zure enpresaren karbono-aztarna. Karbono-aztarnak erakunde baten berotegi-efektuko gasen (BEG) isurketen guztizko kopurua neurtzen du, eta, horri esker, BEGen isurketa-iturri nagusiak identifika daitezke. Horrek erabakiak informatuta hartzea eta murrizteko helburu kuantifikagarriak ezartzea errazten du. Gainera, karbono-aztarnaren aldizkako kalkuluak BEG emisioen murrizketan izandako aurrerapena monitorizatzea eta hartutako neurrien eragina ebaluatzea ahalbidetzen du.\n\nHirugarren independente batek karbono-aztarna balioztatu eta egiaztatzeak objektibotasun, sinesgarritasun, gardentasun eta fidagarritasun handiagoa ematen die lortutako emaitzei. Karbono-aztarna lortu ondoren, erregistro publiko batean erregistra daiteke, deskarbonizazioarekiko eta jasangarritasunarekiko konpromisoa, ingurumen-erantzukizuna eta enpresaren gardentasuna frogatzen laguntzeko.","- Kalkula ezazu zure enpresaren karbono-aztarna. Baliteke 1. eta 2. irismenaren kalkuluarekin hasi izana; hala bada, saiatu aurrera egiten eta hasi 3. irismenaren kalkulua egiten, kategoria batzuekin lanean hasi eta pixkanaka irismena zabaltzen saiatuz.\n\nHirugarren independente batek karbono-aztarna balioztatu eta egiaztatzeak objektibotasun, sinesgarritasun, gardentasun eta fidagarritasun handiagoa ematen die lortutako emaitzei. Karbono-aztarna lortu ondoren, erregistro publiko batean erregistra daiteke, deskarbonizazioarekiko eta jasangarritasunarekiko konpromisoa, ingurumen-erantzukizuna eta enpresaren gardentasuna frogatzen laguntzeko.","- Jarraitu zure enpresaren karbono-aztarna kalkulatzen. Saia zaitez 3. mailako aztarnaren kalkuluan aurrera egiten, kategoria berriak sartuz eta, ahal den neurrian, zure ondasun- eta zerbitzu-hornitzaileak tartean sartuz.\n\nHirugarren independente batek karbono-aztarna balioztatu eta egiaztatzeak objektibotasun, sinesgarritasun, gardentasun eta fidagarritasun handiagoa ematen die lortutako emaitzei. Karbono-aztarna lortu ondoren, erregistro publiko batean erregistra daiteke, deskarbonizazioarekiko eta jasangarritasunarekiko konpromisoa, ingurumen-erantzukizuna eta enpresaren gardentasuna frogatzen laguntzeko."]
[null,"Makina-erreminta/ Máquina-herramienta","- Kalkula ezazu zure enpresaren karbono-aztarna. Karbono-aztarnak erakunde baten berotegi-efektuko gasen (BEG) isurketen guztizko kopurua neurtzen du, eta, horri esker, BEGen isurketa-iturri nagusiak identifika daitezke. Horrek erabakiak informatuta hartzea eta murrizteko helburu kuantifikagarriak ezartzea errazten du. Gainera, karbono-aztarnaren aldizkako kalkuluak BEG emisioen murrizketan izandako aurrerapena monitorizatzea eta hartutako neurrien eragina ebaluatzea ahalbidetzen du.\n\nHirugarren independente batek karbono-aztarna balioztatu eta egiaztatzeak objektibotasun, sinesgarritasun, gardentasun eta fidagarritasun handiagoa ematen die lortutako emaitzei. Karbono-aztarna lortu ondoren, erregistro publiko batean erregistra daiteke, deskarbonizazioarekiko eta jasangarritasunarekiko konpromisoa, ingurumen-erantzukizuna eta enpresaren gardentasuna frogatzen laguntzeko.","- Kalkula ezazu zure enpresaren karbono-aztarna. Baliteke 1. eta 2. irismenaren kalkuluarekin hasi izana; hala bada, saiatu aurrera egiten eta hasi 3. irismenaren kalkulua egiten, kategoria batzuekin lanean hasi eta pixkanaka irismena zabaltzen saiatuz.\n\nHirugarren independente batek karbono-aztarna balioztatu eta egiaztatzeak objektibotasun, sinesgarritasun, gardentasun eta fidagarritasun handiagoa ematen die lortutako emaitzei. Karbono-aztarna lortu ondoren, erregistro publiko batean erregistra daiteke, deskarbonizazioarekiko eta jasangarritasunarekiko konpromisoa, ingurumen-erantzukizuna eta enpresaren gardentasuna frogatzen laguntzeko.","- Jarraitu zure enpresaren karbono-aztarna kalkulatzen. Saia zaitez 3. mailako aztarnaren kalkuluan aurrera egiten, kategoria berriak sartuz eta, ahal den neurrian, zure ondasun- eta zerbitzu-hornitzaileak tartean sartuz.\n\nHirugarren independente batek karbono-aztarna balioztatu eta egiaztatzeak objektibotasun, sinesgarritasun, gardentasun eta fidagarritasun handiagoa ematen die lortutako emaitzei. Karbono-aztarna lortu ondoren, erregistro publiko batean erregistra daiteke, deskarbonizazioarekiko eta jasangarritasunarekiko konpromisoa, ingurumen-erantzukizuna eta enpresaren gardentasuna frogatzen laguntzeko."]
[null,"Nekazaritza eta elikagai sektorea/ Agroalimentario","- Kalkula ezazu zure enpresaren karbono-aztarna. Karbono-aztarnak erakunde baten berotegi-efektuko gasen (BEG) isurketen guztizko kopurua neurtzen du, eta, horri esker, BEGen isurketa-iturri nagusiak identifika daitezke. Horrek erabakiak informatuta hartzea eta murrizteko helburu kuantifikagarriak ezartzea errazten du. Gainera, karbono-aztarnaren aldizkako kalkuluak BEG emisioen murrizketan izandako aurrerapena monitorizatzea eta hartutako neurrien eragina ebaluatzea ahalbidetzen du.\n\nHirugarren independente batek karbono-aztarna balioztatu eta egiaztatzeak objektibotasun, sinesgarritasun, gardentasun eta fidagarritasun handiagoa ematen die lortutako emaitzei. Karbono-aztarna lortu ondoren, erregistro publiko batean erregistra daiteke, deskarbonizazioarekiko eta jasangarritasunarekiko konpromisoa, ingurumen-erantzukizuna eta enpresaren gardentasuna frogatzen laguntzeko.","- Kalkula ezazu zure enpresaren karbono-aztarna. Baliteke 1. eta 2. irismenaren kalkuluarekin hasi izana; hala bada, saiatu aurrera egiten eta hasi 3. irismenaren kalkulua egiten, kategoria batzuekin lanean hasi eta pixkanaka irismena zabaltzen saiatuz.\n\nHirugarren independente batek karbono-aztarna balioztatu eta egiaztatzeak objektibotasun, sinesgarritasun, gardentasun eta fidagarritasun handiagoa ematen die lortutako emaitzei. Karbono-aztarna lortu ondoren, erregistro publiko batean erregistra daiteke, deskarbonizazioarekiko eta jasangarritasunarekiko konpromisoa, ingurumen-erantzukizuna eta enpresaren gardentasuna frogatzen laguntzeko.","- Jarraitu zure enpresaren karbono-aztarna kalkulatzen. Saia zaitez 3. mailako aztarnaren kalkuluan aurrera egiten, kategoria berriak sartuz eta, ahal den neurrian, zure ondasun- eta zerbitzu-hornitzaileak tartean sartuz.\n\nHirugarren independente batek karbono-aztarna balioztatu eta egiaztatzeak objektibotasun, sinesgarritasun, gardentasun eta fidagarritasun handiagoa ematen die lortutako emaitzei. Karbono-aztarna lortu ondoren, erregistro publiko batean erregistra daiteke, deskarbonizazioarekiko eta jasangarritasunarekiko konpromisoa, ingurumen-erantzukizuna eta enpresaren gardentasuna frogatzen laguntzeko."]
[null,"Zerbitzuak/ Servicios","- Kalkula ezazu zure enpresaren karbono-aztarna. Karbono-aztarnak erakunde baten berotegi-efektuko gasen (BEG) isurketen guztizko kopurua neurtzen du, eta, horri esker, BEGen isurketa-iturri nagusiak identifika daitezke. Horrek erabakiak informatuta hartzea eta murrizteko helburu kuantifikagarriak ezartzea errazten du. Gainera, karbono-aztarnaren aldizkako kalkuluak BEG emisioen murrizketan izandako aurrerapena monitorizatzea eta hartutako neurrien eragina ebaluatzea ahalbidetzen du.\n\nHirugarren independente batek karbono-aztarna balioztatu eta egiaztatzeak objektibotasun, sinesgarritasun, gardentasun eta fidagarritasun handiagoa ematen die lortutako emaitzei. Karbono-aztarna lortu ondoren, erregistro publiko batean erregistra daiteke, deskarbonizazioarekiko eta jasangarritasunarekiko konpromisoa, ingurumen-erantzukizuna eta enpresaren gardentasuna frogatzen laguntzeko.","- Kalkula ezazu zure enpresaren karbono-aztarna. Baliteke 1. eta 2. irismenaren kalkuluarekin hasi izana; hala bada, saiatu aurrera egiten eta hasi 3. irismenaren kalkulua egiten, kategoria batzuekin lanean hasi eta pixkanaka irismena zabaltzen saiatuz.\n\nHirugarren independente batek karbono-aztarna balioztatu eta egiaztatzeak objektibotasun, sinesgarritasun, gardentasun eta fidagarritasun handiagoa ematen die lortutako emaitzei. Karbono-aztarna lortu ondoren, erregistro publiko batean erregistra daiteke, deskarbonizazioarekiko eta jasangarritasunarekiko konpromisoa, ingurumen-erantzukizuna eta enpresaren gardentasuna frogatzen laguntzeko.","- Jarraitu zure enpresaren karbono-aztarna kalkulatzen. Saia zaitez 3. mailako aztarnaren kalkuluan aurrera egiten, kategoria berriak sartuz eta, ahal den neurrian, zure ondasun- eta zerbitzu-hornitzaileak tartean sartuz.\n\nHirugarren independente batek karbono-aztarna balioztatu eta egiaztatzeak objektibotasun, sinesgarritasun, gardentasun eta fidagarritasun handiagoa ematen die lortutako emaitzei. Karbono-aztarna lortu ondoren, erregistro publiko batean erregistra daiteke, deskarbonizazioarekiko eta jasangarritasunarekiko konpromisoa, ingurumen-erantzukizuna eta enpresaren gardentasuna frogatzen laguntzeko."]
[null,"Beste batzuk/ Otros","- Kalkula ezazu zure enpresaren karbono-aztarna. Karbono-aztarnak erakunde baten berotegi-efektuko gasen (BEG) isurketen guztizko kopurua neurtzen du, eta, horri esker, BEGen isurketa-iturri nagusiak identifika daitezke. Horrek erabakiak informatuta hartzea eta murrizteko helburu kuantifikagarriak ezartzea errazten du. Gainera, karbono-aztarnaren aldizkako kalkuluak BEG emisioen murrizketan izandako aurrerapena monitorizatzea eta hartutako neurrien eragina ebaluatzea ahalbidetzen du.\n\nHirugarren independente batek karbono-aztarna balioztatu eta egiaztatzeak objektibotasun, sinesgarritasun, gardentasun eta fidagarritasun handiagoa ematen die lortutako emaitzei. Karbono-aztarna lortu ondoren, erregistro publiko batean erregistra daiteke, deskarbonizazioarekiko eta jasangarritasunarekiko konpromisoa, ingurumen-erantzukizuna eta enpresaren gardentasuna frogatzen laguntzeko.","- Kalkula ezazu zure enpresaren karbono-aztarna. Baliteke 1. eta 2. irismenaren kalkuluarekin hasi izana; hala bada, saiatu aurrera egiten eta hasi 3. irismenaren kalkulua egiten, kategoria batzuekin lanean hasi eta pixkanaka irismena zabaltzen saiatuz.\n\nHirugarren independente batek karbono-aztarna balioztatu eta egiaztatzeak objektibotasun, sinesgarritasun, gardentasun eta fidagarritasun handiagoa ematen die lortutako emaitzei. Karbono-aztarna lortu ondoren, erregistro publiko batean erregistra daiteke, deskarbonizazioarekiko eta jasangarritasunarekiko konpromisoa, ingurumen-erantzukizuna eta enpresaren gardentasuna frogatzen laguntzeko.","- Jarraitu zure enpresaren karbono-aztarna kalkulatzen. Saia zaitez 3. mailako aztarnaren kalkuluan aurrera egiten, kategoria berriak sartuz eta, ahal den neurrian, zure ondasun- eta zerbitzu-hornitzaileak tartean sartuz.\n\nHirugarren independente batek karbono-aztarna balioztatu eta egiaztatzeak objektibotasun, sinesgarritasun, gardentasun eta fidagarritasun handiagoa ematen die lortutako emaitzei. Karbono-aztarna lortu ondoren, erregistro publiko batean erregistra daiteke, deskarbonizazioarekiko eta jasangarritasunarekiko konpromisoa, ingurumen-erantzukizuna eta enpresaren gardentasuna frogatzen laguntzeko."]
[null,null,0,"> 0 y < 70 %","> 70  %"]
["Emisiones fungitivas","Eraikuntza/ Construcción","Ez da aplikatzen.","Ez da aplikatzen.","Ez da aplikatzen."]
[null,"Papera eta kartoia/ Papel y cartón","Ez da aplikatzen.","Ez da aplikatzen.","Ez da aplikatzen."]
[null,"Metalmekanikoa/ Metalmecánico","Ez da aplikatzen.","Ez da aplikatzen.","Ez da aplikatzen."]
[null,"Makina-erreminta/ Máquina-herramienta","Ez da aplikatzen.","Ez da aplikatzen.","Ez da aplikatzen."]
[null,"Nekazaritza eta elikagai sektorea/ Agroalimentario","Berotze global edo atmosferikorako potentzial txikia duten hozgarriak hartu eta hozgarrien ihesa saihestu, mantentze prebentiboak edo aurresatezkoakezarriz.","Garrantzitsua da berotze global edo atmosferikorako potentzial txikia duten hozgarriak hartzea, bai eta hozgarrien ihesa saihestea ere, mantentze prebentiboak edo aurresatezkoak ezarriz.","Berotze global edo atmosferikorako potentzial txikia duten hozgarriak erabiltzen jarraitu, eta hozgarrien ihesa saihestu."]
[null,"Zerbitzuak/ Servicios","Berotze global edo atmosferikorako potentzial txikia duten hozgarriak hartu eta hozgarrien ihesa saihestu, mantentze prebentiboak edo aurresatezkoakezarriz.","Garrantzitsua da berotze global edo atmosferikorako potentzial txikia duten hozgarriak hartzea, bai eta hozgarrien ihesa saihestea ere, mantentze prebentiboak edo aurresatezkoak ezarriz.","Berotze global edo atmosferikorako potentzial txikia duten hozgarriak erabiltzen jarraitu, eta hozgarrien ihesa saihestu."]
[null,"Beste batzuk/ Otros","Ez da aplikatzen.","Ez da aplikatzen.","Ez da aplikatzen."]
[]
["Financiación","Eraikuntza/ Construcción","- Energia aurreztera eta eraginkortasunera bideratutako jarduerek itzulera ekonomikoak badituzte ere, gaur egun administrazioen laguntza ekonomikoa ere badute, hala nola Gipuzkoako Foru Aldundiarena, Eusko Jaurlaritzarena edo Energiaren Euskal Erakundearena. Era berean, energia aurrezteko eta efizientzia energetikorako inbertsioek Sozietateen gaineko Zergari buruzko urtarrilaren 17ko 2/2014 Foru Arauaren 68. artikuluan aurreikusitako zerga-arintzeak izan ditzakete. \n\nLaguntza horien artean honako hauek aurki ditzakegu:\n- Gipuzkoako Foru Aldundia: https://egoitza.gipuzkoa.eus/eu/dirulaguntzak\n- Eusko Jaurlaritza: https://www.euskadi.eus/gobierno-vasco/tramites-servicios/?r01kQry=tT:ayuda_subvencion;cO:r01epd0122e4ed314423e0db04c97a47b5baa317f,r01epd0122e4edf39923e0db0b11fff216b637726;mA:documentLanguage.EQ.es,procedureCollection.EQ.0,procedureStatus.EQ.16;pp:r01PageSize.20;p:Inter,Inter_portal&r01SearchEngine=meta\n- Energiaren Euskal Erakundea: https://www.eve.eus/Programa-de-ayudas? lang = es-es"]
[null,"Papera eta kartoia/ Papel y cartón","- Energia aurreztera eta eraginkortasunera bideratutako jarduerek itzulera ekonomikoak badituzte ere, gaur egun administrazioen laguntza ekonomikoa ere badute, hala nola Gipuzkoako Foru Aldundiarena, Eusko Jaurlaritzarena edo Energiaren Euskal Erakundearena. Era berean, energia aurrezteko eta efizientzia energetikorako inbertsioek Sozietateen gaineko Zergari buruzko urtarrilaren 17ko 2/2014 Foru Arauaren 68. artikuluan aurreikusitako zerga-arintzeak izan ditzakete. \n\nLaguntza horien artean honako hauek aurki ditzakegu:\n- Gipuzkoako Foru Aldundia: https://egoitza.gipuzkoa.eus/eu/dirulaguntzak\n- Eusko Jaurlaritza: https://www.euskadi.eus/gobierno-vasco/tramites-servicios/?r01kQry=tT:ayuda_subvencion;cO:r01epd0122e4ed314423e0db04c97a47b5baa317f,r01epd0122e4edf39923e0db0b11fff216b637726;mA:documentLanguage.EQ.es,procedureCollection.EQ.0,procedureStatus.EQ.16;pp:r01PageSize.20;p:Inter,Inter_portal&r01SearchEngine=meta\n- Energiaren Euskal Erakundea: https://www.eve.eus/Programa-de-ayudas? lang = es-es"]
[null,"Metalmekanikoa/ Metalmecánico","- Energia aurreztera eta eraginkortasunera bideratutako jarduerek itzulera ekonomikoak badituzte ere, gaur egun administrazioen laguntza ekonomikoa ere badute, hala nola Gipuzkoako Foru Aldundiarena, Eusko Jaurlaritzarena edo Energiaren Euskal Erakundearena. Era berean, energia aurrezteko eta efizientzia energetikorako inbertsioek Sozietateen gaineko Zergari buruzko urtarrilaren 17ko 2/2014 Foru Arauaren 68. artikuluan aurreikusitako zerga-arintzeak izan ditzakete. \n\nLaguntza horien artean honako hauek aurki ditzakegu:\n- Gipuzkoako Foru Aldundia: https://egoitza.gipuzkoa.eus/eu/dirulaguntzak\n- Eusko Jaurlaritza: https://www.euskadi.eus/gobierno-vasco/tramites-servicios/?r01kQry=tT:ayuda_subvencion;cO:r01epd0122e4ed314423e0db04c97a47b5baa317f,r01epd0122e4edf39923e0db0b11fff216b637726;mA:documentLanguage.EQ.es,procedureCollection.EQ.0,procedureStatus.EQ.16;pp:r01PageSize.20;p:Inter,Inter_portal&r01SearchEngine=meta\n- Energiaren Euskal Erakundea: https://www.eve.eus/Programa-de-ayudas? lang = es-es"]
[null,"Makina-erreminta/ Máquina-herramienta","- Energia aurreztera eta eraginkortasunera bideratutako jarduerek itzulera ekonomikoak badituzte ere, gaur egun administrazioen laguntza ekonomikoa ere badute, hala nola Gipuzkoako Foru Aldundiarena, Eusko Jaurlaritzarena edo Energiaren Euskal Erakundearena. Era berean, energia aurrezteko eta efizientzia energetikorako inbertsioek Sozietateen gaineko Zergari buruzko urtarrilaren 17ko 2/2014 Foru Arauaren 68. artikuluan aurreikusitako zerga-arintzeak izan ditzakete. \n\nLaguntza horien artean honako hauek aurki ditzakegu:\n- Gipuzkoako Foru Aldundia: https://egoitza.gipuzkoa.eus/eu/dirulaguntzak\n- Eusko Jaurlaritza: https://www.euskadi.eus/gobierno-vasco/tramites-servicios/?r01kQry=tT:ayuda_subvencion;cO:r01epd0122e4ed314423e0db04c97a47b5baa317f,r01epd0122e4edf39923e0db0b11fff216b637726;mA:documentLanguage.EQ.es,procedureCollection.EQ.0,procedureStatus.EQ.16;pp:r01PageSize.20;p:Inter,Inter_portal&r01SearchEngine=meta\n- Energiaren Euskal Erakundea: https://www.eve.eus/Programa-de-ayudas? lang = es-es"]
[null,"Nekazaritza eta elikagai sektorea/ Agroalimentario","- Energia aurreztera eta eraginkortasunera bideratutako jarduerek itzulera ekonomikoak badituzte ere, gaur egun administrazioen laguntza ekonomikoa ere badute, hala nola Gipuzkoako Foru Aldundiarena, Eusko Jaurlaritzarena edo Energiaren Euskal Erakundearena. Era berean, energia aurrezteko eta efizientzia energetikorako inbertsioek Sozietateen gaineko Zergari buruzko urtarrilaren 17ko 2/2014 Foru Arauaren 68. artikuluan aurreikusitako zerga-arintzeak izan ditzakete. \n\nLaguntza horien artean honako hauek aurki ditzakegu:\n- Gipuzkoako Foru Aldundia: https://egoitza.gipuzkoa.eus/eu/dirulaguntzak\n- Eusko Jaurlaritza: https://www.euskadi.eus/gobierno-vasco/tramites-servicios/?r01kQry=tT:ayuda_subvencion;cO:r01epd0122e4ed314423e0db04c97a47b5baa317f,r01epd0122e4edf39923e0db0b11fff216b637726;mA:documentLanguage.EQ.es,procedureCollection.EQ.0,procedureStatus.EQ.16;pp:r01PageSize.20;p:Inter,Inter_portal&r01SearchEngine=meta\n- Energiaren Euskal Erakundea: https://www.eve.eus/Programa-de-ayudas? lang = es-es"]
[null,"Zerbitzuak/ Servicios","- Energia aurreztera eta eraginkortasunera bideratutako jarduerek itzulera ekonomikoak badituzte ere, gaur egun administrazioen laguntza ekonomikoa ere badute, hala nola Gipuzkoako Foru Aldundiarena, Eusko Jaurlaritzarena edo Energiaren Euskal Erakundearena. Era berean, energia aurrezteko eta efizientzia energetikorako inbertsioek Sozietateen gaineko Zergari buruzko urtarrilaren 17ko 2/2014 Foru Arauaren 68. artikuluan aurreikusitako zerga-arintzeak izan ditzakete. \n\nLaguntza horien artean honako hauek aurki ditzakegu:\n- Gipuzkoako Foru Aldundia: https://egoitza.gipuzkoa.eus/eu/dirulaguntzak\n- Eusko Jaurlaritza: https://www.euskadi.eus/gobierno-vasco/tramites-servicios/?r01kQry=tT:ayuda_subvencion;cO:r01epd0122e4ed314423e0db04c97a47b5baa317f,r01epd0122e4edf39923e0db0b11fff216b637726;mA:documentLanguage.EQ.es,procedureCollection.EQ.0,procedureStatus.EQ.16;pp:r01PageSize.20;p:Inter,Inter_portal&r01SearchEngine=meta\n- Energiaren Euskal Erakundea: https://www.eve.eus/Programa-de-ayudas? lang = es-es"]
[null,"Beste batzuk/ Otros","- Energia aurreztera eta eraginkortasunera bideratutako jarduerek itzulera ekonomikoak badituzte ere, gaur egun administrazioen laguntza ekonomikoa ere badute, hala nola Gipuzkoako Foru Aldundiarena, Eusko Jaurlaritzarena edo Energiaren Euskal Erakundearena. Era berean, energia aurrezteko eta efizientzia energetikorako inbertsioek Sozietateen gaineko Zergari buruzko urtarrilaren 17ko 2/2014 Foru Arauaren 68. artikuluan aurreikusitako zerga-arintzeak izan ditzakete. \n\nLaguntza horien artean honako hauek aurki ditzakegu:\n- Gipuzkoako Foru Aldundia: https://egoitza.gipuzkoa.eus/eu/dirulaguntzak\n- Eusko Jaurlaritza: https://www.euskadi.eus/gobierno-vasco/tramites-servicios/?r01kQry=tT:ayuda_subvencion;cO:r01epd0122e4ed314423e0db04c97a47b5baa317f,r01epd0122e4edf39923e0db0b11fff216b637726;mA:documentLanguage.EQ.es,procedureCollection.EQ.0,procedureStatus.EQ.16;pp:r01PageSize.20;p:Inter,Inter_portal&r01SearchEngine=meta\n- Energiaren Euskal Erakundea: https://www.eve.eus/Programa-de-ayudas? lang = es-es"]

{"sheet":"3 BLOKEA_Neurriak","index":16,"n_rows":8,"n_cols":4,"rows_kept":8,"cut":false,"hidden":true,"merged":[]}
["BLOQUE 3: Compensación",0,"> 0 y < 70 %","> 70  %"]
["Eraikuntza/ Construcción","- Ezabatu ezin izan diren berotegi-efektuko gasen isuriak konpentsatzea azter ezazu. Isurketen konpentsazioa emisioak neutralizatzean datza, klima-aldaketari aurre egiten lagunduko duten ekintzen bidez; adibidez, erakundeak isuritako emisio baliokideak xurgatzen dituzten zuhaitz-kopuru bat landatzen.\n\nGipuzkoak Borondatezko Karbono Funtsa du isuriak lurraldean bertan gauzatu daitezkeen proiektuen bidez konpentsatzeko. Konpentsazioa dohaintza moduan egiten da, eta irabazi-asmorik gabeko erakundeen zerga-araubideari eta mezenasgoaren zerga-pizgarriei buruzko apirilaren 7ko 3/2004 Foru Arauan aurreikusitako pizgarri fiskalak baliatu ahal izango dira. Horren arabera, karbono-funtsari egindako dohaintzak eta ekarpenak partida kengarritzat hartuko dira, sozietateen gaineko zergaren zerga-oinarria zehaztean.\n\nInformazio gehiago nahi izanez gero, jo Gipuzkoako Borondatezko Karbono Funtsera.","- Baliteke dagoeneko isurien zati bat konpentsatzea. Kasu horretan, erakundearen klima-neutraltasuna lortu arte ezabatu ezin izan diren isurketen konpentsazio-ehunekoa handitzea azter ezazu.  \n\nGipuzkoak Borondatezko Karbono Funtsa du isuriak lurraldean bertan gauzatu daitezkeen proiektuen bidez konpentsatzeko. Konpentsazioa dohaintza moduan egiten da, eta irabazi-asmorik gabeko erakundeen zerga-araubideari eta mezenasgoaren zerga-pizgarriei buruzko apirilaren 7ko 3/2004 Foru Arauan aurreikusitako pizgarri fiskalak baliatu ahal izango dira. Horren arabera, karbono-funtsari egindako dohaintzak eta ekarpenak partida kengarritzat hartuko dira, sozietateen gaineko zergaren zerga-oinarria zehaztean.\n\nInformazio gehiago nahi izanez gero, jo Gipuzkoako Borondatezko Karbono Funtsera.","- Jarraitu ezabatu ezin izan diren emisioak konpentsatzen eta mantendu zure erakundearen klima-neutraltasuna. \n\nGipuzkoak Borondatezko Karbono Funtsa du isuriak lurraldean bertan gauzatu daitezkeen proiektuen bidez konpentsatzeko. Konpentsazioa dohaintza moduan egiten da, eta irabazi-asmorik gabeko erakundeen zerga-araubideari eta mezenasgoaren zerga-pizgarriei buruzko apirilaren 7ko 3/2004 Foru Arauan aurreikusitako pizgarri fiskalak baliatu ahal izango dira. Horren arabera, karbono-funtsari egindako dohaintzak eta ekarpenak partida kengarritzat hartuko dira, sozietateen gaineko zergaren zerga-oinarria zehaztean.\n\nInformazio gehiago nahi izanez gero, jo Gipuzkoako Borondatezko Karbono Funtsera."]
["Papera eta kartoia/ Papel y cartón","- Ezabatu ezin izan diren berotegi-efektuko gasen isuriak konpentsatzea azter ezazu. Isurketen konpentsazioa emisioak neutralizatzean datza, klima-aldaketari aurre egiten lagunduko duten ekintzen bidez; adibidez, erakundeak isuritako emisio baliokideak xurgatzen dituzten zuhaitz-kopuru bat landatzen.\n\nGipuzkoak Borondatezko Karbono Funtsa du isuriak lurraldean bertan gauzatu daitezkeen proiektuen bidez konpentsatzeko. Konpentsazioa dohaintza moduan egiten da, eta irabazi-asmorik gabeko erakundeen zerga-araubideari eta mezenasgoaren zerga-pizgarriei buruzko apirilaren 7ko 3/2004 Foru Arauan aurreikusitako pizgarri fiskalak baliatu ahal izango dira. Horren arabera, karbono-funtsari egindako dohaintzak eta ekarpenak partida kengarritzat hartuko dira, sozietateen gaineko zergaren zerga-oinarria zehaztean.\n\nInformazio gehiago nahi izanez gero, jo Gipuzkoako Borondatezko Karbono Funtsera.","- Baliteke dagoeneko isurien zati bat konpentsatzea. Kasu horretan, erakundearen klima-neutraltasuna lortu arte ezabatu ezin izan diren isurketen konpentsazio-ehunekoa handitzea azter ezazu.  \n\nKasu horretan, erakundearen klima-neutraltasuna lortu arte ezabatu ezin izan diren isurketen konpentsazio-ehunekoa handitzea aztertu ezazu. Konpentsazioa dohaintza moduan egiten da, eta irabazi-asmorik gabeko erakundeen zerga-araubideari eta mezenasgoaren zerga-pizgarriei buruzko apirilaren 7ko 3/2004 Foru Arauan aurreikusitako pizgarri fiskalak baliatu ahal izango dira. Horren arabera, karbono-funtsari egindako dohaintzak eta ekarpenak partida kengarritzat hartuko dira, sozietateen gaineko zergaren zerga-oinarria zehaztean.\n\nInformazio gehiago nahi izanez gero, jo Gipuzkoako Borondatezko Karbono Funtsera.","- Jarraitu ezabatu ezin izan diren emisioak konpentsatzen eta mantendu zure erakundearen klima-neutraltasuna. \n\nKasu horretan, erakundearen klima-neutraltasuna lortu arte ezabatu ezin izan diren isurketen konpentsazio-ehunekoa handitzea aztertu ezazu. Konpentsazioa dohaintza moduan egiten da, eta irabazi-asmorik gabeko erakundeen zerga-araubideari eta mezenasgoaren zerga-pizgarriei buruzko apirilaren 7ko 3/2004 Foru Arauan aurreikusitako pizgarri fiskalak baliatu ahal izango dira. Horren arabera, karbono-funtsari egindako dohaintzak eta ekarpenak partida kengarritzat hartuko dira, sozietateen gaineko zergaren zerga-oinarria zehaztean.\n\nInformazio gehiago nahi izanez gero, jo Gipuzkoako Borondatezko Karbono Funtsera."]
["Metalmekanikoa/ Metalmecánico","- Ezabatu ezin izan diren berotegi-efektuko gasen isuriak konpentsatzea azter ezazu. Isurketen konpentsazioa emisioak neutralizatzean datza, klima-aldaketari aurre egiten lagunduko duten ekintzen bidez; adibidez, erakundeak isuritako emisio baliokideak xurgatzen dituzten zuhaitz-kopuru bat landatzen.\n\nGipuzkoak Borondatezko Karbono Funtsa du isuriak lurraldean bertan gauzatu daitezkeen proiektuen bidez konpentsatzeko. Konpentsazioa dohaintza moduan egiten da, eta irabazi-asmorik gabeko erakundeen zerga-araubideari eta mezenasgoaren zerga-pizgarriei buruzko apirilaren 7ko 3/2004 Foru Arauan aurreikusitako pizgarri fiskalak baliatu ahal izango dira. Horren arabera, karbono-funtsari egindako dohaintzak eta ekarpenak partida kengarritzat hartuko dira, sozietateen gaineko zergaren zerga-oinarria zehaztean.\n\nInformazio gehiago nahi izanez gero, jo Gipuzkoako Borondatezko Karbono Funtsera.","- Baliteke dagoeneko isurien zati bat konpentsatzea. Kasu horretan, erakundearen klima-neutraltasuna lortu arte ezabatu ezin izan diren isurketen konpentsazio-ehunekoa handitzea azter ezazu.  \n\nKasu horretan, erakundearen klima-neutraltasuna lortu arte ezabatu ezin izan diren isurketen konpentsazio-ehunekoa handitzea aztertu ezazu. Konpentsazioa dohaintza moduan egiten da, eta irabazi-asmorik gabeko erakundeen zerga-araubideari eta mezenasgoaren zerga-pizgarriei buruzko apirilaren 7ko 3/2004 Foru Arauan aurreikusitako pizgarri fiskalak baliatu ahal izango dira. Horren arabera, karbono-funtsari egindako dohaintzak eta ekarpenak partida kengarritzat hartuko dira, sozietateen gaineko zergaren zerga-oinarria zehaztean.\n\nInformazio gehiago nahi izanez gero, jo Gipuzkoako Borondatezko Karbono Funtsera.","- Jarraitu ezabatu ezin izan diren emisioak konpentsatzen eta mantendu zure erakundearen klima-neutraltasuna. \n\nKasu horretan, erakundearen klima-neutraltasuna lortu arte ezabatu ezin izan diren isurketen konpentsazio-ehunekoa handitzea aztertu ezazu. Konpentsazioa dohaintza moduan egiten da, eta irabazi-asmorik gabeko erakundeen zerga-araubideari eta mezenasgoaren zerga-pizgarriei buruzko apirilaren 7ko 3/2004 Foru Arauan aurreikusitako pizgarri fiskalak baliatu ahal izango dira. Horren arabera, karbono-funtsari egindako dohaintzak eta ekarpenak partida kengarritzat hartuko dira, sozietateen gaineko zergaren zerga-oinarria zehaztean.\n\nInformazio gehiago nahi izanez gero, jo Gipuzkoako Borondatezko Karbono Funtsera."]
["Makina-erreminta/ Máquina-herramienta","- Ezabatu ezin izan diren berotegi-efektuko gasen isuriak konpentsatzea azter ezazu. Isurketen konpentsazioa emisioak neutralizatzean datza, klima-aldaketari aurre egiten lagunduko duten ekintzen bidez; adibidez, erakundeak isuritako emisio baliokideak xurgatzen dituzten zuhaitz-kopuru bat landatzen.\n\nGipuzkoak Borondatezko Karbono Funtsa du isuriak lurraldean bertan gauzatu daitezkeen proiektuen bidez konpentsatzeko. Konpentsazioa dohaintza moduan egiten da, eta irabazi-asmorik gabeko erakundeen zerga-araubideari eta mezenasgoaren zerga-pizgarriei buruzko apirilaren 7ko 3/2004 Foru Arauan aurreikusitako pizgarri fiskalak baliatu ahal izango dira. Horren arabera, karbono-funtsari egindako dohaintzak eta ekarpenak partida kengarritzat hartuko dira, sozietateen gaineko zergaren zerga-oinarria zehaztean.\n\nInformazio gehiago nahi izanez gero, jo Gipuzkoako Borondatezko Karbono Funtsera.","- Baliteke dagoeneko isurien zati bat konpentsatzea. Kasu horretan, erakundearen klima-neutraltasuna lortu arte ezabatu ezin izan diren isurketen konpentsazio-ehunekoa handitzea azter ezazu.  \n\nKasu horretan, erakundearen klima-neutraltasuna lortu arte ezabatu ezin izan diren isurketen konpentsazio-ehunekoa handitzea aztertu ezazu. Konpentsazioa dohaintza moduan egiten da, eta irabazi-asmorik gabeko erakundeen zerga-araubideari eta mezenasgoaren zerga-pizgarriei buruzko apirilaren 7ko 3/2004 Foru Arauan aurreikusitako pizgarri fiskalak baliatu ahal izango dira. Horren arabera, karbono-funtsari egindako dohaintzak eta ekarpenak partida kengarritzat hartuko dira, sozietateen gaineko zergaren zerga-oinarria zehaztean.\n\nInformazio gehiago nahi izanez gero, jo Gipuzkoako Borondatezko Karbono Funtsera.","- Jarraitu ezabatu ezin izan diren emisioak konpentsatzen eta mantendu zure erakundearen klima-neutraltasuna. \n\nKasu horretan, erakundearen klima-neutraltasuna lortu arte ezabatu ezin izan diren isurketen konpentsazio-ehunekoa handitzea aztertu ezazu. Konpentsazioa dohaintza moduan egiten da, eta irabazi-asmorik gabeko erakundeen zerga-araubideari eta mezenasgoaren zerga-pizgarriei buruzko apirilaren 7ko 3/2004 Foru Arauan aurreikusitako pizgarri fiskalak baliatu ahal izango dira. Horren arabera, karbono-funtsari egindako dohaintzak eta ekarpenak partida kengarritzat hartuko dira, sozietateen gaineko zergaren zerga-oinarria zehaztean.\n\nInformazio gehiago nahi izanez gero, jo Gipuzkoako Borondatezko Karbono Funtsera."]
["Nekazaritza eta elikagai sektorea/ Agroalimentario","- Ezabatu ezin izan diren berotegi-efektuko gasen isuriak konpentsatzea azter ezazu. Isurketen konpentsazioa emisioak neutralizatzean datza, klima-aldaketari aurre egiten lagunduko duten ekintzen bidez; adibidez, erakundeak isuritako emisio baliokideak xurgatzen dituzten zuhaitz-kopuru bat landatzen.\n\nGipuzkoak Borondatezko Karbono Funtsa du isuriak lurraldean bertan gauzatu daitezkeen proiektuen bidez konpentsatzeko. Konpentsazioa dohaintza moduan egiten da, eta irabazi-asmorik gabeko erakundeen zerga-araubideari eta mezenasgoaren zerga-pizgarriei buruzko apirilaren 7ko 3/2004 Foru Arauan aurreikusitako pizgarri fiskalak baliatu ahal izango dira. Horren arabera, karbono-funtsari egindako dohaintzak eta ekarpenak partida kengarritzat hartuko dira, sozietateen gaineko zergaren zerga-oinarria zehaztean.\n\nInformazio gehiago nahi izanez gero, jo Gipuzkoako Borondatezko Karbono Funtsera.","- Baliteke dagoeneko isurien zati bat konpentsatzea. Kasu horretan, erakundearen klima-neutraltasuna lortu arte ezabatu ezin izan diren isurketen konpentsazio-ehunekoa handitzea azter ezazu.  \n\nKasu horretan, erakundearen klima-neutraltasuna lortu arte ezabatu ezin izan diren isurketen konpentsazio-ehunekoa handitzea aztertu ezazu. Konpentsazioa dohaintza moduan egiten da, eta irabazi-asmorik gabeko erakundeen zerga-araubideari eta mezenasgoaren zerga-pizgarriei buruzko apirilaren 7ko 3/2004 Foru Arauan aurreikusitako pizgarri fiskalak baliatu ahal izango dira. Horren arabera, karbono-funtsari egindako dohaintzak eta ekarpenak partida kengarritzat hartuko dira, sozietateen gaineko zergaren zerga-oinarria zehaztean.\n\nInformazio gehiago nahi izanez gero, jo Gipuzkoako Borondatezko Karbono Funtsera.","- Jarraitu ezabatu ezin izan diren emisioak konpentsatzen eta mantendu zure erakundearen klima-neutraltasuna. \n\nKasu horretan, erakundearen klima-neutraltasuna lortu arte ezabatu ezin izan diren isurketen konpentsazio-ehunekoa handitzea aztertu ezazu. Konpentsazioa dohaintza moduan egiten da, eta irabazi-asmorik gabeko erakundeen zerga-araubideari eta mezenasgoaren zerga-pizgarriei buruzko apirilaren 7ko 3/2004 Foru Arauan aurreikusitako pizgarri fiskalak baliatu ahal izango dira. Horren arabera, karbono-funtsari egindako dohaintzak eta ekarpenak partida kengarritzat hartuko dira, sozietateen gaineko zergaren zerga-oinarria zehaztean.\n\nInformazio gehiago nahi izanez gero, jo Gipuzkoako Borondatezko Karbono Funtsera."]
["Zerbitzuak/ Servicios","- Ezabatu ezin izan diren berotegi-efektuko gasen isuriak konpentsatzea azter ezazu. Isurketen konpentsazioa emisioak neutralizatzean datza, klima-aldaketari aurre egiten lagunduko duten ekintzen bidez; adibidez, erakundeak isuritako emisio baliokideak xurgatzen dituzten zuhaitz-kopuru bat landatzen.\n\nGipuzkoak Borondatezko Karbono Funtsa du isuriak lurraldean bertan gauzatu daitezkeen proiektuen bidez konpentsatzeko. Konpentsazioa dohaintza moduan egiten da, eta irabazi-asmorik gabeko erakundeen zerga-araubideari eta mezenasgoaren zerga-pizgarriei buruzko apirilaren 7ko 3/2004 Foru Arauan aurreikusitako pizgarri fiskalak baliatu ahal izango dira. Horren arabera, karbono-funtsari egindako dohaintzak eta ekarpenak partida kengarritzat hartuko dira, sozietateen gaineko zergaren zerga-oinarria zehaztean.\n\nInformazio gehiago nahi izanez gero, jo Gipuzkoako Borondatezko Karbono Funtsera.","- Baliteke dagoeneko isurien zati bat konpentsatzea. Kasu horretan, erakundearen klima-neutraltasuna lortu arte ezabatu ezin izan diren isurketen konpentsazio-ehunekoa handitzea azter ezazu.  \n\nKasu horretan, erakundearen klima-neutraltasuna lortu arte ezabatu ezin izan diren isurketen konpentsazio-ehunekoa handitzea aztertu ezazu. Konpentsazioa dohaintza moduan egiten da, eta irabazi-asmorik gabeko erakundeen zerga-araubideari eta mezenasgoaren zerga-pizgarriei buruzko apirilaren 7ko 3/2004 Foru Arauan aurreikusitako pizgarri fiskalak baliatu ahal izango dira. Horren arabera, karbono-funtsari egindako dohaintzak eta ekarpenak partida kengarritzat hartuko dira, sozietateen gaineko zergaren zerga-oinarria zehaztean.\n\nInformazio gehiago nahi izanez gero, jo Gipuzkoako Borondatezko Karbono Funtsera.","- Jarraitu ezabatu ezin izan diren emisioak konpentsatzen eta mantendu zure erakundearen klima-neutraltasuna. \n\nKasu horretan, erakundearen klima-neutraltasuna lortu arte ezabatu ezin izan diren isurketen konpentsazio-ehunekoa handitzea aztertu ezazu. Konpentsazioa dohaintza moduan egiten da, eta irabazi-asmorik gabeko erakundeen zerga-araubideari eta mezenasgoaren zerga-pizgarriei buruzko apirilaren 7ko 3/2004 Foru Arauan aurreikusitako pizgarri fiskalak baliatu ahal izango dira. Horren arabera, karbono-funtsari egindako dohaintzak eta ekarpenak partida kengarritzat hartuko dira, sozietateen gaineko zergaren zerga-oinarria zehaztean.\n\nInformazio gehiago nahi izanez gero, jo Gipuzkoako Borondatezko Karbono Funtsera."]
["Beste batzuk/ Otros","- Ezabatu ezin izan diren berotegi-efektuko gasen isuriak konpentsatzea azter ezazu. Isurketen konpentsazioa emisioak neutralizatzean datza, klima-aldaketari aurre egiten lagunduko duten ekintzen bidez; adibidez, erakundeak isuritako emisio baliokideak xurgatzen dituzten zuhaitz-kopuru bat landatzen.\n\nGipuzkoak Borondatezko Karbono Funtsa du isuriak lurraldean bertan gauzatu daitezkeen proiektuen bidez konpentsatzeko. Konpentsazioa dohaintza moduan egiten da, eta irabazi-asmorik gabeko erakundeen zerga-araubideari eta mezenasgoaren zerga-pizgarriei buruzko apirilaren 7ko 3/2004 Foru Arauan aurreikusitako pizgarri fiskalak baliatu ahal izango dira. Horren arabera, karbono-funtsari egindako dohaintzak eta ekarpenak partida kengarritzat hartuko dira, sozietateen gaineko zergaren zerga-oinarria zehaztean.\n\nInformazio gehiago nahi izanez gero, jo Gipuzkoako Borondatezko Karbono Funtsera.","- Baliteke dagoeneko isurien zati bat konpentsatzea. Kasu horretan, erakundearen klima-neutraltasuna lortu arte ezabatu ezin izan diren isurketen konpentsazio-ehunekoa handitzea azter ezazu.  \n\nKasu horretan, erakundearen klima-neutraltasuna lortu arte ezabatu ezin izan diren isurketen konpentsazio-ehunekoa handitzea aztertu ezazu. Konpentsazioa dohaintza moduan egiten da, eta irabazi-asmorik gabeko erakundeen zerga-araubideari eta mezenasgoaren zerga-pizgarriei buruzko apirilaren 7ko 3/2004 Foru Arauan aurreikusitako pizgarri fiskalak baliatu ahal izango dira. Horren arabera, karbono-funtsari egindako dohaintzak eta ekarpenak partida kengarritzat hartuko dira, sozietateen gaineko zergaren zerga-oinarria zehaztean.\n\nInformazio gehiago nahi izanez gero, jo Gipuzkoako Borondatezko Karbono Funtsera.","- Jarraitu ezabatu ezin izan diren emisioak konpentsatzen eta mantendu zure erakundearen klima-neutraltasuna. \n\nKasu horretan, erakundearen klima-neutraltasuna lortu arte ezabatu ezin izan diren isurketen konpentsazio-ehunekoa handitzea aztertu ezazu. Konpentsazioa dohaintza moduan egiten da, eta irabazi-asmorik gabeko erakundeen zerga-araubideari eta mezenasgoaren zerga-pizgarriei buruzko apirilaren 7ko 3/2004 Foru Arauan aurreikusitako pizgarri fiskalak baliatu ahal izango dira. Horren arabera, karbono-funtsari egindako dohaintzak eta ekarpenak partida kengarritzat hartuko dira, sozietateen gaineko zergaren zerga-oinarria zehaztean.\n\nInformazio gehiago nahi izanez gero, jo Gipuzkoako Borondatezko Karbono Funtsera."]